Workbook

Sheet Contents
A1: 80 | M1: ESC USE ONLY
D2: ESSENTIAL SERVICES COMMISSION
D3: Water Price Review
D4: Financial Model Template
B7: Table of Contents | F7: Water Business: | H7: =+N24 -> Goulburn Valley Water | I7: =+O24 -> GVW
B8: Section & Sheet Titles | F8: Regulatory Period: | H8: 2018-19 to 2022-23 (Fourth) | N8: [Decision] | O8: [Month] | P8: [Year] | Q8: [Version]
F9: Model Name: | H9: =I7&"_Price Review Template_"&O9&P9&Q9 -> GVW_Price Review Template_Dec2016 - v1 | N9: Draft | O9: Dec | P9: 2016 | Q9: - v1 | R9: << Select
B10: a. | C10: =+KeyAssumptionsPriceControl_FO!B1 -> Key Assumptions Price Control | F10: Decision type: | H10: =+N9&" Decision" -> Draft Decision | N10: Draft | O10: Jan | P10: 2016 | Q10: - v1
B11: b. | C11: Expenditure Detail - Removed as it contained confidential information | N11: Final | O11: Feb | P11: 2017 | Q11: - v1.2
B12: c. | C12: =Opex_FO!B1 -> Operating Expenditure - Forecast | F12: Model Key: | O12: Mar | P12: 2018 | Q12: - v3
B13: d. | C13: =Opex_Breakdown!B1 -> Operating Expenditure - Breakdown | O13: Apr | P13: 2019 | Q13: - v3.1
B14: e. | C14: =+'Capex_FO input'!B1 -> Capital Expenditure - Forecast Input | G14: BLUE | H14: =+I7&" - DATA INPUT CELL" -> GVW - DATA INPUT CELL | O14: May | P14: 2020 | Q14: - v4
B15: f. | C15: =Capex_FO_AC!B1 -> Capital Expenditure - Asset Category Breakdown | O15: Jun | P15: 2021 | Q15: - v4.1
B16: g. | C16: =ExpSummary_FO!B1 -> Expenditure Summary | G16: YELLOW | H16: NOTES / INSTRUCTIONS | O16: Jul | Q16: - v5
B17: h. | C17: =RollForward_FO!B1 -> Rolled forward regulatory asset base (RAB) | O17: Aug | Q17: - v5.1
B18: i. | C18: =PrevPerAdj_FO!B1 -> Previous period adjustments | G18: GREY | H18: MODEL PARAMETERS / ASSUMPTIONS | O18: Sep | Q18: - v6
B19: j. | C19: =RevenuePriceCap_FO!C1 -> Revenue forecast (price caps) | O19: Oct | Q19: - v6.1
B20: k. | C20: Revenue forecast (tariff basket) | G20: WHITE | H20: FORMULA / HARDCODED VALUES | O20: Nov | Q20: - v7
B21: l. | C21: =NotPres_FO!B1 -> Non Prescribed Services | O21: Dec | Q21: - v7.1
B22: m. | C22: ='Finance&Tax_FO'!B1 -> Cash, debt and tax assumptions | G22: ORANGE | H22: FORMULA DIFFERENT TO ADJACENT CELL
B23: n. | C23: ='Rev&RAV_FO'!B1 -> Revenue requirement detail | N23: [Business]
B24: o. | C24: =Indicators_FO!B1 -> Financial indicators | G24: GREEN | H24: DATA FROM 2013 DECISION OR PERFORMANCE REPORT | N24: Goulburn Valley Water | O24: =+VLOOKUP(N24,N25:O42,2,FALSE) -> GVW
B25: p. | C25: =Outcomes!B1 -> Outcomes | N25: Barwon Water | O25: BW
B26: q. | C26: =GSL!B1 -> Guaranteed Service Levels (GSL) | G26: RED | H26: ERROR CHECK | N26: Central Highlands Water | O26: CHW
N27: City West Water | O27: CWW
N28: Coliban Water | O28: CW
N29: East Gippsland Water | O29: EGW
N30: Gippsland Water | O30: CGW
N31: Goulburn Valley Water | O31: GVW
N32: GWM Water | O32: GWMW | P32: diff model
N33: Lower Murray Water - Urban | O33: LMW-U | P33: diff model
N34: Lower Murray Water - Rural | O34: LMW-R
N35: North East Water | O35: NEW
N36: South East Water | O36: SEW
N37: South Gippsland Water | O37: SGW
N38: Southern Rural Water | O38: SRW | P38: diff model
N39: Wannon Water | O39: WNW
N40: Western Water | O40: WW
N41: Westernport Water | O41: WPW
N42: Yarra Valley Water | O42: YVW

Sheet KeyAssumptionsPriceControl_FO
A1: 80 | B1: Key Assumptions Price Control
B2: =+Contents!H7 -> Goulburn Valley Water
B3: Go to Table of Contents
L4: FIRST REG PERIOD | P4: SECOND REG PERIOD | U4: THIRD REG PERIOD | Z4: FOURTH REG PERIOD | AC4: FIFTH REG PERIOD
F6: Straight Line | K6: 2006 | L6: 2007 | M6: 2008 | N6: 2009 | O6: 2010 | P6: 2011 | Q6: 2012 | R6: 2013 | S6: 2014 | T6: 2015 | U6: 2016 | V6: 2017 | W6: 2018 | X6: 2019 | Y6: 2020 | Z6: 2021 | AA6: 2022 | AB6: 2023 | AC6: 2024 | AD6: 2025 | AE6: 2026 | AF6: 2027 | AG6: 2028
F7: Declining Balance | I7: 2003-04 | J7: 2004-05 | K7: =+CONCATENATE(K6-1,"-",RIGHT(K6,2)) -> 2005-06 | L7: =+CONCATENATE(L6-1,"-",RIGHT(L6,2)) -> 2006-07 | M7: 2007-08 | N7: 2008-09 | O7: 2009-10 | P7: 2010-11 | Q7: 2011-12 | R7: 2012-13 | S7: 2013-14 | T7: 2014-15 | U7: 2015-16 | V7: 2016-17 | W7: 2017-18 | X7: 2018-19 | Y7: 2019-20 | Z7: 2020-21 | AA7: 2021-22 | AB7: 2022-23 | AC7: 2023-24 | AD7: 2024-25 | AE7: 2025-26 | AF7: 2026-27 | AG7: 2027-28
E11: Inflation assumptions
W12: Estimate
F13: March quarter annual CPI | I13: 141.3 | J13: 144.1 | K13: 147.5 | L13: 151.9 | M13: 155.6 | N13: 162.2 | O13: 166.2 | P13: 171 | Q13: 176.7 | R13: 99.9 | S13: 102.4 | T13: 105.4 | U13: 106.8 | V13: 108.2 | W13: 110.5
F14: Inflation | J14: =+J13/I13-1 -> 0.01981599434 | K14: 0.02359472588 | L14: 0.02983050847 | M14: 0.02435813035 | N14: 0.04241645244 | O14: 0.02466091245 | P14: 0.02888086643 | Q14: 0.03333333333 | R14: 0.01584606678 | S14: =+IF(S13=0,$X$44,S13/R13-1) -> 0.02502502503 | T14: 0.029296875 | U14: 0.01328273245 | V14: 0.01310861423 | W14: 0.02125693161 | X14: 0.023 | Y14: 0.023 | Z14: 0.023 | AA14: 0.023 | AB14: 0.023 | AC14: 0.023 | AD14: 0.023 | AE14: 0.023 | AF14: 0.023 | AG14: 0.023
F15: Inflation factor | I15: 0.7871866295 | J15: 0.8027855153 | K15: 0.8217270195 | L15: 0.8462395543 | M15: 0.8668523677 | N15: 0.9036211699 | O15: 0.9259052925 | P15: 0.9526462396 | Q15: 0.9844011142 | R15: =+R13/$W$13 -> 0.9040723982 | S15: 0.9266968326 | T15: 0.9538461538 | U15: 0.9665158371 | V15: =+V13/$W$13 -> 0.9791855204 | W15: =+W13/$W$13 -> 1 | X15: =+W15*(1+X14) -> 1.023 | Y15: =+X15*(1+Y14) -> 1.046529 | Z15: 1.070599167 | AA15: 1.095222948 | AB15: 1.120413076 | AC15: 1.146182576 | AD15: 1.172544776 | AE15: 1.199513305 | AF15: 1.227102112 | AG15: 1.25532546
I16: CPI index re-referenced in 2012-13, shaded values have been hardcoded to lock in RAB value.
E21: Cost of debt - 10 year trailing average (Nominal)
V22: Estimate | W22: Estimate
E23: Cost of debt | L23: 0.06981666667 | M23: 0.07414 | N23: 0.0691525788 | O23: 0.07361870984 | P23: 0.07046784142 | Q23: 0.06308887941 | R23: 0.0526945046 | S23: 0.070525 | T23: 0.05360833333 | U23: 0.05270138413 | V23: 0.0491 | W23: 0.0491
E24: Re-financing weightings - average 10 yrs | L24: =1/10 -> 0.1 | M24: =1/10 -> 0.1 | N24: =1/10 -> 0.1 | O24: =1/10 -> 0.1 | P24: =1/10 -> 0.1 | Q24: 0.1 | R24: 0.1 | S24: 0.1 | T24: 0.1 | U24: 0.1 | V24: 0.1 | W24: 0.1 | X24: 0.1 | Y24: 0.1 | Z24: 0.1 | AA24: 0.1 | AB24: 0.1 | AC24: 0.1 | AD24: 0.1 | AE24: 0.1 | AF24: 0.1 | AG24: 0.1
E26: Cost of debt - 10 year trailing average | V26: =IF(U23<>"",SUMPRODUCT(L23:U23,L24:U24),"") -> 0.06498138982 | W26: =IF(V23<>"",SUMPRODUCT(M23:V23,M24:V24),"") -> 0.06290972315 | X26: =IF(W23<>"",SUMPRODUCT(N23:W23,N24:W24),"") -> 0.06040572315 | Y26: =IF(X23<>"",SUMPRODUCT(O23:X23,O24:X24),"") ->  | Z26: =IF(Y23<>"",SUMPRODUCT(P23:Y23,P24:Y24),"") -> 
E30: WACC assumptions (retained for historical purposes only) | U30: Regulatory Rate of Return (RRR) - Nominal
K32: 1st period | M32: 2nd period | O32: 3rd period | U32: Cost of Debt | X32: =+X26 -> 0.06040572315 | Y32: =+$X$32 -> 0.06040572315 | Z32: 0.06040572315 | AA32: 0.06040572315 | AB32: 0.06040572315 | AC32: 0.06040572315 | AD32: 0.06040572315 | AE32: 0.06040572315 | AF32: 0.06040572315 | AG32: 0.06040572315 | AI32: << Linked to Benchmark tax liability calculation (Rev&RAV_FO)
E33: Parameters
F34: Risk Free Rate (Real) | K34: =+HLOOKUP(Contents!$I$7&1,Determination_Lookup!$C$54:$BD$61,2,FALSE) -> 0.0267 | M34: =+HLOOKUP(Contents!$I$7&2,Determination_Lookup!$C$54:$BD$61,2,FALSE) -> 0.0323 | O34: =+HLOOKUP(Contents!$I$7&3,Determination_Lookup!$C$54:$BD$61,2,FALSE) -> 0.005959
F35: Debt Premium | K35: =+HLOOKUP(Contents!$I$7&1,Determination_Lookup!$C$54:$BD$61,3,FALSE) -> 0.0116 | M35: =+HLOOKUP(Contents!$I$7&2,Determination_Lookup!$C$54:$BD$61,3,FALSE) -> 0.0175 | O35: =+HLOOKUP(Contents!$I$7&3,Determination_Lookup!$C$54:$BD$61,3,FALSE) -> 0.0399
F36: Equity Premium | K36: =+HLOOKUP(Contents!$I$7&1,Determination_Lookup!$C$54:$BD$61,4,FALSE) -> 0.06 | M36: =+HLOOKUP(Contents!$I$7&2,Determination_Lookup!$C$54:$BD$61,4,FALSE) -> 0.06 | O36: =+HLOOKUP(Contents!$I$7&3,Determination_Lookup!$C$54:$BD$61,4,FALSE) -> 0.06 | U36: Regulatory Rate of Return (RRR) - Real
F37: Equity Beta | K37: =+HLOOKUP(Contents!$I$7&1,Determination_Lookup!$C$54:$BD$61,5,FALSE) -> 0.75 | M37: =+HLOOKUP(Contents!$I$7&2,Determination_Lookup!$C$54:$BD$61,5,FALSE) -> 0.65 | O37: =+HLOOKUP(Contents!$I$7&3,Determination_Lookup!$C$54:$BD$61,5,FALSE) -> 0.65
F38: Gearing (Debt/Assets) | K38: =+HLOOKUP(Contents!$I$7&1,Determination_Lookup!$C$54:$BD$61,6,FALSE) -> 0.6 | M38: =+HLOOKUP(Contents!$I$7&2,Determination_Lookup!$C$54:$BD$61,6,FALSE) -> 0.6 | O38: =+HLOOKUP(Contents!$I$7&3,Determination_Lookup!$C$54:$BD$61,6,FALSE) -> 0.6 | U38: Cost of Debt | X38: =(1+X32)/(1+X44)-1 -> 0.03656473426 | Y38: =+$X$38 -> 0.03656473426 | Z38: =+$X$38 -> 0.03656473426 | AA38: 0.03656473426 | AB38: 0.03656473426 | AC38: 0.03656473426 | AD38: 0.03656473426 | AE38: 0.03656473426 | AF38: 0.03656473426 | AG38: 0.03656473426
F39: Forecast Inflation | K39: =+HLOOKUP(Contents!$I$7&1,Determination_Lookup!$C$54:$BD$61,7,FALSE) -> 0.0255 | M39: =+HLOOKUP(Contents!$I$7&2,Determination_Lookup!$C$54:$BD$61,7,FALSE) -> 0.029 | O39: =+HLOOKUP(Contents!$I$7&3,Determination_Lookup!$C$54:$BD$61,7,FALSE) -> 0.0275
F40: Franking credit value | K40: =+HLOOKUP(Contents!$I$7&1,Determination_Lookup!$C$54:$BD$61,8,FALSE) -> 0.5 | M40: =+HLOOKUP(Contents!$I$7&2,Determination_Lookup!$C$54:$BD$61,8,FALSE) -> 0.5 | O40: =+HLOOKUP(Contents!$I$7&3,Determination_Lookup!$C$54:$BD$61,8,FALSE) -> 0.5 | U40: Return on Equity | X40: =IF(AG65<>0,(AG65/100),IF(AG63<>0,(AG63/100),(AG61/100))) -> 0.053 | Y40: =+$X$40 -> 0.053 | Z40: 0.053 | AA40: 0.053 | AB40: 0.053 | AC40: 0.053 | AD40: 0.053 | AE40: 0.053 | AF40: 0.053 | AG40: 0.053 | AI40: << Source: PREMO Assessment Matrix
E42: 'Vanilla' After Tax WACC (Real) | K42: =ROUND(((K34+K36*K37)*(1-K38))+((K34+K35)*K38),3) -> 0.052 | M42: =ROUND(((M34+M36*M37)*(1-M38))+((M34+M35)*M38),3) -> 0.058 | O42: =ROUND(((O34+O36*O37)*(1-O38))+((O34+O35)*O38),3) -> 0.045 | U42: RRR (real) | X42: =ROUND((X40*(1-X43)+X38*X43),3) -> 0.043 | Y42: 0.043 | Z42: 0.043 | AA42: 0.043 | AB42: 0.043 | AC42: 0.043 | AD42: 0.043 | AE42: 0.043 | AF42: 0.043 | AG42: 0.043
U43: Gearing | X43: 0.6 | Y43: =+X43 -> 0.6 | Z43: =+Y43 -> 0.6 | AA43: 0.6 | AB43: 0.6 | AC43: 0.6 | AD43: 0.6 | AE43: 0.6 | AF43: 0.6 | AG43: 0.6
U44: Forecast Inflation | X44: 0.023 | Y44: =+X44 -> 0.023 | Z44: 0.023 | AA44: 0.023 | AB44: 0.023 | AC44: 0.023 | AD44: 0.023 | AE44: 0.023 | AF44: 0.023 | AG44: 0.023
E46: Form of price control selected
E48: Price caps | I48: 1
U49: PREMO Graded Scoring System (for reference only) | AB49: PREMO Assessment Matrix (linked to Regulatory Rate of Return calculation above)
E50: Revenue cap / Hybrid Tariff Basket
V52: Water business | X52: ESC assessment | Z52: Difference | AD52: Water business self-assessment
V53: self-assessment | X53: of submission
AD54: Leading | AE54: Advanced | AF54: Standard | AG54: Basic
U55: Risk | V55: 4 | Z55: =IFERROR(IF(X55=0,"",X55-V55),"") ->  | AB55: ESC assessment of submission | AC55: Leading | AD55: 5.3
U56: Engagement | V56: 3.75 | Z56: =IFERROR(IF(X56=0,"",X56-V56),"") ->  | AC56: Advanced | AD56: 4.7 | AE56: 4.9
U57: Management | V57: 4 | Z57: =IFERROR(IF(X57=0,"",X57-V57),"") ->  | AC57: Standard | AD57: 4.1 | AE57: 4.3 | AF57: 4.5
U58: Outcomes | V58: 3.75 | Z58: =IFERROR(IF(X58=0,"",X58-V58),"") ->  | AC58: Basic | AF58: 3.9 | AG58: 4.1
U60: Total Score | V60: =SUM(V55:V58) -> 15.5 | X60: =SUM(X55:X58) -> 0 | Z60: =IFERROR(IF(X60=0,"",X60-V60),"") -> 
AB61: Water business self-assessment (Maximum allowable ROE) | AF61: Leading | AG61: =+VLOOKUP(AF61,$AF$72:$AG$76,2,FALSE) -> 5.3
AB63: ROE Override (Must be less than Maximum allowable ROE) | AG63: =+IF(AF63<=AG61,AF63,"CHECK") -> 0
U64: Rating | V64: =IF(V60<4,"",IF(AND(V60>=4,V60<=7.25),"Basic",IF(AND(V60>=7.5,V60<=11.25),"Standard",IF(AND(V60>=11.5,V60<=15.25),"Advanced",IF(AND(V60>=15.5,V60<=16),"Leading"))))) -> Leading | X64: =IF(X60<4,"",IF(AND(X60>=4,X60<=7.25),"Basic",IF(AND(X60>=7.5,X60<=11.25),"Standard",IF(AND(X60>=11.5,X60<=15.25),"Advanced",IF(AND(X60>=15.5,X60<=16),"Leading"))))) -> 
AB65: ESC assessment of submission | AG65: =IFERROR(IF(AF65=AF61,AG61,VLOOKUP(AF61&AF65,AF79:AG83,2,FALSE)),0) -> 0
AF67: Difference | AG67: =IFERROR(IF(AG65=0,"",AG65-AG61),"") -> 
U70: ESC USE ONLY
W71: [Select] | Y71: Rating | Z71: Aggregate score for overall PREMO rating | AF71: Business self assessment
W72: 1 | Y72: Leading | Z72: 15.5 to 16.0 | AF72: [Select]
W73: 1.25 | Y73: Advanced | Z73: 11.5 to 15.25 | AF73: Leading | AG73: =+AD55 -> 5.3
W74: 1.5 | Y74: Standard | Z74: 7.5 to 11.25 | AF74: Advanced | AG74: =+AE56 -> 4.9
W75: 1.75 | Y75: Basic | Z75: 4.0 to 7.25 | AF75: Standard | AG75: =+AF57 -> 4.5
W76: 2 | AF76: Basic | AG76: =+AG58 -> 4.1
W77: 2.25
W78: 2.5 | AF78: downgrading
W79: 2.75 | AF79: =AF54&AC58 -> StandardBasic | AG79: =+AF58 -> 3.9
W80: 3 | AF80: =+AE54&AC57 -> AdvancedStandard | AG80: =+AE57 -> 4.3
W81: 3.25 | AF81: =+AD54&AC56 -> LeadingAdvanced | AG81: =+AD56 -> 4.7
W82: 3.5 | AF82: =+AD54&AC57 -> LeadingStandard | AG82: =+AD57 -> 4.1
W83: 3.75 | AF83: =+AF61&"Basic" -> LeadingBasic | AG83: CHECK
W84: 4

Sheet Opex_FO
B1: Operating Expenditure - Forecast
B2: =+Model_Name -> Goulburn Valley Water
B3: Go to Table of Contents
L4: FIRST REG PERIOD | P4: SECOND REG PERIOD | S4: THIRD REG PERIOD | X4: FOURTH REG PERIOD | AC4: FIFTH REG PERIOD
K5: 2006 | L5: 2007 | M5: 2008 | N5: 2009 | O5: 2010 | P5: 2011 | Q5: 2012 | R5: 2013 | S5: 2014 | T5: 2015 | U5: 2016 | V5: 2017 | W5: 2018 | X5: 2019 | Y5: 2020 | Z5: 2021 | AA5: 2022 | AB5: 2023 | AC5: 2024 | AD5: 2025 | AE5: 2026 | AF5: 2027 | AG5: 2028
B6: $m, 01/01/18 | K6: =+CONCATENATE(K5-1,"-",RIGHT(K5,2)) -> 2005-06 | L6: =+CONCATENATE(L5-1,"-",RIGHT(L5,2)) -> 2006-07 | M6: 2007-08 | N6: 2008-09 | O6: 2009-10 | P6: 2010-11 | Q6: 2011-12 | R6: 2012-13 | S6: 2013-14 | T6: 2014-15 | U6: 2015-16 | V6: 2016-17 | W6: 2017-18 | X6: 2018-19 | Y6: 2019-20 | Z6: 2020-21 | AA6: 2021-22 | AB6: 2022-23 | AC6: 2023-24 | AD6: 2024-25 | AE6: 2025-26 | AF6: 2026-27 | AG6: 2027-28
C9: Parameters | F9: 3rd period | H9: 4th period
D11: Cost efficiency improvement rate (% per annum) | F11: 0.01 | H11: =+SUM(X11:AB11)/5 -> 0.031 | X11: 0.031 | Y11: 0.031 | Z11: 0.031 | AA11: 0.031 | AB11: 0.031 | AC11: 0.02 | AD11: 0.02 | AE11: 0.02 | AF11: 0.02 | AG11: 0.02
D13: Customer growth forecast (% per annum) | F13: =AVERAGE(T13:W13) -> 0.01208877947 | H13: =+SUM(X13:AB13)/5 -> 0.0132 | T13: =IF(T15="","",T15/S15-1) -> 0.01221018709 | U13: =IF(U15="","",U15/T15-1) -> 0.01236358491 | V13: 0.01112935914 | W13: 0.01265198674 | X13: 0.0132 | Y13: 0.0132 | Z13: 0.0132 | AA13: 0.0132 | AB13: 0.0132 | AC13: 0.0132 | AD13: 0.0132 | AE13: 0.0132 | AF13: 0.0132 | AG13: 0.0132
E14: Net baseline opex growth | F14: =IFERROR(F13-F11,"-") -> 0.002088779471 | H14: =IFERROR(H13-H11,"-") -> -0.0178
D15: Water customers (No.) - Residential & Non-Residential - [BED 1] | S15: =+Determination_Lookup!BF3 -> 55855 | T15: =+Determination_Lookup!BG3 -> 56537 | U15: =+Determination_Lookup!BH3 -> 57236 | V15: 57873 | W15: =+V$15*(1+W$13) -> 58605.20843 | X15: =+W$15*(1+X$13) -> 59378.79718 | Y15: =+X$15*(1+Y$13) -> 60162.5973 | Z15: 60956.74359 | AA15: 61761.3726 | AB15: 62576.62272 | AC15: 63402.63414 | AD15: 64239.54891 | AE15: 65087.51096 | AF15: 65946.6661 | AG15: 66817.16209 | AI15: << Used as normalising metric for dashboard graphs
D17: Sewer customers (No.) - Residential & Non-Residential - [BED 2] | S17: =+Determination_Lookup!BJ3 -> 49062 | T17: =+Determination_Lookup!BK3 -> 49682 | U17: =+Determination_Lookup!BL3 -> 50348 | V17: 50940 | W17: =+V$17*(1+W$13) -> 51584.4922 | X17: =+W$17*(1+X$13) -> 52265.4075 | Y17: =+X$17*(1+Y$13) -> 52955.31088 | Z17: 53654.32098 | AA17: 54362.55802 | AB17: 55080.14379 | AC17: 55807.20168 | AD17: 56543.85675 | AE17: 57290.23566 | AF17: 58046.46677 | AG17: 58812.68013 | AI17: << Used as normalising metric for dashboard graphs
D19: Total metered volume of water delivered to customers (ML) - [BED 10] | S19: =+Determination_Lookup!BB3 -> 23125 | T19: =+Determination_Lookup!BC3 -> 24440 | U19: =+Determination_Lookup!BD3 -> 26256 | V19: 22438 | W19: 24801.05246 | X19: 24960.5987 | Y19: 25123.02365 | Z19: 25286.97831 | AA19: 25451.00188 | AB19: 25619.43231 | AC19: 25790.87517 | AD19: 25965.41718 | AE19: 26143.14862 | AF19: 26310.81042 | AG19: 26483.77512 | AI19: << Used as normalising metric for dashboard graphs
D20: Residential, Non-Residential & Recycled (Residential & Non-Residential)
C24: Baseline Forecast
D26: Baseline year - total prescribed operating expenditure in 2016-17: | V26: =+Opex_Breakdown!V37 -> 47.96641
D28: Less non-controllable expenditure items incurred in 2016-17:
E29: External bulk water charges (excl. temporary purchases) | V29: =+Opex_Breakdown!V29 -> 1.11215
E30: External temporary water purchases | V30: =+Opex_Breakdown!V30 -> 0 | X30: Comparison with approved 2016-17 total controllable opex
E31: Licence fees | V31: =+Opex_Breakdown!V31 -> 0.15831 | X31: per 2013 determination model
E32: Environment Contribution | V32: =+Opex_Breakdown!V32 -> 2.47348
E33: Other non-controllable | V33: =+Opex_Breakdown!V33 -> 0
V34: =SUM(V29:V33) -> 3.74394 | Y34: 2016-17 | Z34: Difference | AA34: %
D36: Baseline year - total controllable operating expenditure in 2016-17: | V36: =+V26-V34 -> 44.22247 | Y36: =+Determination_Lookup!AX3 -> 42.03179346 | Z36: =+V52-Y36 -> -0.2685101558 | AA36: =+Z36/Y36 -> -0.006388263113
D38: Adjustments for non-recurring expenditure items incurred in 2016-17 and any efficiency savings to be realised from 2016-17: | X38: ($, 2017-18)
D40: 1 | E40: Electricity | V40: 0.02042513863
D41: 2 | E41: Chemicals | V41: 0.8323243993
D42: 3 | E42: Maintenance | V42: 0.06638170055
D43: 4 | E43: Contractors & Consultants | V43: 0.9477264325
D44: 5 | E44: Other Supplier Services | V44: 0.388077634
D45: 6 | E45: Employee Benefits | V45: 0.2042513863
D46: 7
D47: 8
D48: 9
D49: 10
V50: =SUM(V40:V49) -> 2.459186691
D52: Baseline controllable operating expenditure (2016-17) | V52: =+V36-V50 -> 41.76328331
D54: Adjusted Baseline controllable operating expenditure (Forecast) | W54: =+V52*(1+$W$13-$F$11) -> 41.87403898 | X54: =+$W$54*(1+X$13-X$11) -> 41.12868109 | Y54: =+X$54*(1+Y$13-Y$11) -> 40.39659056 | Z54: 39.67753125 | AA54: 38.9712712 | AB54: 38.27758257 | AC54: 38.01729501 | AD54: 37.7587774 | AE54: 37.50201772 | AF54: 37.24700399 | AG54: 36.99372437
C58: Operating expenditure - reconciliation
D61: Adjusted Baseline controllable operating expenditure (Forecast) | X61: =+X54 -> 41.12868109 | Y61: 40.39659056 | Z61: 39.67753125 | AA61: 38.9712712 | AB61: 38.27758257 | AC61: 38.01729501 | AD61: 37.7587774 | AE61: 37.50201772 | AF61: 37.24700399 | AG61: 36.99372437
H62: Controllable
D63: Forecast variations to baseline operating expenditure (above or below baseline) | H63: only
D65: 1 | E65: Digital Business Strategy | H65: Water | X65: 0.3702056377 | Y65: 0.3242490758 | Z65: 0.3089302218 | AA65: 0.2782925139 | AB65: 0.2782925139 | AC65: 0.2297828096 | AD65: 0.2297828096 | AE65: 0.2297828096 | AF65: 0.2297828096 | AG65: 0.2297828096
D66: =D65+1 -> 2 | E66: Digital Business Strategy | H66: Sewerage | X66: 0.3702056377 | Y66: 0.3242490758 | Z66: 0.3089302218 | AA66: 0.2782925139 | AB66: 0.2782925139 | AC66: 0.2297828096 | AD66: 0.2297828096 | AE66: 0.2297828096 | AF66: 0.2297828096 | AG66: 0.2297828096
D67: =D66+1 -> 3 | E67: M&E Strategy, Asset Class Plans and Asset Performance Consultancies | H67: Water | X67: 0.4452680222 | Y67: 0.4513955638 | Z67: 0.4049283734 | AA67: 0.4161621996 | AB67: 0.5039902957 | AC67: 0.4049283734 | AD67: 0.4049283734 | AE67: 0.4049283734 | AF67: 0.4049283734 | AG67: 0.5039902957
D68: 4 | E68: M&E Strategy, Asset Class Plans and Asset Performance Consultancies | H68: Sewerage | X68: 0.4452680222 | Y68: 0.4513955638 | Z68: 0.4049283734 | AA68: 0.4161621996 | AB68: 0.5039902957 | AC68: 0.4049283734 | AD68: 0.4049283734 | AE68: 0.4049283734 | AF68: 0.4049283734 | AG68: 0.5039902957
D69: 5 | E69: Operating expenditure from new assets | H69: Water | X69: 0.2728487121 | Y69: 0.5253819092 | Z69: 0.6502602468 | AA69: 0.7806315595 | AB69: 0.9043831999 | AC69: 0.9752942465 | AD69: 0.9932223493 | AE69: 1.440928553 | AF69: 1.325022767 | AG69: 1.404012587
D70: 6 | E70: Operating expenditure from new assets | H70: Sewerage | X70: 0.2728487121 | Y70: 0.5253819092 | Z70: 0.6502602468 | AA70: 0.7806315595 | AB70: 0.9043831999 | AC70: 0.9752942465 | AD70: 0.9932223493 | AE70: 1.440928553 | AF70: 1.325022767 | AG70: 1.404012587
D71: 7 | E71: Operational resourcing strategy | H71: Water | X71: 0.2047620148 | Y71: 0.2430591497 | Z71: 0.2813562847 | AA71: 0.2813562847 | AB71: 0.2813562847 | AC71: 0.2813562847 | AD71: 0.2813562847 | AE71: 0.2813562847 | AF71: 0.2813562847 | AG71: 0.2813562847
D72: 8 | E72: Operational resourcing strategy | H72: Sewerage | X72: 0.2047620148 | Y72: 0.2430591497 | Z72: 0.2813562847 | AA72: 0.2813562847 | AB72: 0.2813562847 | AC72: 0.2813562847 | AD72: 0.2813562847 | AE72: 0.2813562847 | AF72: 0.2813562847 | AG72: 0.2813562847
D73: 9 | E73: Electricity price increases | H73: Water | X73: 0.3251195061 | Y73: 0.1790639407 | Z73: 0.1927812466 | AA73: 0.1531885397 | AB73: 0.001724254393 | AC73: 0.1346348146 | AD73: 0.1720609267 | AE73: 0.2657487012 | AF73: 0.3493401812 | AG73: 0.3903726402
D74: 10 | E74: Electricity price increases | H74: Sewerage | X74: 0.3251195061 | Y74: 0.1790639407 | Z74: 0.1927812466 | AA74: 0.1531885397 | AB74: 0.001724254393 | AC74: 0.1346348146 | AD74: 0.1720609267 | AE74: 0.2657487012 | AF74: 0.3493401812 | AG74: 0.3903726402
D75: 11 | E75: Corporate service strategy (Safety, Water for Victoria, Customer Engagement) | H75: Water | X75: 0.2001663586 | Y75: 0.1853581331 | Z75: 0.1904644177 | AA75: 0.1419547135 | AB75: 0.1419547135 | AC75: 0.1419547135 | AD75: 0.1419547135 | AE75: 0.1419547135 | AF75: 0.1419547135 | AG75: 0.1419547135
D76: 12 | E76: Corporate service strategy (Safety, Water for Victoria, Customer Engagement) | H76: Sewerage | X76: 0.2001663586 | Y76: 0.1853581331 | Z76: 0.1904644177 | AA76: 0.1419547135 | AB76: 0.1419547135 | AC76: 0.1419547135 | AD76: 0.1419547135 | AE76: 0.1419547135 | AF76: 0.1419547135 | AG76: 0.1419547135
D77: 13 | E77: Biosolids and alum sludge management | H77: Sewerage | X77: 0 | Y77: 0.1092744917 | Z77: 0.1736136784 | AA77: 0.1419547135 | AB77: 0.2808456562 | AC77: 0.4585443623 | AD77: 0.4462892791 | AE77: 0.4575231054 | AF77: 0.4360767098 | AG77: 0.4360767098
D78: 14 | E78: Planning, Strategy & Environment Consultancies | H78: Water | X78: 0.1807624769 | Y78: 0.1383803142 | Z78: 0.1445078558 | AA78: 0.2175277264 | AB78: 0.1373590573 | AC78: 0.1807624769 | AD78: 0.1383803142 | AE78: 0.1445078558 | AF78: 0.2175277264 | AG78: 0.1373590573
D79: 15 | E79: Planning, Strategy & Environment Consultancies | H79: Sewerage | X79: 0.1807624769 | Y79: 0.1383803142 | Z79: 0.1445078558 | AA79: 0.2175277264 | AB79: 0.1373590573 | AC79: 0.1807624769 | AD79: 0.1383803142 | AE79: 0.1445078558 | AF79: 0.2175277264 | AG79: 0.1373590573
D80: 16 | E80: Operating cost adjustments | H80: Water | X80: -1.37 | Y80: -0.73 | Z80: 0 | AA80: 0.91 | AB80: 0.72 | AC80: 0.16 | AD80: 0.36 | AE80: -0.57 | AF80: -0.42 | AG80: 0.5
D81: 17 | H81: [Service]
D82: 18 | H82: [Service]
D83: 19 | H83: [Service]
D84: 20 | E84: Adjustment to Remove FALSE from Row 110 | H84: [Service] | X84: =+X103-X97-(SUM(X65:X83))-X61 -> 0.003345005433 | Y84: =+Y103-Y97-(SUM(Y65:Y83))-Y61 -> 0.002524314104 | Z84: 0.002038921395 | AA84: 0.004796460901 | AB84: -0.001872240291 | AC84: -0.003784685874 | AD84: 0.001043898909 | AE84: 0.001905787261 | AF84: -0.002094551187 | AG84: -0.9979757307
D86: Total changes required to baseline operating expenditure | X86: =SUM(X65:X85) -> 2.631610462 | Y86: 3.475574979 | Z86: 4.522109893 | AA86: 5.594978249 | AB86: 5.497094055 | AC86: 5.312187115 | AD86: 5.530704721 | AE86: 5.707843474 | AF86: 5.913807871 | AG86: 6.115757755
W87: % Change in baseline opex per annum | X87: =IFERROR(X86/X61,"-") -> 0.06398480069 | Y87: =IFERROR(Y86/Y61,"-") -> 0.08603634441 | Z87: 0.1139715539 | AA87: 0.1435667372 | AB87: 0.1436113173 | AC87: 0.1397308018 | AD87: 0.1464746769 | AE87: 0.15220097 | AF87: 0.1587727129 | AG87: 0.1653187901
W88: % Change in baseline opex per reg period | AB88: =IFERROR(AVERAGE(X87:AB87),"-") -> 0.1102341507 | AG88: =IFERROR(AVERAGE(AC87:AG87),"-") -> 0.1524995904
D89: Total controllable operating expenditure | X89: =+X86+X61 -> 43.76029155 | Y89: 43.87216554 | Z89: 44.19964115 | AA89: 44.56624945 | AB89: 43.77467662 | AC89: 43.32948212 | AD89: 43.28948212 | AE89: 43.20986119 | AF89: 43.16081187 | AG89: 43.10948212
W90: Controllable Opex growth from baseline to 5th year | AB90: =IFERROR(AB89-V52,"-") -> 2.011393315 | AC90: =IFERROR(AB89/V52-1,"-") -> 0.0481617621
D91: Non-controllable operating expenditure
D92: External bulk water charges (excl. temporary purchases) | X92: =+Opex_Breakdown!X29 -> 1.074073445 | Y92: =+Opex_Breakdown!Y29 -> 1.074481014 | Z92: =+Opex_Breakdown!Z29 -> 1.110341563 | AA92: =+Opex_Breakdown!AA29 -> 1.125214712 | AB92: =+Opex_Breakdown!AB29 -> 1.083430531 | AC92: =+Opex_Breakdown!AC29 -> 1.074073445 | AD92: =+Opex_Breakdown!AD29 -> 1.074073445 | AE92: =+Opex_Breakdown!AE29 -> 1.074073445 | AF92: =+Opex_Breakdown!AF29 -> 1.074073445 | AG92: =+Opex_Breakdown!AG29 -> 1.074073445
D93: External temporary water purchases | X93: =+Opex_Breakdown!X30 -> 0 | Y93: =+Opex_Breakdown!Y30 -> 0 | Z93: =+Opex_Breakdown!Z30 -> 0 | AA93: =+Opex_Breakdown!AA30 -> 0 | AB93: =+Opex_Breakdown!AB30 -> 0 | AC93: =+Opex_Breakdown!AC30 -> 0 | AD93: =+Opex_Breakdown!AD30 -> 0 | AE93: =+Opex_Breakdown!AE30 -> 0 | AF93: =+Opex_Breakdown!AF30 -> 0 | AG93: =+Opex_Breakdown!AG30 -> 0
D94: Licence fees | X94: =+Opex_Breakdown!X31 -> 0.16619 | Y94: =+Opex_Breakdown!Y31 -> 0.16721 | Z94: =+Opex_Breakdown!Z31 -> 0.16906 | AA94: =+Opex_Breakdown!AA31 -> 0.16984 | AB94: =+Opex_Breakdown!AB31 -> 0.17136 | AC94: =+Opex_Breakdown!AC31 -> 0.17136 | AD94: =+Opex_Breakdown!AD31 -> 0.17136 | AE94: =+Opex_Breakdown!AE31 -> 0.17136 | AF94: =+Opex_Breakdown!AF31 -> 0.17136 | AG94: =+Opex_Breakdown!AG31 -> 0.17136
D95: Environment Contribution | X95: =+Opex_Breakdown!X32 -> 3.40078 | Y95: =+Opex_Breakdown!Y32 -> 3.32432 | Z95: =+Opex_Breakdown!Z32 -> 3.24959 | AA95: =+Opex_Breakdown!AA32 -> 3.17652 | AB95: =+Opex_Breakdown!AB32 -> 3.10511 | AC95: =+Opex_Breakdown!AC32 -> 3.10511 | AD95: =+Opex_Breakdown!AD32 -> 3.10511 | AE95: =+Opex_Breakdown!AE32 -> 3.10511 | AF95: =+Opex_Breakdown!AF32 -> 3.10511 | AG95: =+Opex_Breakdown!AG32 -> 3.10511
D96: Other non-controllable | X96: =+Opex_Breakdown!X33 -> 0 | Y96: =+Opex_Breakdown!Y33 -> 0 | Z96: =+Opex_Breakdown!Z33 -> 0 | AA96: =+Opex_Breakdown!AA33 -> 0 | AB96: =+Opex_Breakdown!AB33 -> 0 | AC96: =+Opex_Breakdown!AC33 -> 0 | AD96: =+Opex_Breakdown!AD33 -> 0 | AE96: =+Opex_Breakdown!AE33 -> 0 | AF96: =+Opex_Breakdown!AF33 -> 0 | AG96: =+Opex_Breakdown!AG33 -> 0
D97: Total non-controllable operating expenditure | X97: =SUM(X92:X96) -> 4.641043445 | Y97: 4.566011014 | Z97: 4.528991563 | AA97: 4.471574712 | AB97: 4.359900531 | AC97: 4.350543445 | AD97: 4.350543445 | AE97: 4.350543445 | AF97: 4.350543445 | AG97: 4.350543445
W98: Non-controllable Opex growth from baseline to 5th year | AB98: =IFERROR(AB97-V34,"-") -> 0.6159605314 | AC98: =IFERROR(AB97/V34-1,"-") -> 0.1645220093
D100: Total prescribed operating expenditure | X100: =+X97+X89 -> 48.401335 | Y100: 48.43817656 | Z100: 48.72863271 | AA100: 49.03782416 | AB100: 48.13457716 | AC100: 47.68002557 | AD100: 47.64002557 | AE100: 47.56040464 | AF100: 47.51135531 | AG100: =+AG97+AG89 -> 47.46002557
W101: Prescribed Opex growth from baseline to 5th year | AB101: =IFERROR(AB100-(V52+V34),"-") -> 2.627353846 | AC101: =IFERROR((AB100/(V52+V34))-1,"-") -> 0.05773487494
W103: To reconcile to 'Opex_Breakdown' tab row 37 >> | X103: =+Opex_Breakdown!X37 -> 48.401335 | Y103: =+Opex_Breakdown!Y37 -> 48.43817656 | Z103: =+Opex_Breakdown!Z37 -> 48.72863271 | AA103: =+Opex_Breakdown!AA37 -> 49.03782416 | AB103: =+Opex_Breakdown!AB37 -> 48.13457716 | AC103: =+Opex_Breakdown!AC37 -> 47.68002557 | AD103: =+Opex_Breakdown!AD37 -> 47.64002557 | AE103: =+Opex_Breakdown!AE37 -> 47.56040464 | AF103: =+Opex_Breakdown!AF37 -> 47.51135531 | AG103: =+Opex_Breakdown!AG37 -> 47.46002557
W104: Difference | X104: =+X103-X100 -> 0 | Y104: 0 | Z104: 0 | AA104: 0 | AB104: 0 | AC104: 0 | AD104: 0 | AE104: 0 | AF104: 0 | AG104: 0
W105: Test | X105: =+X103=X100 -> TRUE | Y105: TRUE | Z105: TRUE | AA105: TRUE | AB105: TRUE | AC105: TRUE | AD105: TRUE | AE105: TRUE | AF105: TRUE | AG105: TRUE
X144: =+X$165 -> 2018-19 | Y144: 2019-20 | Z144: 2020-21 | AA144: 2021-22 | AB144: 2022-23 | AC144: 2023-24 | AD144: 2024-25 | AE144: 2025-26 | AF144: 2026-27 | AG144: 2027-28
W145: Total controllable opex | X145: =+X89 -> 43.76029155 | Y145: 43.87216554 | Z145: 44.19964115 | AA145: 44.56624945 | AB145: 43.77467662 | AC145: 43.32948212 | AD145: 43.28948212 | AE145: 43.20986119 | AF145: 43.16081187 | AG145: 43.10948212
W146: Change - $ | Y146: =+Y145-X145 -> 0.1118739933 | Z146: 0.3274756026 | AA146: 0.3666082992 | AB146: -0.7915728217 | AC146: -0.4451945013 | AD146: -0.04 | AE146: -0.07962093271 | AF146: -0.04904932402 | AG146: -0.05132974327
W147: Change - % | Y147: =IFERROR(Y146/X145,"") -> 0.002556518462 | Z147: 0.007464313616 | AA147: 0.008294372752 | AB147: -0.01776171052 | AC147: -0.01017013798 | AD147: -0.000923158968 | AE147: -0.001839267388 | AF147: -0.001135141902 | AG147: -0.001189267325
X149: =+X$165 -> 2018-19 | Y149: 2019-20 | Z149: 2020-21 | AA149: 2021-22 | AB149: 2022-23 | AC149: 2023-24 | AD149: 2024-25 | AE149: 2025-26 | AF149: 2026-27 | AG149: 2027-28
W150: Total non-controllable opex | X150: =+X97 -> 4.641043445 | Y150: 4.566011014 | Z150: 4.528991563 | AA150: 4.471574712 | AB150: 4.359900531 | AC150: 4.350543445 | AD150: 4.350543445 | AE150: 4.350543445 | AF150: 4.350543445 | AG150: 4.350543445
W151: Change - $ | Y151: =+Y150-X150 -> -0.07503243112 | Z151: -0.03701945108 | AA151: -0.0574168515 | AB151: -0.1116741802 | AC151: -0.009357086143 | AD151: 0 | AE151: 0 | AF151: 0 | AG151: 0
W152: Change - % | Y152: =IFERROR(Y151/X150,"") -> -0.01616714689 | Z152: -0.00810761318 | AA152: -0.01267762386 | AB152: -0.02497424003 | AC152: -0.002146169638 | AD152: 0 | AE152: 0 | AF152: 0 | AG152: 0
X154: =+X$165 -> 2018-19 | Y154: 2019-20 | Z154: 2020-21 | AA154: 2021-22 | AB154: 2022-23 | AC154: 2023-24 | AD154: 2024-25 | AE154: 2025-26 | AF154: 2026-27 | AG154: 2027-28
W155: Total prescribed opex | X155: =+X145+X150 -> 48.401335 | Y155: 48.43817656 | Z155: 48.72863271 | AA155: 49.03782416 | AB155: 48.13457716 | AC155: 47.68002557 | AD155: 47.64002557 | AE155: 47.56040464 | AF155: 47.51135531 | AG155: 47.46002557
W156: Change - $ | Y156: =+Y155-X155 -> 0.03684156213 | Z156: 0.2904561515 | AA156: 0.3091914477 | AB156: -0.9032470019 | AC156: -0.4545515874 | AD156: -0.04 | AE156: -0.07962093271 | AF156: -0.04904932402 | AG156: -0.05132974327
W157: Change - % | Y157: =IFERROR(Y156/X155,"") -> 0.0007611683053 | Z157: 0.00599643034 | AA157: 0.00634516978 | AB157: -0.01841939396 | AC157: -0.009443348509 | AD157: -0.0008389257246 | AE157: -0.001671303316 | AF157: -0.00103130586 | AG157: -0.001080367902
W160: Controllable vs. Non-controllable opex - % | X160: =+X$165 -> 2018-19 | Y160: 2019-20 | Z160: 2020-21 | AA160: 2021-22 | AB160: 2022-23 | AC160: 2023-24 | AD160: 2024-25 | AE160: 2025-26 | AF160: 2026-27 | AG160: 2027-28
W161: Controllable opex - % | X161: =+X89/X100 -> 0.9041133174 | Y161: 0.9057352828 | Z161: 0.9070568717 | AA161: 0.9088137619 | AB161: 0.9094226897 | AC161: 0.9087554297 | AD161: 0.908678818 | AE161: 0.9085259371 | AF161: 0.908431502 | AG161: 0.9083324673
W162: Non-controllable opex - % | X162: =+X97/X100 -> 0.09588668258 | Y162: 0.09426471718 | Z162: 0.09294312833 | AA162: 0.09118623814 | AB162: 0.09057731031 | AC162: 0.09124457031 | AD162: 0.091321182 | AE162: 0.0914740629 | AF162: 0.09156849803 | AG162: 0.09166753269
X163: =SUM(X161:X162) -> 1 | Y163: 1 | Z163: 1 | AA163: 1 | AB163: 1 | AC163: 1 | AD163: 1 | AE163: 1 | AF163: 1 | AG163: 1
V165: =+V6 -> 2016-17 | W165: 2017-18 | X165: 2018-19 | Y165: 2019-20 | Z165: 2020-21 | AA165: 2021-22 | AB165: 2022-23 | AC165: 2023-24 | AD165: 2024-25 | AE165: 2025-26 | AF165: 2026-27 | AG165: 2027-28
U166: Third Reg period Opex | V166: =+V174-SUM(V167:V173) -> 44.22247 | W166: =+W174-SUM(W167:W173) -> 43.45504
U167: Adjusted baseline opex | X167: =+X61 -> 41.12868109 | Y167: 40.39659056 | Z167: 39.67753125 | AA167: 38.9712712 | AB167: 38.27758257 | AC167: 38.01729501 | AD167: 37.7587774 | AE167: 37.50201772 | AF167: 37.24700399 | AG167: 36.99372437
U168: Forecast variations to baseline operating expenditure | X168: =+X86 -> 2.631610462 | Y168: 3.475574979 | Z168: 4.522109893 | AA168: 5.594978249 | AB168: 5.497094055 | AC168: 5.312187115 | AD168: 5.530704721 | AE168: 5.707843474 | AF168: 5.913807871 | AG168: 6.115757755
U169: Licence fees | V169: =+V198 -> 0.15831 | W169: =+W198 -> 0.165 | X169: =+X94 -> 0.16619 | Y169: 0.16721 | Z169: 0.16906 | AA169: 0.16984 | AB169: 0.17136 | AC169: 0.17136 | AD169: 0.17136 | AE169: 0.17136 | AF169: 0.17136 | AG169: 0.17136
U170: Environment Contribution | V170: =+V199 -> 2.47348 | W170: =+W199 -> 2.422 | X170: =+X95 -> 3.40078 | Y170: 3.32432 | Z170: 3.24959 | AA170: 3.17652 | AB170: 3.10511 | AC170: 3.10511 | AD170: 3.10511 | AE170: 3.10511 | AF170: 3.10511 | AG170: 3.10511
U171: External bulk water charges | V171: =+V196 -> 1.11215 | W171: =+W196 -> 1.1 | X171: =+X92 -> 1.074073445 | Y171: 1.074481014 | Z171: 1.110341563 | AA171: 1.125214712 | AB171: 1.083430531 | AC171: 1.074073445 | AD171: 1.074073445 | AE171: 1.074073445 | AF171: 1.074073445 | AG171: 1.074073445
U172: External temporary water purchases | V172: =+V197 -> 0 | W172: =+W197 -> 0 | X172: =+X93 -> 0 | Y172: 0 | Z172: 0 | AA172: 0 | AB172: 0 | AC172: 0 | AD172: 0 | AE172: 0 | AF172: 0 | AG172: 0
U173: Other non-controllable | V173: =+V200 -> 0 | W173: =+W200 -> 0 | X173: =+X96 -> 0 | Y173: 0 | Z173: 0 | AA173: 0 | AB173: 0 | AC173: 0 | AD173: 0 | AE173: 0 | AF173: 0 | AG173: 0
U174: Total prescribed opex | V174: =+Opex_Breakdown!V37 -> 47.96641 | W174: =+Opex_Breakdown!W37 -> 47.14204 | X174: =SUM(X167:X173) -> 48.401335 | Y174: 48.43817656 | Z174: 48.72863271 | AA174: 49.03782416 | AB174: 48.13457716 | AC174: 47.68002557 | AD174: 47.64002557 | AE174: 47.56040464 | AF174: 47.51135531 | AG174: 47.46002557
X176: =+X$165 -> 2018-19 | Y176: 2019-20 | Z176: 2020-21 | AA176: 2021-22 | AB176: 2022-23 | AC176: 2023-24 | AD176: 2024-25 | AE176: 2025-26 | AF176: 2026-27 | AG176: 2027-28
W177: Adjusted baseline opex | X177: =+X167/X$174 -> 0.8497427001 | Y177: 0.833982479 | Z177: 0.8142549677 | AA177: 0.7947186048 | AB177: 0.7952200857 | AC177: 0.7973421691 | AD177: 0.7925851624 | AE177: 0.7885134284 | AF177: 0.7839600397 | AG177: 0.7794712271
W178: Forecast variations to baseline operating expenditure | X178: =+X168/X$174 -> 0.05437061731 | Y178: 0.0717528038 | Z178: 0.09280190397 | AA178: 0.1140951571 | AB178: 0.114202604 | AC178: 0.1114132606 | AD178: 0.1160936556 | AE178: 0.1200125087 | AF178: 0.1244714623 | AG178: 0.1288612402
W179: Licence fees | X179: =+X169/X$174 -> 0.003433582979 | Y179: 0.003452029203 | Z179: 0.003469418094 | AA179: 0.003463448938 | AB179: 0.003560018808 | AC179: 0.003593957804 | AD179: 0.0035969754 | AE179: 0.003602997101 | AF179: 0.003606716729 | AG179: 0.003610617524
W180: Environment Contribution | X180: =+X170/X$174 -> 0.07026211158 | Y180: 0.06863016398 | Z180: 0.06668748576 | AA180: 0.06477693606 | AB180: 0.06450892858 | AC180: 0.06512391642 | AD180: 0.06517859642 | AE180: 0.06528771199 | AF180: 0.0653551131 | AG180: 0.06542579703
W181: External bulk water charges (excl. temporary purchases) | X181: =+X171/X$174 -> 0.02219098802 | Y181: 0.022182524 | Z181: 0.02278622447 | AA181: 0.02294585314 | AB181: 0.02250836292 | AC181: 0.02252669608 | AD181: 0.02254561018 | AE181: 0.02258335381 | AF181: 0.0226066682 | AG181: 0.02263111813
W182: External temporary water purchases | X182: =+X172/X$174 -> 0 | Y182: 0 | Z182: 0 | AA182: 0 | AB182: 0 | AC182: 0 | AD182: 0 | AE182: 0 | AF182: 0 | AG182: 0
W183: Other non-controllable | X183: =+X173/X$174 -> 0 | Y183: 0 | Z183: 0 | AA183: 0 | AB183: 0 | AC183: 0 | AD183: 0 | AE183: 0 | AF183: 0 | AG183: 0
W184: Total prescribed opex | X184: =+X174/X$174 -> 1 | Y184: 1 | Z184: 1 | AA184: 1 | AB184: 1 | AC184: 1 | AD184: 1 | AE184: 1 | AF184: 1 | AG184: 1
X186: =+X$165 -> 2018-19 | Y186: 2019-20 | Z186: 2020-21 | AA186: 2021-22 | AB186: 2022-23 | AC186: 2023-24 | AD186: 2024-25 | AE186: 2025-26 | AF186: 2026-27 | AG186: 2027-28
W187: Water | X187: =+SUMIF($H$65:$H$85,$W187,X$65:X$85) -> 0.6291327284 | Y187: 1.316888087 | Z187: 2.173228647 | AA187: 3.179113537 | AB187: 2.969060319 | AC187: 2.508713719 | AD187: 2.721685771 | AE187: 2.339207291 | AF187: 2.529912856 | AG187: 3.588828388
W188: Sewerage | X188: 1.999132728 | Y188: 2.156162578 | Z188: 2.346842325 | AA188: 2.411068251 | AB188: 2.529905976 | AC188: 2.807258081 | AD188: 2.80797505 | AE188: 3.366730396 | AF188: 3.385989566 | AG188: 3.524905098
W189: Recycled Water | X189: 0 | Y189: 0 | Z189: 0 | AA189: 0 | AB189: 0 | AC189: 0 | AD189: 0 | AE189: 0 | AF189: 0 | AG189: 0
W190: Rural water | X190: 0 | Y190: 0 | Z190: 0 | AA190: 0 | AB190: 0 | AC190: 0 | AD190: 0 | AE190: 0 | AF190: 0 | AG190: 0
W191: Bulk Water | X191: 0 | Y191: 0 | Z191: 0 | AA191: 0 | AB191: 0 | AC191: 0 | AD191: 0 | AE191: 0 | AF191: 0 | AG191: 0
W192: Forecast variations to baseline operating expenditure | X192: =SUM(X187:X191) -> 2.628265457 | Y192: 3.473050665 | Z192: 4.520070972 | AA192: 5.590181788 | AB192: 5.498966295 | AC192: 5.315971801 | AD192: 5.529660822 | AE192: 5.705937687 | AF192: 5.915902422 | AG192: 7.113733485
V195: =+V6 -> 2016-17 | W195: 2017-18 | X195: 2018-19 | Y195: 2019-20 | Z195: 2020-21 | AA195: 2021-22 | AB195: 2022-23 | AC195: 2023-24 | AD195: 2024-25 | AE195: 2025-26 | AF195: 2026-27 | AG195: 2027-28
U196: External bulk water charges (excl. temporary purchases) | V196: =+Opex_Breakdown!V29 -> 1.11215 | W196: =+Opex_Breakdown!W29 -> 1.1 | X196: =+X92 -> 1.074073445 | Y196: 1.074481014 | Z196: 1.110341563 | AA196: 1.125214712 | AB196: 1.083430531 | AC196: 1.074073445 | AD196: 1.074073445 | AE196: 1.074073445 | AF196: 1.074073445 | AG196: 1.074073445
U197: External temporary water purchases | V197: =+Opex_Breakdown!V30 -> 0 | W197: =+Opex_Breakdown!W30 -> 0 | X197: =+X93 -> 0 | Y197: 0 | Z197: 0 | AA197: 0 | AB197: 0 | AC197: 0 | AD197: 0 | AE197: 0 | AF197: 0 | AG197: 0
U198: Licence fees | V198: =+Opex_Breakdown!V31 -> 0.15831 | W198: =+Opex_Breakdown!W31 -> 0.165 | X198: =+X94 -> 0.16619 | Y198: 0.16721 | Z198: 0.16906 | AA198: 0.16984 | AB198: 0.17136 | AC198: 0.17136 | AD198: 0.17136 | AE198: 0.17136 | AF198: 0.17136 | AG198: 0.17136
U199: Environment Contribution | V199: =+Opex_Breakdown!V32 -> 2.47348 | W199: =+Opex_Breakdown!W32 -> 2.422 | X199: =+X95 -> 3.40078 | Y199: 3.32432 | Z199: 3.24959 | AA199: 3.17652 | AB199: 3.10511 | AC199: 3.10511 | AD199: 3.10511 | AE199: 3.10511 | AF199: 3.10511 | AG199: 3.10511
U200: Other non-controllable | V200: =+Opex_Breakdown!V33 -> 0 | W200: =+Opex_Breakdown!W33 -> 0 | X200: =+X96 -> 0 | Y200: 0 | Z200: 0 | AA200: 0 | AB200: 0 | AC200: 0 | AD200: 0 | AE200: 0 | AF200: 0 | AG200: 0
U201: Total Non-controllable operating expenditure | V201: =+Opex_Breakdown!V34 -> 3.74394 | W201: =+Opex_Breakdown!W34 -> 3.687 | X201: =SUM(X196:X200) -> 4.641043445 | Y201: 4.566011014 | Z201: 4.528991563 | AA201: 4.471574712 | AB201: 4.359900531 | AC201: 4.350543445 | AD201: 4.350543445 | AE201: 4.350543445 | AF201: 4.350543445 | AG201: 4.350543445
V203: ERROR CHECK | X203: =+X174=X100 -> TRUE | Y203: TRUE | Z203: TRUE | AA203: TRUE | AB203: TRUE | AC203: TRUE | AD203: TRUE | AE203: TRUE | AF203: TRUE | AG203: TRUE
X204: =+X192=X168 -> FALSE | Y204: FALSE | Z204: FALSE | AA204: FALSE | AB204: FALSE | AC204: FALSE | AD204: FALSE | AE204: FALSE | AF204: FALSE | AG204: FALSE
X205: =+X155=X174 -> TRUE | Y205: TRUE | Z205: TRUE | AA205: TRUE | AB205: TRUE | AC205: TRUE | AD205: TRUE | AE205: TRUE | AF205: TRUE | AG205: TRUE
X206: =+X201=X150 -> TRUE | Y206: TRUE | Z206: TRUE | AA206: TRUE | AB206: TRUE | AC206: TRUE | AD206: TRUE | AE206: TRUE | AF206: TRUE | AG206: TRUE

Sheet Opex_Breakdown
A1: 80 | B1: Operating Expenditure - Breakdown
B2: =+Contents!H7 -> Goulburn Valley Water
B3: Go to Table of Contents
L4: FIRST REG PERIOD | P4: SECOND REG PERIOD | U4: THIRD REG PERIOD | Z4: FOURTH REG PERIOD | AC4: FIFTH REG PERIOD
K6: 2006 | L6: 2007 | M6: 2008 | N6: 2009 | O6: 2010 | P6: 2011 | Q6: 2012 | R6: 2013 | S6: 2014 | T6: 2015 | U6: 2016 | V6: 2017 | W6: 2018 | X6: 2019 | Y6: 2020 | Z6: 2021 | AA6: 2022 | AB6: 2023 | AC6: 2024 | AD6: 2025 | AE6: 2026 | AF6: 2027 | AG6: 2028
B7: $m, 01/01/18 | K7: =+CONCATENATE(K6-1,"-",RIGHT(K6,2)) -> 2005-06 | L7: =+CONCATENATE(L6-1,"-",RIGHT(L6,2)) -> 2006-07 | M7: 2007-08 | N7: 2008-09 | O7: 2009-10 | P7: 2010-11 | Q7: 2011-12 | R7: 2012-13 | S7: 2013-14 | T7: 2014-15 | U7: 2015-16 | V7: 2016-17 | W7: 2017-18 | X7: =+CONCATENATE(X6-1,"-",RIGHT(X6,2)) -> 2018-19 | Y7: =+CONCATENATE(Y6-1,"-",RIGHT(Y6,2)) -> 2019-20 | Z7: =+CONCATENATE(Z6-1,"-",RIGHT(Z6,2)) -> 2020-21 | AA7: =+CONCATENATE(AA6-1,"-",RIGHT(AA6,2)) -> 2021-22 | AB7: =+CONCATENATE(AB6-1,"-",RIGHT(AB6,2)) -> 2022-23 | AC7: =+CONCATENATE(AC6-1,"-",RIGHT(AC6,2)) -> 2023-24 | AD7: 2024-25 | AE7: 2025-26 | AF7: 2026-27 | AG7: 2027-28
D10: Operating Expenditure Summary
E12: =C48 -> Water | K12: =+K57-K50-K54 -> 0 | L12: =+L57-L50-L54 -> 0 | M12: 0 | N12: 0 | O12: 0 | P12: 0 | Q12: =+Q57-Q50-Q54 -> 0 | R12: 21.53478 | S12: 22.01369 | T12: 22.20172 | U12: 23.89924 | V12: 25.22402 | W12: 24.339 | X12: 24.3727769 | Y12: 24.45629251 | Z12: 24.19002626 | AA12: 24.42668369 | AB12: 24.29666138 | AC12: =+AC57-AC50-AC54 -> 24.28886925 | AD12: 24.28886925 | AE12: 24.24886925 | AF12: 24.21886925 | AG12: 24.19886925
E13: =C59 -> Sewerage | K13: =K68-K61-K65 -> 0 | L13: =L68-L61-L65 -> 0 | M13: 0 | N13: 0 | O13: 0 | P13: 0 | Q13: 0 | R13: 17.99967 | S13: 17.09297 | T13: 16.74589 | U13: 17.63344 | V13: 18.74722 | W13: 18.863 | X13: 19.12359089 | Y13: 19.15194928 | Z13: 19.74569114 | AA13: 19.875642 | AB13: 19.21409149 | AC13: =AC68-AC61-AC65 -> 18.78095068 | AD13: 18.74095068 | AE13: 18.70132974 | AF13: 18.68228042 | AG13: 18.65095068
E14: =C70 -> Recycled Water | K14: =K79-K72-K76 -> 0 | L14: =L79-L72-L76 -> 0 | M14: 0 | N14: 0 | O14: 0 | P14: 0 | Q14: 0 | R14: 0.24213 | S14: 0.24496 | T14: 0.2946 | U14: 0.26383 | V14: 0.25123 | W14: 0.25304 | X14: 0.2639237537 | Y14: 0.2639237537 | Z14: 0.2639237537 | AA14: 0.2639237537 | AB14: 0.2639237537 | AC14: =AC79-AC72-AC76 -> 0.2596621936 | AD14: 0.2596621936 | AE14: 0.2596621936 | AF14: 0.2596621936 | AG14: 0.2596621936
E15: =C81 -> Rural Water | K15: =K90-K83-K87 -> 0 | L15: =L90-L83-L87 -> 0 | M15: 0 | N15: 0 | O15: 0 | P15: 0 | Q15: 0 | R15: 0 | S15: 0 | T15: 0 | U15: 0 | V15: 0 | W15: 0 | X15: 0 | Y15: 0 | Z15: 0 | AA15: 0 | AB15: 0 | AC15: =AC90-AC83-AC87 -> 0 | AD15: 0 | AE15: 0 | AF15: 0 | AG15: 0
E16: Bulk Water | K16: =K100-K97 -> 0 | L16: =L100-L97 -> 0 | M16: 0 | N16: 0 | O16: 0 | P16: 0 | Q16: 0 | R16: 0 | S16: 0 | T16: 0 | U16: 0 | V16: 0 | W16: 0 | X16: 0 | Y16: 0 | Z16: 0 | AA16: 0 | AB16: 0 | AC16: =AC100-AC97 -> 0 | AD16: 0 | AE16: 0 | AF16: 0 | AG16: 0
E17: Total controllable operating expenditure | K17: =SUM(K12:K16) -> 0 | L17: 0 | M17: 0 | N17: 0 | O17: 0 | P17: 0 | Q17: 0 | R17: 39.77658 | S17: 39.35162 | T17: 39.24221 | U17: 41.79651 | V17: 44.22247 | W17: 43.45504 | X17: 43.76029155 | Y17: 43.87216554 | Z17: 44.19964115 | AA17: 44.56624945 | AB17: 43.77467662 | AC17: 43.32948212 | AD17: 43.28948212 | AE17: 43.20986119 | AF17: 43.16081187 | AG17: 43.10948212
V18: Controllable Opex for 3rd Reg Period | W18: =SUM(S17:W17) -> 208.06785 | AA18: Controllable Opex for 4th Reg Period | AB18: =SUM(X17:AB17) -> 220.1730243
AA19: Controllable Opex growth from 3rd to 4th Reg Period | AB19: =IFERROR(AB18-W18,"-") -> 12.10517431 | AC19: =IFERROR(AB18/W18-1,"-") -> 0.05817897532
E20: Operations & Maintenance | K20: =K49+K60+K71+K82+K93 -> 0 | L20: 0 | M20: 0 | N20: 0 | O20: 0 | P20: 0 | Q20: 0 | R20: 10.12419 | S20: 9.79932 | T20: 9.65145 | U20: 9.42147 | V20: 10.11453 | W20: 8.703 | X20: 9.773769567 | Y20: 9.790523226 | Z20: 9.093028098 | AA20: 9.228211773 | AB20: 9.045096811 | AC20: 9.04 | AD20: 9.01 | AE20: 8.961329743 | AF20: 8.951329743 | AG20: 8.94
E21: Treatment | K21: =K51+K62+K73+K84+K94 -> 0 | L21: 0 | M21: 0 | N21: 0 | O21: 0 | P21: 0 | Q21: 0 | R21: 12.68151 | S21: 12.43449 | T21: 12.46428 | U21: 13.54038 | V21: 15.67426 | W21: 15.565 | X21: 15.17491909 | Y21: 15.21078876 | Z21: 15.57593174 | AA21: 15.53122848 | AB21: 15.30458513 | AC21: 15.21788491 | AD21: 15.20788491 | AE21: 15.16788491 | AF21: 15.15788491 | AG21: 15.12788491
E22: Customer Service and billing | K22: =K52+K63+K74+K85+K95 -> 0 | L22: 0 | M22: 0 | N22: 0 | O22: 0 | P22: 0 | Q22: 0 | R22: 3.10141 | S22: 3.05818 | T22: 3.15146 | U22: 3.33776 | V22: 3.28436 | W22: 3.31204 | X22: 3.291451097 | Y22: 3.292820272 | Z22: 3.409047236 | AA22: 3.456652033 | AB22: 3.386584734 | AC22: 3.36272796 | AD22: 3.36272796 | AE22: 3.371777284 | AF22: 3.35272796 | AG22: 3.35272796
E23: GSL Payments | K23: =K53+K64+K75+K86+K96 -> 0 | L23: 0 | M23: 0 | N23: 0 | O23: 0 | P23: 0 | Q23: 0 | R23: 0 | S23: 0.0108 | T23: 0.0105 | U23: 0.00931 | V23: 0.01123 | W23: 0.008 | X23: 0.007583771403 | Y23: 0.008286659362 | Z23: 0.008317128227 | AA23: 0.008182583362 | AB23: 0.007873611627 | AC23: 0.007583771403 | AD23: 0.007583771403 | AE23: 0.007583771403 | AF23: 0.007583771403 | AG23: 0.007583771403
E24: Corporate | K24: =K55+K66+K77+K88+K98 -> 0 | L24: 0 | M24: 0 | N24: 0 | O24: 0 | P24: 0 | Q24: 0 | R24: 13.77766 | S24: 14.02077 | T24: 13.93726 | U24: 15.45448 | V24: 15.10643 | W24: 15.835 | X24: 15.48128255 | Y24: 15.5384404 | Z24: 16.08098794 | AA24: 16.3092542 | AB24: 15.99815942 | AC24: 15.67 | AD24: 15.67 | AE24: 15.67 | AF24: 15.66 | AG24: 15.65
E25: Other operating expenditure | K25: =K56+K67+K78+K89+K99 -> 0 | L25: 0 | M25: 0 | N25: 0 | O25: 0 | P25: 0 | Q25: 0 | R25: 0.09181 | S25: 0.02806 | T25: 0.02726 | U25: 0.03311 | V25: 0.03166 | W25: 0.032 | X25: 0.03128548152 | Y25: 0.03130622822 | Z25: 0.03232900377 | AA25: 0.03272037897 | AB25: 0.03237691855 | AC25: 0.03128548152 | AD25: 0.03128548152 | AE25: 0.03128548152 | AF25: 0.03128548152 | AG25: 0.03128548152
E26: Total controllable operating expenditure | K26: =SUM(K20:K25) -> 0 | L26: =SUM(L20:L25) -> 0 | M26: 0 | N26: 0 | O26: 0 | P26: 0 | Q26: 0 | R26: 39.77658 | S26: 39.35162 | T26: 39.24221 | U26: 41.79651 | V26: 44.22247 | W26: 43.45504 | X26: 43.76029155 | Y26: 43.87216554 | Z26: 44.19964115 | AA26: 44.56624945 | AB26: 43.77467662 | AC26: 43.32948212 | AD26: 43.28948212 | AE26: 43.20986119 | AF26: 43.16081187 | AG26: 43.10948212
E29: External bulk water charges (excl. temporary purchases) | K29: =K50+K61+K72+K83 -> 0 | L29: 0 | M29: 0 | N29: 0 | O29: 0 | P29: 0 | Q29: 0 | R29: 1.14371 | S29: 1.13737 | T29: 1.14065 | U29: 1.16811 | V29: 1.11215 | W29: 1.1 | X29: =X50+X61+X72+X83 -> 1.074073445 | Y29: =Y50+Y61+Y72+Y83 -> 1.074481014 | Z29: 1.110341563 | AA29: 1.125214712 | AB29: 1.083430531 | AC29: 1.074073445 | AD29: 1.074073445 | AE29: 1.074073445 | AF29: 1.074073445 | AG29: 1.074073445
E30: External temporary water purchases | K30: =+K102 -> 0 | L30: 0 | M30: 0 | N30: 0 | O30: 0 | P30: 0 | Q30: 0 | R30: 0 | S30: 0 | T30: 0 | U30: 0 | V30: 0 | W30: 0 | X30: 0 | Y30: 0 | Z30: 0 | AA30: 0 | AB30: 0 | AC30: 0 | AD30: 0 | AE30: 0 | AF30: 0 | AG30: 0
E31: Licence fees | K31: =+K109 -> 0 | L31: 0 | M31: 0 | N31: 0 | O31: 0 | P31: 0 | Q31: 0 | R31: 0.24556 | S31: 0.17805 | T31: 0.15726 | U31: 0.14795 | V31: 0.15831 | W31: 0.165 | X31: 0.16619 | Y31: 0.16721 | Z31: 0.16906 | AA31: 0.16984 | AB31: 0.17136 | AC31: 0.17136 | AD31: 0.17136 | AE31: 0.17136 | AF31: 0.17136 | AG31: 0.17136
E32: Environment Contribution | K32: =K111 -> 0 | L32: 0 | M32: 0 | N32: 0 | O32: 0 | P32: 0 | Q32: 0 | R32: 2.1182 | S32: 2.61359 | T32: 2.53919 | U32: 2.50591 | V32: 2.47348 | W32: 2.422 | X32: 3.40078 | Y32: 3.32432 | Z32: 3.24959 | AA32: 3.17652 | AB32: 3.10511 | AC32: 3.10511 | AD32: 3.10511 | AE32: 3.10511 | AF32: 3.10511 | AG32: 3.10511
E33: Other non-controllable | K33: =+K124 -> 0 | L33: 0 | M33: 0 | N33: 0 | O33: 0 | P33: 0 | Q33: 0 | R33: 0 | S33: 0 | T33: 0 | U33: 0 | V33: 0 | W33: 0 | X33: 0 | Y33: 0 | Z33: 0 | AA33: 0 | AB33: 0 | AC33: 0 | AD33: 0 | AE33: 0 | AF33: 0 | AG33: =+AG124 -> 0
E34: Total non-controllable operating expenditure | K34: =SUM(K29:K33) -> 0 | L34: =SUM(L29:L33) -> 0 | M34: 0 | N34: 0 | O34: 0 | P34: 0 | Q34: 0 | R34: 3.50747 | S34: 3.92901 | T34: 3.8371 | U34: 3.82197 | V34: 3.74394 | W34: 3.687 | X34: 4.641043445 | Y34: 4.566011014 | Z34: 4.528991563 | AA34: 4.471574712 | AB34: 4.359900531 | AC34: 4.350543445 | AD34: 4.350543445 | AE34: 4.350543445 | AF34: 4.350543445 | AG34: 4.350543445
V35: Non-controllable Opex for 3rd Reg Period | W35: =SUM(S34:W34) -> 19.01902 | AA35: Non-controllable Opex for 4th Reg Period | AB35: =SUM(X34:AB34) -> 22.56752127
AA36: Non-controllable Opex growth from 3rd to 4th Reg Period | AB36: =IFERROR(AB35-W35,"-") -> 3.548501265 | AC36: =IFERROR(AB35/W35-1,"-") -> 0.1865764516
E37: Total prescribed operating expenditure | K37: =+K34+K17 -> 0 | L37: 0 | M37: 0 | N37: 0 | O37: 0 | P37: 0 | Q37: 0 | R37: 43.28405 | S37: 43.28063 | T37: 43.07931 | U37: 45.61848 | V37: 47.96641 | W37: 47.14204 | X37: 48.401335 | Y37: 48.43817656 | Z37: 48.72863271 | AA37: 49.03782416 | AB37: 48.13457716 | AC37: 47.68002557 | AD37: 47.64002557 | AE37: 47.56040464 | AF37: 47.51135531 | AG37: 47.46002557
V38: Prescribed Opex for 3rd Reg Period | W38: =SUM(S37:W37) -> 227.08687 | AA38: Prescribed Opex for 4th Reg Period | AB38: =SUM(X37:AB37) -> 242.7405456
AA39: Prescribed Opex growth from 3rd to 4th Reg Period | AB39: =IFERROR(AB38-W38,"-") -> 15.65367558 | AC39: =IFERROR(AB38/W38-1,"-") -> 0.06893254363
W40: To reconcile to 'Opex_FO' tab row 123>> | X40: =+Opex_FO!X100 -> 48.401335 | Y40: =+Opex_FO!Y100 -> 48.43817656 | Z40: =+Opex_FO!Z100 -> 48.72863271 | AA40: =+Opex_FO!AA100 -> 49.03782416 | AB40: =+Opex_FO!AB100 -> 48.13457716 | AC40: =+Opex_FO!AC100 -> 47.68002557 | AD40: =+Opex_FO!AD100 -> 47.64002557 | AE40: =+Opex_FO!AE100 -> 47.56040464 | AF40: =+Opex_FO!AF100 -> 47.51135531 | AG40: =+Opex_FO!AG100 -> 47.46002557
W41: Difference | X41: =+X40-X37 -> 0 | Y41: 0 | Z41: 0 | AA41: 0 | AB41: 0 | AC41: 0 | AD41: 0 | AE41: 0 | AF41: 0 | AG41: 0
W42: Test | X42: =+X40=X37 -> TRUE | Y42: TRUE | Z42: TRUE | AA42: TRUE | AB42: TRUE | AC42: TRUE | AD42: TRUE | AE42: TRUE | AF42: TRUE | AG42: TRUE
B46: Total operating expenditure
C48: Water
D49: Operations & Maintenance | R49: 5.30599 | S49: 4.9207 | T49: 5.47363 | U49: 5.29427 | V49: 5.56585 | W49: 4.144 | X49: 5.133359823 | Y49: 5.147769152 | Z49: 4.283390264 | AA49: 4.351810403 | AB49: 4.327593848 | AC49: 4.33 | AD49: 4.33 | AE49: 4.32 | AF49: 4.31 | AG49: 4.31
D50: External bulk charges (excl. temporary purchases) | R50: =+R131 -> 1.14371 | S50: =+S131 -> 1.13737 | T50: =+T131 -> 1.14065 | U50: 1.16811 | V50: 1.11215 | W50: 1.1 | X50: 1.074073445 | Y50: 1.074481014 | Z50: 1.110341563 | AA50: 1.125214712 | AB50: 1.083430531 | AC50: 1.074073445 | AD50: 1.074073445 | AE50: 1.074073445 | AF50: 1.074073445 | AG50: 1.074073445 | AH50: see reconciliation below
D51: Treatment | R51: 7.22398 | S51: 8.01341 | T51: 7.64484 | U51: 8.61962 | V51: 9.8296 | W51: 9.774 | X51: 9.205912952 | Y51: 9.232109382 | Z51: 9.47850986 | AA51: 9.49073157 | AB51: 9.457697961 | AC51: 9.46 | AD51: 9.46 | AE51: 9.43 | AF51: 9.43 | AG51: 9.42
D52: Customer Service and billing | R52: 1.55076 | S52: 1.52909 | T52: 1.57573 | U52: 1.66888 | V52: 1.64218 | W52: 1.655 | X52: 1.613471611 | Y52: 1.615869669 | Z52: 1.672899853 | AA52: 1.697826321 | AB52: 1.686404064 | AC52: 1.69 | AD52: 1.69 | AE52: 1.69 | AF52: 1.68 | AG52: 1.68
D53: GSL Payments | R53: 0 | S53: 0.0108 | T53: 0.0105 | U53: 0.00931 | V53: 0.01123 | W53: 0.008 | X53: 0.007583771403 | Y53: 0.008286659362 | Z53: 0.008317128227 | AA53: 0.008182583362 | AB53: 0.007873611627 | AC53: 0.007583771403 | AD53: 0.007583771403 | AE53: 0.007583771403 | AF53: 0.007583771403 | AG53: 0.007583771403
D54: Licence Fees | R54: 0.05752 | S54: =0.03345+0.02914 -> 0.06259 | T54: =0.02306+0.02831 -> 0.05137 | U54: =0.01655+0.02897 -> 0.04552 | V54: =0.02962+0.0215 -> 0.05112 | W54: 0.054 | X54: 0.05224462059 | Y54: 0.05340077464 | Z54: 0.05542114933 | AA54: 0.05544645903 | AB54: 0.05513489188 | AC54: 0.06 | AD54: 0.06 | AE54: 0.06 | AF54: 0.06 | AG54: 0.06
D55: Corporate | R55: 7.36224 | S55: 7.51163 | T55: 7.46976 | U55: 8.27405 | V55: 8.1435 | W55: 8.726 | X55: 8.381163265 | Y55: 8.420951422 | Z55: 8.714580149 | AA55: 8.845412432 | AB55: 8.78471498 | AC55: 8.77 | AD55: 8.77 | AE55: 8.77 | AF55: 8.76 | AG55: 8.75
D56: Other operating expenditure | R56: 0.09181 | S56: 0.02806 | T56: 0.02726 | U56: 0.03311 | V56: 0.03166 | W56: 0.032 | X56: 0.03128548152 | Y56: 0.03130622822 | Z56: 0.03232900377 | AA56: 0.03272037897 | AB56: 0.03237691855 | AC56: 0.03128548152 | AD56: 0.03128548152 | AE56: 0.03128548152 | AF56: 0.03128548152 | AG56: 0.03128548152
C57: =+CONCATENATE("Total ",C48) -> Total Water | K57: =+SUM(K49:K56) -> 0 | L57: =+SUM(L49:L56) -> 0 | M57: 0 | N57: 0 | O57: 0 | P57: 0 | Q57: 0 | R57: 22.73601 | S57: 23.21365 | T57: 23.39374 | U57: 25.11287 | V57: 26.38729 | W57: 25.493 | X57: 25.49909497 | Y57: 25.5841743 | Z57: 25.35578897 | AA57: 25.60734486 | AB57: 25.43522681 | AC57: =+SUM(AC49:AC56) -> 25.4229427 | AD57: 25.4229427 | AE57: 25.3829427 | AF57: 25.3529427 | AG57: 25.3329427
C59: Sewerage
D60: =+D49 -> Operations & Maintenance | R60: 4.8182 | S60: 4.87862 | T60: 4.17782 | U60: 4.1272 | V60: 4.54868 | W60: 4.559 | X60: 4.640409744 | Y60: 4.642754074 | Z60: 4.809637834 | AA60: 4.87640137 | AB60: 4.717502964 | AC60: 4.71 | AD60: 4.68 | AE60: 4.641329743 | AF60: 4.641329743 | AG60: 4.63
D61: =+D50 -> External bulk charges (excl. temporary purchases) | R61: =+R132 -> 0 | S61: =+S132 -> 0 | T61: =+T132 -> 0 | U61: 0 | V61: 0 | W61: 0 | X61: 0 | Y61: 0 | Z61: 0 | AA61: 0 | AB61: 0 | AC61: 0 | AD61: 0 | AE61: 0 | AF61: 0 | AG61: 0 | AH61: see reconciliation below
D62: Treatment | R62: 5.2175 | S62: 4.17828 | T62: 4.52694 | U62: 4.659 | V62: 5.59547 | W62: 5.54 | X62: 5.707109861 | Y62: 5.716724125 | Z62: 5.835412548 | AA62: 5.778429201 | AB62: 5.584769871 | AC62: 5.5 | AD62: 5.49 | AE62: 5.48 | AF62: 5.47 | AG62: 5.45
D63: Customer Service and billing | R63: 1.54855 | S63: 1.52693 | T63: 1.57363 | U63: 1.66681 | V63: 1.64014 | W63: 1.655 | X63: 1.675952009 | Y63: 1.6749821 | Z63: 1.734232963 | AA63: 1.756969666 | AB63: 1.698374216 | AC63: 1.670950676 | AD63: 1.670950676 | AE63: 1.68 | AF63: 1.670950676 | AG63: 1.670950676
D64: GSL Payments | R64: 0 | S64: 0 | T64: 0 | U64: 0 | V64: 0 | W64: 0 | X64: 0 | Y64: 0 | Z64: 0 | AA64: 0 | AB64: 0 | AC64: 0 | AD64: 0 | AE64: 0 | AF64: 0 | AG64: 0
D65: Licence Fees | R65: 0.18804 | S65: =0.03237+0.08309 -> 0.11546 | T65: =0.02202+0.08387 -> 0.10589 | U65: =0.01655+0.08588 -> 0.10243 | V65: =0.02145+0.08579 -> 0.10724 | W65: 0.111 | X65: 0.1123903837 | Y65: 0.1117848011 | Z65: 0.1159980171 | AA65: 0.1177046753 | AB65: 0.1138068491 | AC65: 0.1119692171 | AD65: 0.1119692171 | AE65: 0.1119692171 | AF65: 0.1119692171 | AG65: 0.1119692171
D66: Corporate | R66: 6.41542 | S66: 6.50914 | T66: 6.4675 | U66: 7.18043 | V66: 6.96293 | W66: 7.109 | X66: 7.10011928 | Y66: 7.117488978 | Z66: 7.36640779 | AA66: 7.463841766 | AB66: 7.213444436 | AC66: 6.9 | AD66: 6.9 | AE66: 6.9 | AF66: 6.9 | AG66: 6.9
D67: Other operating expenditure | R67: 0 | S67: 0 | T67: 0 | U67: 0 | V67: 0 | W67: 0 | X67: 0 | Y67: 0 | Z67: 0 | AA67: 0 | AB67: 0 | AC67: 0 | AD67: 0 | AE67: 0 | AF67: 0 | AG67: 0
C68: =+CONCATENATE("Total ",C59) -> Total Sewerage | K68: =+SUM(K60:K67) -> 0 | L68: 0 | M68: 0 | N68: 0 | O68: 0 | P68: 0 | Q68: 0 | R68: 18.18771 | S68: 17.20843 | T68: 16.85178 | U68: 17.73587 | V68: 18.85446 | W68: 18.974 | X68: 19.23598128 | Y68: 19.26373408 | Z68: 19.86168915 | AA68: 19.99334668 | AB68: 19.32789834 | AC68: =+SUM(AC60:AC67) -> 18.89291989 | AD68: 18.85291989 | AE68: 18.81329896 | AF68: 18.79424964 | AG68: 18.76291989
C70: Recycled Water
D71: =+D60 -> Operations & Maintenance | R71: 0 | S71: 0 | T71: 0 | U71: 0 | V71: 0 | W71: 0 | X71: 0 | Y71: 0 | Z71: 0 | AA71: 0 | AB71: 0 | AC71: 0 | AD71: 0 | AE71: 0 | AF71: 0 | AG71: 0
D72: =+D61 -> External bulk charges (excl. temporary purchases) | R72: =+R133 -> 0 | S72: =+S133 -> 0 | T72: =+T133 -> 0 | U72: 0 | V72: 0 | W72: 0 | X72: 0 | Y72: 0 | Z72: 0 | AA72: 0 | AB72: 0 | AC72: 0 | AD72: 0 | AE72: 0 | AF72: 0 | AG72: 0 | AH72: see reconciliation below
D73: Treatment | R73: 0.24003 | S73: 0.2428 | T73: 0.2925 | U73: 0.26176 | V73: 0.24919 | W73: 0.251 | X73: 0.2618962764 | Y73: 0.2619552502 | Z73: 0.2620093339 | AA73: 0.262067707 | AB73: 0.2621173009 | AC73: 0.2578849095 | AD73: 0.2578849095 | AE73: 0.2578849095 | AF73: 0.2578849095 | AG73: 0.2578849095
D74: Customer Service and billing | R74: 0.0021 | S74: 0.00216 | T74: 0.0021 | U74: 0.00207 | V74: 0.00204 | W74: 0.00204 | X74: 0.002027477296 | Y74: 0.001968503474 | Z74: 0.00191441978 | AA74: 0.001856046688 | AB74: 0.001806452734 | AC74: 0.001777284057 | AD74: 0.001777284057 | AE74: 0.001777284057 | AF74: 0.001777284057 | AG74: 0.001777284057
D75: GSL Payments | R75: 0 | S75: 0 | T75: 0 | U75: 0 | V75: 0 | W75: 0 | X75: 0 | Y75: 0 | Z75: 0 | AA75: 0 | AB75: 0 | AC75: 0 | AD75: 0 | AE75: 0 | AF75: 0 | AG75: 0
D76: Licence Fees | R76: 0 | S76: 0 | T76: 0 | U76: 0 | V76: 0 | W76: 0 | X76: 0 | Y76: 0 | Z76: 0 | AA76: 0 | AB76: 0 | AC76: 0 | AD76: 0 | AE76: 0 | AF76: 0 | AG76: 0
D77: Corporate | R77: 0 | S77: 0 | T77: 0 | U77: 0 | V77: 0 | W77: 0 | X77: 0 | Y77: 0 | Z77: 0 | AA77: 0 | AB77: 0 | AC77: 0 | AD77: 0 | AE77: 0 | AF77: 0 | AG77: 0
D78: Other operating expenditure | R78: 0 | S78: 0 | T78: 0 | U78: 0 | V78: 0 | W78: 0 | X78: 0 | Y78: 0 | Z78: 0 | AA78: 0 | AB78: 0 | AC78: 0 | AD78: 0 | AE78: 0 | AF78: 0 | AG78: 0
C79: =+CONCATENATE("Total ",C70) -> Total Recycled Water | K79: =+SUM(K71:K78) -> 0 | L79: =+SUM(L71:L78) -> 0 | M79: =+SUM(M71:M78) -> 0 | N79: =+SUM(N71:N78) -> 0 | O79: 0 | P79: 0 | Q79: 0 | R79: 0.24213 | S79: 0.24496 | T79: 0.2946 | U79: 0.26383 | V79: 0.25123 | W79: 0.25304 | X79: =+SUM(X71:X78) -> 0.2639237537 | Y79: =+SUM(Y71:Y78) -> 0.2639237537 | Z79: =+SUM(Z71:Z78) -> 0.2639237537 | AA79: =+SUM(AA71:AA78) -> 0.2639237537 | AB79: =+SUM(AB71:AB78) -> 0.2639237537 | AC79: =+SUM(AC71:AC78) -> 0.2596621936 | AD79: 0.2596621936 | AE79: 0.2596621936 | AF79: 0.2596621936 | AG79: 0.2596621936
C81: Rural Water
D82: =+D60 -> Operations & Maintenance
D83: =+D61 -> External bulk charges (excl. temporary purchases) | R83: =+R134 -> 0 | S83: =+S134 -> 0 | T83: =+T134 -> 0 | U83: 0 | V83: 0 | W83: 0 | X83: 0 | Y83: 0 | Z83: 0 | AA83: 0 | AB83: 0 | AC83: 0 | AD83: 0 | AE83: 0 | AF83: 0 | AG83: 0 | AH83: see reconciliation below
D84: Treatment
D85: Customer Service and billing
D86: GSL Payments
D87: Licence Fees
D88: Corporate
D89: Other operating expenditure
C90: =+CONCATENATE("Total ",C81) -> Total Rural Water | K90: =+SUM(K82:K89) -> 0 | L90: 0 | M90: 0 | N90: 0 | O90: 0 | P90: 0 | Q90: 0 | R90: 0 | S90: 0 | T90: 0 | U90: 0 | V90: 0 | W90: 0 | X90: =+SUM(X82:X89) -> 0 | Y90: =+SUM(Y82:Y89) -> 0 | Z90: =+SUM(Z82:Z89) -> 0 | AA90: =+SUM(AA82:AA89) -> 0 | AB90: =+SUM(AB82:AB89) -> 0 | AC90: =+SUM(AC82:AC89) -> 0 | AD90: 0 | AE90: 0 | AF90: 0 | AG90: 0
C92: Bulk Water
D93: Operations & Maintenance
D94: Treatment
D95: Customer Service and billing
D96: GSL Payments
D97: Licence Fees
D98: Corporate
D99: Other operating expenditure
C100: Total Bulk water | K100: =+SUM(K93:K99) -> 0 | L100: 0 | M100: 0 | N100: 0 | O100: 0 | P100: 0 | Q100: 0 | R100: 0 | S100: 0 | T100: 0 | U100: 0 | V100: 0 | W100: 0 | X100: 0 | Y100: 0 | Z100: 0 | AA100: 0 | AB100: 0 | AC100: =+SUM(AC93:AC99) -> 0 | AD100: 0 | AE100: 0 | AF100: 0 | AG100: 0
C102: External temporary water purchases
C105: Licence fees
D106: Essential Services Commission | R106: 0.05752 | S106: 0.06582 | T106: 0.04508 | U106: 0.0331 | V106: 0.0429 | W106: 0.05 | X106: 0.04986 | Y106: 0.05064 | Z106: 0.05137 | AA106: 0.05114 | AB106: 0.05176 | AC106: 0.05176 | AD106: 0.05176 | AE106: 0.05176 | AF106: 0.05176 | AG106: 0.05176
D107: Department of Human Services | R107: 0.02876 | S107: 0.02914 | T107: 0.02831 | U107: 0.02897 | V107: 0.02962 | W107: 0.029 | X107: 0.02933 | Y107: 0.02962 | Z107: 0.02989 | AA107: 0.03013 | AB107: 0.03035 | AC107: 0.03035 | AD107: 0.03035 | AE107: 0.03035 | AF107: 0.03035 | AG107: 0.03035
D108: Environment Protection Authority | R108: 0.15928 | S108: 0.08309 | T108: 0.08387 | U108: 0.08588 | V108: 0.08579 | W108: 0.086 | X108: 0.087 | Y108: 0.08695 | Z108: 0.0878 | AA108: 0.08857 | AB108: 0.08925 | AC108: 0.08925 | AD108: 0.08925 | AE108: 0.08925 | AF108: 0.08925 | AG108: 0.08925
C109: =+CONCATENATE("Total ",C105) -> Total Licence fees | K109: =+SUM(K106:K108) -> 0 | L109: =+SUM(L106:L108) -> 0 | M109: 0 | N109: 0 | O109: 0 | P109: 0 | Q109: 0 | R109: 0.24556 | S109: 0.17805 | T109: 0.15726 | U109: 0.14795 | V109: 0.15831 | W109: 0.165 | X109: =+SUM(X106:X108) -> 0.16619 | Y109: =+SUM(Y106:Y108) -> 0.16721 | Z109: =+SUM(Z106:Z108) -> 0.16906 | AA109: =+SUM(AA106:AA108) -> 0.16984 | AB109: =+SUM(AB106:AB108) -> 0.17136 | AC109: =+SUM(AC106:AC108) -> 0.17136 | AD109: 0.17136 | AE109: 0.17136 | AF109: 0.17136 | AG109: 0.17136
C111: Environment Contribution | R111: 2.1182 | S111: 2.61359 | T111: 2.53919 | U111: 2.50591 | V111: 2.47348 | W111: 2.422 | X111: 3.40078 | Y111: 3.32432 | Z111: 3.24959 | AA111: 3.17652 | AB111: 3.10511 | AC111: 3.10511 | AD111: 3.10511 | AE111: 3.10511 | AF111: 3.10511 | AG111: 3.10511
C113: Other non-controllable
D114: [Non-controllable 1]
D115: [Non-controllable 2]
D116: [Non-controllable 3]
D117: [Non-controllable 4]
D118: [Non-controllable 5]
D119: [Non-controllable 6]
D120: [Non-controllable 7]
D121: [Non-controllable 8]
D122: [Non-controllable 9]
D123: [Non-controllable 10]
K124: =SUM(K114:K123) -> 0 | L124: 0 | M124: 0 | N124: 0 | O124: 0 | P124: 0 | Q124: 0 | R124: 0 | S124: 0 | T124: 0 | U124: 0 | V124: 0 | W124: 0 | X124: 0 | Y124: 0 | Z124: 0 | AA124: 0 | AB124: 0 | AC124: 0 | AD124: 0 | AE124: 0 | AF124: 0 | AG124: 0
C127: External bulk charges (excl. temporary purchases)
C128: Reconciliation
C130: Service | R130: =+R7 -> 2012-13 | S130: 2013-14 | T130: 2014-15 | U130: 2015-16 | V130: 2016-17 | W130: 2017-18 | X130: 2018-19 | Y130: 2019-20 | Z130: 2020-21 | AA130: 2021-22 | AB130: 2022-23 | AC130: 2023-24 | AD130: 2024-25 | AE130: 2025-26 | AF130: 2026-27 | AG130: 2027-28
D131: Water | R131: =+SUMIF($I$138:$I$179,$D$131,R$138:R$179) -> 1.14371 | S131: 1.13737 | T131: 1.14065 | U131: 1.16811 | V131: 1.11215 | W131: 1.1 | X131: 1.10753 | Y131: 1.11511 | Z131: 1.12274 | AA131: 1.13036 | AB131: 1.10495 | AC131: 1.11 | AD131: 1.11 | AE131: 1.11 | AF131: 1.11 | AG131: 1.11
D132: Sewerage | R132: =+SUMIF($I$138:$I$179,$D$132,R$138:R$179) -> 0 | S132: 0 | T132: 0 | U132: 0 | V132: 0 | W132: 0 | X132: 0 | Y132: 0 | Z132: 0 | AA132: 0 | AB132: 0 | AC132: 0 | AD132: 0 | AE132: 0 | AF132: 0 | AG132: 0
D133: Recycled Water | R133: =+SUMIF($I$138:$I$179,$D$133,R$138:R$179) -> 0 | S133: 0 | T133: 0 | U133: 0 | V133: 0 | W133: 0 | X133: 0 | Y133: 0 | Z133: 0 | AA133: 0 | AB133: 0 | AC133: 0 | AD133: 0 | AE133: 0 | AF133: 0 | AG133: 0
D134: Rural Water | R134: =+SUMIF($I$138:$I$179,$D$134,R$138:R$179) -> 0 | S134: 0 | T134: 0 | U134: 0 | V134: 0 | W134: 0 | X134: 0 | Y134: 0 | Z134: 0 | AA134: 0 | AB134: 0 | AC134: 0 | AD134: 0 | AE134: 0 | AF134: 0 | AG134: 0
C135: Total External Bulk Charges | R135: =SUM(R131:R134) -> 1.14371 | S135: =SUM(S131:S134) -> 1.13737 | T135: =SUM(T131:T134) -> 1.14065 | U135: 1.16811 | V135: 1.11215 | W135: 1.1 | X135: 1.10753 | Y135: 1.11511 | Z135: 1.12274 | AA135: 1.13036 | AB135: 1.10495 | AC135: 1.11 | AD135: 1.11 | AE135: 1.11 | AF135: 1.11 | AG135: 1.11
C137: Description | H137: Source | I137: Service | J137: Price
B138: 1 | C138: Bulk water purchases from wholesaler | H138: Goulburn-Murray Water | I138: Water | J138: Fixed | R138: 1.14371 | S138: 1.13737 | T138: 1.14065 | U138: 1.16811 | V138: 1.11215 | W138: 1.1 | X138: 1.10753 | Y138: 1.11511 | Z138: 1.12274 | AA138: 1.13036 | AB138: 1.10495 | AC138: 1.11 | AD138: 1.11 | AE138: 1.11 | AF138: 1.11 | AG138: 1.11 | AJ138: ESC USE ONLY
B139: 2 | H139: [Source] | I139: [Service] | J139: [Price]
B140: 3 | H140: [Source] | I140: [Service] | J140: [Price] | AJ140: [Service]
B141: 4 | H141: [Source] | I141: [Service] | J141: [Price] | AJ141: Water
B142: 5 | H142: [Source] | I142: [Service] | J142: [Price] | AJ142: Sewerage
B143: 6 | H143: [Source] | I143: [Service] | J143: [Price] | AJ143: Recycled Water
B144: 7 | H144: [Source] | I144: [Service] | J144: [Price] | AJ144: Rural Water
B145: 8 | H145: [Source] | I145: [Service] | J145: [Price]
B146: 9 | H146: [Source] | I146: [Service] | J146: [Price] | AJ146: [Source]
B147: 10 | H147: [Source] | I147: [Service] | J147: [Price] | AJ147: Melbourne Water
B148: 11 | H148: [Source] | I148: [Service] | J148: [Price] | AJ148: Goulburn-Murray Water
B149: 12 | H149: [Source] | I149: [Service] | J149: [Price] | AJ149: Other Sources
B150: 13 | H150: [Source] | I150: [Service] | J150: [Price]
B151: 14 | H151: [Source] | I151: [Service] | J151: [Price]
B152: 15 | H152: [Source] | I152: [Service] | J152: [Price]
B153: 16 | H153: [Source] | I153: [Service] | J153: [Price]
B154: 17 | H154: [Source] | I154: [Service] | J154: [Price]
B155: 18 | H155: [Source] | I155: [Service] | J155: [Price]
B156: 19 | H156: [Source] | I156: [Service] | J156: [Price]
B157: 20 | H157: [Source] | I157: [Service] | J157: [Price]
B158: 21 | H158: [Source] | I158: [Service] | J158: [Price]
B159: 22 | H159: [Source] | I159: [Service] | J159: [Price]
B160: 23 | H160: [Source] | I160: [Service] | J160: [Price]
B161: 24 | H161: [Source] | I161: [Service] | J161: [Price]
B162: 25 | H162: [Source] | I162: [Service] | J162: [Price]
B163: 26 | H163: [Source] | I163: [Service] | J163: [Price]
B164: 27 | H164: [Source] | I164: [Service] | J164: [Price]
B165: 28 | H165: [Source] | I165: [Service] | J165: [Price]
B166: 29 | H166: [Source] | I166: [Service] | J166: [Price]
B167: 30 | H167: [Source] | I167: [Service] | J167: [Price]
B168: 31 | H168: [Source] | I168: [Service] | J168: [Price]
B169: 32 | H169: [Source] | I169: [Service] | J169: [Price]
B170: 33 | H170: [Source] | I170: [Service] | J170: [Price]
B171: 34 | H171: [Source] | I171: [Service] | J171: [Price]
B172: 35 | H172: [Source] | I172: [Service] | J172: [Price]
B173: 36 | H173: [Source] | I173: [Service] | J173: [Price]
B174: 37 | H174: [Source] | I174: [Service] | J174: [Price]
B175: 38 | H175: [Source] | I175: [Service] | J175: [Price]
B176: 39 | H176: [Source] | I176: [Service] | J176: [Price]
B177: 40 | H177: [Source] | I177: [Service] | J177: [Price]

Sheet Capex_FO input
B1: Capital Expenditure - Forecast Input
B2: =+Contents!H7 -> Goulburn Valley Water
B3: Go to Table of Contents
C7: Input Summary | F7: FOURTH REG PERIOD | K7: FIFTH REG PERIOD
D9: =+O39 -> 2018-19 | E9: 2019-20 | F9: 2020-21 | G9: 2021-22 | H9: 2022-23 | I9: 2023-24 | J9: 2024-25 | K9: 2025-26 | L9: 2026-27 | M9: 2027-28 | P9: 4th Reg Period | S9: 5th Reg Period
C10: By Cost Driver | P10: Total | Q10: % of Total | S10: Total | T10: % of Total
C11: Net capital expenditure - Renewals | D11: =+SUMIF($F$42:$F$1019,"Renewals",AV$42:AV$1019) -> 16.517 | E11: 17.372 | F11: 16.694 | G11: 14.511 | H11: 16.714 | I11: 19.566 | J11: 14.468 | K11: 13.911 | L11: 10.391 | M11: 10.198 | P11: =SUM(D11:H11) -> 81.808 | Q11: =IFERROR(P11/$P$16,"-") -> 0.5641541963 | S11: =SUM(I11:M11) -> 68.534 | T11: =IFERROR(S11/$S$16,"-") -> 0.4807075872
C12: Net capital expenditure - Growth | D12: =+SUMIF($F$42:$F$1019,"Growth",AV$42:AV$1019) -> 5.95372 | E12: 9.80036 | F12: 8.06983 | G12: 3.7738 | H12: 5.56745 | I12: 5.866 | J12: 14.218 | K12: 13.201 | L12: 3.841 | M12: 4.683 | P12: =SUM(D12:H12) -> 33.16516 | Q12: =IFERROR(P12/$P$16,"-") -> 0.2287094683 | S12: =SUM(I12:M12) -> 41.809 | T12: =IFERROR(S12/$S$16,"-") -> 0.2932544943
C13: Net capital expenditure - Improvements / Compliance | D13: =+SUMIF($F$42:$F$1019,"Improvements / Compliance",AV$42:AV$1019) -> 5.193 | E13: 3.509 | F13: 5.034 | G13: 4.812 | H13: 3.86 | I13: 8.4 | J13: 2.265 | K13: 3.531 | L13: 4.801 | M13: 5.229 | P13: 22.408 | Q13: 0.154527274 | S13: 24.226 | T13: 0.1699247382
C14: Government Contributions | D14: =+Z41 -> 0 | E14: =+AA41 -> 0 | F14: 0 | G14: 0 | H14: 0 | I14: 0 | J14: 0 | K14: 0 | L14: 0 | M14: 0 | P14: 0 | Q14: 0 | S14: 0 | T14: 0
C15: Customer Contributions | D15: =+AK41 -> 1.46628 | E15: =+AL41 -> 1.49064 | F15: 1.51317 | G15: 1.5522 | H15: 1.60655 | I15: 1.6 | J15: 1.6 | K15: 1.6 | L15: 1.6 | M15: 1.6 | P15: 7.62884 | Q15: 0.05260906144 | S15: 8 | T15: 0.05611318028
C16: Total prescribed capex | D16: =SUM(D11:D15) -> 29.13 | E16: 32.172 | F16: 31.311 | G16: 24.649 | H16: 27.748 | I16: 35.432 | J16: 32.551 | K16: 32.243 | L16: 20.633 | M16: 21.71 | P16: 145.01 | Q16: 1 | S16: 142.569 | T16: 1
C18: By Capital Type
C19: Top 10 Major Projects | D19: =+SUMIF($H$42:$H$1019,$C$19,O$42:O$1019) -> 6.101 | E19: 11.807 | F19: 14.67 | G19: 10.221 | H19: 8.524 | I19: 11.88 | J19: 0.09 | K19: 0.18 | L19: 0 | M19: 0 | P19: =SUM(D19:H19) -> 51.323 | Q19: =IFERROR(P19/$P$23,"-") -> 0.3539273154 | S19: =SUM(I19:M19) -> 12.15 | T19: =IFERROR(S19/$S$23,"-") -> 0.08522189256
C20: Significant projects | D20: =+SUMIF($H$42:$H$1019,$C$20,O$42:O$1019) -> 8.257 | E20: 7.119 | F20: 1.688 | G20: 2.435 | H20: 0.2 | I20: 0.75 | J20: 0.82 | K20: 3 | L20: 4 | M20: 3.87 | P20: =SUM(D20:H20) -> 19.699 | Q20: =IFERROR(P20/$P$23,"-") -> 0.1358458037 | S20: =SUM(I20:M20) -> 12.44 | T20: =IFERROR(S20/$S$23,"-") -> 0.08725599534
C21: Capital Programs / Allocation | D21: =+SUMIF($H$42:$H$1019,$C$21,O$42:O$1019) -> 7.727 | E21: 7.493 | F21: 7.583 | G21: 7.997 | H21: 8.591 | I21: 9.27 | J21: 9.27 | K21: 9.27 | L21: 9.27 | M21: 9.086 | P21: 39.391 | Q21: 0.2716433349 | S21: 46.166 | T21: 0.3238151351
C22: Other Capital expenditure | D22: =+SUMIF($H$42:$H$1019,$C$22,O$42:O$1019) -> 7.045 | E22: 5.753 | F22: 7.37 | G22: 3.996 | H22: 10.433 | I22: 13.532 | J22: 22.371 | K22: 19.793 | L22: 7.363 | M22: 8.754 | P22: 34.597 | Q22: 0.238583546 | S22: 71.813 | T22: 0.503706977
C23: Total prescribed capex | D23: =SUM(D19:D22) -> 29.13 | E23: =SUM(E19:E22) -> 32.172 | F23: 31.311 | G23: 24.649 | H23: 27.748 | I23: 35.432 | J23: 32.551 | K23: 32.243 | L23: 20.633 | M23: 21.71 | P23: 145.01 | Q23: 1 | S23: 142.569 | T23: 1
C25: Difference | D25: =+D23-D16 -> 0 | E25: =+E23-E16 -> 0 | F25: 0 | G25: 0 | H25: 0 | I25: 0 | J25: 0 | K25: 0 | L25: 0 | M25: 0
C26: Test | D26: =+D23=D16 -> TRUE | E26: TRUE | F26: TRUE | G26: TRUE | H26: TRUE | I26: TRUE | J26: TRUE | K26: TRUE | L26: TRUE | M26: TRUE
C29: Total prescribed capex | D29: =+D23 -> 29.13 | E29: =+E23 -> 32.172 | F29: 31.311 | G29: 24.649 | H29: 27.748 | I29: 35.432 | J29: 32.551 | K29: 32.243 | L29: 20.633 | M29: 21.71
C32: Regulatory Depreciation | D32: =+BG41 -> 0.3712795376 | E32: =+BH41 -> 1.182330542 | F32: 2.279858052 | G32: 3.429791068 | H32: 4.320962104 | I32: 5.283577088 | J32: 6.54936143 | K32: 7.594786825 | L32: 8.037065246 | M32: 8.41050597
B35: $m, 01/01/18
O36: Gross capital expenditure | Z36: Government contributions | AK36: Customer contributions | AV36: Net capital expenditure | BG36: Regulatory Depreciation | BR36: Accumulated capex | CC36: Gross capital expenditure | CN36: Tax Depreciation
O37: $m, 01/01/18 | Z37: $m, 01/01/18 | AK37: $m, 01/01/18 | AV37: $m, 01/01/18 | BG37: $m, 01/01/18 | BR37: $m, 01/01/18 | CC37: Nominal,$ | CN37: Nominal,$
O39: 2018-19 | P39: 2019-20 | Q39: 2020-21 | R39: 2021-22 | S39: 2022-23 | T39: 2023-24 | U39: 2024-25 | V39: 2025-26 | W39: 2026-27 | X39: 2027-28 | Z39: 2018-19 | AA39: 2019-20 | AB39: 2020-21 | AC39: 2021-22 | AD39: 2022-23 | AE39: 2023-24 | AF39: 2024-25 | AG39: 2025-26 | AH39: 2026-27 | AI39: 2027-28 | AK39: 2018-19 | AL39: 2019-20 | AM39: 2020-21 | AN39: 2021-22 | AO39: 2022-23 | AP39: 2023-24 | AQ39: 2024-25 | AR39: 2025-26 | AS39: 2026-27 | AT39: 2027-28 | AV39: 2018-19 | AW39: 2019-20 | AX39: 2020-21 | AY39: 2021-22 | AZ39: 2022-23 | BA39: 2023-24 | BB39: 2024-25 | BC39: 2025-26 | BD39: 2026-27 | BE39: 2027-28 | BG39: 2018-19 | BH39: 2019-20 | BI39: 2020-21 | BJ39: 2021-22 | BK39: 2022-23 | BL39: 2023-24 | BM39: 2024-25 | BN39: 2025-26 | BO39: 2026-27 | BP39: 2027-28 | BR39: 2018-19 | BS39: 2019-20 | BT39: 2020-21 | BU39: 2021-22 | BV39: 2022-23 | BW39: 2023-24 | BX39: 2024-25 | BY39: 2025-26 | BZ39: 2026-27 | CA39: 2027-28 | CC39: 2018-19 | CD39: 2019-20 | CE39: 2020-21 | CF39: 2021-22 | CG39: 2022-23 | CH39: 2023-24 | CI39: 2024-25 | CJ39: 2025-26 | CK39: 2026-27 | CL39: 2027-28 | CN39: 2018-19 | CO39: 2019-20 | CP39: 2020-21 | CQ39: 2021-22 | CR39: 2022-23 | CS39: 2023-24 | CT39: 2024-25 | CU39: 2025-26 | CV39: 2026-27 | CW39: 2027-28
BG40: 1 | BH40: 2 | BI40: 3 | BJ40: 4 | BK40: 5 | BL40: 6 | BM40: 7 | BN40: 8 | BO40: 9 | BP40: 10 | CN40: 1 | CO40: 2 | CP40: 3 | CQ40: 4 | CR40: 5 | CS40: 6 | CT40: 7 | CU40: 8 | CV40: 9 | CW40: 10
C41: Project/program Name | E41: Service | F41: Major cost driver | G41: Asset category | H41: Capital type | J41: Depreciation Method | K41: Year asset operational | L41: Asset life (Regulatory) | M41: Asset life (Tax) | O41: =SUM(O42:O1019) -> 29.13 | P41: 32.172 | Q41: 31.311 | R41: 24.649 | S41: 27.748 | T41: 35.432 | U41: 32.551 | V41: 32.243 | W41: 20.633 | X41: 21.71 | Z41: =SUM(Z42:Z1019) -> 0 | AA41: 0 | AB41: 0 | AC41: 0 | AD41: 0 | AE41: 0 | AF41: 0 | AG41: 0 | AH41: 0 | AI41: 0 | AK41: =SUM(AK42:AK1019) -> 1.46628 | AL41: 1.49064 | AM41: 1.51317 | AN41: 1.5522 | AO41: 1.60655 | AP41: 1.6 | AQ41: 1.6 | AR41: 1.6 | AS41: 1.6 | AT41: 1.6 | AV41: =SUM(AV42:AV1019) -> 27.66372 | AW41: 30.68136 | AX41: 29.79783 | AY41: 23.0968 | AZ41: 26.14145 | BA41: 33.832 | BB41: 30.951 | BC41: 30.643 | BD41: 19.033 | BE41: 20.11 | BG41: =SUM(BG42:BG1019) -> 0.3712795376 | BH41: 1.182330542 | BI41: 2.279858052 | BJ41: 3.429791068 | BK41: 4.320962104 | BL41: 5.283577088 | BM41: 6.54936143 | BN41: 7.594786825 | BO41: 8.037065246 | BP41: 8.41050597 | BR41: =SUM(BR42:BR1019) -> 16.14572 | BS41: 24.01636 | BT41: 32.87583 | BU41: 22.8438 | BV41: 21.40745 | BW41: 43.146 | BX41: 36.749 | BY41: 27.643 | BZ41: 15.033 | CA41: 32.09 | CC41: =SUM(CC42:CC1019) -> 29.79999 | CD41: 33.66893099 | CE41: 33.52153052 | CF41: 26.99615044 | CG41: 31.08922202 | CH41: 40.61154105 | CI41: 38.16750499 | CJ41: 38.67590751 | CK41: 25.31879787 | CL41: 27.25311574 | CN41: =SUM(CN42:CN1019) -> 0.5662764217 | CO41: 1.79165098 | CP41: 3.138098362 | CQ41: 4.39101936 | CR41: 5.556479374 | CS41: 6.737299798 | CT41: 7.808291423 | CU41: 8.793619281 | CV41: 9.508749909 | CW41: 9.962566161
C42: Broadford Water Treatment Plant Upgrade | E42: Water | F42: Growth | G42: Treatment | H42: Top 10 Major Projects | J42: Straight line | K42: 2020-21 | L42: =+M42 -> 47.5 | M42: 47.5 | O42: 0.23 | P42: 3.4 | Q42: 3.77 | R42: 0 | S42: 0 | T42: 0 | U42: 0 | V42: 0 | W42: 0 | X42: 0 | Z42: 0 | AA42: 0 | AB42: 0 | AC42: 0 | AD42: 0 | AE42: 0 | AF42: 0 | AG42: 0 | AH42: 0 | AI42: 0 | AK42: 0 | AL42: 0 | AM42: 0 | AN42: 0 | AO42: 0 | AP42: 0 | AQ42: 0 | AR42: 0 | AS42: 0 | AT42: 0 | AV42: =+O42-Z42-AK42 -> 0.23 | AW42: =+P42-AA42-AL42 -> 3.4 | AX42: 3.77 | AY42: 0 | AZ42: 0 | BA42: 0 | BB42: 0 | BC42: 0 | BD42: 0 | BE42: 0 | BG42: =IF($L42=0,0, IF($L42<=0.5,BR42, IF($J42="straight line", IF((LEFT(BG$39,4)*1)-INT($L42)<LEFT($BG$39,4)*1,0,((OFFSET(BR42,0,-INT($L42+0.5),1,1))/$L42)*(IF($L42-INT($L42)>0.5,$L42-0.5-INT($L42),IF($L42-INT($L42)<=0.5,$L42-0.5-INT($L42)+1,0)))) +BR42/$L42*0.5, IF($J42="Declining Balance",-$BG$38,0)))) -> 0 | BH42: =IF($L42=0,0, IF($L42<=0.5,BS42, IF(AND($J42="straight line",$L42<1.51),(BR42-((BR42/$L42)*0.5))+BS42/$L42*0.5, IF($J42="straight line", IF((LEFT(BH$39,4)*1)-INT($L42)<LEFT($BG$39,4)*1,0,((OFFSET(BS42,0,-INT($L42+0.5),1,1))/$L42)*(IF($L42-INT($L42)>0.5,$L42-0.5-INT($L42),IF($L42-INT($L42)<=0.5,$L42-0.5-INT($L42)+1,0)))) +BS42/$L42*0.5 +SUM(OFFSET(BS42,0,MAX(-INT($L42+(0.5-(10^-12))),-BH$40)+1,1,MIN(INT($L42+(0.5-(10^-12))),BH$40)-1))*1/$L42, IF($J42="Declining Balance",-$BG$38,0))))) -> 0 | BI42: =IF($L42=0,0, IF($L42<=0.5,BT42, IF(AND($J42="straight line",$L42<1.51),(BS42-((BS42/$L42)*0.5))+BT42/$L42*0.5, IF($J42="straight line", IF((LEFT(BI$39,4)*1)-INT($L42)<LEFT($BG$39,4)*1,0,((OFFSET(BT42,0,-INT($L42+0.5),1,1))/$L42)*(IF($L42-INT($L42)>0.5,$L42-0.5-INT($L42),IF($L42-INT($L42)<=0.5,$L42-0.5-INT($L42)+1,0)))) +BT42/$L42*0.5 +SUM(OFFSET(BT42,0,MAX(-INT($L42+(0.5-(10^-12))),-BI$40)+1,1,MIN(INT($L42+(0.5-(10^-12))),BI$40)-1))*1/$L42, IF($J42="Declining Balance",-$BG$38,0))))) -> 0.07789473684 | BJ42: 0.1557894737 | BK42: 0.1557894737 | BL42: 0.1557894737 | BM42: 0.1557894737 | BN42: 0.1557894737 | BO42: 0.1557894737 | BP42: 0.1557894737 | BR42: =+IF($K42="Ongoing",AV42,IF(RIGHT($K42,2)=RIGHT(BR$39,2),SUM($AV42:AV42),0)+IF(RIGHT(BR$39,2)>RIGHT($K42,2),AV42,0)) -> 0 | BS42: =+IF($K42="Ongoing",AW42,IF(RIGHT($K42,2)=RIGHT(BS$39,2),SUM($AV42:AW42),0)+IF(RIGHT(BS$39,2)>RIGHT($K42,2),AW42,0)) -> 0 | BT42: =+IF($K42="Ongoing",AX42,IF(RIGHT($K42,2)=RIGHT(BT$39,2),SUM($AV42:AX42),0)+IF(RIGHT(BT$39,2)>RIGHT($K42,2),AX42,0)) -> 7.4 | BU42: =+IF($K42="Ongoing",AY42,IF(RIGHT($K42,2)=RIGHT(BU$39,2),SUM($AV42:AY42),0)+IF(RIGHT(BU$39,2)>RIGHT($K42,2),AY42,0)) -> 0 | BV42: =+IF($K42="Ongoing",AZ42,IF(RIGHT($K42,2)=RIGHT(BV$39,2),SUM($AV42:AZ42),0)+IF(RIGHT(BV$39,2)>RIGHT($K42,2),AZ42,0)) -> 0 | BW42: =+IF($K42="Ongoing",BA42,IF(RIGHT($K42,2)=RIGHT(BW$39,2),SUM($AV42:BA42),0)+IF(RIGHT(BW$39,2)>RIGHT($K42,2),BA42,0)) -> 0 | BX42: =+IF($K42="Ongoing",BB42,IF(RIGHT($K42,2)=RIGHT(BX$39,2),SUM($AV42:BB42),0)+IF(RIGHT(BX$39,2)>RIGHT($K42,2),BB42,0)) -> 0 | BY42: =+IF($K42="Ongoing",BC42,IF(RIGHT($K42,2)=RIGHT(BY$39,2),SUM($AV42:BC42),0)+IF(RIGHT(BY$39,2)>RIGHT($K42,2),BC42,0)) -> 0 | BZ42: =+IF($K42="Ongoing",BD42,IF(RIGHT($K42,2)=RIGHT(BZ$39,2),SUM($AV42:BD42),0)+IF(RIGHT(BZ$39,2)>RIGHT($K42,2),BD42,0)) -> 0 | CA42: =+IF($K42="Ongoing",BE42,IF(RIGHT($K42,2)=RIGHT(CA$39,2),SUM($AV42:BE42),0)+IF(RIGHT(CA$39,2)>RIGHT($K42,2),BE42,0)) -> 0 | CC42: =+O42*KeyAssumptionsPriceControl_FO!X$15 -> 0.23529 | CD42: =+P42*KeyAssumptionsPriceControl_FO!Y$15 -> 3.5581986 | CE42: =+Q42*KeyAssumptionsPriceControl_FO!Z$15 -> 4.03615886 | CF42: =+R42*KeyAssumptionsPriceControl_FO!AA$15 -> 0 | CG42: =+S42*KeyAssumptionsPriceControl_FO!AB$15 -> 0 | CH42: =+T42*KeyAssumptionsPriceControl_FO!AC$15 -> 0 | CI42: =+U42*KeyAssumptionsPriceControl_FO!AD$15 -> 0 | CJ42: =+V42*KeyAssumptionsPriceControl_FO!AE$15 -> 0 | CK42: =+W42*KeyAssumptionsPriceControl_FO!AF$15 -> 0 | CL42: =+X42*KeyAssumptionsPriceControl_FO!AG$15 -> 0 | CN42: =IF($M42=0,0, IF($M42<=0.5,CC42, IF($J42="straight line", IF((LEFT(CN$39,4)*1)-INT($M42)<LEFT($CN$39,4)*1,0,((OFFSET(CC42,0,-INT($M42+0.5),1,1))/$M42)*(IF($M42-INT($M42)>0.5,$M42-0.5-INT($M42),IF($M42-INT($M42)<=0.5,$M42-0.5-INT($M42)+1,0)))) +CC42/$M42*0.5, IF($J42="Declining Balance",-$CN$38,0)))) -> 0.002476736842 | CO42: =IF($M42=0,0, IF($M42<=0.5,CD42, IF(AND($J42="straight line",$M42<1.51),(CC42-((CC42/$M42)*0.5))+CD42/$M42*0.5, IF($J42="straight line", IF((LEFT(CO$39,4)*1)-INT($M42)<LEFT($CN$39,4)*1,0,((OFFSET(CD42,0,-INT($M42+0.5),1,1))/$M42)*(IF($M42-INT($M42)>0.5,$M42-0.5-INT($M42),IF($M42-INT($M42)<=0.5,$M42-0.5-INT($M42)+1,0)))) +CD42/$M42*0.5 +SUM(OFFSET(CD42,0,MAX(-INT($M42+(0.5-(10^-12))),-CO$40)+1,1,MIN(INT($M42+(0.5-(10^-12))),CO$40)-1))*1/$M42, IF($J42="Declining Balance",-$CN$38,0))))) -> 0.04240819579 | CP42: =IF($M42=0,0, IF($M42<=0.5,CE42, IF(AND($J42="straight line",$M42<1.51),(CD42-((CD42/$M42)*0.5))+CE42/$M42*0.5, IF($J42="straight line", IF((LEFT(CP$39,4)*1)-INT($M42)<LEFT($CN$39,4)*1,0,((OFFSET(CE42,0,-INT($M42+0.5),1,1))/$M42)*(IF($M42-INT($M42)>0.5,$M42-0.5-INT($M42),IF($M42-INT($M42)<=0.5,$M42-0.5-INT($M42)+1,0)))) +CE42/$M42*0.5 +SUM(OFFSET(CE42,0,MAX(-INT($M42+(0.5-(10^-12))),-CP$40)+1,1,MIN(INT($M42+(0.5-(10^-12))),CP$40)-1))*1/$M42, IF($J42="Declining Balance",-$CN$38,0))))) -> 0.1223488006 | CQ42: 0.1648346834 | CR42: 0.1648346834 | CS42: 0.1648346834 | CT42: 0.1648346834 | CU42: 0.1648346834 | CV42: 0.1648346834 | CW42: 0.1648346834
C43: Shepparton Raw Water Pump Station Augmentation | E43: Water | F43: Growth | G43: Treatment | H43: Top 10 Major Projects | J43: Straight line | K43: 2021-22 | L43: =+M43 -> 47.5 | M43: 47.5 | O43: 0.15 | P43: 0.15 | Q43: 2.45 | R43: 3.13 | S43: 0 | T43: 0 | U43: 0 | V43: 0 | W43: 0 | X43: 0 | Z43: 0 | AA43: 0 | AB43: 0 | AC43: 0 | AD43: 0 | AE43: 0 | AF43: 0 | AG43: 0 | AH43: 0 | AI43: 0 | AK43: 0 | AL43: 0 | AM43: 0 | AN43: 0 | AO43: 0 | AP43: 0 | AQ43: 0 | AR43: 0 | AS43: 0 | AT43: 0 | AV43: =+O43-Z43-AK43 -> 0.15 | AW43: 0.15 | AX43: 2.45 | AY43: 3.13 | AZ43: 0 | BA43: 0 | BB43: 0 | BC43: 0 | BD43: 0 | BE43: 0 | BG43: =IF($L43=0,0, IF($L43<=0.5,BR43, IF($J43="straight line", IF((LEFT(BG$39,4)*1)-INT($L43)<LEFT($BG$39,4)*1,0,((OFFSET(BR43,0,-INT($L43+0.5),1,1))/$L43)*(IF($L43-INT($L43)>0.5,$L43-0.5-INT($L43),IF($L43-INT($L43)<=0.5,$L43-0.5-INT($L43)+1,0)))) +BR43/$L43*0.5, IF($J43="Declining Balance",-$BG$38,0)))) -> 0 | BH43: =IF($L43=0,0, IF($L43<=0.5,BS43, IF(AND($J43="straight line",$L43<1.51),(BR43-((BR43/$L43)*0.5))+BS43/$L43*0.5, IF($J43="straight line", IF((LEFT(BH$39,4)*1)-INT($L43)<LEFT($BG$39,4)*1,0,((OFFSET(BS43,0,-INT($L43+0.5),1,1))/$L43)*(IF($L43-INT($L43)>0.5,$L43-0.5-INT($L43),IF($L43-INT($L43)<=0.5,$L43-0.5-INT($L43)+1,0)))) +BS43/$L43*0.5 +SUM(OFFSET(BS43,0,MAX(-INT($L43+(0.5-(10^-12))),-BH$40)+1,1,MIN(INT($L43+(0.5-(10^-12))),BH$40)-1))*1/$L43, IF($J43="Declining Balance",-$BG$38,0))))) -> 0 | BI43: 0 | BJ43: 0.06189473684 | BK43: 0.1237894737 | BL43: 0.1237894737 | BM43: 0.1237894737 | BN43: 0.1237894737 | BO43: 0.1237894737 | BP43: 0.1237894737 | BR43: =+IF($K43="Ongoing",AV43,IF(RIGHT($K43,2)=RIGHT(BR$39,2),SUM($AV43:AV43),0)+IF(RIGHT(BR$39,2)>RIGHT($K43,2),AV43,0)) -> 0 | BS43: =+IF($K43="Ongoing",AW43,IF(RIGHT($K43,2)=RIGHT(BS$39,2),SUM($AV43:AW43),0)+IF(RIGHT(BS$39,2)>RIGHT($K43,2),AW43,0)) -> 0 | BT43: =+IF($K43="Ongoing",AX43,IF(RIGHT($K43,2)=RIGHT(BT$39,2),SUM($AV43:AX43),0)+IF(RIGHT(BT$39,2)>RIGHT($K43,2),AX43,0)) -> 0 | BU43: =+IF($K43="Ongoing",AY43,IF(RIGHT($K43,2)=RIGHT(BU$39,2),SUM($AV43:AY43),0)+IF(RIGHT(BU$39,2)>RIGHT($K43,2),AY43,0)) -> 5.88 | BV43: =+IF($K43="Ongoing",AZ43,IF(RIGHT($K43,2)=RIGHT(BV$39,2),SUM($AV43:AZ43),0)+IF(RIGHT(BV$39,2)>RIGHT($K43,2),AZ43,0)) -> 0 | BW43: =+IF($K43="Ongoing",BA43,IF(RIGHT($K43,2)=RIGHT(BW$39,2),SUM($AV43:BA43),0)+IF(RIGHT(BW$39,2)>RIGHT($K43,2),BA43,0)) -> 0 | BX43: =+IF($K43="Ongoing",BB43,IF(RIGHT($K43,2)=RIGHT(BX$39,2),SUM($AV43:BB43),0)+IF(RIGHT(BX$39,2)>RIGHT($K43,2),BB43,0)) -> 0 | BY43: =+IF($K43="Ongoing",BC43,IF(RIGHT($K43,2)=RIGHT(BY$39,2),SUM($AV43:BC43),0)+IF(RIGHT(BY$39,2)>RIGHT($K43,2),BC43,0)) -> 0 | BZ43: =+IF($K43="Ongoing",BD43,IF(RIGHT($K43,2)=RIGHT(BZ$39,2),SUM($AV43:BD43),0)+IF(RIGHT(BZ$39,2)>RIGHT($K43,2),BD43,0)) -> 0 | CA43: =+IF($K43="Ongoing",BE43,IF(RIGHT($K43,2)=RIGHT(CA$39,2),SUM($AV43:BE43),0)+IF(RIGHT(CA$39,2)>RIGHT($K43,2),BE43,0)) -> 0 | CC43: =+O43*KeyAssumptionsPriceControl_FO!X$15 -> 0.15345 | CD43: =+P43*KeyAssumptionsPriceControl_FO!Y$15 -> 0.15697935 | CE43: =+Q43*KeyAssumptionsPriceControl_FO!Z$15 -> 2.622967959 | CF43: =+R43*KeyAssumptionsPriceControl_FO!AA$15 -> 3.428047827 | CG43: =+S43*KeyAssumptionsPriceControl_FO!AB$15 -> 0 | CH43: =+T43*KeyAssumptionsPriceControl_FO!AC$15 -> 0 | CI43: =+U43*KeyAssumptionsPriceControl_FO!AD$15 -> 0 | CJ43: =+V43*KeyAssumptionsPriceControl_FO!AE$15 -> 0 | CK43: =+W43*KeyAssumptionsPriceControl_FO!AF$15 -> 0 | CL43: =+X43*KeyAssumptionsPriceControl_FO!AG$15 -> 0 | CN43: =IF($M43=0,0, IF($M43<=0.5,CC43, IF($J43="straight line", IF((LEFT(CN$39,4)*1)-INT($M43)<LEFT($CN$39,4)*1,0,((OFFSET(CC43,0,-INT($M43+0.5),1,1))/$M43)*(IF($M43-INT($M43)>0.5,$M43-0.5-INT($M43),IF($M43-INT($M43)<=0.5,$M43-0.5-INT($M43)+1,0)))) +CC43/$M43*0.5, IF($J43="Declining Balance",-$CN$38,0)))) -> 0.001615263158 | CO43: =IF($M43=0,0, IF($M43<=0.5,CD43, IF(AND($J43="straight line",$M43<1.51),(CC43-((CC43/$M43)*0.5))+CD43/$M43*0.5, IF($J43="straight line", IF((LEFT(CO$39,4)*1)-INT($M43)<LEFT($CN$39,4)*1,0,((OFFSET(CD43,0,-INT($M43+0.5),1,1))/$M43)*(IF($M43-INT($M43)>0.5,$M43-0.5-INT($M43),IF($M43-INT($M43)<=0.5,$M43-0.5-INT($M43)+1,0)))) +CD43/$M43*0.5 +SUM(OFFSET(CD43,0,MAX(-INT($M43+(0.5-(10^-12))),-CO$40)+1,1,MIN(INT($M43+(0.5-(10^-12))),CO$40)-1))*1/$M43, IF($J43="Declining Balance",-$CN$38,0))))) -> 0.004882940526 | CP43: 0.03414554378 | CQ43: 0.09784044679 | CR43: 0.1339251608 | CS43: 0.1339251608 | CT43: 0.1339251608 | CU43: 0.1339251608 | CV43: 0.1339251608 | CW43: 0.1339251608
C44: Nathalia - Treated Water Pipeline | E44: Water | F44: Renewals | G44: Pipelines/network | H44: Top 10 Major Projects | J44: Straight line | K44: 2023-24 | L44: =+M44 -> 80 | M44: 80 | O44: 0 | P44: 0 | Q44: 0.2 | R44: 0.45 | S44: 4.554 | T44: 5.58 | U44: 0 | V44: 0 | W44: 0 | X44: 0 | Z44: 0 | AA44: 0 | AB44: 0 | AC44: 0 | AD44: 0 | AE44: 0 | AF44: 0 | AG44: 0 | AH44: 0 | AI44: 0 | AK44: 0 | AL44: 0 | AM44: 0 | AN44: 0 | AO44: 0 | AP44: 0 | AQ44: 0 | AR44: 0 | AS44: 0 | AT44: 0 | AV44: 0 | AW44: 0 | AX44: 0.2 | AY44: 0.45 | AZ44: 4.554 | BA44: 5.58 | BB44: 0 | BC44: 0 | BD44: 0 | BE44: 0 | BG44: 0 | BH44: 0 | BI44: 0 | BJ44: 0 | BK44: 0 | BL44: 0.0674 | BM44: 0.1348 | BN44: 0.1348 | BO44: 0.1348 | BP44: 0.1348 | BR44: =+IF($K44="Ongoing",AV44,IF(RIGHT($K44,2)=RIGHT(BR$39,2),SUM($AV44:AV44),0)+IF(RIGHT(BR$39,2)>RIGHT($K44,2),AV44,0)) -> 0 | BS44: =+IF($K44="Ongoing",AW44,IF(RIGHT($K44,2)=RIGHT(BS$39,2),SUM($AV44:AW44),0)+IF(RIGHT(BS$39,2)>RIGHT($K44,2),AW44,0)) -> 0 | BT44: =+IF($K44="Ongoing",AX44,IF(RIGHT($K44,2)=RIGHT(BT$39,2),SUM($AV44:AX44),0)+IF(RIGHT(BT$39,2)>RIGHT($K44,2),AX44,0)) -> 0 | BU44: =+IF($K44="Ongoing",AY44,IF(RIGHT($K44,2)=RIGHT(BU$39,2),SUM($AV44:AY44),0)+IF(RIGHT(BU$39,2)>RIGHT($K44,2),AY44,0)) -> 0 | BV44: =+IF($K44="Ongoing",AZ44,IF(RIGHT($K44,2)=RIGHT(BV$39,2),SUM($AV44:AZ44),0)+IF(RIGHT(BV$39,2)>RIGHT($K44,2),AZ44,0)) -> 0 | BW44: =+IF($K44="Ongoing",BA44,IF(RIGHT($K44,2)=RIGHT(BW$39,2),SUM($AV44:BA44),0)+IF(RIGHT(BW$39,2)>RIGHT($K44,2),BA44,0)) -> 10.784 | BX44: =+IF($K44="Ongoing",BB44,IF(RIGHT($K44,2)=RIGHT(BX$39,2),SUM($AV44:BB44),0)+IF(RIGHT(BX$39,2)>RIGHT($K44,2),BB44,0)) -> 0 | BY44: =+IF($K44="Ongoing",BC44,IF(RIGHT($K44,2)=RIGHT(BY$39,2),SUM($AV44:BC44),0)+IF(RIGHT(BY$39,2)>RIGHT($K44,2),BC44,0)) -> 0 | BZ44: =+IF($K44="Ongoing",BD44,IF(RIGHT($K44,2)=RIGHT(BZ$39,2),SUM($AV44:BD44),0)+IF(RIGHT(BZ$39,2)>RIGHT($K44,2),BD44,0)) -> 0 | CA44: =+IF($K44="Ongoing",BE44,IF(RIGHT($K44,2)=RIGHT(CA$39,2),SUM($AV44:BE44),0)+IF(RIGHT(CA$39,2)>RIGHT($K44,2),BE44,0)) -> 0 | CC44: =+O44*KeyAssumptionsPriceControl_FO!X$15 -> 0 | CD44: =+P44*KeyAssumptionsPriceControl_FO!Y$15 -> 0 | CE44: =+Q44*KeyAssumptionsPriceControl_FO!Z$15 -> 0.2141198334 | CF44: =+R44*KeyAssumptionsPriceControl_FO!AA$15 -> 0.4928503265 | CG44: =+S44*KeyAssumptionsPriceControl_FO!AB$15 -> 5.102361146 | CH44: =+T44*KeyAssumptionsPriceControl_FO!AC$15 -> 6.395698776 | CI44: =+U44*KeyAssumptionsPriceControl_FO!AD$15 -> 0 | CJ44: =+V44*KeyAssumptionsPriceControl_FO!AE$15 -> 0 | CK44: =+W44*KeyAssumptionsPriceControl_FO!AF$15 -> 0 | CL44: =+X44*KeyAssumptionsPriceControl_FO!AG$15 -> 0 | CN44: 0 | CO44: 0 | CP44: 0.001338248959 | CQ44: 0.005756812458 | CR44: 0.04072688416 | CS44: 0.1125897587 | CT44: 0.152562876 | CU44: 0.152562876 | CV44: 0.152562876 | CW44: 0.152562876
C45: Shepparton WMF High Rate Anaerobic Lagoon Cover Replacement | E45: Sewerage | F45: Renewals | G45: Treatment | H45: Top 10 Major Projects | J45: Straight line | K45: 2020-21 | L45: 20 | M45: 20 | O45: 0.8 | P45: 2 | Q45: 2.326 | R45: 0 | S45: 0 | T45: 0 | U45: 0 | V45: 0 | W45: 0 | X45: 0 | Z45: 0 | AA45: 0 | AB45: 0 | AC45: 0 | AD45: 0 | AE45: 0 | AF45: 0 | AG45: 0 | AH45: 0 | AI45: 0 | AK45: 0 | AL45: 0 | AM45: 0 | AN45: 0 | AO45: 0 | AP45: 0 | AQ45: 0 | AR45: 0 | AS45: 0 | AT45: 0 | AV45: 0.8 | AW45: 2 | AX45: 2.326 | AY45: 0 | AZ45: 0 | BA45: 0 | BB45: 0 | BC45: 0 | BD45: 0 | BE45: 0 | BG45: 0 | BH45: 0 | BI45: 0.12815 | BJ45: 0.2563 | BK45: 0.2563 | BL45: 0.2563 | BM45: 0.2563 | BN45: 0.2563 | BO45: 0.2563 | BP45: 0.2563 | BR45: =+IF($K45="Ongoing",AV45,IF(RIGHT($K45,2)=RIGHT(BR$39,2),SUM($AV45:AV45),0)+IF(RIGHT(BR$39,2)>RIGHT($K45,2),AV45,0)) -> 0 | BS45: =+IF($K45="Ongoing",AW45,IF(RIGHT($K45,2)=RIGHT(BS$39,2),SUM($AV45:AW45),0)+IF(RIGHT(BS$39,2)>RIGHT($K45,2),AW45,0)) -> 0 | BT45: =+IF($K45="Ongoing",AX45,IF(RIGHT($K45,2)=RIGHT(BT$39,2),SUM($AV45:AX45),0)+IF(RIGHT(BT$39,2)>RIGHT($K45,2),AX45,0)) -> 5.126 | BU45: =+IF($K45="Ongoing",AY45,IF(RIGHT($K45,2)=RIGHT(BU$39,2),SUM($AV45:AY45),0)+IF(RIGHT(BU$39,2)>RIGHT($K45,2),AY45,0)) -> 0 | BV45: =+IF($K45="Ongoing",AZ45,IF(RIGHT($K45,2)=RIGHT(BV$39,2),SUM($AV45:AZ45),0)+IF(RIGHT(BV$39,2)>RIGHT($K45,2),AZ45,0)) -> 0 | BW45: =+IF($K45="Ongoing",BA45,IF(RIGHT($K45,2)=RIGHT(BW$39,2),SUM($AV45:BA45),0)+IF(RIGHT(BW$39,2)>RIGHT($K45,2),BA45,0)) -> 0 | BX45: =+IF($K45="Ongoing",BB45,IF(RIGHT($K45,2)=RIGHT(BX$39,2),SUM($AV45:BB45),0)+IF(RIGHT(BX$39,2)>RIGHT($K45,2),BB45,0)) -> 0 | BY45: =+IF($K45="Ongoing",BC45,IF(RIGHT($K45,2)=RIGHT(BY$39,2),SUM($AV45:BC45),0)+IF(RIGHT(BY$39,2)>RIGHT($K45,2),BC45,0)) -> 0 | BZ45: =+IF($K45="Ongoing",BD45,IF(RIGHT($K45,2)=RIGHT(BZ$39,2),SUM($AV45:BD45),0)+IF(RIGHT(BZ$39,2)>RIGHT($K45,2),BD45,0)) -> 0 | CA45: =+IF($K45="Ongoing",BE45,IF(RIGHT($K45,2)=RIGHT(CA$39,2),SUM($AV45:BE45),0)+IF(RIGHT(CA$39,2)>RIGHT($K45,2),BE45,0)) -> 0 | CC45: =+O45*KeyAssumptionsPriceControl_FO!X$15 -> 0.8184 | CD45: =+P45*KeyAssumptionsPriceControl_FO!Y$15 -> 2.093058 | CE45: =+Q45*KeyAssumptionsPriceControl_FO!Z$15 -> 2.490213662 | CF45: =+R45*KeyAssumptionsPriceControl_FO!AA$15 -> 0 | CG45: =+S45*KeyAssumptionsPriceControl_FO!AB$15 -> 0 | CH45: =+T45*KeyAssumptionsPriceControl_FO!AC$15 -> 0 | CI45: =+U45*KeyAssumptionsPriceControl_FO!AD$15 -> 0 | CJ45: =+V45*KeyAssumptionsPriceControl_FO!AE$15 -> 0 | CK45: =+W45*KeyAssumptionsPriceControl_FO!AF$15 -> 0 | CL45: =+X45*KeyAssumptionsPriceControl_FO!AG$15 -> 0 | CN45: 0.02046 | CO45: 0.09324645 | CP45: 0.2078282416 | CQ45: 0.2700835831 | CR45: 0.2700835831 | CS45: 0.2700835831 | CT45: 0.2700835831 | CU45: 0.2700835831 | CV45: 0.2700835831 | CW45: 0.2700835831
C46: Kilmore - Wastewater Management Facility Offsets Project | E46: Sewerage | F46: Growth | G46: Treatment | H46: Top 10 Major Projects | J46: Straight line | K46: 2021-22 | L46: 25 | M46: 25 | O46: 1.411 | P46: 1.44 | Q46: 0.9 | R46: 0.549 | S46: 0 | T46: 0 | U46: 0 | V46: 0.18 | W46: 0 | X46: 0 | Z46: 0 | AA46: 0 | AB46: 0 | AC46: 0 | AD46: 0 | AE46: 0 | AF46: 0 | AG46: 0 | AH46: 0 | AI46: 0 | AK46: 0 | AL46: 0 | AM46: 0 | AN46: 0 | AO46: 0 | AP46: 0 | AQ46: 0 | AR46: 0 | AS46: 0 | AT46: 0 | AV46: 1.411 | AW46: 1.44 | AX46: 0.9 | AY46: 0.549 | AZ46: 0 | BA46: 0 | BB46: 0 | BC46: 0.18 | BD46: 0 | BE46: 0 | BG46: 0 | BH46: 0 | BI46: 0 | BJ46: 0.086 | BK46: 0.172 | BL46: 0.172 | BM46: 0.172 | BN46: 0.1756 | BO46: 0.1792 | BP46: 0.1792 | BR46: =+IF($K46="Ongoing",AV46,IF(RIGHT($K46,2)=RIGHT(BR$39,2),SUM($AV46:AV46),0)+IF(RIGHT(BR$39,2)>RIGHT($K46,2),AV46,0)) -> 0 | BS46: =+IF($K46="Ongoing",AW46,IF(RIGHT($K46,2)=RIGHT(BS$39,2),SUM($AV46:AW46),0)+IF(RIGHT(BS$39,2)>RIGHT($K46,2),AW46,0)) -> 0 | BT46: =+IF($K46="Ongoing",AX46,IF(RIGHT($K46,2)=RIGHT(BT$39,2),SUM($AV46:AX46),0)+IF(RIGHT(BT$39,2)>RIGHT($K46,2),AX46,0)) -> 0 | BU46: =+IF($K46="Ongoing",AY46,IF(RIGHT($K46,2)=RIGHT(BU$39,2),SUM($AV46:AY46),0)+IF(RIGHT(BU$39,2)>RIGHT($K46,2),AY46,0)) -> 4.3 | BV46: =+IF($K46="Ongoing",AZ46,IF(RIGHT($K46,2)=RIGHT(BV$39,2),SUM($AV46:AZ46),0)+IF(RIGHT(BV$39,2)>RIGHT($K46,2),AZ46,0)) -> 0 | BW46: =+IF($K46="Ongoing",BA46,IF(RIGHT($K46,2)=RIGHT(BW$39,2),SUM($AV46:BA46),0)+IF(RIGHT(BW$39,2)>RIGHT($K46,2),BA46,0)) -> 0 | BX46: =+IF($K46="Ongoing",BB46,IF(RIGHT($K46,2)=RIGHT(BX$39,2),SUM($AV46:BB46),0)+IF(RIGHT(BX$39,2)>RIGHT($K46,2),BB46,0)) -> 0 | BY46: =+IF($K46="Ongoing",BC46,IF(RIGHT($K46,2)=RIGHT(BY$39,2),SUM($AV46:BC46),0)+IF(RIGHT(BY$39,2)>RIGHT($K46,2),BC46,0)) -> 0.18 | BZ46: =+IF($K46="Ongoing",BD46,IF(RIGHT($K46,2)=RIGHT(BZ$39,2),SUM($AV46:BD46),0)+IF(RIGHT(BZ$39,2)>RIGHT($K46,2),BD46,0)) -> 0 | CA46: =+IF($K46="Ongoing",BE46,IF(RIGHT($K46,2)=RIGHT(CA$39,2),SUM($AV46:BE46),0)+IF(RIGHT(CA$39,2)>RIGHT($K46,2),BE46,0)) -> 0 | CC46: =+O46*KeyAssumptionsPriceControl_FO!X$15 -> 1.443453 | CD46: =+P46*KeyAssumptionsPriceControl_FO!Y$15 -> 1.50700176 | CE46: =+Q46*KeyAssumptionsPriceControl_FO!Z$15 -> 0.9635392503 | CF46: =+R46*KeyAssumptionsPriceControl_FO!AA$15 -> 0.6012773984 | CG46: =+S46*KeyAssumptionsPriceControl_FO!AB$15 -> 0 | CH46: =+T46*KeyAssumptionsPriceControl_FO!AC$15 -> 0 | CI46: =+U46*KeyAssumptionsPriceControl_FO!AD$15 -> 0 | CJ46: =+V46*KeyAssumptionsPriceControl_FO!AE$15 -> 0.215912395 | CK46: =+W46*KeyAssumptionsPriceControl_FO!AF$15 -> 0 | CL46: =+X46*KeyAssumptionsPriceControl_FO!AG$15 -> 0 | CN46: 0.02886906 | CO46: 0.0878781552 | CP46: 0.1372889754 | CQ46: 0.1685853084 | CR46: 0.1806108563 | CS46: 0.1806108563 | CT46: 0.1806108563 | CU46: 0.1849291042 | CV46: 0.1892473521 | CW46: 0.1892473521
C47: Shepparton - Outfall Sewer Rising Main Replacement | E47: Sewerage | F47: Renewals | G47: Pipelines/network | H47: Top 10 Major Projects | J47: Straight line | K47: 2019-20 | L47: 80 | M47: 80 | O47: 2.16 | P47: 2.084 | Q47: 0 | R47: 0 | S47: 0 | T47: 0 | U47: 0 | V47: 0 | W47: 0 | X47: 0 | Z47: 0 | AA47: 0 | AB47: 0 | AC47: 0 | AD47: 0 | AE47: 0 | AF47: 0 | AG47: 0 | AH47: 0 | AI47: 0 | AK47: 0 | AL47: 0 | AM47: 0 | AN47: 0 | AO47: 0 | AP47: 0 | AQ47: 0 | AR47: 0 | AS47: 0 | AT47: 0 | AV47: 2.16 | AW47: 2.084 | AX47: 0 | AY47: 0 | AZ47: 0 | BA47: 0 | BB47: 0 | BC47: 0 | BD47: 0 | BE47: 0 | BG47: 0 | BH47: 0.026525 | BI47: 0.05305 | BJ47: 0.05305 | BK47: 0.05305 | BL47: 0.05305 | BM47: 0.05305 | BN47: 0.05305 | BO47: 0.05305 | BP47: 0.05305 | BR47: =+IF($K47="Ongoing",AV47,IF(RIGHT($K47,2)=RIGHT(BR$39,2),SUM($AV47:AV47),0)+IF(RIGHT(BR$39,2)>RIGHT($K47,2),AV47,0)) -> 0 | BS47: =+IF($K47="Ongoing",AW47,IF(RIGHT($K47,2)=RIGHT(BS$39,2),SUM($AV47:AW47),0)+IF(RIGHT(BS$39,2)>RIGHT($K47,2),AW47,0)) -> 4.244 | BT47: =+IF($K47="Ongoing",AX47,IF(RIGHT($K47,2)=RIGHT(BT$39,2),SUM($AV47:AX47),0)+IF(RIGHT(BT$39,2)>RIGHT($K47,2),AX47,0)) -> 0 | BU47: =+IF($K47="Ongoing",AY47,IF(RIGHT($K47,2)=RIGHT(BU$39,2),SUM($AV47:AY47),0)+IF(RIGHT(BU$39,2)>RIGHT($K47,2),AY47,0)) -> 0 | BV47: =+IF($K47="Ongoing",AZ47,IF(RIGHT($K47,2)=RIGHT(BV$39,2),SUM($AV47:AZ47),0)+IF(RIGHT(BV$39,2)>RIGHT($K47,2),AZ47,0)) -> 0 | BW47: =+IF($K47="Ongoing",BA47,IF(RIGHT($K47,2)=RIGHT(BW$39,2),SUM($AV47:BA47),0)+IF(RIGHT(BW$39,2)>RIGHT($K47,2),BA47,0)) -> 0 | BX47: =+IF($K47="Ongoing",BB47,IF(RIGHT($K47,2)=RIGHT(BX$39,2),SUM($AV47:BB47),0)+IF(RIGHT(BX$39,2)>RIGHT($K47,2),BB47,0)) -> 0 | BY47: =+IF($K47="Ongoing",BC47,IF(RIGHT($K47,2)=RIGHT(BY$39,2),SUM($AV47:BC47),0)+IF(RIGHT(BY$39,2)>RIGHT($K47,2),BC47,0)) -> 0 | BZ47: =+IF($K47="Ongoing",BD47,IF(RIGHT($K47,2)=RIGHT(BZ$39,2),SUM($AV47:BD47),0)+IF(RIGHT(BZ$39,2)>RIGHT($K47,2),BD47,0)) -> 0 | CA47: =+IF($K47="Ongoing",BE47,IF(RIGHT($K47,2)=RIGHT(CA$39,2),SUM($AV47:BE47),0)+IF(RIGHT(CA$39,2)>RIGHT($K47,2),BE47,0)) -> 0 | CC47: =+O47*KeyAssumptionsPriceControl_FO!X$15 -> 2.20968 | CD47: =+P47*KeyAssumptionsPriceControl_FO!Y$15 -> 2.180966436 | CE47: =+Q47*KeyAssumptionsPriceControl_FO!Z$15 -> 0 | CF47: =+R47*KeyAssumptionsPriceControl_FO!AA$15 -> 0 | CG47: =+S47*KeyAssumptionsPriceControl_FO!AB$15 -> 0 | CH47: =+T47*KeyAssumptionsPriceControl_FO!AC$15 -> 0 | CI47: =+U47*KeyAssumptionsPriceControl_FO!AD$15 -> 0 | CJ47: =+V47*KeyAssumptionsPriceControl_FO!AE$15 -> 0 | CK47: =+W47*KeyAssumptionsPriceControl_FO!AF$15 -> 0 | CL47: =+X47*KeyAssumptionsPriceControl_FO!AG$15 -> 0 | CN47: 0.0138105 | CO47: 0.04125204022 | CP47: 0.05488308045 | CQ47: 0.05488308045 | CR47: 0.05488308045 | CS47: 0.05488308045 | CT47: 0.05488308045 | CU47: 0.05488308045 | CV47: 0.05488308045 | CW47: 0.05488308045
C48: Euroa - Replacement of Abbinga Reservoir | E48: Water | F48: Renewals | G48: Headworks | H48: Top 10 Major Projects | J48: Straight line | K48: 2022-23 | L48: 350 | M48: 350 | O48: 0 | P48: 0 | Q48: 0 | R48: 3 | S48: 0.99 | T48: 0 | U48: 0 | V48: 0 | W48: 0 | X48: 0 | Z48: 0 | AA48: 0 | AB48: 0 | AC48: 0 | AD48: 0 | AE48: 0 | AF48: 0 | AG48: 0 | AH48: 0 | AI48: 0 | AK48: 0 | AL48: 0 | AM48: 0 | AN48: 0 | AO48: 0 | AP48: 0 | AQ48: 0 | AR48: 0 | AS48: 0 | AT48: 0 | AV48: 0 | AW48: 0 | AX48: 0 | AY48: 3 | AZ48: 0.99 | BA48: 0 | BB48: 0 | BC48: 0 | BD48: 0 | BE48: 0 | BG48: 0 | BH48: 0 | BI48: 0 | BJ48: 0 | BK48: 0.0057 | BL48: 0.0114 | BM48: 0.0114 | BN48: 0.0114 | BO48: 0.0114 | BP48: 0.0114 | BR48: =+IF($K48="Ongoing",AV48,IF(RIGHT($K48,2)=RIGHT(BR$39,2),SUM($AV48:AV48),0)+IF(RIGHT(BR$39,2)>RIGHT($K48,2),AV48,0)) -> 0 | BS48: =+IF($K48="Ongoing",AW48,IF(RIGHT($K48,2)=RIGHT(BS$39,2),SUM($AV48:AW48),0)+IF(RIGHT(BS$39,2)>RIGHT($K48,2),AW48,0)) -> 0 | BT48: =+IF($K48="Ongoing",AX48,IF(RIGHT($K48,2)=RIGHT(BT$39,2),SUM($AV48:AX48),0)+IF(RIGHT(BT$39,2)>RIGHT($K48,2),AX48,0)) -> 0 | BU48: =+IF($K48="Ongoing",AY48,IF(RIGHT($K48,2)=RIGHT(BU$39,2),SUM($AV48:AY48),0)+IF(RIGHT(BU$39,2)>RIGHT($K48,2),AY48,0)) -> 0 | BV48: =+IF($K48="Ongoing",AZ48,IF(RIGHT($K48,2)=RIGHT(BV$39,2),SUM($AV48:AZ48),0)+IF(RIGHT(BV$39,2)>RIGHT($K48,2),AZ48,0)) -> 3.99 | BW48: =+IF($K48="Ongoing",BA48,IF(RIGHT($K48,2)=RIGHT(BW$39,2),SUM($AV48:BA48),0)+IF(RIGHT(BW$39,2)>RIGHT($K48,2),BA48,0)) -> 0 | BX48: =+IF($K48="Ongoing",BB48,IF(RIGHT($K48,2)=RIGHT(BX$39,2),SUM($AV48:BB48),0)+IF(RIGHT(BX$39,2)>RIGHT($K48,2),BB48,0)) -> 0 | BY48: =+IF($K48="Ongoing",BC48,IF(RIGHT($K48,2)=RIGHT(BY$39,2),SUM($AV48:BC48),0)+IF(RIGHT(BY$39,2)>RIGHT($K48,2),BC48,0)) -> 0 | BZ48: =+IF($K48="Ongoing",BD48,IF(RIGHT($K48,2)=RIGHT(BZ$39,2),SUM($AV48:BD48),0)+IF(RIGHT(BZ$39,2)>RIGHT($K48,2),BD48,0)) -> 0 | CA48: =+IF($K48="Ongoing",BE48,IF(RIGHT($K48,2)=RIGHT(CA$39,2),SUM($AV48:BE48),0)+IF(RIGHT(CA$39,2)>RIGHT($K48,2),BE48,0)) -> 0 | CC48: =+O48*KeyAssumptionsPriceControl_FO!X$15 -> 0 | CD48: =+P48*KeyAssumptionsPriceControl_FO!Y$15 -> 0 | CE48: =+Q48*KeyAssumptionsPriceControl_FO!Z$15 -> 0 | CF48: =+R48*KeyAssumptionsPriceControl_FO!AA$15 -> 3.285668844 | CG48: =+S48*KeyAssumptionsPriceControl_FO!AB$15 -> 1.109208945 | CH48: =+T48*KeyAssumptionsPriceControl_FO!AC$15 -> 0 | CI48: =+U48*KeyAssumptionsPriceControl_FO!AD$15 -> 0 | CJ48: =+V48*KeyAssumptionsPriceControl_FO!AE$15 -> 0 | CK48: =+W48*KeyAssumptionsPriceControl_FO!AF$15 -> 0 | CL48: =+X48*KeyAssumptionsPriceControl_FO!AG$15 -> 0 | CN48: 0 | CO48: 0 | CP48: 0 | CQ48: 0.004693812634 | CR48: 0.01097220947 | CS48: 0.01255679368 | CT48: 0.01255679368 | CU48: 0.01255679368 | CV48: 0.01255679368 | CW48: 0.01255679368
C49: Seymour - Sewer Pump Station No.1 Rising Main Replacement | E49: Sewerage | F49: Renewals | G49: Pipelines/network | H49: Top 10 Major Projects | J49: Straight line | K49: 2020-21 | L49: 80 | M49: 80 | O49: 0 | P49: 1.001 | Q49: 2.7 | R49: 0 | S49: 0 | T49: 0 | U49: 0 | V49: 0 | W49: 0 | X49: 0 | Z49: 0 | AA49: 0 | AB49: 0 | AC49: 0 | AD49: 0 | AE49: 0 | AF49: 0 | AG49: 0 | AH49: 0 | AI49: 0 | AK49: 0 | AL49: 0 | AM49: 0 | AN49: 0 | AO49: 0 | AP49: 0 | AQ49: 0 | AR49: 0 | AS49: 0 | AT49: 0 | AV49: 0 | AW49: 1.001 | AX49: 2.7 | AY49: 0 | AZ49: 0 | BA49: 0 | BB49: 0 | BC49: 0 | BD49: 0 | BE49: 0 | BG49: 0 | BH49: 0 | BI49: 0.02313125 | BJ49: 0.0462625 | BK49: 0.0462625 | BL49: 0.0462625 | BM49: 0.0462625 | BN49: 0.0462625 | BO49: 0.0462625 | BP49: 0.0462625 | BR49: =+IF($K49="Ongoing",AV49,IF(RIGHT($K49,2)=RIGHT(BR$39,2),SUM($AV49:AV49),0)+IF(RIGHT(BR$39,2)>RIGHT($K49,2),AV49,0)) -> 0 | BS49: =+IF($K49="Ongoing",AW49,IF(RIGHT($K49,2)=RIGHT(BS$39,2),SUM($AV49:AW49),0)+IF(RIGHT(BS$39,2)>RIGHT($K49,2),AW49,0)) -> 0 | BT49: =+IF($K49="Ongoing",AX49,IF(RIGHT($K49,2)=RIGHT(BT$39,2),SUM($AV49:AX49),0)+IF(RIGHT(BT$39,2)>RIGHT($K49,2),AX49,0)) -> 3.701 | BU49: =+IF($K49="Ongoing",AY49,IF(RIGHT($K49,2)=RIGHT(BU$39,2),SUM($AV49:AY49),0)+IF(RIGHT(BU$39,2)>RIGHT($K49,2),AY49,0)) -> 0 | BV49: =+IF($K49="Ongoing",AZ49,IF(RIGHT($K49,2)=RIGHT(BV$39,2),SUM($AV49:AZ49),0)+IF(RIGHT(BV$39,2)>RIGHT($K49,2),AZ49,0)) -> 0 | BW49: =+IF($K49="Ongoing",BA49,IF(RIGHT($K49,2)=RIGHT(BW$39,2),SUM($AV49:BA49),0)+IF(RIGHT(BW$39,2)>RIGHT($K49,2),BA49,0)) -> 0 | BX49: =+IF($K49="Ongoing",BB49,IF(RIGHT($K49,2)=RIGHT(BX$39,2),SUM($AV49:BB49),0)+IF(RIGHT(BX$39,2)>RIGHT($K49,2),BB49,0)) -> 0 | BY49: =+IF($K49="Ongoing",BC49,IF(RIGHT($K49,2)=RIGHT(BY$39,2),SUM($AV49:BC49),0)+IF(RIGHT(BY$39,2)>RIGHT($K49,2),BC49,0)) -> 0 | BZ49: =+IF($K49="Ongoing",BD49,IF(RIGHT($K49,2)=RIGHT(BZ$39,2),SUM($AV49:BD49),0)+IF(RIGHT(BZ$39,2)>RIGHT($K49,2),BD49,0)) -> 0 | CA49: =+IF($K49="Ongoing",BE49,IF(RIGHT($K49,2)=RIGHT(CA$39,2),SUM($AV49:BE49),0)+IF(RIGHT(CA$39,2)>RIGHT($K49,2),BE49,0)) -> 0 | CC49: =+O49*KeyAssumptionsPriceControl_FO!X$15 -> 0 | CD49: =+P49*KeyAssumptionsPriceControl_FO!Y$15 -> 1.047575529 | CE49: =+Q49*KeyAssumptionsPriceControl_FO!Z$15 -> 2.890617751 | CF49: =+R49*KeyAssumptionsPriceControl_FO!AA$15 -> 0 | CG49: =+S49*KeyAssumptionsPriceControl_FO!AB$15 -> 0 | CH49: =+T49*KeyAssumptionsPriceControl_FO!AC$15 -> 0 | CI49: =+U49*KeyAssumptionsPriceControl_FO!AD$15 -> 0 | CJ49: =+V49*KeyAssumptionsPriceControl_FO!AE$15 -> 0 | CK49: =+W49*KeyAssumptionsPriceControl_FO!AF$15 -> 0 | CL49: =+X49*KeyAssumptionsPriceControl_FO!AG$15 -> 0 | CN49: 0 | CO49: 0.006547347056 | CP49: 0.03116105506 | CQ49: 0.049227416 | CR49: 0.049227416 | CS49: 0.049227416 | CT49: 0.049227416 | CU49: 0.049227416 | CV49: 0.049227416 | CW49: 0.049227416
C50: All Areas - Climate Change Mitigation Program | E50: Sewerage | F50: Improvements / Compliance | G50: Treatment | H50: Top 10 Major Projects | J50: Straight line | K50: 2023-24 | L50: 25 | M50: 25 | O50: 0.427 | P50: 0.348 | Q50: 0.464 | R50: 0.826 | S50: 0.815 | T50: 2.7 | U50: 0 | V50: 0 | W50: 0 | X50: 0 | Z50: 0 | AA50: 0 | AB50: 0 | AC50: 0 | AD50: 0 | AE50: 0 | AF50: 0 | AG50: 0 | AH50: 0 | AI50: 0 | AK50: 0 | AL50: 0 | AM50: 0 | AN50: 0 | AO50: 0 | AP50: 0 | AQ50: 0 | AR50: 0 | AS50: 0 | AT50: 0 | AV50: 0.427 | AW50: 0.348 | AX50: 0.464 | AY50: 0.826 | AZ50: 0.815 | BA50: 2.7 | BB50: 0 | BC50: 0 | BD50: 0 | BE50: 0 | BG50: 0 | BH50: 0 | BI50: 0 | BJ50: 0 | BK50: 0 | BL50: 0.1116 | BM50: 0.2232 | BN50: 0.2232 | BO50: 0.2232 | BP50: 0.2232 | BR50: =+IF($K50="Ongoing",AV50,IF(RIGHT($K50,2)=RIGHT(BR$39,2),SUM($AV50:AV50),0)+IF(RIGHT(BR$39,2)>RIGHT($K50,2),AV50,0)) -> 0 | BS50: =+IF($K50="Ongoing",AW50,IF(RIGHT($K50,2)=RIGHT(BS$39,2),SUM($AV50:AW50),0)+IF(RIGHT(BS$39,2)>RIGHT($K50,2),AW50,0)) -> 0 | BT50: =+IF($K50="Ongoing",AX50,IF(RIGHT($K50,2)=RIGHT(BT$39,2),SUM($AV50:AX50),0)+IF(RIGHT(BT$39,2)>RIGHT($K50,2),AX50,0)) -> 0 | BU50: =+IF($K50="Ongoing",AY50,IF(RIGHT($K50,2)=RIGHT(BU$39,2),SUM($AV50:AY50),0)+IF(RIGHT(BU$39,2)>RIGHT($K50,2),AY50,0)) -> 0 | BV50: =+IF($K50="Ongoing",AZ50,IF(RIGHT($K50,2)=RIGHT(BV$39,2),SUM($AV50:AZ50),0)+IF(RIGHT(BV$39,2)>RIGHT($K50,2),AZ50,0)) -> 0 | BW50: =+IF($K50="Ongoing",BA50,IF(RIGHT($K50,2)=RIGHT(BW$39,2),SUM($AV50:BA50),0)+IF(RIGHT(BW$39,2)>RIGHT($K50,2),BA50,0)) -> 5.58 | BX50: =+IF($K50="Ongoing",BB50,IF(RIGHT($K50,2)=RIGHT(BX$39,2),SUM($AV50:BB50),0)+IF(RIGHT(BX$39,2)>RIGHT($K50,2),BB50,0)) -> 0 | BY50: =+IF($K50="Ongoing",BC50,IF(RIGHT($K50,2)=RIGHT(BY$39,2),SUM($AV50:BC50),0)+IF(RIGHT(BY$39,2)>RIGHT($K50,2),BC50,0)) -> 0 | BZ50: =+IF($K50="Ongoing",BD50,IF(RIGHT($K50,2)=RIGHT(BZ$39,2),SUM($AV50:BD50),0)+IF(RIGHT(BZ$39,2)>RIGHT($K50,2),BD50,0)) -> 0 | CA50: =+IF($K50="Ongoing",BE50,IF(RIGHT($K50,2)=RIGHT(CA$39,2),SUM($AV50:BE50),0)+IF(RIGHT(CA$39,2)>RIGHT($K50,2),BE50,0)) -> 0 | CC50: =+O50*KeyAssumptionsPriceControl_FO!X$15 -> 0.436821 | CD50: =+P50*KeyAssumptionsPriceControl_FO!Y$15 -> 0.364192092 | CE50: =+Q50*KeyAssumptionsPriceControl_FO!Z$15 -> 0.4967580135 | CF50: =+R50*KeyAssumptionsPriceControl_FO!AA$15 -> 0.9046541549 | CG50: =+S50*KeyAssumptionsPriceControl_FO!AB$15 -> 0.9131366566 | CH50: =+T50*KeyAssumptionsPriceControl_FO!AC$15 -> 3.094692956 | CI50: =+U50*KeyAssumptionsPriceControl_FO!AD$15 -> 0 | CJ50: =+V50*KeyAssumptionsPriceControl_FO!AE$15 -> 0 | CK50: =+W50*KeyAssumptionsPriceControl_FO!AF$15 -> 0 | CL50: =+X50*KeyAssumptionsPriceControl_FO!AG$15 -> 0 | CN50: 0.00873642 | CO50: 0.02475668184 | CP50: 0.04197568395 | CQ50: 0.07000392732 | CR50: 0.1063597435 | CS50: 0.1865163358 | CT50: 0.2484101949 | CU50: 0.2484101949 | CV50: 0.2484101949 | CW50: 0.2484101949
C51: All Areas - Climate Change Mitigation Program | E51: Water | F51: Improvements / Compliance | G51: Treatment | H51: Top 10 Major Projects | J51: Straight line | K51: 2023-24 | L51: 25 | M51: 25 | O51: 0.427 | P51: 0.348 | Q51: 0.464 | R51: 0.826 | S51: 0.815 | T51: 2.7 | U51: 0 | V51: 0 | W51: 0 | X51: 0 | Z51: 0 | AA51: 0 | AB51: 0 | AC51: 0 | AD51: 0 | AE51: 0 | AF51: 0 | AG51: 0 | AH51: 0 | AI51: 0 | AK51: 0 | AL51: 0 | AM51: 0 | AN51: 0 | AO51: 0 | AP51: 0 | AQ51: 0 | AR51: 0 | AS51: 0 | AT51: 0 | AV51: 0.427 | AW51: 0.348 | AX51: 0.464 | AY51: 0.826 | AZ51: 0.815 | BA51: 2.7 | BB51: 0 | BC51: 0 | BD51: 0 | BE51: 0 | BG51: 0 | BH51: 0 | BI51: 0 | BJ51: 0 | BK51: 0 | BL51: 0.1116 | BM51: 0.2232 | BN51: 0.2232 | BO51: 0.2232 | BP51: 0.2232 | BR51: =+IF($K51="Ongoing",AV51,IF(RIGHT($K51,2)=RIGHT(BR$39,2),SUM($AV51:AV51),0)+IF(RIGHT(BR$39,2)>RIGHT($K51,2),AV51,0)) -> 0 | BS51: =+IF($K51="Ongoing",AW51,IF(RIGHT($K51,2)=RIGHT(BS$39,2),SUM($AV51:AW51),0)+IF(RIGHT(BS$39,2)>RIGHT($K51,2),AW51,0)) -> 0 | BT51: =+IF($K51="Ongoing",AX51,IF(RIGHT($K51,2)=RIGHT(BT$39,2),SUM($AV51:AX51),0)+IF(RIGHT(BT$39,2)>RIGHT($K51,2),AX51,0)) -> 0 | BU51: =+IF($K51="Ongoing",AY51,IF(RIGHT($K51,2)=RIGHT(BU$39,2),SUM($AV51:AY51),0)+IF(RIGHT(BU$39,2)>RIGHT($K51,2),AY51,0)) -> 0 | BV51: =+IF($K51="Ongoing",AZ51,IF(RIGHT($K51,2)=RIGHT(BV$39,2),SUM($AV51:AZ51),0)+IF(RIGHT(BV$39,2)>RIGHT($K51,2),AZ51,0)) -> 0 | BW51: =+IF($K51="Ongoing",BA51,IF(RIGHT($K51,2)=RIGHT(BW$39,2),SUM($AV51:BA51),0)+IF(RIGHT(BW$39,2)>RIGHT($K51,2),BA51,0)) -> 5.58 | BX51: =+IF($K51="Ongoing",BB51,IF(RIGHT($K51,2)=RIGHT(BX$39,2),SUM($AV51:BB51),0)+IF(RIGHT(BX$39,2)>RIGHT($K51,2),BB51,0)) -> 0 | BY51: =+IF($K51="Ongoing",BC51,IF(RIGHT($K51,2)=RIGHT(BY$39,2),SUM($AV51:BC51),0)+IF(RIGHT(BY$39,2)>RIGHT($K51,2),BC51,0)) -> 0 | BZ51: =+IF($K51="Ongoing",BD51,IF(RIGHT($K51,2)=RIGHT(BZ$39,2),SUM($AV51:BD51),0)+IF(RIGHT(BZ$39,2)>RIGHT($K51,2),BD51,0)) -> 0 | CA51: =+IF($K51="Ongoing",BE51,IF(RIGHT($K51,2)=RIGHT(CA$39,2),SUM($AV51:BE51),0)+IF(RIGHT(CA$39,2)>RIGHT($K51,2),BE51,0)) -> 0 | CC51: =+O51*KeyAssumptionsPriceControl_FO!X$15 -> 0.436821 | CD51: =+P51*KeyAssumptionsPriceControl_FO!Y$15 -> 0.364192092 | CE51: =+Q51*KeyAssumptionsPriceControl_FO!Z$15 -> 0.4967580135 | CF51: =+R51*KeyAssumptionsPriceControl_FO!AA$15 -> 0.9046541549 | CG51: =+S51*KeyAssumptionsPriceControl_FO!AB$15 -> 0.9131366566 | CH51: =+T51*KeyAssumptionsPriceControl_FO!AC$15 -> 3.094692956 | CI51: =+U51*KeyAssumptionsPriceControl_FO!AD$15 -> 0 | CJ51: =+V51*KeyAssumptionsPriceControl_FO!AE$15 -> 0 | CK51: =+W51*KeyAssumptionsPriceControl_FO!AF$15 -> 0 | CL51: =+X51*KeyAssumptionsPriceControl_FO!AG$15 -> 0 | CN51: 0.00873642 | CO51: 0.02475668184 | CP51: 0.04197568395 | CQ51: 0.07000392732 | CR51: 0.1063597435 | CS51: 0.1865163358 | CT51: 0.2484101949 | CU51: 0.2484101949 | CV51: 0.2484101949 | CW51: 0.2484101949
C53: All Areas - Digital Strategy | E53: Sewerage | F53: Improvements / Compliance | G53: Corporate | H53: Top 10 Major Projects | J53: Straight line | K53: 2024-25 | L53: =+M53 -> 10 | M53: 10 | O53: 0.248 | P53: 0.518 | Q53: 0.698 | R53: 0.72 | S53: 0.675 | T53: 0.45 | U53: 0.045 | V53: 0 | W53: 0 | X53: 0 | AV53: 0.248 | AW53: 0.518 | AX53: 0.698 | AY53: 0.72 | AZ53: 0.675 | BA53: 0.45 | BB53: 0.045 | BC53: 0 | BD53: 0 | BE53: 0 | BG53: 0 | BH53: 0 | BI53: 0 | BJ53: 0 | BK53: 0 | BL53: 0 | BM53: 0.1677 | BN53: 0.3354 | BO53: 0.3354 | BP53: 0.3354 | BR53: =+IF($K53="Ongoing",AV53,IF(RIGHT($K53,2)=RIGHT(BR$39,2),SUM($AV53:AV53),0)+IF(RIGHT(BR$39,2)>RIGHT($K53,2),AV53,0)) -> 0 | BS53: =+IF($K53="Ongoing",AW53,IF(RIGHT($K53,2)=RIGHT(BS$39,2),SUM($AV53:AW53),0)+IF(RIGHT(BS$39,2)>RIGHT($K53,2),AW53,0)) -> 0 | BT53: =+IF($K53="Ongoing",AX53,IF(RIGHT($K53,2)=RIGHT(BT$39,2),SUM($AV53:AX53),0)+IF(RIGHT(BT$39,2)>RIGHT($K53,2),AX53,0)) -> 0 | BU53: =+IF($K53="Ongoing",AY53,IF(RIGHT($K53,2)=RIGHT(BU$39,2),SUM($AV53:AY53),0)+IF(RIGHT(BU$39,2)>RIGHT($K53,2),AY53,0)) -> 0 | BV53: =+IF($K53="Ongoing",AZ53,IF(RIGHT($K53,2)=RIGHT(BV$39,2),SUM($AV53:AZ53),0)+IF(RIGHT(BV$39,2)>RIGHT($K53,2),AZ53,0)) -> 0 | BW53: =+IF($K53="Ongoing",BA53,IF(RIGHT($K53,2)=RIGHT(BW$39,2),SUM($AV53:BA53),0)+IF(RIGHT(BW$39,2)>RIGHT($K53,2),BA53,0)) -> 0 | BX53: =+IF($K53="Ongoing",BB53,IF(RIGHT($K53,2)=RIGHT(BX$39,2),SUM($AV53:BB53),0)+IF(RIGHT(BX$39,2)>RIGHT($K53,2),BB53,0)) -> 3.354 | BY53: =+IF($K53="Ongoing",BC53,IF(RIGHT($K53,2)=RIGHT(BY$39,2),SUM($AV53:BC53),0)+IF(RIGHT(BY$39,2)>RIGHT($K53,2),BC53,0)) -> 0 | BZ53: =+IF($K53="Ongoing",BD53,IF(RIGHT($K53,2)=RIGHT(BZ$39,2),SUM($AV53:BD53),0)+IF(RIGHT(BZ$39,2)>RIGHT($K53,2),BD53,0)) -> 0 | CA53: =+IF($K53="Ongoing",BE53,IF(RIGHT($K53,2)=RIGHT(CA$39,2),SUM($AV53:BE53),0)+IF(RIGHT(CA$39,2)>RIGHT($K53,2),BE53,0)) -> 0 | CC53: =+O53*KeyAssumptionsPriceControl_FO!X$15 -> 0.253704 | CD53: =+P53*KeyAssumptionsPriceControl_FO!Y$15 -> 0.542102022 | CE53: =+Q53*KeyAssumptionsPriceControl_FO!Z$15 -> 0.7472782186 | CF53: =+R53*KeyAssumptionsPriceControl_FO!AA$15 -> 0.7885605224 | CG53: =+S53*KeyAssumptionsPriceControl_FO!AB$15 -> 0.7562788261 | CH53: =+T53*KeyAssumptionsPriceControl_FO!AC$15 -> 0.5157821594 | CI53: =+U53*KeyAssumptionsPriceControl_FO!AD$15 -> 0.0527645149 | CJ53: =+V53*KeyAssumptionsPriceControl_FO!AE$15 -> 0 | CK53: =+W53*KeyAssumptionsPriceControl_FO!AF$15 -> 0 | CL53: =+X53*KeyAssumptionsPriceControl_FO!AG$15 -> 0 | CN53: 0.0126852 | CO53: 0.0524755011 | CP53: 0.1169445131 | CQ53: 0.1937364502 | CR53: 0.2709784176 | CS53: 0.3345814669 | CT53: 0.3630088006 | CU53: 0.3656470263 | CV53: 0.3656470263 | CW53: 0.3656470263
C54: All Areas - Digital Strategy | E54: Water | F54: Improvements / Compliance | G54: Corporate | H54: Top 10 Major Projects | J54: Straight line | K54: 2024-25 | L54: =+M54 -> 10 | M54: 10 | O54: 0.248 | P54: 0.518 | Q54: 0.698 | R54: 0.72 | S54: 0.675 | T54: 0.45 | U54: 0.045 | V54: 0 | W54: 0 | X54: 0 | AV54: 0.248 | AW54: 0.518 | AX54: 0.698 | AY54: 0.72 | AZ54: 0.675 | BA54: 0.45 | BB54: 0.045 | BC54: 0 | BD54: 0 | BE54: 0 | BG54: 0 | BH54: 0 | BI54: 0 | BJ54: 0 | BK54: 0 | BL54: 0 | BM54: 0.1677 | BN54: 0.3354 | BO54: 0.3354 | BP54: 0.3354 | BR54: =+IF($K54="Ongoing",AV54,IF(RIGHT($K54,2)=RIGHT(BR$39,2),SUM($AV54:AV54),0)+IF(RIGHT(BR$39,2)>RIGHT($K54,2),AV54,0)) -> 0 | BS54: =+IF($K54="Ongoing",AW54,IF(RIGHT($K54,2)=RIGHT(BS$39,2),SUM($AV54:AW54),0)+IF(RIGHT(BS$39,2)>RIGHT($K54,2),AW54,0)) -> 0 | BT54: =+IF($K54="Ongoing",AX54,IF(RIGHT($K54,2)=RIGHT(BT$39,2),SUM($AV54:AX54),0)+IF(RIGHT(BT$39,2)>RIGHT($K54,2),AX54,0)) -> 0 | BU54: =+IF($K54="Ongoing",AY54,IF(RIGHT($K54,2)=RIGHT(BU$39,2),SUM($AV54:AY54),0)+IF(RIGHT(BU$39,2)>RIGHT($K54,2),AY54,0)) -> 0 | BV54: =+IF($K54="Ongoing",AZ54,IF(RIGHT($K54,2)=RIGHT(BV$39,2),SUM($AV54:AZ54),0)+IF(RIGHT(BV$39,2)>RIGHT($K54,2),AZ54,0)) -> 0 | BW54: =+IF($K54="Ongoing",BA54,IF(RIGHT($K54,2)=RIGHT(BW$39,2),SUM($AV54:BA54),0)+IF(RIGHT(BW$39,2)>RIGHT($K54,2),BA54,0)) -> 0 | BX54: =+IF($K54="Ongoing",BB54,IF(RIGHT($K54,2)=RIGHT(BX$39,2),SUM($AV54:BB54),0)+IF(RIGHT(BX$39,2)>RIGHT($K54,2),BB54,0)) -> 3.354 | BY54: =+IF($K54="Ongoing",BC54,IF(RIGHT($K54,2)=RIGHT(BY$39,2),SUM($AV54:BC54),0)+IF(RIGHT(BY$39,2)>RIGHT($K54,2),BC54,0)) -> 0 | BZ54: =+IF($K54="Ongoing",BD54,IF(RIGHT($K54,2)=RIGHT(BZ$39,2),SUM($AV54:BD54),0)+IF(RIGHT(BZ$39,2)>RIGHT($K54,2),BD54,0)) -> 0 | CA54: =+IF($K54="Ongoing",BE54,IF(RIGHT($K54,2)=RIGHT(CA$39,2),SUM($AV54:BE54),0)+IF(RIGHT(CA$39,2)>RIGHT($K54,2),BE54,0)) -> 0 | CC54: =+O54*KeyAssumptionsPriceControl_FO!X$15 -> 0.253704 | CD54: =+P54*KeyAssumptionsPriceControl_FO!Y$15 -> 0.542102022 | CE54: =+Q54*KeyAssumptionsPriceControl_FO!Z$15 -> 0.7472782186 | CF54: =+R54*KeyAssumptionsPriceControl_FO!AA$15 -> 0.7885605224 | CG54: =+S54*KeyAssumptionsPriceControl_FO!AB$15 -> 0.7562788261 | CH54: =+T54*KeyAssumptionsPriceControl_FO!AC$15 -> 0.5157821594 | CI54: =+U54*KeyAssumptionsPriceControl_FO!AD$15 -> 0.0527645149 | CJ54: =+V54*KeyAssumptionsPriceControl_FO!AE$15 -> 0 | CK54: =+W54*KeyAssumptionsPriceControl_FO!AF$15 -> 0 | CL54: =+X54*KeyAssumptionsPriceControl_FO!AG$15 -> 0 | CN54: 0.0126852 | CO54: 0.0524755011 | CP54: 0.1169445131 | CQ54: 0.1937364502 | CR54: 0.2709784176 | CS54: 0.3345814669 | CT54: 0.3630088006 | CU54: 0.3656470263 | CV54: 0.3656470263 | CW54: 0.3656470263
C55: All Areas - Water Mains Replacement | E55: Water | F55: Renewals | G55: Pipelines/network | H55: Capital Programs / Allocation | J55: Straight line | K55: Ongoing | L55: =+M55 -> 80 | M55: 80 | O55: 2.25 | P55: 2.25 | Q55: 2.25 | R55: 2.475 | S55: 2.7 | T55: 4.05 | U55: 4.05 | V55: 4.05 | W55: 4.05 | X55: 3.866 | AV55: 2.25 | AW55: 2.25 | AX55: 2.25 | AY55: 2.475 | AZ55: 2.7 | BA55: 4.05 | BB55: 4.05 | BC55: 4.05 | BD55: 4.05 | BE55: 3.866 | BG55: 0.0140625 | BH55: 0.0421875 | BI55: 0.0703125 | BJ55: 0.09984375 | BK55: 0.1321875 | BL55: 0.174375 | BM55: 0.225 | BN55: 0.275625 | BO55: 0.32625 | BP55: 0.375725 | BR55: =+IF($K55="Ongoing",AV55,IF(RIGHT($K55,2)=RIGHT(BR$39,2),SUM($AV55:AV55),0)+IF(RIGHT(BR$39,2)>RIGHT($K55,2),AV55,0)) -> 2.25 | BS55: =+IF($K55="Ongoing",AW55,IF(RIGHT($K55,2)=RIGHT(BS$39,2),SUM($AV55:AW55),0)+IF(RIGHT(BS$39,2)>RIGHT($K55,2),AW55,0)) -> 2.25 | BT55: =+IF($K55="Ongoing",AX55,IF(RIGHT($K55,2)=RIGHT(BT$39,2),SUM($AV55:AX55),0)+IF(RIGHT(BT$39,2)>RIGHT($K55,2),AX55,0)) -> 2.25 | BU55: =+IF($K55="Ongoing",AY55,IF(RIGHT($K55,2)=RIGHT(BU$39,2),SUM($AV55:AY55),0)+IF(RIGHT(BU$39,2)>RIGHT($K55,2),AY55,0)) -> 2.475 | BV55: =+IF($K55="Ongoing",AZ55,IF(RIGHT($K55,2)=RIGHT(BV$39,2),SUM($AV55:AZ55),0)+IF(RIGHT(BV$39,2)>RIGHT($K55,2),AZ55,0)) -> 2.7 | BW55: =+IF($K55="Ongoing",BA55,IF(RIGHT($K55,2)=RIGHT(BW$39,2),SUM($AV55:BA55),0)+IF(RIGHT(BW$39,2)>RIGHT($K55,2),BA55,0)) -> 4.05 | BX55: =+IF($K55="Ongoing",BB55,IF(RIGHT($K55,2)=RIGHT(BX$39,2),SUM($AV55:BB55),0)+IF(RIGHT(BX$39,2)>RIGHT($K55,2),BB55,0)) -> 4.05 | BY55: =+IF($K55="Ongoing",BC55,IF(RIGHT($K55,2)=RIGHT(BY$39,2),SUM($AV55:BC55),0)+IF(RIGHT(BY$39,2)>RIGHT($K55,2),BC55,0)) -> 4.05 | BZ55: =+IF($K55="Ongoing",BD55,IF(RIGHT($K55,2)=RIGHT(BZ$39,2),SUM($AV55:BD55),0)+IF(RIGHT(BZ$39,2)>RIGHT($K55,2),BD55,0)) -> 4.05 | CA55: =+IF($K55="Ongoing",BE55,IF(RIGHT($K55,2)=RIGHT(CA$39,2),SUM($AV55:BE55),0)+IF(RIGHT(CA$39,2)>RIGHT($K55,2),BE55,0)) -> 3.866 | CC55: =+O55*KeyAssumptionsPriceControl_FO!X$15 -> 2.30175 | CD55: =+P55*KeyAssumptionsPriceControl_FO!Y$15 -> 2.35469025 | CE55: =+Q55*KeyAssumptionsPriceControl_FO!Z$15 -> 2.408848126 | CF55: =+R55*KeyAssumptionsPriceControl_FO!AA$15 -> 2.710676796 | CG55: =+S55*KeyAssumptionsPriceControl_FO!AB$15 -> 3.025115304 | CH55: =+T55*KeyAssumptionsPriceControl_FO!AC$15 -> 4.642039434 | CI55: =+U55*KeyAssumptionsPriceControl_FO!AD$15 -> 4.748806341 | CJ55: =+V55*KeyAssumptionsPriceControl_FO!AE$15 -> 4.858028887 | CK55: =+W55*KeyAssumptionsPriceControl_FO!AF$15 -> 4.969763552 | CL55: =+X55*KeyAssumptionsPriceControl_FO!AG$15 -> 4.853088229 | CN55: 0.0143859375 | CO55: 0.04348868906 | CP55: 0.07326080391 | CQ55: 0.1052578347 | CR55: 0.1411065353 | CS55: 0.1890262524 | CT55: 0.2477190385 | CU55: 0.3077617587 | CV55: 0.3691854614 | CW55: 0.4305782851
C56: All Areas - Relining / Replacement Sewers | E56: Sewerage | F56: Renewals | G56: Pipelines/network | H56: Capital Programs / Allocation | J56: Straight line | K56: Ongoing | L56: 80 | M56: 80 | O56: 1.733 | P56: 1.823 | Q56: 1.913 | R56: 2.102 | S56: 2.471 | T56: 1.8 | U56: 1.8 | V56: 1.8 | W56: 1.8 | X56: 1.8 | AV56: 1.733 | AW56: 1.823 | AX56: 1.913 | AY56: 2.102 | AZ56: 2.471 | BA56: 1.8 | BB56: 1.8 | BC56: 1.8 | BD56: 1.8 | BE56: 1.8 | BG56: 0.01083125 | BH56: 0.03305625 | BI56: 0.05640625 | BJ56: 0.0815 | BK56: 0.11008125 | BL56: 0.136775 | BM56: 0.159275 | BN56: 0.181775 | BO56: 0.204275 | BP56: 0.226775 | BR56: =+IF($K56="Ongoing",AV56,IF(RIGHT($K56,2)=RIGHT(BR$39,2),SUM($AV56:AV56),0)+IF(RIGHT(BR$39,2)>RIGHT($K56,2),AV56,0)) -> 1.733 | BS56: =+IF($K56="Ongoing",AW56,IF(RIGHT($K56,2)=RIGHT(BS$39,2),SUM($AV56:AW56),0)+IF(RIGHT(BS$39,2)>RIGHT($K56,2),AW56,0)) -> 1.823 | BT56: =+IF($K56="Ongoing",AX56,IF(RIGHT($K56,2)=RIGHT(BT$39,2),SUM($AV56:AX56),0)+IF(RIGHT(BT$39,2)>RIGHT($K56,2),AX56,0)) -> 1.913 | BU56: =+IF($K56="Ongoing",AY56,IF(RIGHT($K56,2)=RIGHT(BU$39,2),SUM($AV56:AY56),0)+IF(RIGHT(BU$39,2)>RIGHT($K56,2),AY56,0)) -> 2.102 | BV56: =+IF($K56="Ongoing",AZ56,IF(RIGHT($K56,2)=RIGHT(BV$39,2),SUM($AV56:AZ56),0)+IF(RIGHT(BV$39,2)>RIGHT($K56,2),AZ56,0)) -> 2.471 | BW56: =+IF($K56="Ongoing",BA56,IF(RIGHT($K56,2)=RIGHT(BW$39,2),SUM($AV56:BA56),0)+IF(RIGHT(BW$39,2)>RIGHT($K56,2),BA56,0)) -> 1.8 | BX56: =+IF($K56="Ongoing",BB56,IF(RIGHT($K56,2)=RIGHT(BX$39,2),SUM($AV56:BB56),0)+IF(RIGHT(BX$39,2)>RIGHT($K56,2),BB56,0)) -> 1.8 | BY56: =+IF($K56="Ongoing",BC56,IF(RIGHT($K56,2)=RIGHT(BY$39,2),SUM($AV56:BC56),0)+IF(RIGHT(BY$39,2)>RIGHT($K56,2),BC56,0)) -> 1.8 | BZ56: =+IF($K56="Ongoing",BD56,IF(RIGHT($K56,2)=RIGHT(BZ$39,2),SUM($AV56:BD56),0)+IF(RIGHT(BZ$39,2)>RIGHT($K56,2),BD56,0)) -> 1.8 | CA56: =+IF($K56="Ongoing",BE56,IF(RIGHT($K56,2)=RIGHT(CA$39,2),SUM($AV56:BE56),0)+IF(RIGHT(CA$39,2)>RIGHT($K56,2),BE56,0)) -> 1.8 | CC56: =+O56*KeyAssumptionsPriceControl_FO!X$15 -> 1.772859 | CD56: =+P56*KeyAssumptionsPriceControl_FO!Y$15 -> 1.907822367 | CE56: =+Q56*KeyAssumptionsPriceControl_FO!Z$15 -> 2.048056206 | CF56: =+R56*KeyAssumptionsPriceControl_FO!AA$15 -> 2.302158636 | CG56: =+S56*KeyAssumptionsPriceControl_FO!AB$15 -> 2.76854071 | CH56: =+T56*KeyAssumptionsPriceControl_FO!AC$15 -> 2.063128637 | CI56: =+U56*KeyAssumptionsPriceControl_FO!AD$15 -> 2.110580596 | CJ56: =+V56*KeyAssumptionsPriceControl_FO!AE$15 -> 2.15912395 | CK56: =+W56*KeyAssumptionsPriceControl_FO!AF$15 -> 2.208783801 | CL56: =+X56*KeyAssumptionsPriceControl_FO!AG$15 -> 2.259585828 | CN56: 0.01108036875 | CO56: 0.03408462729 | CP56: 0.05880886838 | CQ56: 0.08599771115 | CR56: 0.1176895821 | CS56: 0.1478875155 | CT56: 0.1739731982 | CU56: 0.2006588516 | CV56: 0.227958275 | CW56: 0.2558855852
C57: All Areas - Asset Acquisitions - Corporate Assets | E57: Sewerage | F57: Renewals | G57: Corporate | H57: Capital Programs / Allocation | J57: Straight line | K57: Ongoing | L57: 5 | M57: 5 | O57: 1.305 | P57: 1.305 | Q57: 1.305 | R57: 1.305 | S57: 1.305 | T57: 1.305 | U57: 1.305 | V57: 1.305 | W57: 1.305 | X57: 1.305 | AV57: 1.305 | AW57: 1.305 | AX57: 1.305 | AY57: 1.305 | AZ57: 1.305 | BA57: 1.305 | BB57: 1.305 | BC57: 1.305 | BD57: 1.305 | BE57: 1.305 | BG57: 0.1305 | BH57: 0.3915 | BI57: 0.6525 | BJ57: 0.9135 | BK57: 1.1745 | BL57: 1.305 | BM57: 1.305 | BN57: 1.305 | BO57: 1.305 | BP57: 1.305 | BR57: =+IF($K57="Ongoing",AV57,IF(RIGHT($K57,2)=RIGHT(BR$39,2),SUM($AV57:AV57),0)+IF(RIGHT(BR$39,2)>RIGHT($K57,2),AV57,0)) -> 1.305 | BS57: =+IF($K57="Ongoing",AW57,IF(RIGHT($K57,2)=RIGHT(BS$39,2),SUM($AV57:AW57),0)+IF(RIGHT(BS$39,2)>RIGHT($K57,2),AW57,0)) -> 1.305 | BT57: =+IF($K57="Ongoing",AX57,IF(RIGHT($K57,2)=RIGHT(BT$39,2),SUM($AV57:AX57),0)+IF(RIGHT(BT$39,2)>RIGHT($K57,2),AX57,0)) -> 1.305 | BU57: =+IF($K57="Ongoing",AY57,IF(RIGHT($K57,2)=RIGHT(BU$39,2),SUM($AV57:AY57),0)+IF(RIGHT(BU$39,2)>RIGHT($K57,2),AY57,0)) -> 1.305 | BV57: =+IF($K57="Ongoing",AZ57,IF(RIGHT($K57,2)=RIGHT(BV$39,2),SUM($AV57:AZ57),0)+IF(RIGHT(BV$39,2)>RIGHT($K57,2),AZ57,0)) -> 1.305 | BW57: =+IF($K57="Ongoing",BA57,IF(RIGHT($K57,2)=RIGHT(BW$39,2),SUM($AV57:BA57),0)+IF(RIGHT(BW$39,2)>RIGHT($K57,2),BA57,0)) -> 1.305 | BX57: =+IF($K57="Ongoing",BB57,IF(RIGHT($K57,2)=RIGHT(BX$39,2),SUM($AV57:BB57),0)+IF(RIGHT(BX$39,2)>RIGHT($K57,2),BB57,0)) -> 1.305 | BY57: =+IF($K57="Ongoing",BC57,IF(RIGHT($K57,2)=RIGHT(BY$39,2),SUM($AV57:BC57),0)+IF(RIGHT(BY$39,2)>RIGHT($K57,2),BC57,0)) -> 1.305 | BZ57: =+IF($K57="Ongoing",BD57,IF(RIGHT($K57,2)=RIGHT(BZ$39,2),SUM($AV57:BD57),0)+IF(RIGHT(BZ$39,2)>RIGHT($K57,2),BD57,0)) -> 1.305 | CA57: =+IF($K57="Ongoing",BE57,IF(RIGHT($K57,2)=RIGHT(CA$39,2),SUM($AV57:BE57),0)+IF(RIGHT(CA$39,2)>RIGHT($K57,2),BE57,0)) -> 1.305 | CC57: =+O57*KeyAssumptionsPriceControl_FO!X$15 -> 1.335015 | CD57: =+P57*KeyAssumptionsPriceControl_FO!Y$15 -> 1.365720345 | CE57: =+Q57*KeyAssumptionsPriceControl_FO!Z$15 -> 1.397131913 | CF57: =+R57*KeyAssumptionsPriceControl_FO!AA$15 -> 1.429265947 | CG57: =+S57*KeyAssumptionsPriceControl_FO!AB$15 -> 1.462139064 | CH57: =+T57*KeyAssumptionsPriceControl_FO!AC$15 -> 1.495768262 | CI57: =+U57*KeyAssumptionsPriceControl_FO!AD$15 -> 1.530170932 | CJ57: =+V57*KeyAssumptionsPriceControl_FO!AE$15 -> 1.565364864 | CK57: =+W57*KeyAssumptionsPriceControl_FO!AF$15 -> 1.601368256 | CL57: =+X57*KeyAssumptionsPriceControl_FO!AG$15 -> 1.638199725 | CN57: 0.1335015 | CO57: 0.4035750345 | CP57: 0.6798602603 | CQ57: 0.9625000463 | CR57: 1.251640547 | CS57: 1.41392978 | CT57: 1.446450165 | CU57: 1.479718519 | CV57: 1.513752045 | CW57: 1.548568342
C58: All Areas - Asset Acquisitions - Corporate Assets | E58: Water | F58: Renewals | G58: Corporate | H58: Capital Programs / Allocation | J58: Straight line | K58: Ongoing | L58: 5 | M58: 5 | O58: 1.305 | P58: 1.305 | Q58: 1.305 | R58: 1.305 | S58: 1.305 | T58: 1.305 | U58: 1.305 | V58: 1.305 | W58: 1.305 | X58: 1.305 | AV58: 1.305 | AW58: 1.305 | AX58: 1.305 | AY58: 1.305 | AZ58: 1.305 | BA58: 1.305 | BB58: 1.305 | BC58: 1.305 | BD58: 1.305 | BE58: 1.305 | BG58: 0.1305 | BH58: 0.3915 | BI58: 0.6525 | BJ58: 0.9135 | BK58: 1.1745 | BL58: 1.305 | BM58: 1.305 | BN58: 1.305 | BO58: 1.305 | BP58: 1.305 | BR58: =+IF($K58="Ongoing",AV58,IF(RIGHT($K58,2)=RIGHT(BR$39,2),SUM($AV58:AV58),0)+IF(RIGHT(BR$39,2)>RIGHT($K58,2),AV58,0)) -> 1.305 | BS58: =+IF($K58="Ongoing",AW58,IF(RIGHT($K58,2)=RIGHT(BS$39,2),SUM($AV58:AW58),0)+IF(RIGHT(BS$39,2)>RIGHT($K58,2),AW58,0)) -> 1.305 | BT58: =+IF($K58="Ongoing",AX58,IF(RIGHT($K58,2)=RIGHT(BT$39,2),SUM($AV58:AX58),0)+IF(RIGHT(BT$39,2)>RIGHT($K58,2),AX58,0)) -> 1.305 | BU58: =+IF($K58="Ongoing",AY58,IF(RIGHT($K58,2)=RIGHT(BU$39,2),SUM($AV58:AY58),0)+IF(RIGHT(BU$39,2)>RIGHT($K58,2),AY58,0)) -> 1.305 | BV58: =+IF($K58="Ongoing",AZ58,IF(RIGHT($K58,2)=RIGHT(BV$39,2),SUM($AV58:AZ58),0)+IF(RIGHT(BV$39,2)>RIGHT($K58,2),AZ58,0)) -> 1.305 | BW58: =+IF($K58="Ongoing",BA58,IF(RIGHT($K58,2)=RIGHT(BW$39,2),SUM($AV58:BA58),0)+IF(RIGHT(BW$39,2)>RIGHT($K58,2),BA58,0)) -> 1.305 | BX58: =+IF($K58="Ongoing",BB58,IF(RIGHT($K58,2)=RIGHT(BX$39,2),SUM($AV58:BB58),0)+IF(RIGHT(BX$39,2)>RIGHT($K58,2),BB58,0)) -> 1.305 | BY58: =+IF($K58="Ongoing",BC58,IF(RIGHT($K58,2)=RIGHT(BY$39,2),SUM($AV58:BC58),0)+IF(RIGHT(BY$39,2)>RIGHT($K58,2),BC58,0)) -> 1.305 | BZ58: =+IF($K58="Ongoing",BD58,IF(RIGHT($K58,2)=RIGHT(BZ$39,2),SUM($AV58:BD58),0)+IF(RIGHT(BZ$39,2)>RIGHT($K58,2),BD58,0)) -> 1.305 | CA58: =+IF($K58="Ongoing",BE58,IF(RIGHT($K58,2)=RIGHT(CA$39,2),SUM($AV58:BE58),0)+IF(RIGHT(CA$39,2)>RIGHT($K58,2),BE58,0)) -> 1.305 | CC58: =+O58*KeyAssumptionsPriceControl_FO!X$15 -> 1.335015 | CD58: =+P58*KeyAssumptionsPriceControl_FO!Y$15 -> 1.365720345 | CE58: =+Q58*KeyAssumptionsPriceControl_FO!Z$15 -> 1.397131913 | CF58: =+R58*KeyAssumptionsPriceControl_FO!AA$15 -> 1.429265947 | CG58: =+S58*KeyAssumptionsPriceControl_FO!AB$15 -> 1.462139064 | CH58: =+T58*KeyAssumptionsPriceControl_FO!AC$15 -> 1.495768262 | CI58: =+U58*KeyAssumptionsPriceControl_FO!AD$15 -> 1.530170932 | CJ58: =+V58*KeyAssumptionsPriceControl_FO!AE$15 -> 1.565364864 | CK58: =+W58*KeyAssumptionsPriceControl_FO!AF$15 -> 1.601368256 | CL58: =+X58*KeyAssumptionsPriceControl_FO!AG$15 -> 1.638199725 | CN58: 0.1335015 | CO58: 0.4035750345 | CP58: 0.6798602603 | CQ58: 0.9625000463 | CR58: 1.251640547 | CS58: 1.41392978 | CT58: 1.446450165 | CU58: 1.479718519 | CV58: 1.513752045 | CW58: 1.548568342
C59: All Areas - Water Treatment Plant Optimisation | E59: Water | F59: Improvements / Compliance | G59: Treatment | H59: Capital Programs / Allocation | J59: Straight line | K59: Ongoing | L59: 25 | M59: 25 | O59: 0.45 | P59: 0.45 | Q59: 0.45 | R59: 0.45 | S59: 0.45 | T59: 0.45 | U59: 0.45 | V59: 0.45 | W59: 0.45 | X59: 0.45 | AV59: 0.45 | AW59: 0.45 | AX59: 0.45 | AY59: 0.45 | AZ59: 0.45 | BA59: 0.45 | BB59: 0.45 | BC59: 0.45 | BD59: 0.45 | BE59: 0.45 | BG59: 0.009 | BH59: 0.027 | BI59: 0.045 | BJ59: 0.063 | BK59: 0.081 | BL59: 0.099 | BM59: 0.117 | BN59: 0.135 | BO59: 0.153 | BP59: 0.171 | BR59: =+IF($K59="Ongoing",AV59,IF(RIGHT($K59,2)=RIGHT(BR$39,2),SUM($AV59:AV59),0)+IF(RIGHT(BR$39,2)>RIGHT($K59,2),AV59,0)) -> 0.45 | BS59: =+IF($K59="Ongoing",AW59,IF(RIGHT($K59,2)=RIGHT(BS$39,2),SUM($AV59:AW59),0)+IF(RIGHT(BS$39,2)>RIGHT($K59,2),AW59,0)) -> 0.45 | BT59: =+IF($K59="Ongoing",AX59,IF(RIGHT($K59,2)=RIGHT(BT$39,2),SUM($AV59:AX59),0)+IF(RIGHT(BT$39,2)>RIGHT($K59,2),AX59,0)) -> 0.45 | BU59: =+IF($K59="Ongoing",AY59,IF(RIGHT($K59,2)=RIGHT(BU$39,2),SUM($AV59:AY59),0)+IF(RIGHT(BU$39,2)>RIGHT($K59,2),AY59,0)) -> 0.45 | BV59: =+IF($K59="Ongoing",AZ59,IF(RIGHT($K59,2)=RIGHT(BV$39,2),SUM($AV59:AZ59),0)+IF(RIGHT(BV$39,2)>RIGHT($K59,2),AZ59,0)) -> 0.45 | BW59: =+IF($K59="Ongoing",BA59,IF(RIGHT($K59,2)=RIGHT(BW$39,2),SUM($AV59:BA59),0)+IF(RIGHT(BW$39,2)>RIGHT($K59,2),BA59,0)) -> 0.45 | BX59: =+IF($K59="Ongoing",BB59,IF(RIGHT($K59,2)=RIGHT(BX$39,2),SUM($AV59:BB59),0)+IF(RIGHT(BX$39,2)>RIGHT($K59,2),BB59,0)) -> 0.45 | BY59: =+IF($K59="Ongoing",BC59,IF(RIGHT($K59,2)=RIGHT(BY$39,2),SUM($AV59:BC59),0)+IF(RIGHT(BY$39,2)>RIGHT($K59,2),BC59,0)) -> 0.45 | BZ59: =+IF($K59="Ongoing",BD59,IF(RIGHT($K59,2)=RIGHT(BZ$39,2),SUM($AV59:BD59),0)+IF(RIGHT(BZ$39,2)>RIGHT($K59,2),BD59,0)) -> 0.45 | CA59: =+IF($K59="Ongoing",BE59,IF(RIGHT($K59,2)=RIGHT(CA$39,2),SUM($AV59:BE59),0)+IF(RIGHT(CA$39,2)>RIGHT($K59,2),BE59,0)) -> 0.45 | CC59: =+O59*KeyAssumptionsPriceControl_FO!X$15 -> 0.46035 | CD59: =+P59*KeyAssumptionsPriceControl_FO!Y$15 -> 0.47093805 | CE59: =+Q59*KeyAssumptionsPriceControl_FO!Z$15 -> 0.4817696251 | CF59: =+R59*KeyAssumptionsPriceControl_FO!AA$15 -> 0.4928503265 | CG59: =+S59*KeyAssumptionsPriceControl_FO!AB$15 -> 0.504185884 | CH59: =+T59*KeyAssumptionsPriceControl_FO!AC$15 -> 0.5157821594 | CI59: =+U59*KeyAssumptionsPriceControl_FO!AD$15 -> 0.527645149 | CJ59: =+V59*KeyAssumptionsPriceControl_FO!AE$15 -> 0.5397809875 | CK59: =+W59*KeyAssumptionsPriceControl_FO!AF$15 -> 0.5521959502 | CL59: =+X59*KeyAssumptionsPriceControl_FO!AG$15 -> 0.564896457 | CN59: 0.009207 | CO59: 0.027832761 | CP59: 0.0468869145 | CQ59: 0.06637931354 | CR59: 0.08632003775 | CS59: 0.1067193986 | CT59: 0.1275879448 | CU59: 0.1489364675 | CV59: 0.1707760063 | CW59: 0.1931178544
C60: All Areas - Switchboard Replacements | E60: Water | F60: Renewals | G60: Treatment | H60: Capital Programs / Allocation | J60: Straight line | K60: Ongoing | L60: 25 | M60: 25 | O60: 0.684 | P60: 0.36 | Q60: 0.36 | R60: 0.36 | S60: 0.36 | T60: 0.36 | U60: 0.36 | V60: 0.36 | W60: 0.36 | X60: 0.36 | AV60: 0.684 | AW60: 0.36 | AX60: 0.36 | AY60: 0.36 | AZ60: 0.36 | BA60: 0.36 | BB60: 0.36 | BC60: 0.36 | BD60: 0.36 | BE60: 0.36 | BG60: 0.01368 | BH60: 0.03456 | BI60: 0.04896 | BJ60: 0.06336 | BK60: 0.07776 | BL60: 0.09216 | BM60: 0.10656 | BN60: 0.12096 | BO60: 0.13536 | BP60: 0.14976 | BR60: =+IF($K60="Ongoing",AV60,IF(RIGHT($K60,2)=RIGHT(BR$39,2),SUM($AV60:AV60),0)+IF(RIGHT(BR$39,2)>RIGHT($K60,2),AV60,0)) -> 0.684 | BS60: =+IF($K60="Ongoing",AW60,IF(RIGHT($K60,2)=RIGHT(BS$39,2),SUM($AV60:AW60),0)+IF(RIGHT(BS$39,2)>RIGHT($K60,2),AW60,0)) -> 0.36 | BT60: =+IF($K60="Ongoing",AX60,IF(RIGHT($K60,2)=RIGHT(BT$39,2),SUM($AV60:AX60),0)+IF(RIGHT(BT$39,2)>RIGHT($K60,2),AX60,0)) -> 0.36 | BU60: =+IF($K60="Ongoing",AY60,IF(RIGHT($K60,2)=RIGHT(BU$39,2),SUM($AV60:AY60),0)+IF(RIGHT(BU$39,2)>RIGHT($K60,2),AY60,0)) -> 0.36 | BV60: =+IF($K60="Ongoing",AZ60,IF(RIGHT($K60,2)=RIGHT(BV$39,2),SUM($AV60:AZ60),0)+IF(RIGHT(BV$39,2)>RIGHT($K60,2),AZ60,0)) -> 0.36 | BW60: =+IF($K60="Ongoing",BA60,IF(RIGHT($K60,2)=RIGHT(BW$39,2),SUM($AV60:BA60),0)+IF(RIGHT(BW$39,2)>RIGHT($K60,2),BA60,0)) -> 0.36 | BX60: =+IF($K60="Ongoing",BB60,IF(RIGHT($K60,2)=RIGHT(BX$39,2),SUM($AV60:BB60),0)+IF(RIGHT(BX$39,2)>RIGHT($K60,2),BB60,0)) -> 0.36 | BY60: =+IF($K60="Ongoing",BC60,IF(RIGHT($K60,2)=RIGHT(BY$39,2),SUM($AV60:BC60),0)+IF(RIGHT(BY$39,2)>RIGHT($K60,2),BC60,0)) -> 0.36 | BZ60: =+IF($K60="Ongoing",BD60,IF(RIGHT($K60,2)=RIGHT(BZ$39,2),SUM($AV60:BD60),0)+IF(RIGHT(BZ$39,2)>RIGHT($K60,2),BD60,0)) -> 0.36 | CA60: =+IF($K60="Ongoing",BE60,IF(RIGHT($K60,2)=RIGHT(CA$39,2),SUM($AV60:BE60),0)+IF(RIGHT(CA$39,2)>RIGHT($K60,2),BE60,0)) -> 0.36 | CC60: =+O60*KeyAssumptionsPriceControl_FO!X$15 -> 0.699732 | CD60: =+P60*KeyAssumptionsPriceControl_FO!Y$15 -> 0.37675044 | CE60: =+Q60*KeyAssumptionsPriceControl_FO!Z$15 -> 0.3854157001 | CF60: =+R60*KeyAssumptionsPriceControl_FO!AA$15 -> 0.3942802612 | CG60: =+S60*KeyAssumptionsPriceControl_FO!AB$15 -> 0.4033487072 | CH60: =+T60*KeyAssumptionsPriceControl_FO!AC$15 -> 0.4126257275 | CI60: =+U60*KeyAssumptionsPriceControl_FO!AD$15 -> 0.4221161192 | CJ60: =+V60*KeyAssumptionsPriceControl_FO!AE$15 -> 0.43182479 | CK60: =+W60*KeyAssumptionsPriceControl_FO!AF$15 -> 0.4417567601 | CL60: =+X60*KeyAssumptionsPriceControl_FO!AG$15 -> 0.4519171656 | CN60: 0.01399464 | CO60: 0.0355242888 | CP60: 0.0507676116 | CQ60: 0.06636153083 | CR60: 0.0823141102 | CS60: 0.09863359889 | CT60: 0.1153284358 | CU60: 0.132407254 | CV60: 0.149878885 | CW60: 0.1677523635
C61: All Areas - Microbial Risk Reduction | E61: Water | F61: Improvements / Compliance | G61: Treatment | H61: Significant projects | J61: Straight line | K61: 2027-28 | L61: 47.5 | M61: 47.5 | O61: 0.15 | P61: 0.53 | Q61: 1.355 | R61: 1.175 | S61: 0.2 | T61: 0.75 | U61: 0.82 | V61: 3 | W61: 4 | X61: 3.87 | AV61: 0.15 | AW61: 0.53 | AX61: 1.355 | AY61: 1.175 | AZ61: 0.2 | BA61: 0.75 | BB61: 0.82 | BC61: 3 | BD61: 4 | BE61: 3.87 | BG61: 0 | BH61: 0 | BI61: 0 | BJ61: 0 | BK61: 0 | BL61: 0 | BM61: 0 | BN61: 0 | BO61: 0 | BP61: 0.1668421053 | BR61: =+IF($K61="Ongoing",AV61,IF(RIGHT($K61,2)=RIGHT(BR$39,2),SUM($AV61:AV61),0)+IF(RIGHT(BR$39,2)>RIGHT($K61,2),AV61,0)) -> 0 | BS61: =+IF($K61="Ongoing",AW61,IF(RIGHT($K61,2)=RIGHT(BS$39,2),SUM($AV61:AW61),0)+IF(RIGHT(BS$39,2)>RIGHT($K61,2),AW61,0)) -> 0 | BT61: =+IF($K61="Ongoing",AX61,IF(RIGHT($K61,2)=RIGHT(BT$39,2),SUM($AV61:AX61),0)+IF(RIGHT(BT$39,2)>RIGHT($K61,2),AX61,0)) -> 0 | BU61: =+IF($K61="Ongoing",AY61,IF(RIGHT($K61,2)=RIGHT(BU$39,2),SUM($AV61:AY61),0)+IF(RIGHT(BU$39,2)>RIGHT($K61,2),AY61,0)) -> 0 | BV61: =+IF($K61="Ongoing",AZ61,IF(RIGHT($K61,2)=RIGHT(BV$39,2),SUM($AV61:AZ61),0)+IF(RIGHT(BV$39,2)>RIGHT($K61,2),AZ61,0)) -> 0 | BW61: =+IF($K61="Ongoing",BA61,IF(RIGHT($K61,2)=RIGHT(BW$39,2),SUM($AV61:BA61),0)+IF(RIGHT(BW$39,2)>RIGHT($K61,2),BA61,0)) -> 0 | BX61: =+IF($K61="Ongoing",BB61,IF(RIGHT($K61,2)=RIGHT(BX$39,2),SUM($AV61:BB61),0)+IF(RIGHT(BX$39,2)>RIGHT($K61,2),BB61,0)) -> 0 | BY61: =+IF($K61="Ongoing",BC61,IF(RIGHT($K61,2)=RIGHT(BY$39,2),SUM($AV61:BC61),0)+IF(RIGHT(BY$39,2)>RIGHT($K61,2),BC61,0)) -> 0 | BZ61: =+IF($K61="Ongoing",BD61,IF(RIGHT($K61,2)=RIGHT(BZ$39,2),SUM($AV61:BD61),0)+IF(RIGHT(BZ$39,2)>RIGHT($K61,2),BD61,0)) -> 0 | CA61: =+IF($K61="Ongoing",BE61,IF(RIGHT($K61,2)=RIGHT(CA$39,2),SUM($AV61:BE61),0)+IF(RIGHT(CA$39,2)>RIGHT($K61,2),BE61,0)) -> 15.85 | CC61: =+O61*KeyAssumptionsPriceControl_FO!X$15 -> 0.15345 | CD61: =+P61*KeyAssumptionsPriceControl_FO!Y$15 -> 0.55466037 | CE61: =+Q61*KeyAssumptionsPriceControl_FO!Z$15 -> 1.450661871 | CF61: =+R61*KeyAssumptionsPriceControl_FO!AA$15 -> 1.286886964 | CG61: =+S61*KeyAssumptionsPriceControl_FO!AB$15 -> 0.2240826151 | CH61: =+T61*KeyAssumptionsPriceControl_FO!AC$15 -> 0.8596369323 | CI61: =+U61*KeyAssumptionsPriceControl_FO!AD$15 -> 0.961486716 | CJ61: =+V61*KeyAssumptionsPriceControl_FO!AE$15 -> 3.598539916 | CK61: =+W61*KeyAssumptionsPriceControl_FO!AF$15 -> 4.908408446 | CL61: =+X61*KeyAssumptionsPriceControl_FO!AG$15 -> 4.85810953 | CN61: 0.001615263158 | CO61: 0.009069056526 | CP61: 0.0301777117 | CQ61: 0.05899401522 | CR61: 0.07489895816 | CS61: 0.08630653234 | CT61: 0.105476255 | CU61: 0.1534765353 | CV61: 0.2430233602 | CW61: 0.3458288125
C62: Mansfield - Wastewater Management Facility Offsets Project | E62: Sewerage | F62: Growth | G62: Treatment | H62: Significant projects | J62: Straight line | K62: 2020-21 | L62: 25 | M62: 25 | O62: 1.422 | P62: 1.517 | Q62: 0.27 | R62: 0 | S62: 0 | T62: 0 | U62: 0 | V62: 0 | W62: 0 | X62: 0 | AV62: 1.422 | AW62: 1.517 | AX62: 0.27 | AY62: 0 | AZ62: 0 | BA62: 0 | BB62: 0 | BC62: 0 | BD62: 0 | BE62: 0 | BG62: 0 | BH62: 0 | BI62: 0.06418 | BJ62: 0.12836 | BK62: 0.12836 | BL62: 0.12836 | BM62: 0.12836 | BN62: 0.12836 | BO62: 0.12836 | BP62: 0.12836 | BR62: =+IF($K62="Ongoing",AV62,IF(RIGHT($K62,2)=RIGHT(BR$39,2),SUM($AV62:AV62),0)+IF(RIGHT(BR$39,2)>RIGHT($K62,2),AV62,0)) -> 0 | BS62: =+IF($K62="Ongoing",AW62,IF(RIGHT($K62,2)=RIGHT(BS$39,2),SUM($AV62:AW62),0)+IF(RIGHT(BS$39,2)>RIGHT($K62,2),AW62,0)) -> 0 | BT62: =+IF($K62="Ongoing",AX62,IF(RIGHT($K62,2)=RIGHT(BT$39,2),SUM($AV62:AX62),0)+IF(RIGHT(BT$39,2)>RIGHT($K62,2),AX62,0)) -> 3.209 | BU62: =+IF($K62="Ongoing",AY62,IF(RIGHT($K62,2)=RIGHT(BU$39,2),SUM($AV62:AY62),0)+IF(RIGHT(BU$39,2)>RIGHT($K62,2),AY62,0)) -> 0 | BV62: =+IF($K62="Ongoing",AZ62,IF(RIGHT($K62,2)=RIGHT(BV$39,2),SUM($AV62:AZ62),0)+IF(RIGHT(BV$39,2)>RIGHT($K62,2),AZ62,0)) -> 0 | BW62: =+IF($K62="Ongoing",BA62,IF(RIGHT($K62,2)=RIGHT(BW$39,2),SUM($AV62:BA62),0)+IF(RIGHT(BW$39,2)>RIGHT($K62,2),BA62,0)) -> 0 | BX62: =+IF($K62="Ongoing",BB62,IF(RIGHT($K62,2)=RIGHT(BX$39,2),SUM($AV62:BB62),0)+IF(RIGHT(BX$39,2)>RIGHT($K62,2),BB62,0)) -> 0 | BY62: =+IF($K62="Ongoing",BC62,IF(RIGHT($K62,2)=RIGHT(BY$39,2),SUM($AV62:BC62),0)+IF(RIGHT(BY$39,2)>RIGHT($K62,2),BC62,0)) -> 0 | BZ62: =+IF($K62="Ongoing",BD62,IF(RIGHT($K62,2)=RIGHT(BZ$39,2),SUM($AV62:BD62),0)+IF(RIGHT(BZ$39,2)>RIGHT($K62,2),BD62,0)) -> 0 | CA62: =+IF($K62="Ongoing",BE62,IF(RIGHT($K62,2)=RIGHT(CA$39,2),SUM($AV62:BE62),0)+IF(RIGHT(CA$39,2)>RIGHT($K62,2),BE62,0)) -> 0 | CC62: =+O62*KeyAssumptionsPriceControl_FO!X$15 -> 1.454706 | CD62: =+P62*KeyAssumptionsPriceControl_FO!Y$15 -> 1.587584493 | CE62: =+Q62*KeyAssumptionsPriceControl_FO!Z$15 -> 0.2890617751 | CF62: =+R62*KeyAssumptionsPriceControl_FO!AA$15 -> 0 | CG62: =+S62*KeyAssumptionsPriceControl_FO!AB$15 -> 0 | CH62: =+T62*KeyAssumptionsPriceControl_FO!AC$15 -> 0 | CI62: =+U62*KeyAssumptionsPriceControl_FO!AD$15 -> 0 | CJ62: =+V62*KeyAssumptionsPriceControl_FO!AE$15 -> 0 | CK62: =+W62*KeyAssumptionsPriceControl_FO!AF$15 -> 0 | CL62: =+X62*KeyAssumptionsPriceControl_FO!AG$15 -> 0 | CN62: 0.02909412 | CO62: 0.08993992986 | CP62: 0.1274728552 | CQ62: 0.1332540907 | CR62: 0.1332540907 | CS62: 0.1332540907 | CT62: 0.1332540907 | CU62: 0.1332540907 | CV62: 0.1332540907 | CW62: 0.1332540907
C63: Tatura - WTP Capacity Upgrade | E63: Water | F63: Growth | G63: Treatment | H63: Significant projects | J63: Straight line | K63: 2019-20 | L63: 47.5 | M63: 47.5 | O63: 1.649 | P63: 1.548 | Q63: 0 | R63: 0 | S63: 0 | T63: 0 | U63: 0 | V63: 0 | W63: 0 | X63: 0 | AV63: 1.649 | AW63: 1.548 | AX63: 0 | AY63: 0 | AZ63: 0 | BA63: 0 | BB63: 0 | BC63: 0 | BD63: 0 | BE63: 0 | BG63: 0 | BH63: 0.03365263158 | BI63: 0.06730526316 | BJ63: 0.06730526316 | BK63: 0.06730526316 | BL63: 0.06730526316 | BM63: 0.06730526316 | BN63: 0.06730526316 | BO63: 0.06730526316 | BP63: 0.06730526316 | BR63: =+IF($K63="Ongoing",AV63,IF(RIGHT($K63,2)=RIGHT(BR$39,2),SUM($AV63:AV63),0)+IF(RIGHT(BR$39,2)>RIGHT($K63,2),AV63,0)) -> 0 | BS63: =+IF($K63="Ongoing",AW63,IF(RIGHT($K63,2)=RIGHT(BS$39,2),SUM($AV63:AW63),0)+IF(RIGHT(BS$39,2)>RIGHT($K63,2),AW63,0)) -> 3.197 | BT63: =+IF($K63="Ongoing",AX63,IF(RIGHT($K63,2)=RIGHT(BT$39,2),SUM($AV63:AX63),0)+IF(RIGHT(BT$39,2)>RIGHT($K63,2),AX63,0)) -> 0 | BU63: =+IF($K63="Ongoing",AY63,IF(RIGHT($K63,2)=RIGHT(BU$39,2),SUM($AV63:AY63),0)+IF(RIGHT(BU$39,2)>RIGHT($K63,2),AY63,0)) -> 0 | BV63: =+IF($K63="Ongoing",AZ63,IF(RIGHT($K63,2)=RIGHT(BV$39,2),SUM($AV63:AZ63),0)+IF(RIGHT(BV$39,2)>RIGHT($K63,2),AZ63,0)) -> 0 | BW63: =+IF($K63="Ongoing",BA63,IF(RIGHT($K63,2)=RIGHT(BW$39,2),SUM($AV63:BA63),0)+IF(RIGHT(BW$39,2)>RIGHT($K63,2),BA63,0)) -> 0 | BX63: =+IF($K63="Ongoing",BB63,IF(RIGHT($K63,2)=RIGHT(BX$39,2),SUM($AV63:BB63),0)+IF(RIGHT(BX$39,2)>RIGHT($K63,2),BB63,0)) -> 0 | BY63: =+IF($K63="Ongoing",BC63,IF(RIGHT($K63,2)=RIGHT(BY$39,2),SUM($AV63:BC63),0)+IF(RIGHT(BY$39,2)>RIGHT($K63,2),BC63,0)) -> 0 | BZ63: =+IF($K63="Ongoing",BD63,IF(RIGHT($K63,2)=RIGHT(BZ$39,2),SUM($AV63:BD63),0)+IF(RIGHT(BZ$39,2)>RIGHT($K63,2),BD63,0)) -> 0 | CA63: =+IF($K63="Ongoing",BE63,IF(RIGHT($K63,2)=RIGHT(CA$39,2),SUM($AV63:BE63),0)+IF(RIGHT(CA$39,2)>RIGHT($K63,2),BE63,0)) -> 0 | CC63: =+O63*KeyAssumptionsPriceControl_FO!X$15 -> 1.686927 | CD63: =+P63*KeyAssumptionsPriceControl_FO!Y$15 -> 1.620026892 | CE63: =+Q63*KeyAssumptionsPriceControl_FO!Z$15 -> 0 | CF63: =+R63*KeyAssumptionsPriceControl_FO!AA$15 -> 0 | CG63: =+S63*KeyAssumptionsPriceControl_FO!AB$15 -> 0 | CH63: =+T63*KeyAssumptionsPriceControl_FO!AC$15 -> 0 | CI63: =+U63*KeyAssumptionsPriceControl_FO!AD$15 -> 0 | CJ63: =+V63*KeyAssumptionsPriceControl_FO!AE$15 -> 0 | CK63: =+W63*KeyAssumptionsPriceControl_FO!AF$15 -> 0 | CL63: =+X63*KeyAssumptionsPriceControl_FO!AG$15 -> 0 | CN63: 0.01775712632 | CO63: 0.05256716728 | CP63: 0.06962008194 | CQ63: 0.06962008194 | CR63: 0.06962008194 | CS63: 0.06962008194 | CT63: 0.06962008194 | CU63: 0.06962008194 | CV63: 0.06962008194 | CW63: 0.06962008194
C64: Euroa - Raw Water Storage Augmentation | E64: Water | F64: Improvements / Compliance | G64: Headworks | H64: Significant projects | J64: Straight line | K64: 2018-19 | L64: 350 | M64: 350 | O64: 2.84 | P64: 0 | Q64: 0 | R64: 0 | S64: 0 | T64: 0 | U64: 0 | V64: 0 | W64: 0 | X64: 0 | AV64: 2.84 | AW64: 0 | AX64: 0 | AY64: 0 | AZ64: 0 | BA64: 0 | BB64: 0 | BC64: 0 | BD64: 0 | BE64: 0 | BG64: 0.004057142857 | BH64: 0.008114285714 | BI64: 0.008114285714 | BJ64: 0.008114285714 | BK64: 0.008114285714 | BL64: 0.008114285714 | BM64: 0.008114285714 | BN64: 0.008114285714 | BO64: 0.008114285714 | BP64: 0.008114285714 | BR64: =+IF($K64="Ongoing",AV64,IF(RIGHT($K64,2)=RIGHT(BR$39,2),SUM($AV64:AV64),0)+IF(RIGHT(BR$39,2)>RIGHT($K64,2),AV64,0)) -> 2.84 | BS64: =+IF($K64="Ongoing",AW64,IF(RIGHT($K64,2)=RIGHT(BS$39,2),SUM($AV64:AW64),0)+IF(RIGHT(BS$39,2)>RIGHT($K64,2),AW64,0)) -> 0 | BT64: =+IF($K64="Ongoing",AX64,IF(RIGHT($K64,2)=RIGHT(BT$39,2),SUM($AV64:AX64),0)+IF(RIGHT(BT$39,2)>RIGHT($K64,2),AX64,0)) -> 0 | BU64: =+IF($K64="Ongoing",AY64,IF(RIGHT($K64,2)=RIGHT(BU$39,2),SUM($AV64:AY64),0)+IF(RIGHT(BU$39,2)>RIGHT($K64,2),AY64,0)) -> 0 | BV64: =+IF($K64="Ongoing",AZ64,IF(RIGHT($K64,2)=RIGHT(BV$39,2),SUM($AV64:AZ64),0)+IF(RIGHT(BV$39,2)>RIGHT($K64,2),AZ64,0)) -> 0 | BW64: =+IF($K64="Ongoing",BA64,IF(RIGHT($K64,2)=RIGHT(BW$39,2),SUM($AV64:BA64),0)+IF(RIGHT(BW$39,2)>RIGHT($K64,2),BA64,0)) -> 0 | BX64: =+IF($K64="Ongoing",BB64,IF(RIGHT($K64,2)=RIGHT(BX$39,2),SUM($AV64:BB64),0)+IF(RIGHT(BX$39,2)>RIGHT($K64,2),BB64,0)) -> 0 | BY64: =+IF($K64="Ongoing",BC64,IF(RIGHT($K64,2)=RIGHT(BY$39,2),SUM($AV64:BC64),0)+IF(RIGHT(BY$39,2)>RIGHT($K64,2),BC64,0)) -> 0 | BZ64: =+IF($K64="Ongoing",BD64,IF(RIGHT($K64,2)=RIGHT(BZ$39,2),SUM($AV64:BD64),0)+IF(RIGHT(BZ$39,2)>RIGHT($K64,2),BD64,0)) -> 0 | CA64: =+IF($K64="Ongoing",BE64,IF(RIGHT($K64,2)=RIGHT(CA$39,2),SUM($AV64:BE64),0)+IF(RIGHT(CA$39,2)>RIGHT($K64,2),BE64,0)) -> 0 | CC64: =+O64*KeyAssumptionsPriceControl_FO!X$15 -> 2.90532 | CD64: =+P64*KeyAssumptionsPriceControl_FO!Y$15 -> 0 | CE64: =+Q64*KeyAssumptionsPriceControl_FO!Z$15 -> 0 | CF64: =+R64*KeyAssumptionsPriceControl_FO!AA$15 -> 0 | CG64: =+S64*KeyAssumptionsPriceControl_FO!AB$15 -> 0 | CH64: =+T64*KeyAssumptionsPriceControl_FO!AC$15 -> 0 | CI64: =+U64*KeyAssumptionsPriceControl_FO!AD$15 -> 0 | CJ64: =+V64*KeyAssumptionsPriceControl_FO!AE$15 -> 0 | CK64: =+W64*KeyAssumptionsPriceControl_FO!AF$15 -> 0 | CL64: =+X64*KeyAssumptionsPriceControl_FO!AG$15 -> 0 | CN64: 0.004150457143 | CO64: 0.008300914286 | CP64: 0.008300914286 | CQ64: 0.008300914286 | CR64: 0.008300914286 | CS64: 0.008300914286 | CT64: 0.008300914286 | CU64: 0.008300914286 | CV64: 0.008300914286 | CW64: 0.008300914286
C65: Nagambie - Sewer Pump Station 04 Upgrade | E65: Sewerage | F65: Growth | G65: Pipelines/network | H65: Significant projects | J65: Straight line | K65: 2019-20 | L65: 71.75 | M65: 71.75 | O65: 0.486 | P65: 2.174 | Q65: 0 | R65: 0 | S65: 0 | T65: 0 | U65: 0 | V65: 0 | W65: 0 | X65: 0 | AV65: 0.486 | AW65: 2.174 | AX65: 0 | AY65: 0 | AZ65: 0 | BA65: 0 | BB65: 0 | BC65: 0 | BD65: 0 | BE65: 0 | BG65: 0 | BH65: 0.01853658537 | BI65: 0.03707317073 | BJ65: 0.03707317073 | BK65: 0.03707317073 | BL65: 0.03707317073 | BM65: 0.03707317073 | BN65: 0.03707317073 | BO65: 0.03707317073 | BP65: 0.03707317073 | BR65: =+IF($K65="Ongoing",AV65,IF(RIGHT($K65,2)=RIGHT(BR$39,2),SUM($AV65:AV65),0)+IF(RIGHT(BR$39,2)>RIGHT($K65,2),AV65,0)) -> 0 | BS65: =+IF($K65="Ongoing",AW65,IF(RIGHT($K65,2)=RIGHT(BS$39,2),SUM($AV65:AW65),0)+IF(RIGHT(BS$39,2)>RIGHT($K65,2),AW65,0)) -> 2.66 | BT65: =+IF($K65="Ongoing",AX65,IF(RIGHT($K65,2)=RIGHT(BT$39,2),SUM($AV65:AX65),0)+IF(RIGHT(BT$39,2)>RIGHT($K65,2),AX65,0)) -> 0 | BU65: =+IF($K65="Ongoing",AY65,IF(RIGHT($K65,2)=RIGHT(BU$39,2),SUM($AV65:AY65),0)+IF(RIGHT(BU$39,2)>RIGHT($K65,2),AY65,0)) -> 0 | BV65: =+IF($K65="Ongoing",AZ65,IF(RIGHT($K65,2)=RIGHT(BV$39,2),SUM($AV65:AZ65),0)+IF(RIGHT(BV$39,2)>RIGHT($K65,2),AZ65,0)) -> 0 | BW65: =+IF($K65="Ongoing",BA65,IF(RIGHT($K65,2)=RIGHT(BW$39,2),SUM($AV65:BA65),0)+IF(RIGHT(BW$39,2)>RIGHT($K65,2),BA65,0)) -> 0 | BX65: =+IF($K65="Ongoing",BB65,IF(RIGHT($K65,2)=RIGHT(BX$39,2),SUM($AV65:BB65),0)+IF(RIGHT(BX$39,2)>RIGHT($K65,2),BB65,0)) -> 0 | BY65: =+IF($K65="Ongoing",BC65,IF(RIGHT($K65,2)=RIGHT(BY$39,2),SUM($AV65:BC65),0)+IF(RIGHT(BY$39,2)>RIGHT($K65,2),BC65,0)) -> 0 | BZ65: =+IF($K65="Ongoing",BD65,IF(RIGHT($K65,2)=RIGHT(BZ$39,2),SUM($AV65:BD65),0)+IF(RIGHT(BZ$39,2)>RIGHT($K65,2),BD65,0)) -> 0 | CA65: =+IF($K65="Ongoing",BE65,IF(RIGHT($K65,2)=RIGHT(CA$39,2),SUM($AV65:BE65),0)+IF(RIGHT(CA$39,2)>RIGHT($K65,2),BE65,0)) -> 0 | CC65: =+O65*KeyAssumptionsPriceControl_FO!X$15 -> 0.497178 | CD65: =+P65*KeyAssumptionsPriceControl_FO!Y$15 -> 2.275154046 | CE65: =+Q65*KeyAssumptionsPriceControl_FO!Z$15 -> 0 | CF65: =+R65*KeyAssumptionsPriceControl_FO!AA$15 -> 0 | CG65: =+S65*KeyAssumptionsPriceControl_FO!AB$15 -> 0 | CH65: =+T65*KeyAssumptionsPriceControl_FO!AC$15 -> 0 | CI65: =+U65*KeyAssumptionsPriceControl_FO!AD$15 -> 0 | CJ65: =+V65*KeyAssumptionsPriceControl_FO!AE$15 -> 0 | CK65: =+W65*KeyAssumptionsPriceControl_FO!AF$15 -> 0 | CL65: =+X65*KeyAssumptionsPriceControl_FO!AG$15 -> 0 | CN65: 0.003464655052 | CO65: 0.02278404213 | CP65: 0.03863877416 | CQ65: 0.03863877416 | CR65: 0.03863877416 | CS65: 0.03863877416 | CT65: 0.03863877416 | CU65: 0.03863877416 | CV65: 0.03863877416 | CW65: 0.03863877416
C66: Euroa - Gooram Pipeline Replacement | E66: Water | F66: Renewals | G66: Headworks | H66: Significant projects | J66: Straight line | K66: 2021-22 | L66: 80 | M66: 80 | O66: 0.63 | P66: 0.27 | Q66: 0.063 | R66: 1.26 | S66: 0 | T66: 0 | U66: 0 | V66: 0 | W66: 0 | X66: 0 | AV66: 0.63 | AW66: 0.27 | AX66: 0.063 | AY66: 1.26 | AZ66: 0 | BA66: 0 | BB66: 0 | BC66: 0 | BD66: 0 | BE66: 0 | BG66: 0 | BH66: 0 | BI66: 0 | BJ66: 0.01389375 | BK66: 0.0277875 | BL66: 0.0277875 | BM66: 0.0277875 | BN66: 0.0277875 | BO66: 0.0277875 | BP66: 0.0277875 | BR66: =+IF($K66="Ongoing",AV66,IF(RIGHT($K66,2)=RIGHT(BR$39,2),SUM($AV66:AV66),0)+IF(RIGHT(BR$39,2)>RIGHT($K66,2),AV66,0)) -> 0 | BS66: =+IF($K66="Ongoing",AW66,IF(RIGHT($K66,2)=RIGHT(BS$39,2),SUM($AV66:AW66),0)+IF(RIGHT(BS$39,2)>RIGHT($K66,2),AW66,0)) -> 0 | BT66: =+IF($K66="Ongoing",AX66,IF(RIGHT($K66,2)=RIGHT(BT$39,2),SUM($AV66:AX66),0)+IF(RIGHT(BT$39,2)>RIGHT($K66,2),AX66,0)) -> 0 | BU66: =+IF($K66="Ongoing",AY66,IF(RIGHT($K66,2)=RIGHT(BU$39,2),SUM($AV66:AY66),0)+IF(RIGHT(BU$39,2)>RIGHT($K66,2),AY66,0)) -> 2.223 | BV66: =+IF($K66="Ongoing",AZ66,IF(RIGHT($K66,2)=RIGHT(BV$39,2),SUM($AV66:AZ66),0)+IF(RIGHT(BV$39,2)>RIGHT($K66,2),AZ66,0)) -> 0 | BW66: =+IF($K66="Ongoing",BA66,IF(RIGHT($K66,2)=RIGHT(BW$39,2),SUM($AV66:BA66),0)+IF(RIGHT(BW$39,2)>RIGHT($K66,2),BA66,0)) -> 0 | BX66: =+IF($K66="Ongoing",BB66,IF(RIGHT($K66,2)=RIGHT(BX$39,2),SUM($AV66:BB66),0)+IF(RIGHT(BX$39,2)>RIGHT($K66,2),BB66,0)) -> 0 | BY66: =+IF($K66="Ongoing",BC66,IF(RIGHT($K66,2)=RIGHT(BY$39,2),SUM($AV66:BC66),0)+IF(RIGHT(BY$39,2)>RIGHT($K66,2),BC66,0)) -> 0 | BZ66: =+IF($K66="Ongoing",BD66,IF(RIGHT($K66,2)=RIGHT(BZ$39,2),SUM($AV66:BD66),0)+IF(RIGHT(BZ$39,2)>RIGHT($K66,2),BD66,0)) -> 0 | CA66: =+IF($K66="Ongoing",BE66,IF(RIGHT($K66,2)=RIGHT(CA$39,2),SUM($AV66:BE66),0)+IF(RIGHT(CA$39,2)>RIGHT($K66,2),BE66,0)) -> 0 | CC66: =+O66*KeyAssumptionsPriceControl_FO!X$15 -> 0.64449 | CD66: =+P66*KeyAssumptionsPriceControl_FO!Y$15 -> 0.28256283 | CE66: =+Q66*KeyAssumptionsPriceControl_FO!Z$15 -> 0.06744774752 | CF66: =+R66*KeyAssumptionsPriceControl_FO!AA$15 -> 1.379980914 | CG66: =+S66*KeyAssumptionsPriceControl_FO!AB$15 -> 0 | CH66: =+T66*KeyAssumptionsPriceControl_FO!AC$15 -> 0 | CI66: =+U66*KeyAssumptionsPriceControl_FO!AD$15 -> 0 | CJ66: =+V66*KeyAssumptionsPriceControl_FO!AE$15 -> 0 | CK66: =+W66*KeyAssumptionsPriceControl_FO!AF$15 -> 0 | CL66: =+X66*KeyAssumptionsPriceControl_FO!AG$15 -> 0 | CN66: 0.0040280625 | CO66: 0.009822142687 | CP66: 0.0120097088 | CQ66: 0.02105613793 | CR66: 0.02968101865 | CS66: 0.02968101865 | CT66: 0.02968101865 | CU66: 0.02968101865 | CV66: 0.02968101865 | CW66: 0.02968101865
C67: Shepparton - SOC 14ML Tank Floor Replacement | E67: Water | F67: Renewals | G67: Pipelines/network | H67: Significant projects | J67: Straight line | K67: 2019-20 | L67: 50 | M67: 50 | O67: 1.08 | P67: 1.08 | Q67: 0 | R67: 0 | S67: 0 | T67: 0 | U67: 0 | V67: 0 | W67: 0 | X67: 0 | AV67: 1.08 | AW67: 1.08 | AX67: 0 | AY67: 0 | AZ67: 0 | BA67: 0 | BB67: 0 | BC67: 0 | BD67: 0 | BE67: 0 | BG67: 0 | BH67: 0.0216 | BI67: 0.0432 | BJ67: 0.0432 | BK67: 0.0432 | BL67: 0.0432 | BM67: 0.0432 | BN67: 0.0432 | BO67: 0.0432 | BP67: 0.0432 | BR67: =+IF($K67="Ongoing",AV67,IF(RIGHT($K67,2)=RIGHT(BR$39,2),SUM($AV67:AV67),0)+IF(RIGHT(BR$39,2)>RIGHT($K67,2),AV67,0)) -> 0 | BS67: =+IF($K67="Ongoing",AW67,IF(RIGHT($K67,2)=RIGHT(BS$39,2),SUM($AV67:AW67),0)+IF(RIGHT(BS$39,2)>RIGHT($K67,2),AW67,0)) -> 2.16 | BT67: =+IF($K67="Ongoing",AX67,IF(RIGHT($K67,2)=RIGHT(BT$39,2),SUM($AV67:AX67),0)+IF(RIGHT(BT$39,2)>RIGHT($K67,2),AX67,0)) -> 0 | BU67: =+IF($K67="Ongoing",AY67,IF(RIGHT($K67,2)=RIGHT(BU$39,2),SUM($AV67:AY67),0)+IF(RIGHT(BU$39,2)>RIGHT($K67,2),AY67,0)) -> 0 | BV67: =+IF($K67="Ongoing",AZ67,IF(RIGHT($K67,2)=RIGHT(BV$39,2),SUM($AV67:AZ67),0)+IF(RIGHT(BV$39,2)>RIGHT($K67,2),AZ67,0)) -> 0 | BW67: =+IF($K67="Ongoing",BA67,IF(RIGHT($K67,2)=RIGHT(BW$39,2),SUM($AV67:BA67),0)+IF(RIGHT(BW$39,2)>RIGHT($K67,2),BA67,0)) -> 0 | BX67: =+IF($K67="Ongoing",BB67,IF(RIGHT($K67,2)=RIGHT(BX$39,2),SUM($AV67:BB67),0)+IF(RIGHT(BX$39,2)>RIGHT($K67,2),BB67,0)) -> 0 | BY67: =+IF($K67="Ongoing",BC67,IF(RIGHT($K67,2)=RIGHT(BY$39,2),SUM($AV67:BC67),0)+IF(RIGHT(BY$39,2)>RIGHT($K67,2),BC67,0)) -> 0 | BZ67: =+IF($K67="Ongoing",BD67,IF(RIGHT($K67,2)=RIGHT(BZ$39,2),SUM($AV67:BD67),0)+IF(RIGHT(BZ$39,2)>RIGHT($K67,2),BD67,0)) -> 0 | CA67: =+IF($K67="Ongoing",BE67,IF(RIGHT($K67,2)=RIGHT(CA$39,2),SUM($AV67:BE67),0)+IF(RIGHT(CA$39,2)>RIGHT($K67,2),BE67,0)) -> 0 | CC67: =+O67*KeyAssumptionsPriceControl_FO!X$15 -> 1.10484 | CD67: =+P67*KeyAssumptionsPriceControl_FO!Y$15 -> 1.13025132 | CE67: =+Q67*KeyAssumptionsPriceControl_FO!Z$15 -> 0 | CF67: =+R67*KeyAssumptionsPriceControl_FO!AA$15 -> 0 | CG67: =+S67*KeyAssumptionsPriceControl_FO!AB$15 -> 0 | CH67: =+T67*KeyAssumptionsPriceControl_FO!AC$15 -> 0 | CI67: =+U67*KeyAssumptionsPriceControl_FO!AD$15 -> 0 | CJ67: =+V67*KeyAssumptionsPriceControl_FO!AE$15 -> 0 | CK67: =+W67*KeyAssumptionsPriceControl_FO!AF$15 -> 0 | CL67: =+X67*KeyAssumptionsPriceControl_FO!AG$15 -> 0 | CN67: 0.0110484 | CO67: 0.0333993132 | CP67: 0.0447018264 | CQ67: 0.0447018264 | CR67: 0.0447018264 | CS67: 0.0447018264 | CT67: 0.0447018264 | CU67: 0.0447018264 | CV67: 0.0447018264 | CW67: 0.0447018264
C68: Landowner Reticulation works (externally financed) | E68: Water | F68: Growth | G68: Pipelines/network | H68: Other Capital expenditure | J68: Straight line | K68: Ongoing | L68: 80 | M68: 80 | O68: 0 | P68: 0 | Q68: 0 | R68: 0 | S68: 0 | T68: 0 | U68: 0 | V68: 0 | W68: 0 | X68: 0 | Z68: 0 | AA68: 0 | AB68: 0 | AC68: 0 | AD68: 0 | AE68: 0 | AF68: 0 | AG68: 0 | AH68: 0 | AI68: 0 | AK68: 1.46628 | AL68: 1.49064 | AM68: 1.51317 | AN68: 1.5522 | AO68: 1.60655 | AP68: 1.6 | AQ68: 1.6 | AR68: 1.6 | AS68: 1.6 | AT68: 1.6 | AV68: -1.46628 | AW68: -1.49064 | AX68: -1.51317 | AY68: -1.5522 | AZ68: -1.60655 | BA68: -1.6 | BB68: -1.6 | BC68: -1.6 | BD68: -1.6 | BE68: -1.6 | BG68: -0.00916425 | BH68: -0.027645 | BI68: -0.0464188125 | BJ68: -0.065577375 | BK68: -0.0853195625 | BL68: -0.1053605 | BM68: -0.1253605 | BN68: -0.1453605 | BO68: -0.1653605 | BP68: -0.1853605 | BR68: =+IF($K68="Ongoing",AV68,IF(RIGHT($K68,2)=RIGHT(BR$39,2),SUM($AV68:AV68),0)+IF(RIGHT(BR$39,2)>RIGHT($K68,2),AV68,0)) -> -1.46628 | BS68: =+IF($K68="Ongoing",AW68,IF(RIGHT($K68,2)=RIGHT(BS$39,2),SUM($AV68:AW68),0)+IF(RIGHT(BS$39,2)>RIGHT($K68,2),AW68,0)) -> -1.49064 | BT68: =+IF($K68="Ongoing",AX68,IF(RIGHT($K68,2)=RIGHT(BT$39,2),SUM($AV68:AX68),0)+IF(RIGHT(BT$39,2)>RIGHT($K68,2),AX68,0)) -> -1.51317 | BU68: =+IF($K68="Ongoing",AY68,IF(RIGHT($K68,2)=RIGHT(BU$39,2),SUM($AV68:AY68),0)+IF(RIGHT(BU$39,2)>RIGHT($K68,2),AY68,0)) -> -1.5522 | BV68: =+IF($K68="Ongoing",AZ68,IF(RIGHT($K68,2)=RIGHT(BV$39,2),SUM($AV68:AZ68),0)+IF(RIGHT(BV$39,2)>RIGHT($K68,2),AZ68,0)) -> -1.60655 | BW68: =+IF($K68="Ongoing",BA68,IF(RIGHT($K68,2)=RIGHT(BW$39,2),SUM($AV68:BA68),0)+IF(RIGHT(BW$39,2)>RIGHT($K68,2),BA68,0)) -> -1.6 | BX68: =+IF($K68="Ongoing",BB68,IF(RIGHT($K68,2)=RIGHT(BX$39,2),SUM($AV68:BB68),0)+IF(RIGHT(BX$39,2)>RIGHT($K68,2),BB68,0)) -> -1.6 | BY68: =+IF($K68="Ongoing",BC68,IF(RIGHT($K68,2)=RIGHT(BY$39,2),SUM($AV68:BC68),0)+IF(RIGHT(BY$39,2)>RIGHT($K68,2),BC68,0)) -> -1.6 | BZ68: =+IF($K68="Ongoing",BD68,IF(RIGHT($K68,2)=RIGHT(BZ$39,2),SUM($AV68:BD68),0)+IF(RIGHT(BZ$39,2)>RIGHT($K68,2),BD68,0)) -> -1.6 | CA68: =+IF($K68="Ongoing",BE68,IF(RIGHT($K68,2)=RIGHT(CA$39,2),SUM($AV68:BE68),0)+IF(RIGHT(CA$39,2)>RIGHT($K68,2),BE68,0)) -> -1.6 | CC68: =+O68*KeyAssumptionsPriceControl_FO!X$15 -> 0 | CD68: =+P68*KeyAssumptionsPriceControl_FO!Y$15 -> 0 | CE68: =+Q68*KeyAssumptionsPriceControl_FO!Z$15 -> 0 | CF68: =+R68*KeyAssumptionsPriceControl_FO!AA$15 -> 0 | CG68: =+S68*KeyAssumptionsPriceControl_FO!AB$15 -> 0 | CH68: =+T68*KeyAssumptionsPriceControl_FO!AC$15 -> 0 | CI68: =+U68*KeyAssumptionsPriceControl_FO!AD$15 -> 0 | CJ68: =+V68*KeyAssumptionsPriceControl_FO!AE$15 -> 0 | CK68: =+W68*KeyAssumptionsPriceControl_FO!AF$15 -> 0 | CL68: =+X68*KeyAssumptionsPriceControl_FO!AG$15 -> 0 | CN68: 0 | CO68: 0 | CP68: 0 | CQ68: 0 | CR68: 0 | CS68: 0 | CT68: 0 | CU68: 0 | CV68: 0 | CW68: 0
C69: Landowner Reticulation works (externally financed) | E69: Sewerage | F69: Growth | G69: Pipelines/network | H69: Other Capital expenditure | J69: Straight line | K69: Ongoing | L69: 80 | M69: 80 | O69: 0 | P69: 0 | Q69: 0 | R69: 0 | S69: 0 | T69: 0 | U69: 0 | V69: 0 | W69: 0 | X69: 0 | Z69: 0 | AA69: 0 | AB69: 0 | AC69: 0 | AD69: 0 | AE69: 0 | AF69: 0 | AG69: 0 | AH69: 0 | AI69: 0 | AK69: 0 | AL69: 0 | AM69: 0 | AN69: 0 | AO69: 0 | AV69: 0 | AW69: 0 | AX69: 0 | AY69: 0 | AZ69: 0 | BA69: 0 | BB69: 0 | BC69: 0 | BD69: 0 | BE69: 0 | BG69: 0 | BH69: 0 | BI69: 0 | BJ69: 0 | BK69: 0 | BL69: 0 | BM69: 0 | BN69: 0 | BO69: 0 | BP69: 0 | BR69: =+IF($K69="Ongoing",AV69,IF(RIGHT($K69,2)=RIGHT(BR$39,2),SUM($AV69:AV69),0)+IF(RIGHT(BR$39,2)>RIGHT($K69,2),AV69,0)) -> 0 | BS69: =+IF($K69="Ongoing",AW69,IF(RIGHT($K69,2)=RIGHT(BS$39,2),SUM($AV69:AW69),0)+IF(RIGHT(BS$39,2)>RIGHT($K69,2),AW69,0)) -> 0 | BT69: =+IF($K69="Ongoing",AX69,IF(RIGHT($K69,2)=RIGHT(BT$39,2),SUM($AV69:AX69),0)+IF(RIGHT(BT$39,2)>RIGHT($K69,2),AX69,0)) -> 0 | BU69: =+IF($K69="Ongoing",AY69,IF(RIGHT($K69,2)=RIGHT(BU$39,2),SUM($AV69:AY69),0)+IF(RIGHT(BU$39,2)>RIGHT($K69,2),AY69,0)) -> 0 | BV69: =+IF($K69="Ongoing",AZ69,IF(RIGHT($K69,2)=RIGHT(BV$39,2),SUM($AV69:AZ69),0)+IF(RIGHT(BV$39,2)>RIGHT($K69,2),AZ69,0)) -> 0 | BW69: =+IF($K69="Ongoing",BA69,IF(RIGHT($K69,2)=RIGHT(BW$39,2),SUM($AV69:BA69),0)+IF(RIGHT(BW$39,2)>RIGHT($K69,2),BA69,0)) -> 0 | BX69: =+IF($K69="Ongoing",BB69,IF(RIGHT($K69,2)=RIGHT(BX$39,2),SUM($AV69:BB69),0)+IF(RIGHT(BX$39,2)>RIGHT($K69,2),BB69,0)) -> 0 | BY69: =+IF($K69="Ongoing",BC69,IF(RIGHT($K69,2)=RIGHT(BY$39,2),SUM($AV69:BC69),0)+IF(RIGHT(BY$39,2)>RIGHT($K69,2),BC69,0)) -> 0 | BZ69: =+IF($K69="Ongoing",BD69,IF(RIGHT($K69,2)=RIGHT(BZ$39,2),SUM($AV69:BD69),0)+IF(RIGHT(BZ$39,2)>RIGHT($K69,2),BD69,0)) -> 0 | CA69: =+IF($K69="Ongoing",BE69,IF(RIGHT($K69,2)=RIGHT(CA$39,2),SUM($AV69:BE69),0)+IF(RIGHT(CA$39,2)>RIGHT($K69,2),BE69,0)) -> 0 | CC69: =+O69*KeyAssumptionsPriceControl_FO!X$15 -> 0 | CD69: =+P69*KeyAssumptionsPriceControl_FO!Y$15 -> 0 | CE69: =+Q69*KeyAssumptionsPriceControl_FO!Z$15 -> 0 | CF69: =+R69*KeyAssumptionsPriceControl_FO!AA$15 -> 0 | CG69: =+S69*KeyAssumptionsPriceControl_FO!AB$15 -> 0 | CH69: =+T69*KeyAssumptionsPriceControl_FO!AC$15 -> 0 | CI69: =+U69*KeyAssumptionsPriceControl_FO!AD$15 -> 0 | CJ69: =+V69*KeyAssumptionsPriceControl_FO!AE$15 -> 0 | CK69: =+W69*KeyAssumptionsPriceControl_FO!AF$15 -> 0 | CL69: =+X69*KeyAssumptionsPriceControl_FO!AG$15 -> 0 | CN69: 0 | CO69: 0 | CP69: 0 | CQ69: 0 | CR69: 0 | CS69: 0 | CT69: 0 | CU69: 0 | CV69: 0 | CW69: 0
C70: Other Projects - Sewerage/Growth/Pipelines | E70: Sewerage | F70: Growth | G70: Pipelines/network | H70: Other Capital expenditure | J70: Straight line | K70: Ongoing | L70: 80 | M70: 80 | O70: 0.36 | P70: 0.36 | Q70: 0.36 | R70: 0.441 | S70: 2.376 | T70: 0.468 | U70: 1.701 | V70: 1.17 | W70: 0.36 | X70: 0.36 | AV70: 0.36 | AW70: 0.36 | AX70: 0.36 | AY70: 0.441 | AZ70: 2.376 | BA70: 0.468 | BB70: 1.701 | BC70: 1.17 | BD70: 0.36 | BE70: 0.36 | BG70: 0.00225 | BH70: 0.00675 | BI70: 0.01125 | BJ70: 0.01625625 | BK70: 0.0338625 | BL70: 0.0516375 | BM70: 0.06519375 | BN70: 0.0831375 | BO70: 0.0927 | BP70: 0.0972 | BR70: =+IF($K70="Ongoing",AV70,IF(RIGHT($K70,2)=RIGHT(BR$39,2),SUM($AV70:AV70),0)+IF(RIGHT(BR$39,2)>RIGHT($K70,2),AV70,0)) -> 0.36 | BS70: =+IF($K70="Ongoing",AW70,IF(RIGHT($K70,2)=RIGHT(BS$39,2),SUM($AV70:AW70),0)+IF(RIGHT(BS$39,2)>RIGHT($K70,2),AW70,0)) -> 0.36 | BT70: =+IF($K70="Ongoing",AX70,IF(RIGHT($K70,2)=RIGHT(BT$39,2),SUM($AV70:AX70),0)+IF(RIGHT(BT$39,2)>RIGHT($K70,2),AX70,0)) -> 0.36 | BU70: =+IF($K70="Ongoing",AY70,IF(RIGHT($K70,2)=RIGHT(BU$39,2),SUM($AV70:AY70),0)+IF(RIGHT(BU$39,2)>RIGHT($K70,2),AY70,0)) -> 0.441 | BV70: =+IF($K70="Ongoing",AZ70,IF(RIGHT($K70,2)=RIGHT(BV$39,2),SUM($AV70:AZ70),0)+IF(RIGHT(BV$39,2)>RIGHT($K70,2),AZ70,0)) -> 2.376 | BW70: =+IF($K70="Ongoing",BA70,IF(RIGHT($K70,2)=RIGHT(BW$39,2),SUM($AV70:BA70),0)+IF(RIGHT(BW$39,2)>RIGHT($K70,2),BA70,0)) -> 0.468 | BX70: =+IF($K70="Ongoing",BB70,IF(RIGHT($K70,2)=RIGHT(BX$39,2),SUM($AV70:BB70),0)+IF(RIGHT(BX$39,2)>RIGHT($K70,2),BB70,0)) -> 1.701 | BY70: =+IF($K70="Ongoing",BC70,IF(RIGHT($K70,2)=RIGHT(BY$39,2),SUM($AV70:BC70),0)+IF(RIGHT(BY$39,2)>RIGHT($K70,2),BC70,0)) -> 1.17 | BZ70: =+IF($K70="Ongoing",BD70,IF(RIGHT($K70,2)=RIGHT(BZ$39,2),SUM($AV70:BD70),0)+IF(RIGHT(BZ$39,2)>RIGHT($K70,2),BD70,0)) -> 0.36 | CA70: =+IF($K70="Ongoing",BE70,IF(RIGHT($K70,2)=RIGHT(CA$39,2),SUM($AV70:BE70),0)+IF(RIGHT(CA$39,2)>RIGHT($K70,2),BE70,0)) -> 0.36 | CC70: =+O70*KeyAssumptionsPriceControl_FO!X$15 -> 0.36828 | CD70: =+P70*KeyAssumptionsPriceControl_FO!Y$15 -> 0.37675044 | CE70: =+Q70*KeyAssumptionsPriceControl_FO!Z$15 -> 0.3854157001 | CF70: =+R70*KeyAssumptionsPriceControl_FO!AA$15 -> 0.48299332 | CG70: =+S70*KeyAssumptionsPriceControl_FO!AB$15 -> 2.662101468 | CH70: =+T70*KeyAssumptionsPriceControl_FO!AC$15 -> 0.5364134457 | CI70: =+U70*KeyAssumptionsPriceControl_FO!AD$15 -> 1.994498663 | CJ70: =+V70*KeyAssumptionsPriceControl_FO!AE$15 -> 1.403430567 | CK70: =+W70*KeyAssumptionsPriceControl_FO!AF$15 -> 0.4417567601 | CL70: =+X70*KeyAssumptionsPriceControl_FO!AG$15 -> 0.4519171656 | CN70: 0.00230175 | CO70: 0.00695819025 | CP70: 0.01172172863 | CQ70: 0.017149285 | CR70: 0.03680612742 | CS70: 0.05679684563 | CT70: 0.07261504632 | CU70: 0.09385210401 | CV70: 0.1053845248 | CW70: 0.1109699868
C71: Other Projects - Sewerage/Growth/Treatment | E71: Sewerage | F71: Growth | G71: Treatment | H71: Other Capital expenditure | J71: Straight line | K71: Ongoing | L71: 80 | M71: 80 | O71: 0.533 | P71: 0.18 | Q71: 0.608 | R71: 0.639 | S71: 1.778 | T71: 1.031 | U71: 6.161 | V71: 6.975 | W71: 3.348 | X71: 2.264 | AV71: 0.533 | AW71: 0.18 | AX71: 0.608 | AY71: 0.639 | AZ71: 1.778 | BA71: 1.031 | BB71: 6.161 | BC71: 6.975 | BD71: 3.348 | BE71: 2.264 | BG71: 0.00333125 | BH71: 0.0077875 | BI71: 0.0127125 | BJ71: 0.02050625 | BK71: 0.0356125 | BL71: 0.05316875 | BM71: 0.09811875 | BN71: 0.18021875 | BO71: 0.2447375 | BP71: 0.2798125 | BR71: =+IF($K71="Ongoing",AV71,IF(RIGHT($K71,2)=RIGHT(BR$39,2),SUM($AV71:AV71),0)+IF(RIGHT(BR$39,2)>RIGHT($K71,2),AV71,0)) -> 0.533 | BS71: =+IF($K71="Ongoing",AW71,IF(RIGHT($K71,2)=RIGHT(BS$39,2),SUM($AV71:AW71),0)+IF(RIGHT(BS$39,2)>RIGHT($K71,2),AW71,0)) -> 0.18 | BT71: =+IF($K71="Ongoing",AX71,IF(RIGHT($K71,2)=RIGHT(BT$39,2),SUM($AV71:AX71),0)+IF(RIGHT(BT$39,2)>RIGHT($K71,2),AX71,0)) -> 0.608 | BU71: =+IF($K71="Ongoing",AY71,IF(RIGHT($K71,2)=RIGHT(BU$39,2),SUM($AV71:AY71),0)+IF(RIGHT(BU$39,2)>RIGHT($K71,2),AY71,0)) -> 0.639 | BV71: =+IF($K71="Ongoing",AZ71,IF(RIGHT($K71,2)=RIGHT(BV$39,2),SUM($AV71:AZ71),0)+IF(RIGHT(BV$39,2)>RIGHT($K71,2),AZ71,0)) -> 1.778 | BW71: =+IF($K71="Ongoing",BA71,IF(RIGHT($K71,2)=RIGHT(BW$39,2),SUM($AV71:BA71),0)+IF(RIGHT(BW$39,2)>RIGHT($K71,2),BA71,0)) -> 1.031 | BX71: =+IF($K71="Ongoing",BB71,IF(RIGHT($K71,2)=RIGHT(BX$39,2),SUM($AV71:BB71),0)+IF(RIGHT(BX$39,2)>RIGHT($K71,2),BB71,0)) -> 6.161 | BY71: =+IF($K71="Ongoing",BC71,IF(RIGHT($K71,2)=RIGHT(BY$39,2),SUM($AV71:BC71),0)+IF(RIGHT(BY$39,2)>RIGHT($K71,2),BC71,0)) -> 6.975 | BZ71: =+IF($K71="Ongoing",BD71,IF(RIGHT($K71,2)=RIGHT(BZ$39,2),SUM($AV71:BD71),0)+IF(RIGHT(BZ$39,2)>RIGHT($K71,2),BD71,0)) -> 3.348 | CA71: =+IF($K71="Ongoing",BE71,IF(RIGHT($K71,2)=RIGHT(CA$39,2),SUM($AV71:BE71),0)+IF(RIGHT(CA$39,2)>RIGHT($K71,2),BE71,0)) -> 2.264 | CC71: =+O71*KeyAssumptionsPriceControl_FO!X$15 -> 0.545259 | CD71: =+P71*KeyAssumptionsPriceControl_FO!Y$15 -> 0.18837522 | CE71: =+Q71*KeyAssumptionsPriceControl_FO!Z$15 -> 0.6509242935 | CF71: =+R71*KeyAssumptionsPriceControl_FO!AA$15 -> 0.6998474637 | CG71: =+S71*KeyAssumptionsPriceControl_FO!AB$15 -> 1.992094448 | CH71: =+T71*KeyAssumptionsPriceControl_FO!AC$15 -> 1.181714236 | CI71: =+U71*KeyAssumptionsPriceControl_FO!AD$15 -> 7.224048363 | CJ71: =+V71*KeyAssumptionsPriceControl_FO!AE$15 -> 8.366605306 | CK71: =+W71*KeyAssumptionsPriceControl_FO!AF$15 -> 4.108337869 | CL71: =+X71*KeyAssumptionsPriceControl_FO!AG$15 -> 2.842056842 | CN71: 0.00340786875 | CO71: 0.007993082625 | CP71: 0.01323870458 | CQ71: 0.02168102807 | CR71: 0.03850566502 | CS71: 0.0583419693 | CT71: 0.1108779855 | CU71: 0.208319571 | CV71: 0.2862879658 | CW71: 0.3297279328
C72: Other Projects - Sewerage/Improvement/Treatment | E72: Sewerage | F72: Improvements / Compliance | G72: Treatment | H72: Other Capital expenditure | J72: Straight line | K72: Ongoing | L72: 25 | M72: 25 | O72: 0.045 | P72: 0 | Q72: 0 | R72: 0 | S72: 0 | T72: 0 | U72: 0.005 | V72: 0.027 | W72: 0.144 | X72: 0 | AV72: 0.045 | AW72: 0 | AX72: 0 | AY72: 0 | AZ72: 0 | BA72: 0 | BB72: 0.005 | BC72: 0.027 | BD72: 0.144 | BE72: 0 | BG72: 0.0009 | BH72: 0.0018 | BI72: 0.0018 | BJ72: 0.0018 | BK72: 0.0018 | BL72: 0.0018 | BM72: 0.0019 | BN72: 0.00254 | BO72: 0.00596 | BP72: 0.00884 | BR72: =+IF($K72="Ongoing",AV72,IF(RIGHT($K72,2)=RIGHT(BR$39,2),SUM($AV72:AV72),0)+IF(RIGHT(BR$39,2)>RIGHT($K72,2),AV72,0)) -> 0.045 | BS72: =+IF($K72="Ongoing",AW72,IF(RIGHT($K72,2)=RIGHT(BS$39,2),SUM($AV72:AW72),0)+IF(RIGHT(BS$39,2)>RIGHT($K72,2),AW72,0)) -> 0 | BT72: =+IF($K72="Ongoing",AX72,IF(RIGHT($K72,2)=RIGHT(BT$39,2),SUM($AV72:AX72),0)+IF(RIGHT(BT$39,2)>RIGHT($K72,2),AX72,0)) -> 0 | BU72: =+IF($K72="Ongoing",AY72,IF(RIGHT($K72,2)=RIGHT(BU$39,2),SUM($AV72:AY72),0)+IF(RIGHT(BU$39,2)>RIGHT($K72,2),AY72,0)) -> 0 | BV72: =+IF($K72="Ongoing",AZ72,IF(RIGHT($K72,2)=RIGHT(BV$39,2),SUM($AV72:AZ72),0)+IF(RIGHT(BV$39,2)>RIGHT($K72,2),AZ72,0)) -> 0 | BW72: =+IF($K72="Ongoing",BA72,IF(RIGHT($K72,2)=RIGHT(BW$39,2),SUM($AV72:BA72),0)+IF(RIGHT(BW$39,2)>RIGHT($K72,2),BA72,0)) -> 0 | BX72: =+IF($K72="Ongoing",BB72,IF(RIGHT($K72,2)=RIGHT(BX$39,2),SUM($AV72:BB72),0)+IF(RIGHT(BX$39,2)>RIGHT($K72,2),BB72,0)) -> 0.005 | BY72: =+IF($K72="Ongoing",BC72,IF(RIGHT($K72,2)=RIGHT(BY$39,2),SUM($AV72:BC72),0)+IF(RIGHT(BY$39,2)>RIGHT($K72,2),BC72,0)) -> 0.027 | BZ72: =+IF($K72="Ongoing",BD72,IF(RIGHT($K72,2)=RIGHT(BZ$39,2),SUM($AV72:BD72),0)+IF(RIGHT(BZ$39,2)>RIGHT($K72,2),BD72,0)) -> 0.144 | CA72: =+IF($K72="Ongoing",BE72,IF(RIGHT($K72,2)=RIGHT(CA$39,2),SUM($AV72:BE72),0)+IF(RIGHT(CA$39,2)>RIGHT($K72,2),BE72,0)) -> 0 | CC72: =+O72*KeyAssumptionsPriceControl_FO!X$15 -> 0.046035 | CD72: =+P72*KeyAssumptionsPriceControl_FO!Y$15 -> 0 | CE72: =+Q72*KeyAssumptionsPriceControl_FO!Z$15 -> 0 | CF72: =+R72*KeyAssumptionsPriceControl_FO!AA$15 -> 0 | CG72: =+S72*KeyAssumptionsPriceControl_FO!AB$15 -> 0 | CH72: =+T72*KeyAssumptionsPriceControl_FO!AC$15 -> 0 | CI72: =+U72*KeyAssumptionsPriceControl_FO!AD$15 -> 0.005862723878 | CJ72: =+V72*KeyAssumptionsPriceControl_FO!AE$15 -> 0.03238685925 | CK72: =+W72*KeyAssumptionsPriceControl_FO!AF$15 -> 0.1767027041 | CL72: =+X72*KeyAssumptionsPriceControl_FO!AG$15 -> 0 | CN72: 0.0009207 | CO72: 0.0018414 | CP72: 0.0018414 | CQ72: 0.0018414 | CR72: 0.0018414 | CS72: 0.0018414 | CT72: 0.001958654478 | CU72: 0.00272364614 | CV72: 0.006905437406 | CW72: 0.01043949149
C73: Other Projects - Sewerage/Renewal/Corporate | E73: Sewerage | F73: Renewals | G73: Corporate | H73: Other Capital expenditure | J73: Straight line | K73: Ongoing | L73: 10 | M73: 10 | O73: 0 | P73: 0 | Q73: 0 | R73: 0 | S73: 0.099 | T73: 1.35 | U73: 1.8 | V73: 1.76 | W73: 0 | X73: 0 | AV73: 0 | AW73: 0 | AX73: 0 | AY73: 0 | AZ73: 0.099 | BA73: 1.35 | BB73: 1.8 | BC73: 1.76 | BD73: 0 | BE73: 0 | BG73: 0 | BH73: 0 | BI73: 0 | BJ73: 0 | BK73: 0.00495 | BL73: 0.0774 | BM73: 0.2349 | BN73: 0.4129 | BO73: 0.5009 | BP73: 0.5009 | BR73: =+IF($K73="Ongoing",AV73,IF(RIGHT($K73,2)=RIGHT(BR$39,2),SUM($AV73:AV73),0)+IF(RIGHT(BR$39,2)>RIGHT($K73,2),AV73,0)) -> 0 | BS73: =+IF($K73="Ongoing",AW73,IF(RIGHT($K73,2)=RIGHT(BS$39,2),SUM($AV73:AW73),0)+IF(RIGHT(BS$39,2)>RIGHT($K73,2),AW73,0)) -> 0 | BT73: =+IF($K73="Ongoing",AX73,IF(RIGHT($K73,2)=RIGHT(BT$39,2),SUM($AV73:AX73),0)+IF(RIGHT(BT$39,2)>RIGHT($K73,2),AX73,0)) -> 0 | BU73: =+IF($K73="Ongoing",AY73,IF(RIGHT($K73,2)=RIGHT(BU$39,2),SUM($AV73:AY73),0)+IF(RIGHT(BU$39,2)>RIGHT($K73,2),AY73,0)) -> 0 | BV73: =+IF($K73="Ongoing",AZ73,IF(RIGHT($K73,2)=RIGHT(BV$39,2),SUM($AV73:AZ73),0)+IF(RIGHT(BV$39,2)>RIGHT($K73,2),AZ73,0)) -> 0.099 | BW73: =+IF($K73="Ongoing",BA73,IF(RIGHT($K73,2)=RIGHT(BW$39,2),SUM($AV73:BA73),0)+IF(RIGHT(BW$39,2)>RIGHT($K73,2),BA73,0)) -> 1.35 | BX73: =+IF($K73="Ongoing",BB73,IF(RIGHT($K73,2)=RIGHT(BX$39,2),SUM($AV73:BB73),0)+IF(RIGHT(BX$39,2)>RIGHT($K73,2),BB73,0)) -> 1.8 | BY73: =+IF($K73="Ongoing",BC73,IF(RIGHT($K73,2)=RIGHT(BY$39,2),SUM($AV73:BC73),0)+IF(RIGHT(BY$39,2)>RIGHT($K73,2),BC73,0)) -> 1.76 | BZ73: =+IF($K73="Ongoing",BD73,IF(RIGHT($K73,2)=RIGHT(BZ$39,2),SUM($AV73:BD73),0)+IF(RIGHT(BZ$39,2)>RIGHT($K73,2),BD73,0)) -> 0 | CA73: =+IF($K73="Ongoing",BE73,IF(RIGHT($K73,2)=RIGHT(CA$39,2),SUM($AV73:BE73),0)+IF(RIGHT(CA$39,2)>RIGHT($K73,2),BE73,0)) -> 0 | CC73: =+O73*KeyAssumptionsPriceControl_FO!X$15 -> 0 | CD73: =+P73*KeyAssumptionsPriceControl_FO!Y$15 -> 0 | CE73: =+Q73*KeyAssumptionsPriceControl_FO!Z$15 -> 0 | CF73: =+R73*KeyAssumptionsPriceControl_FO!AA$15 -> 0 | CG73: =+S73*KeyAssumptionsPriceControl_FO!AB$15 -> 0.1109208945 | CH73: =+T73*KeyAssumptionsPriceControl_FO!AC$15 -> 1.547346478 | CI73: =+U73*KeyAssumptionsPriceControl_FO!AD$15 -> 2.110580596 | CJ73: =+V73*KeyAssumptionsPriceControl_FO!AE$15 -> 2.111143418 | CK73: =+W73*KeyAssumptionsPriceControl_FO!AF$15 -> 0 | CL73: =+X73*KeyAssumptionsPriceControl_FO!AG$15 -> 0 | CN73: 0 | CO73: 0 | CP73: 0 | CQ73: 0 | CR73: 0.005546044724 | CS73: 0.08845941335 | CT73: 0.2713557671 | CU73: 0.4824419678 | CV73: 0.5879991386 | CW73: 0.5879991386
C74: Other Projects - Sewerage/Renewal/Pipelines | E74: Sewerage | F74: Renewals | G74: Pipelines/network | H74: Other Capital expenditure | J74: Straight line | K74: Ongoing | L74: 80 | M74: 80 | O74: 1.492 | P74: 1.843 | Q74: 1.758 | R74: 0.524 | S74: 0.992 | T74: 0.821 | U74: 0.65 | V74: 0.47 | W74: 0.47 | X74: 0.47 | AV74: 1.492 | AW74: 1.843 | AX74: 1.758 | AY74: 0.524 | AZ74: 0.992 | BA74: 0.821 | BB74: 0.65 | BC74: 0.47 | BD74: 0.47 | BE74: 0.47 | BG74: 0.009325 | BH74: 0.03016875 | BI74: 0.052675 | BJ74: 0.0669375 | BK74: 0.0764125 | BL74: 0.08774375 | BM74: 0.0969375 | BN74: 0.1039375 | BO74: 0.1098125 | BP74: 0.1156875 | BR74: =+IF($K74="Ongoing",AV74,IF(RIGHT($K74,2)=RIGHT(BR$39,2),SUM($AV74:AV74),0)+IF(RIGHT(BR$39,2)>RIGHT($K74,2),AV74,0)) -> 1.492 | BS74: =+IF($K74="Ongoing",AW74,IF(RIGHT($K74,2)=RIGHT(BS$39,2),SUM($AV74:AW74),0)+IF(RIGHT(BS$39,2)>RIGHT($K74,2),AW74,0)) -> 1.843 | BT74: =+IF($K74="Ongoing",AX74,IF(RIGHT($K74,2)=RIGHT(BT$39,2),SUM($AV74:AX74),0)+IF(RIGHT(BT$39,2)>RIGHT($K74,2),AX74,0)) -> 1.758 | BU74: =+IF($K74="Ongoing",AY74,IF(RIGHT($K74,2)=RIGHT(BU$39,2),SUM($AV74:AY74),0)+IF(RIGHT(BU$39,2)>RIGHT($K74,2),AY74,0)) -> 0.524 | BV74: =+IF($K74="Ongoing",AZ74,IF(RIGHT($K74,2)=RIGHT(BV$39,2),SUM($AV74:AZ74),0)+IF(RIGHT(BV$39,2)>RIGHT($K74,2),AZ74,0)) -> 0.992 | BW74: =+IF($K74="Ongoing",BA74,IF(RIGHT($K74,2)=RIGHT(BW$39,2),SUM($AV74:BA74),0)+IF(RIGHT(BW$39,2)>RIGHT($K74,2),BA74,0)) -> 0.821 | BX74: =+IF($K74="Ongoing",BB74,IF(RIGHT($K74,2)=RIGHT(BX$39,2),SUM($AV74:BB74),0)+IF(RIGHT(BX$39,2)>RIGHT($K74,2),BB74,0)) -> 0.65 | BY74: =+IF($K74="Ongoing",BC74,IF(RIGHT($K74,2)=RIGHT(BY$39,2),SUM($AV74:BC74),0)+IF(RIGHT(BY$39,2)>RIGHT($K74,2),BC74,0)) -> 0.47 | BZ74: =+IF($K74="Ongoing",BD74,IF(RIGHT($K74,2)=RIGHT(BZ$39,2),SUM($AV74:BD74),0)+IF(RIGHT(BZ$39,2)>RIGHT($K74,2),BD74,0)) -> 0.47 | CA74: =+IF($K74="Ongoing",BE74,IF(RIGHT($K74,2)=RIGHT(CA$39,2),SUM($AV74:BE74),0)+IF(RIGHT(CA$39,2)>RIGHT($K74,2),BE74,0)) -> 0.47 | CC74: =+O74*KeyAssumptionsPriceControl_FO!X$15 -> 1.526316 | CD74: =+P74*KeyAssumptionsPriceControl_FO!Y$15 -> 1.928752947 | CE74: =+Q74*KeyAssumptionsPriceControl_FO!Z$15 -> 1.882113336 | CF74: =+R74*KeyAssumptionsPriceControl_FO!AA$15 -> 0.5738968247 | CG74: =+S74*KeyAssumptionsPriceControl_FO!AB$15 -> 1.111449771 | CH74: =+T74*KeyAssumptionsPriceControl_FO!AC$15 -> 0.9410158952 | CI74: =+U74*KeyAssumptionsPriceControl_FO!AD$15 -> 0.7621541042 | CJ74: =+V74*KeyAssumptionsPriceControl_FO!AE$15 -> 0.5637712536 | CK74: =+W74*KeyAssumptionsPriceControl_FO!AF$15 -> 0.5767379924 | CL74: =+X74*KeyAssumptionsPriceControl_FO!AG$15 -> 0.5900029662 | CN74: 0.009539475 | CO74: 0.03113365592 | CP74: 0.05495157018 | CQ74: 0.07030163369 | CR74: 0.08083504991 | CS74: 0.09366296032 | CT74: 0.1043077728 | CU74: 0.1125948063 | CV74: 0.1197229891 | CW74: 0.1270151201
C75: Other Projects - Sewerage/Renewal/Treatment | E75: Sewerage | F75: Renewals | G75: Treatment | H75: Other Capital expenditure | J75: Straight line | K75: Ongoing | L75: 25 | M75: 25 | O75: 0.5 | P75: 0.113 | Q75: 1.247 | R75: 0.081 | S75: 0.702 | T75: 0.189 | U75: 0 | V75: 0 | W75: 0 | X75: 0 | AV75: 0.5 | AW75: 0.113 | AX75: 1.247 | AY75: 0.081 | AZ75: 0.702 | BA75: 0.189 | BB75: 0 | BC75: 0 | BD75: 0 | BE75: 0 | BG75: 0.01 | BH75: 0.02226 | BI75: 0.04946 | BJ75: 0.07602 | BK75: 0.09168 | BL75: 0.1095 | BM75: 0.11328 | BN75: 0.11328 | BO75: 0.11328 | BP75: 0.11328 | BR75: =+IF($K75="Ongoing",AV75,IF(RIGHT($K75,2)=RIGHT(BR$39,2),SUM($AV75:AV75),0)+IF(RIGHT(BR$39,2)>RIGHT($K75,2),AV75,0)) -> 0.5 | BS75: =+IF($K75="Ongoing",AW75,IF(RIGHT($K75,2)=RIGHT(BS$39,2),SUM($AV75:AW75),0)+IF(RIGHT(BS$39,2)>RIGHT($K75,2),AW75,0)) -> 0.113 | BT75: =+IF($K75="Ongoing",AX75,IF(RIGHT($K75,2)=RIGHT(BT$39,2),SUM($AV75:AX75),0)+IF(RIGHT(BT$39,2)>RIGHT($K75,2),AX75,0)) -> 1.247 | BU75: =+IF($K75="Ongoing",AY75,IF(RIGHT($K75,2)=RIGHT(BU$39,2),SUM($AV75:AY75),0)+IF(RIGHT(BU$39,2)>RIGHT($K75,2),AY75,0)) -> 0.081 | BV75: =+IF($K75="Ongoing",AZ75,IF(RIGHT($K75,2)=RIGHT(BV$39,2),SUM($AV75:AZ75),0)+IF(RIGHT(BV$39,2)>RIGHT($K75,2),AZ75,0)) -> 0.702 | BW75: =+IF($K75="Ongoing",BA75,IF(RIGHT($K75,2)=RIGHT(BW$39,2),SUM($AV75:BA75),0)+IF(RIGHT(BW$39,2)>RIGHT($K75,2),BA75,0)) -> 0.189 | BX75: =+IF($K75="Ongoing",BB75,IF(RIGHT($K75,2)=RIGHT(BX$39,2),SUM($AV75:BB75),0)+IF(RIGHT(BX$39,2)>RIGHT($K75,2),BB75,0)) -> 0 | BY75: =+IF($K75="Ongoing",BC75,IF(RIGHT($K75,2)=RIGHT(BY$39,2),SUM($AV75:BC75),0)+IF(RIGHT(BY$39,2)>RIGHT($K75,2),BC75,0)) -> 0 | BZ75: =+IF($K75="Ongoing",BD75,IF(RIGHT($K75,2)=RIGHT(BZ$39,2),SUM($AV75:BD75),0)+IF(RIGHT(BZ$39,2)>RIGHT($K75,2),BD75,0)) -> 0 | CA75: =+IF($K75="Ongoing",BE75,IF(RIGHT($K75,2)=RIGHT(CA$39,2),SUM($AV75:BE75),0)+IF(RIGHT(CA$39,2)>RIGHT($K75,2),BE75,0)) -> 0 | CC75: =+O75*KeyAssumptionsPriceControl_FO!X$15 -> 0.5115 | CD75: =+P75*KeyAssumptionsPriceControl_FO!Y$15 -> 0.118257777 | CE75: =+Q75*KeyAssumptionsPriceControl_FO!Z$15 -> 1.335037161 | CF75: =+R75*KeyAssumptionsPriceControl_FO!AA$15 -> 0.08871305878 | CG75: =+S75*KeyAssumptionsPriceControl_FO!AB$15 -> 0.7865299791 | CH75: =+T75*KeyAssumptionsPriceControl_FO!AC$15 -> 0.2166285069 | CI75: =+U75*KeyAssumptionsPriceControl_FO!AD$15 -> 0 | CJ75: =+V75*KeyAssumptionsPriceControl_FO!AE$15 -> 0 | CK75: =+W75*KeyAssumptionsPriceControl_FO!AF$15 -> 0 | CL75: =+X75*KeyAssumptionsPriceControl_FO!AG$15 -> 0 | CN75: 0.01023 | CO75: 0.02282515554 | CP75: 0.0518910543 | CQ75: 0.08036605871 | CR75: 0.09787091946 | CS75: 0.1179340892 | CT75: 0.1222666593 | CU75: 0.1222666593 | CV75: 0.1222666593 | CW75: 0.1222666593
C76: Other Projects - Water/Growth/Headworks | E76: Water | F76: Growth | G76: Headworks | H76: Other Capital expenditure | J76: Straight line | K76: Ongoing | L76: 80 | M76: 80 | O76: 0 | P76: 0 | Q76: 0 | R76: 0 | S76: 0 | T76: 0 | U76: 0 | V76: 0.018 | W76: 0.45 | X76: 2.952 | AV76: 0 | AW76: 0 | AX76: 0 | AY76: 0 | AZ76: 0 | BA76: 0 | BB76: 0 | BC76: 0.018 | BD76: 0.45 | BE76: 2.952 | BG76: 0 | BH76: 0 | BI76: 0 | BJ76: 0 | BK76: 0 | BL76: 0 | BM76: 0 | BN76: 0.0001125 | BO76: 0.0030375 | BP76: 0.0243 | BR76: =+IF($K76="Ongoing",AV76,IF(RIGHT($K76,2)=RIGHT(BR$39,2),SUM($AV76:AV76),0)+IF(RIGHT(BR$39,2)>RIGHT($K76,2),AV76,0)) -> 0 | BS76: =+IF($K76="Ongoing",AW76,IF(RIGHT($K76,2)=RIGHT(BS$39,2),SUM($AV76:AW76),0)+IF(RIGHT(BS$39,2)>RIGHT($K76,2),AW76,0)) -> 0 | BT76: =+IF($K76="Ongoing",AX76,IF(RIGHT($K76,2)=RIGHT(BT$39,2),SUM($AV76:AX76),0)+IF(RIGHT(BT$39,2)>RIGHT($K76,2),AX76,0)) -> 0 | BU76: =+IF($K76="Ongoing",AY76,IF(RIGHT($K76,2)=RIGHT(BU$39,2),SUM($AV76:AY76),0)+IF(RIGHT(BU$39,2)>RIGHT($K76,2),AY76,0)) -> 0 | BV76: =+IF($K76="Ongoing",AZ76,IF(RIGHT($K76,2)=RIGHT(BV$39,2),SUM($AV76:AZ76),0)+IF(RIGHT(BV$39,2)>RIGHT($K76,2),AZ76,0)) -> 0 | BW76: =+IF($K76="Ongoing",BA76,IF(RIGHT($K76,2)=RIGHT(BW$39,2),SUM($AV76:BA76),0)+IF(RIGHT(BW$39,2)>RIGHT($K76,2),BA76,0)) -> 0 | BX76: =+IF($K76="Ongoing",BB76,IF(RIGHT($K76,2)=RIGHT(BX$39,2),SUM($AV76:BB76),0)+IF(RIGHT(BX$39,2)>RIGHT($K76,2),BB76,0)) -> 0 | BY76: =+IF($K76="Ongoing",BC76,IF(RIGHT($K76,2)=RIGHT(BY$39,2),SUM($AV76:BC76),0)+IF(RIGHT(BY$39,2)>RIGHT($K76,2),BC76,0)) -> 0.018 | BZ76: =+IF($K76="Ongoing",BD76,IF(RIGHT($K76,2)=RIGHT(BZ$39,2),SUM($AV76:BD76),0)+IF(RIGHT(BZ$39,2)>RIGHT($K76,2),BD76,0)) -> 0.45 | CA76: =+IF($K76="Ongoing",BE76,IF(RIGHT($K76,2)=RIGHT(CA$39,2),SUM($AV76:BE76),0)+IF(RIGHT(CA$39,2)>RIGHT($K76,2),BE76,0)) -> 2.952 | CC76: =+O76*KeyAssumptionsPriceControl_FO!X$15 -> 0 | CD76: =+P76*KeyAssumptionsPriceControl_FO!Y$15 -> 0 | CE76: =+Q76*KeyAssumptionsPriceControl_FO!Z$15 -> 0 | CF76: =+R76*KeyAssumptionsPriceControl_FO!AA$15 -> 0 | CG76: =+S76*KeyAssumptionsPriceControl_FO!AB$15 -> 0 | CH76: =+T76*KeyAssumptionsPriceControl_FO!AC$15 -> 0 | CI76: =+U76*KeyAssumptionsPriceControl_FO!AD$15 -> 0 | CJ76: =+V76*KeyAssumptionsPriceControl_FO!AE$15 -> 0.0215912395 | CK76: =+W76*KeyAssumptionsPriceControl_FO!AF$15 -> 0.5521959502 | CL76: =+X76*KeyAssumptionsPriceControl_FO!AG$15 -> 3.705720758 | CN76: 0 | CO76: 0 | CP76: 0 | CQ76: 0 | CR76: 0 | CS76: 0 | CT76: 0 | CU76: 0.0001349452469 | CV76: 0.003721115182 | CW76: 0.03033309461
C77: Other Projects - Water/Growth/Pipelines | E77: Water | F77: Growth | G77: Pipelines/network | H77: Other Capital expenditure | J77: Straight line | K77: Ongoing | L77: 80 | M77: 80 | O77: 0.864 | P77: 0.522 | Q77: 1.211 | R77: 0.477 | S77: 2.561 | T77: 3.564 | U77: 4.356 | V77: 3.834 | W77: 1.283 | X77: 0.707 | AV77: 0.864 | AW77: 0.522 | AX77: 1.211 | AY77: 0.477 | AZ77: 2.561 | BA77: 3.564 | BB77: 4.356 | BC77: 3.834 | BD77: 1.283 | BE77: 0.707 | BG77: 0.0054 | BH77: 0.0140625 | BI77: 0.02489375 | BJ77: 0.03544375 | BK77: 0.05443125 | BL77: 0.0927125 | BM77: 0.1422125 | BN77: 0.1934 | BO77: 0.22538125 | BP77: 0.23781875 | BR77: =+IF($K77="Ongoing",AV77,IF(RIGHT($K77,2)=RIGHT(BR$39,2),SUM($AV77:AV77),0)+IF(RIGHT(BR$39,2)>RIGHT($K77,2),AV77,0)) -> 0.864 | BS77: =+IF($K77="Ongoing",AW77,IF(RIGHT($K77,2)=RIGHT(BS$39,2),SUM($AV77:AW77),0)+IF(RIGHT(BS$39,2)>RIGHT($K77,2),AW77,0)) -> 0.522 | BT77: =+IF($K77="Ongoing",AX77,IF(RIGHT($K77,2)=RIGHT(BT$39,2),SUM($AV77:AX77),0)+IF(RIGHT(BT$39,2)>RIGHT($K77,2),AX77,0)) -> 1.211 | BU77: =+IF($K77="Ongoing",AY77,IF(RIGHT($K77,2)=RIGHT(BU$39,2),SUM($AV77:AY77),0)+IF(RIGHT(BU$39,2)>RIGHT($K77,2),AY77,0)) -> 0.477 | BV77: =+IF($K77="Ongoing",AZ77,IF(RIGHT($K77,2)=RIGHT(BV$39,2),SUM($AV77:AZ77),0)+IF(RIGHT(BV$39,2)>RIGHT($K77,2),AZ77,0)) -> 2.561 | BW77: =+IF($K77="Ongoing",BA77,IF(RIGHT($K77,2)=RIGHT(BW$39,2),SUM($AV77:BA77),0)+IF(RIGHT(BW$39,2)>RIGHT($K77,2),BA77,0)) -> 3.564 | BX77: =+IF($K77="Ongoing",BB77,IF(RIGHT($K77,2)=RIGHT(BX$39,2),SUM($AV77:BB77),0)+IF(RIGHT(BX$39,2)>RIGHT($K77,2),BB77,0)) -> 4.356 | BY77: =+IF($K77="Ongoing",BC77,IF(RIGHT($K77,2)=RIGHT(BY$39,2),SUM($AV77:BC77),0)+IF(RIGHT(BY$39,2)>RIGHT($K77,2),BC77,0)) -> 3.834 | BZ77: =+IF($K77="Ongoing",BD77,IF(RIGHT($K77,2)=RIGHT(BZ$39,2),SUM($AV77:BD77),0)+IF(RIGHT(BZ$39,2)>RIGHT($K77,2),BD77,0)) -> 1.283 | CA77: =+IF($K77="Ongoing",BE77,IF(RIGHT($K77,2)=RIGHT(CA$39,2),SUM($AV77:BE77),0)+IF(RIGHT(CA$39,2)>RIGHT($K77,2),BE77,0)) -> 0.707 | CC77: =+O77*KeyAssumptionsPriceControl_FO!X$15 -> 0.883872 | CD77: =+P77*KeyAssumptionsPriceControl_FO!Y$15 -> 0.546288138 | CE77: =+Q77*KeyAssumptionsPriceControl_FO!Z$15 -> 1.296495591 | CF77: =+R77*KeyAssumptionsPriceControl_FO!AA$15 -> 0.5224213461 | CG77: =+S77*KeyAssumptionsPriceControl_FO!AB$15 -> 2.869377887 | CH77: =+T77*KeyAssumptionsPriceControl_FO!AC$15 -> 4.084994702 | CI77: =+U77*KeyAssumptionsPriceControl_FO!AD$15 -> 5.107605043 | CJ77: =+V77*KeyAssumptionsPriceControl_FO!AE$15 -> 4.598934013 | CK77: =+W77*KeyAssumptionsPriceControl_FO!AF$15 -> 1.574372009 | CL77: =+X77*KeyAssumptionsPriceControl_FO!AG$15 -> 0.8875151003 | CN77: 0.0055242 | CO77: 0.01446270086 | CP77: 0.02598009917 | CQ77: 0.03734833003 | CR77: 0.05854707523 | CS77: 0.1020119039 | CT77: 0.1594656523 | CU77: 0.2201315214 | CV77: 0.2587146841 | CW77: 0.2741014785
C78: Other Projects - Water/Growth/Treatment | E78: Water | F78: Growth | G78: Treatment | H78: Other Capital expenditure | J78: Straight line | K78: Ongoing | L78: 47.5 | M78: 47.5 | O78: 0.315 | P78: 0 | Q78: 0.014 | R78: 0.09 | S78: 0.459 | T78: 2.403 | U78: 3.6 | V78: 2.624 | W78: 0 | X78: 0 | AV78: 0.315 | AW78: 0 | AX78: 0.014 | AY78: 0.09 | AZ78: 0.459 | BA78: 2.403 | BB78: 3.6 | BC78: 2.624 | BD78: 0 | BE78: 0 | BG78: 0.003315789474 | BH78: 0.006631578947 | BI78: 0.006778947368 | BJ78: 0.007873684211 | BK78: 0.01365263158 | BL78: 0.04377894737 | BM78: 0.1069684211 | BN78: 0.1724842105 | BO78: 0.2001052632 | BP78: 0.2001052632 | BR78: =+IF($K78="Ongoing",AV78,IF(RIGHT($K78,2)=RIGHT(BR$39,2),SUM($AV78:AV78),0)+IF(RIGHT(BR$39,2)>RIGHT($K78,2),AV78,0)) -> 0.315 | BS78: =+IF($K78="Ongoing",AW78,IF(RIGHT($K78,2)=RIGHT(BS$39,2),SUM($AV78:AW78),0)+IF(RIGHT(BS$39,2)>RIGHT($K78,2),AW78,0)) -> 0 | BT78: =+IF($K78="Ongoing",AX78,IF(RIGHT($K78,2)=RIGHT(BT$39,2),SUM($AV78:AX78),0)+IF(RIGHT(BT$39,2)>RIGHT($K78,2),AX78,0)) -> 0.014 | BU78: =+IF($K78="Ongoing",AY78,IF(RIGHT($K78,2)=RIGHT(BU$39,2),SUM($AV78:AY78),0)+IF(RIGHT(BU$39,2)>RIGHT($K78,2),AY78,0)) -> 0.09 | BV78: =+IF($K78="Ongoing",AZ78,IF(RIGHT($K78,2)=RIGHT(BV$39,2),SUM($AV78:AZ78),0)+IF(RIGHT(BV$39,2)>RIGHT($K78,2),AZ78,0)) -> 0.459 | BW78: =+IF($K78="Ongoing",BA78,IF(RIGHT($K78,2)=RIGHT(BW$39,2),SUM($AV78:BA78),0)+IF(RIGHT(BW$39,2)>RIGHT($K78,2),BA78,0)) -> 2.403 | BX78: =+IF($K78="Ongoing",BB78,IF(RIGHT($K78,2)=RIGHT(BX$39,2),SUM($AV78:BB78),0)+IF(RIGHT(BX$39,2)>RIGHT($K78,2),BB78,0)) -> 3.6 | BY78: =+IF($K78="Ongoing",BC78,IF(RIGHT($K78,2)=RIGHT(BY$39,2),SUM($AV78:BC78),0)+IF(RIGHT(BY$39,2)>RIGHT($K78,2),BC78,0)) -> 2.624 | BZ78: =+IF($K78="Ongoing",BD78,IF(RIGHT($K78,2)=RIGHT(BZ$39,2),SUM($AV78:BD78),0)+IF(RIGHT(BZ$39,2)>RIGHT($K78,2),BD78,0)) -> 0 | CA78: =+IF($K78="Ongoing",BE78,IF(RIGHT($K78,2)=RIGHT(CA$39,2),SUM($AV78:BE78),0)+IF(RIGHT(CA$39,2)>RIGHT($K78,2),BE78,0)) -> 0 | CC78: =+O78*KeyAssumptionsPriceControl_FO!X$15 -> 0.322245 | CD78: =+P78*KeyAssumptionsPriceControl_FO!Y$15 -> 0 | CE78: =+Q78*KeyAssumptionsPriceControl_FO!Z$15 -> 0.01498838834 | CF78: =+R78*KeyAssumptionsPriceControl_FO!AA$15 -> 0.09857006531 | CG78: =+S78*KeyAssumptionsPriceControl_FO!AB$15 -> 0.5142696017 | CH78: =+T78*KeyAssumptionsPriceControl_FO!AC$15 -> 2.754276731 | CI78: =+U78*KeyAssumptionsPriceControl_FO!AD$15 -> 4.221161192 | CJ78: =+V78*KeyAssumptionsPriceControl_FO!AE$15 -> 3.147522914 | CK78: =+W78*KeyAssumptionsPriceControl_FO!AF$15 -> 0 | CL78: =+X78*KeyAssumptionsPriceControl_FO!AG$15 -> 0 | CN78: 0.003392052632 | CO78: 0.006784105263 | CP78: 0.006941877772 | CQ78: 0.008137229916 | CR78: 0.01458817378 | CS78: 0.04899392465 | CT78: 0.122419587 | CU78: 0.1999846829 | CV78: 0.233116503 | CW78: 0.233116503
C79: Other Projects - Water/Improvement/Pipelines | E79: Water | F79: Improvements / Compliance | G79: Pipelines/network | H79: Other Capital expenditure | J79: Straight line | K79: Ongoing | L79: 80 | M79: 80 | O79: 0.221 | P79: 0.797 | Q79: 0.905 | R79: 0.005 | S79: 0.005 | T79: 0 | U79: 0 | V79: 0 | W79: 0 | X79: 0 | AV79: 0.221 | AW79: 0.797 | AX79: 0.905 | AY79: 0.005 | AZ79: 0.005 | BA79: 0 | BB79: 0 | BC79: 0 | BD79: 0 | BE79: 0 | BG79: 0.00138125 | BH79: 0.00774375 | BI79: 0.01838125 | BJ79: 0.02406875 | BK79: 0.02413125 | BL79: 0.0241625 | BM79: 0.0241625 | BN79: 0.0241625 | BO79: 0.0241625 | BP79: 0.0241625 | BR79: =+IF($K79="Ongoing",AV79,IF(RIGHT($K79,2)=RIGHT(BR$39,2),SUM($AV79:AV79),0)+IF(RIGHT(BR$39,2)>RIGHT($K79,2),AV79,0)) -> 0.221 | BS79: =+IF($K79="Ongoing",AW79,IF(RIGHT($K79,2)=RIGHT(BS$39,2),SUM($AV79:AW79),0)+IF(RIGHT(BS$39,2)>RIGHT($K79,2),AW79,0)) -> 0.797 | BT79: =+IF($K79="Ongoing",AX79,IF(RIGHT($K79,2)=RIGHT(BT$39,2),SUM($AV79:AX79),0)+IF(RIGHT(BT$39,2)>RIGHT($K79,2),AX79,0)) -> 0.905 | BU79: =+IF($K79="Ongoing",AY79,IF(RIGHT($K79,2)=RIGHT(BU$39,2),SUM($AV79:AY79),0)+IF(RIGHT(BU$39,2)>RIGHT($K79,2),AY79,0)) -> 0.005 | BV79: =+IF($K79="Ongoing",AZ79,IF(RIGHT($K79,2)=RIGHT(BV$39,2),SUM($AV79:AZ79),0)+IF(RIGHT(BV$39,2)>RIGHT($K79,2),AZ79,0)) -> 0.005 | BW79: =+IF($K79="Ongoing",BA79,IF(RIGHT($K79,2)=RIGHT(BW$39,2),SUM($AV79:BA79),0)+IF(RIGHT(BW$39,2)>RIGHT($K79,2),BA79,0)) -> 0 | BX79: =+IF($K79="Ongoing",BB79,IF(RIGHT($K79,2)=RIGHT(BX$39,2),SUM($AV79:BB79),0)+IF(RIGHT(BX$39,2)>RIGHT($K79,2),BB79,0)) -> 0 | BY79: =+IF($K79="Ongoing",BC79,IF(RIGHT($K79,2)=RIGHT(BY$39,2),SUM($AV79:BC79),0)+IF(RIGHT(BY$39,2)>RIGHT($K79,2),BC79,0)) -> 0 | BZ79: =+IF($K79="Ongoing",BD79,IF(RIGHT($K79,2)=RIGHT(BZ$39,2),SUM($AV79:BD79),0)+IF(RIGHT(BZ$39,2)>RIGHT($K79,2),BD79,0)) -> 0 | CA79: =+IF($K79="Ongoing",BE79,IF(RIGHT($K79,2)=RIGHT(CA$39,2),SUM($AV79:BE79),0)+IF(RIGHT(CA$39,2)>RIGHT($K79,2),BE79,0)) -> 0 | CC79: =+O79*KeyAssumptionsPriceControl_FO!X$15 -> 0.226083 | CD79: =+P79*KeyAssumptionsPriceControl_FO!Y$15 -> 0.834083613 | CE79: =+Q79*KeyAssumptionsPriceControl_FO!Z$15 -> 0.9688922461 | CF79: =+R79*KeyAssumptionsPriceControl_FO!AA$15 -> 0.005476114739 | CG79: =+S79*KeyAssumptionsPriceControl_FO!AB$15 -> 0.005602065378 | CH79: =+T79*KeyAssumptionsPriceControl_FO!AC$15 -> 0 | CI79: =+U79*KeyAssumptionsPriceControl_FO!AD$15 -> 0 | CJ79: =+V79*KeyAssumptionsPriceControl_FO!AE$15 -> 0 | CK79: =+W79*KeyAssumptionsPriceControl_FO!AF$15 -> 0 | CL79: =+X79*KeyAssumptionsPriceControl_FO!AG$15 -> 0 | CN79: 0.00141301875 | CO79: 0.008039060081 | CP79: 0.0193076592 | CQ79: 0.02539746146 | CR79: 0.02546670008 | CS79: 0.02550171299 | CT79: 0.02550171299 | CU79: 0.02550171299 | CV79: 0.02550171299 | CW79: 0.02550171299
C80: Other Projects - Water/Improvement/Treatment | E80: Water | F80: Improvements / Compliance | G80: Treatment | H80: Other Capital expenditure | J80: Straight line | K80: Ongoing | L80: 47.5 | M80: 47.5 | O80: 0.137 | P80: 0 | Q80: 0 | R80: 0.09 | S80: 0.225 | T80: 0.9 | U80: 0.9 | V80: 0.054 | W80: 0.207 | X80: 0.909 | AV80: 0.137 | AW80: 0 | AX80: 0 | AY80: 0.09 | AZ80: 0.225 | BA80: 0.9 | BB80: 0.9 | BC80: 0.054 | BD80: 0.207 | BE80: 0.909 | BG80: 0.001442105263 | BH80: 0.002884210526 | BI80: 0.002884210526 | BJ80: 0.003831578947 | BK80: 0.007147368421 | BL80: 0.01898947368 | BM80: 0.03793684211 | BN80: 0.04797894737 | BO80: 0.05072631579 | BP80: 0.06247368421 | BR80: =+IF($K80="Ongoing",AV80,IF(RIGHT($K80,2)=RIGHT(BR$39,2),SUM($AV80:AV80),0)+IF(RIGHT(BR$39,2)>RIGHT($K80,2),AV80,0)) -> 0.137 | BS80: =+IF($K80="Ongoing",AW80,IF(RIGHT($K80,2)=RIGHT(BS$39,2),SUM($AV80:AW80),0)+IF(RIGHT(BS$39,2)>RIGHT($K80,2),AW80,0)) -> 0 | BT80: =+IF($K80="Ongoing",AX80,IF(RIGHT($K80,2)=RIGHT(BT$39,2),SUM($AV80:AX80),0)+IF(RIGHT(BT$39,2)>RIGHT($K80,2),AX80,0)) -> 0 | BU80: =+IF($K80="Ongoing",AY80,IF(RIGHT($K80,2)=RIGHT(BU$39,2),SUM($AV80:AY80),0)+IF(RIGHT(BU$39,2)>RIGHT($K80,2),AY80,0)) -> 0.09 | BV80: =+IF($K80="Ongoing",AZ80,IF(RIGHT($K80,2)=RIGHT(BV$39,2),SUM($AV80:AZ80),0)+IF(RIGHT(BV$39,2)>RIGHT($K80,2),AZ80,0)) -> 0.225 | BW80: =+IF($K80="Ongoing",BA80,IF(RIGHT($K80,2)=RIGHT(BW$39,2),SUM($AV80:BA80),0)+IF(RIGHT(BW$39,2)>RIGHT($K80,2),BA80,0)) -> 0.9 | BX80: =+IF($K80="Ongoing",BB80,IF(RIGHT($K80,2)=RIGHT(BX$39,2),SUM($AV80:BB80),0)+IF(RIGHT(BX$39,2)>RIGHT($K80,2),BB80,0)) -> 0.9 | BY80: =+IF($K80="Ongoing",BC80,IF(RIGHT($K80,2)=RIGHT(BY$39,2),SUM($AV80:BC80),0)+IF(RIGHT(BY$39,2)>RIGHT($K80,2),BC80,0)) -> 0.054 | BZ80: =+IF($K80="Ongoing",BD80,IF(RIGHT($K80,2)=RIGHT(BZ$39,2),SUM($AV80:BD80),0)+IF(RIGHT(BZ$39,2)>RIGHT($K80,2),BD80,0)) -> 0.207 | CA80: =+IF($K80="Ongoing",BE80,IF(RIGHT($K80,2)=RIGHT(CA$39,2),SUM($AV80:BE80),0)+IF(RIGHT(CA$39,2)>RIGHT($K80,2),BE80,0)) -> 0.909 | CC80: =+O80*KeyAssumptionsPriceControl_FO!X$15 -> 0.140151 | CD80: =+P80*KeyAssumptionsPriceControl_FO!Y$15 -> 0 | CE80: =+Q80*KeyAssumptionsPriceControl_FO!Z$15 -> 0 | CF80: =+R80*KeyAssumptionsPriceControl_FO!AA$15 -> 0.09857006531 | CG80: =+S80*KeyAssumptionsPriceControl_FO!AB$15 -> 0.252092942 | CH80: =+T80*KeyAssumptionsPriceControl_FO!AC$15 -> 1.031564319 | CI80: =+U80*KeyAssumptionsPriceControl_FO!AD$15 -> 1.055290298 | CJ80: =+V80*KeyAssumptionsPriceControl_FO!AE$15 -> 0.0647737185 | CK80: =+W80*KeyAssumptionsPriceControl_FO!AF$15 -> 0.2540101371 | CL80: =+X80*KeyAssumptionsPriceControl_FO!AG$15 -> 1.141090843 | CN80: 0.001475273684 | CO80: 0.002950547368 | CP80: 0.002950547368 | CQ80: 0.003988127003 | CR80: 0.007679316554 | CS80: 0.02119149825 | CT80: 0.04315838895 | CU80: 0.05494853649 | CV80: 0.05830415602 | CW80: 0.0729894295
C81: Other Projects - Water/Renewal/Corporate | E81: Water | F81: Renewals | G81: Corporate | H81: Other Capital expenditure | J81: Straight line | K81: Ongoing | L81: 10 | M81: 10 | O81: 0 | P81: 0 | Q81: 0 | R81: 0 | S81: 0.099 | T81: 1.35 | U81: 1.8 | V81: 1.76 | W81: 0 | X81: 0 | AV81: 0 | AW81: 0 | AX81: 0 | AY81: 0 | AZ81: 0.099 | BA81: 1.35 | BB81: 1.8 | BC81: 1.76 | BD81: 0 | BE81: 0 | BG81: 0 | BH81: 0 | BI81: 0 | BJ81: 0 | BK81: 0.00495 | BL81: 0.0774 | BM81: 0.2349 | BN81: 0.4129 | BO81: 0.5009 | BP81: 0.5009 | BR81: =+IF($K81="Ongoing",AV81,IF(RIGHT($K81,2)=RIGHT(BR$39,2),SUM($AV81:AV81),0)+IF(RIGHT(BR$39,2)>RIGHT($K81,2),AV81,0)) -> 0 | BS81: =+IF($K81="Ongoing",AW81,IF(RIGHT($K81,2)=RIGHT(BS$39,2),SUM($AV81:AW81),0)+IF(RIGHT(BS$39,2)>RIGHT($K81,2),AW81,0)) -> 0 | BT81: =+IF($K81="Ongoing",AX81,IF(RIGHT($K81,2)=RIGHT(BT$39,2),SUM($AV81:AX81),0)+IF(RIGHT(BT$39,2)>RIGHT($K81,2),AX81,0)) -> 0 | BU81: =+IF($K81="Ongoing",AY81,IF(RIGHT($K81,2)=RIGHT(BU$39,2),SUM($AV81:AY81),0)+IF(RIGHT(BU$39,2)>RIGHT($K81,2),AY81,0)) -> 0 | BV81: =+IF($K81="Ongoing",AZ81,IF(RIGHT($K81,2)=RIGHT(BV$39,2),SUM($AV81:AZ81),0)+IF(RIGHT(BV$39,2)>RIGHT($K81,2),AZ81,0)) -> 0.099 | BW81: =+IF($K81="Ongoing",BA81,IF(RIGHT($K81,2)=RIGHT(BW$39,2),SUM($AV81:BA81),0)+IF(RIGHT(BW$39,2)>RIGHT($K81,2),BA81,0)) -> 1.35 | BX81: =+IF($K81="Ongoing",BB81,IF(RIGHT($K81,2)=RIGHT(BX$39,2),SUM($AV81:BB81),0)+IF(RIGHT(BX$39,2)>RIGHT($K81,2),BB81,0)) -> 1.8 | BY81: =+IF($K81="Ongoing",BC81,IF(RIGHT($K81,2)=RIGHT(BY$39,2),SUM($AV81:BC81),0)+IF(RIGHT(BY$39,2)>RIGHT($K81,2),BC81,0)) -> 1.76 | BZ81: =+IF($K81="Ongoing",BD81,IF(RIGHT($K81,2)=RIGHT(BZ$39,2),SUM($AV81:BD81),0)+IF(RIGHT(BZ$39,2)>RIGHT($K81,2),BD81,0)) -> 0 | CA81: =+IF($K81="Ongoing",BE81,IF(RIGHT($K81,2)=RIGHT(CA$39,2),SUM($AV81:BE81),0)+IF(RIGHT(CA$39,2)>RIGHT($K81,2),BE81,0)) -> 0 | CC81: =+O81*KeyAssumptionsPriceControl_FO!X$15 -> 0 | CD81: =+P81*KeyAssumptionsPriceControl_FO!Y$15 -> 0 | CE81: =+Q81*KeyAssumptionsPriceControl_FO!Z$15 -> 0 | CF81: =+R81*KeyAssumptionsPriceControl_FO!AA$15 -> 0 | CG81: =+S81*KeyAssumptionsPriceControl_FO!AB$15 -> 0.1109208945 | CH81: =+T81*KeyAssumptionsPriceControl_FO!AC$15 -> 1.547346478 | CI81: =+U81*KeyAssumptionsPriceControl_FO!AD$15 -> 2.110580596 | CJ81: =+V81*KeyAssumptionsPriceControl_FO!AE$15 -> 2.111143418 | CK81: =+W81*KeyAssumptionsPriceControl_FO!AF$15 -> 0 | CL81: =+X81*KeyAssumptionsPriceControl_FO!AG$15 -> 0 | CN81: 0 | CO81: 0 | CP81: 0 | CQ81: 0 | CR81: 0.005546044724 | CS81: 0.08845941335 | CT81: 0.2713557671 | CU81: 0.4824419678 | CV81: 0.5879991386 | CW81: 0.5879991386
C82: Other Projects - Water/Renewal/Pipelines | E82: Water | F82: Renewals | G82: Pipelines/network | H82: Other Capital expenditure | J82: Straight line | K82: Ongoing | L82: 80 | M82: 80 | O82: 1.534 | P82: 1.312 | Q82: 0.731 | R82: 1.109 | S82: 0.601 | T82: 0.668 | U82: 0.862 | V82: 0.565 | W82: 0.565 | X82: 0.556 | AV82: 1.534 | AW82: =+P82-AA82-AL82 -> 1.312 | AX82: 0.731 | AY82: 1.109 | AZ82: 0.601 | BA82: 0.668 | BB82: 0.862 | BC82: 0.565 | BD82: 0.565 | BE82: 0.556 | BG82: 0.0095875 | BH82: 0.027375 | BI82: 0.04014375 | BJ82: 0.05164375 | BK82: 0.06233125 | BL82: 0.0702625 | BM82: 0.079825 | BN82: 0.08874375 | BO82: 0.09580625 | BP82: 0.1028125 | BR82: =+IF($K82="Ongoing",AV82,IF(RIGHT($K82,2)=RIGHT(BR$39,2),SUM($AV82:AV82),0)+IF(RIGHT(BR$39,2)>RIGHT($K82,2),AV82,0)) -> 1.534 | BS82: =+IF($K82="Ongoing",AW82,IF(RIGHT($K82,2)=RIGHT(BS$39,2),SUM($AV82:AW82),0)+IF(RIGHT(BS$39,2)>RIGHT($K82,2),AW82,0)) -> 1.312 | BT82: =+IF($K82="Ongoing",AX82,IF(RIGHT($K82,2)=RIGHT(BT$39,2),SUM($AV82:AX82),0)+IF(RIGHT(BT$39,2)>RIGHT($K82,2),AX82,0)) -> 0.731 | BU82: =+IF($K82="Ongoing",AY82,IF(RIGHT($K82,2)=RIGHT(BU$39,2),SUM($AV82:AY82),0)+IF(RIGHT(BU$39,2)>RIGHT($K82,2),AY82,0)) -> 1.109 | BV82: =+IF($K82="Ongoing",AZ82,IF(RIGHT($K82,2)=RIGHT(BV$39,2),SUM($AV82:AZ82),0)+IF(RIGHT(BV$39,2)>RIGHT($K82,2),AZ82,0)) -> 0.601 | BW82: =+IF($K82="Ongoing",BA82,IF(RIGHT($K82,2)=RIGHT(BW$39,2),SUM($AV82:BA82),0)+IF(RIGHT(BW$39,2)>RIGHT($K82,2),BA82,0)) -> 0.668 | BX82: =+IF($K82="Ongoing",BB82,IF(RIGHT($K82,2)=RIGHT(BX$39,2),SUM($AV82:BB82),0)+IF(RIGHT(BX$39,2)>RIGHT($K82,2),BB82,0)) -> 0.862 | BY82: =+IF($K82="Ongoing",BC82,IF(RIGHT($K82,2)=RIGHT(BY$39,2),SUM($AV82:BC82),0)+IF(RIGHT(BY$39,2)>RIGHT($K82,2),BC82,0)) -> 0.565 | BZ82: =+IF($K82="Ongoing",BD82,IF(RIGHT($K82,2)=RIGHT(BZ$39,2),SUM($AV82:BD82),0)+IF(RIGHT(BZ$39,2)>RIGHT($K82,2),BD82,0)) -> 0.565 | CA82: =+IF($K82="Ongoing",BE82,IF(RIGHT($K82,2)=RIGHT(CA$39,2),SUM($AV82:BE82),0)+IF(RIGHT(CA$39,2)>RIGHT($K82,2),BE82,0)) -> 0.556 | CC82: =+O82*KeyAssumptionsPriceControl_FO!X$15 -> 1.569282 | CD82: =+P82*KeyAssumptionsPriceControl_FO!Y$15 -> 1.373046048 | CE82: =+Q82*KeyAssumptionsPriceControl_FO!Z$15 -> 0.7826079911 | CF82: =+R82*KeyAssumptionsPriceControl_FO!AA$15 -> 1.214602249 | CG82: =+S82*KeyAssumptionsPriceControl_FO!AB$15 -> 0.6733682585 | CH82: =+T82*KeyAssumptionsPriceControl_FO!AC$15 -> 0.765649961 | CI82: =+U82*KeyAssumptionsPriceControl_FO!AD$15 -> 1.010733597 | CJ82: =+V82*KeyAssumptionsPriceControl_FO!AE$15 -> 0.6777250176 | CK82: =+W82*KeyAssumptionsPriceControl_FO!AF$15 -> 0.693312693 | CL82: =+X82*KeyAssumptionsPriceControl_FO!AG$15 -> 0.6979609558 | CN82: 0.0098080125 | CO82: 0.0281975628 | CP82: 0.04167040054 | CQ82: 0.05415296455 | CR82: 0.06595278022 | CS82: 0.07494664409 | CT82: 0.08604904133 | CU82: 0.09660190766 | CV82: 0.1051708934 | CW82: 0.1138663537
C83: Other Projects - Water/Renewal/Treatment | E83: Water | F83: Renewals | G83: Treatment | H83: Other Capital expenditure | J83: Straight line | K83: Ongoing | L83: 25 | M83: 25 | O83: 1.044 | P83: 0.626 | Q83: 0.536 | R83: 0.54 | S83: 0.536 | T83: 0.788 | U83: 0.536 | V83: 0.536 | W83: 0.536 | X83: 0.536 | AV83: =+O83-Z83-AK83 -> 1.044 | AW83: 0.626 | AX83: 0.536 | AY83: 0.54 | AZ83: 0.536 | BA83: 0.788 | BB83: 0.536 | BC83: 0.536 | BD83: 0.536 | BE83: 0.536 | BG83: 0.02088 | BH83: 0.05428 | BI83: 0.07752 | BJ83: 0.09904 | BK83: 0.12056 | BL83: 0.14704 | BM83: 0.17352 | BN83: 0.19496 | BO83: 0.2164 | BP83: 0.23784 | BR83: =+IF($K83="Ongoing",AV83,IF(RIGHT($K83,2)=RIGHT(BR$39,2),SUM($AV83:AV83),0)+IF(RIGHT(BR$39,2)>RIGHT($K83,2),AV83,0)) -> 1.044 | BS83: =+IF($K83="Ongoing",AW83,IF(RIGHT($K83,2)=RIGHT(BS$39,2),SUM($AV83:AW83),0)+IF(RIGHT(BS$39,2)>RIGHT($K83,2),AW83,0)) -> 0.626 | BT83: =+IF($K83="Ongoing",AX83,IF(RIGHT($K83,2)=RIGHT(BT$39,2),SUM($AV83:AX83),0)+IF(RIGHT(BT$39,2)>RIGHT($K83,2),AX83,0)) -> 0.536 | BU83: =+IF($K83="Ongoing",AY83,IF(RIGHT($K83,2)=RIGHT(BU$39,2),SUM($AV83:AY83),0)+IF(RIGHT(BU$39,2)>RIGHT($K83,2),AY83,0)) -> 0.54 | BV83: =+IF($K83="Ongoing",AZ83,IF(RIGHT($K83,2)=RIGHT(BV$39,2),SUM($AV83:AZ83),0)+IF(RIGHT(BV$39,2)>RIGHT($K83,2),AZ83,0)) -> 0.536 | BW83: =+IF($K83="Ongoing",BA83,IF(RIGHT($K83,2)=RIGHT(BW$39,2),SUM($AV83:BA83),0)+IF(RIGHT(BW$39,2)>RIGHT($K83,2),BA83,0)) -> 0.788 | BX83: =+IF($K83="Ongoing",BB83,IF(RIGHT($K83,2)=RIGHT(BX$39,2),SUM($AV83:BB83),0)+IF(RIGHT(BX$39,2)>RIGHT($K83,2),BB83,0)) -> 0.536 | BY83: =+IF($K83="Ongoing",BC83,IF(RIGHT($K83,2)=RIGHT(BY$39,2),SUM($AV83:BC83),0)+IF(RIGHT(BY$39,2)>RIGHT($K83,2),BC83,0)) -> 0.536 | BZ83: =+IF($K83="Ongoing",BD83,IF(RIGHT($K83,2)=RIGHT(BZ$39,2),SUM($AV83:BD83),0)+IF(RIGHT(BZ$39,2)>RIGHT($K83,2),BD83,0)) -> 0.536 | CA83: =+IF($K83="Ongoing",BE83,IF(RIGHT($K83,2)=RIGHT(CA$39,2),SUM($AV83:BE83),0)+IF(RIGHT(CA$39,2)>RIGHT($K83,2),BE83,0)) -> 0.536 | CC83: =+O83*KeyAssumptionsPriceControl_FO!X$15 -> 1.068012 | CD83: =+P83*KeyAssumptionsPriceControl_FO!Y$15 -> 0.655127154 | CE83: =+Q83*KeyAssumptionsPriceControl_FO!Z$15 -> 0.5738411535 | CF83: =+R83*KeyAssumptionsPriceControl_FO!AA$15 -> 0.5914203918 | CG83: =+S83*KeyAssumptionsPriceControl_FO!AB$15 -> 0.6005414085 | CH83: =+T83*KeyAssumptionsPriceControl_FO!AC$15 -> 0.9031918702 | CI83: =+U83*KeyAssumptionsPriceControl_FO!AD$15 -> 0.6284839997 | CJ83: =+V83*KeyAssumptionsPriceControl_FO!AE$15 -> 0.6429391317 | CK83: =+W83*KeyAssumptionsPriceControl_FO!AF$15 -> 0.6577267318 | CL83: =+X83*KeyAssumptionsPriceControl_FO!AG$15 -> 0.6728544466 | CN83: 0.02136024 | CO83: 0.05582302308 | CP83: 0.08040238923 | CQ83: 0.1037076201 | CR83: 0.1275468561 | CS83: 0.1576215217 | CT83: 0.1882550391 | CU83: 0.2136835017 | CV83: 0.239696819 | CW83: 0.2663084426
C84: [Capex Item - Significant Project / Capital Program / Other Capex] | E84: [Service] | F84: [Major Cost Driver] | G84: [Asset category] | H84: [Capital type] | J84: Straight line | K84: [Year finalised?] | AV84: 0 | AW84: 0 | AX84: 0 | AY84: 0 | AZ84: 0 | BA84: 0 | BB84: 0 | BC84: 0 | BD84: 0 | BE84: 0 | BG84: 0 | BH84: 0 | BI84: 0 | BJ84: 0 | BK84: 0 | BL84: 0 | BM84: 0 | BN84: 0 | BO84: =IF($L84=0,0, IF($L84<=0.5,BZ84, IF(AND($J84="straight line",$L84<1.51),(BY84-((BY84/$L84)*0.5))+BZ84/$L84*0.5, IF($J84="straight line", IF((LEFT(BO$39,4)*1)-INT($L84)<LEFT($BG$39,4)*1,0,((OFFSET(BZ84,0,-INT($L84+0.5),1,1))/$L84)*(IF($L84-INT($L84)>0.5,$L84-0.5-INT($L84),IF($L84-INT($L84)<=0.5,$L84-0.5-INT($L84)+1,0)))) +BZ84/$L84*0.5 +SUM(OFFSET(BZ84,0,MAX(-INT($L84+(0.5-(10^-12))),-BO$40)+1,1,MIN(INT($L84+(0.5-(10^-12))),BO$40)-1))*1/$L84, IF($J84="Declining Balance",-$BG$38,0))))) -> 0 | BP84: 0 | BR84: =+IF($K84="Ongoing",AV84,IF(RIGHT($K84,2)=RIGHT(BR$39,2),SUM($AV84:AV84),0)+IF(RIGHT(BR$39,2)>RIGHT($K84,2),AV84,0)) -> 0 | BS84: =+IF($K84="Ongoing",AW84,IF(RIGHT($K84,2)=RIGHT(BS$39,2),SUM($AV84:AW84),0)+IF(RIGHT(BS$39,2)>RIGHT($K84,2),AW84,0)) -> 0 | BT84: =+IF($K84="Ongoing",AX84,IF(RIGHT($K84,2)=RIGHT(BT$39,2),SUM($AV84:AX84),0)+IF(RIGHT(BT$39,2)>RIGHT($K84,2),AX84,0)) -> 0 | BU84: =+IF($K84="Ongoing",AY84,IF(RIGHT($K84,2)=RIGHT(BU$39,2),SUM($AV84:AY84),0)+IF(RIGHT(BU$39,2)>RIGHT($K84,2),AY84,0)) -> 0 | BV84: =+IF($K84="Ongoing",AZ84,IF(RIGHT($K84,2)=RIGHT(BV$39,2),SUM($AV84:AZ84),0)+IF(RIGHT(BV$39,2)>RIGHT($K84,2),AZ84,0)) -> 0 | BW84: =+IF($K84="Ongoing",BA84,IF(RIGHT($K84,2)=RIGHT(BW$39,2),SUM($AV84:BA84),0)+IF(RIGHT(BW$39,2)>RIGHT($K84,2),BA84,0)) -> 0 | BX84: =+IF($K84="Ongoing",BB84,IF(RIGHT($K84,2)=RIGHT(BX$39,2),SUM($AV84:BB84),0)+IF(RIGHT(BX$39,2)>RIGHT($K84,2),BB84,0)) -> 0 | BY84: =+IF($K84="Ongoing",BC84,IF(RIGHT($K84,2)=RIGHT(BY$39,2),SUM($AV84:BC84),0)+IF(RIGHT(BY$39,2)>RIGHT($K84,2),BC84,0)) -> 0 | BZ84: =+IF($K84="Ongoing",BD84,IF(RIGHT($K84,2)=RIGHT(BZ$39,2),SUM($AV84:BD84),0)+IF(RIGHT(BZ$39,2)>RIGHT($K84,2),BD84,0)) -> 0 | CA84: =+IF($K84="Ongoing",BE84,IF(RIGHT($K84,2)=RIGHT(CA$39,2),SUM($AV84:BE84),0)+IF(RIGHT(CA$39,2)>RIGHT($K84,2),BE84,0)) -> 0 | CC84: =+O84*KeyAssumptionsPriceControl_FO!X$15 -> 0 | CD84: =+P84*KeyAssumptionsPriceControl_FO!Y$15 -> 0 | CE84: =+Q84*KeyAssumptionsPriceControl_FO!Z$15 -> 0 | CF84: =+R84*KeyAssumptionsPriceControl_FO!AA$15 -> 0 | CG84: =+S84*KeyAssumptionsPriceControl_FO!AB$15 -> 0 | CH84: =+T84*KeyAssumptionsPriceControl_FO!AC$15 -> 0 | CI84: =+U84*KeyAssumptionsPriceControl_FO!AD$15 -> 0 | CJ84: =+V84*KeyAssumptionsPriceControl_FO!AE$15 -> 0 | CK84: =+W84*KeyAssumptionsPriceControl_FO!AF$15 -> 0 | CL84: =+X84*KeyAssumptionsPriceControl_FO!AG$15 -> 0 | CN84: 0 | CO84: 0 | CP84: 0 | CQ84: 0 | CR84: 0 | CS84: 0 | CT84: 0 | CU84: 0 | CV84: =IF($M84=0,0, IF($M84<=0.5,CK84, IF(AND($J84="straight line",$M84<1.51),(CJ84-((CJ84/$M84)*0.5))+CK84/$M84*0.5, IF($J84="straight line", IF((LEFT(CV$39,4)*1)-INT($M84)<LEFT($CN$39,4)*1,0,((OFFSET(CK84,0,-INT($M84+0.5),1,1))/$M84)*(IF($M84-INT($M84)>0.5,$M84-0.5-INT($M84),IF($M84-INT($M84)<=0.5,$M84-0.5-INT($M84)+1,0)))) +CK84/$M84*0.5 +SUM(OFFSET(CK84,0,MAX(-INT($M84+(0.5-(10^-12))),-CV$40)+1,1,MIN(INT($M84+(0.5-(10^-12))),CV$40)-1))*1/$M84, IF($J84="Declining Balance",-$CN$38,0))))) -> 0 | CW84: 0
C85: [Capex Item - Significant Project / Capital Program / Other Capex] | E85: [Service] | F85: [Major Cost Driver] | G85: [Asset category] | H85: [Capital type] | J85: Straight line | K85: [Year finalised?] | AV85: 0 | AW85: 0 | AX85: 0 | AY85: 0 | AZ85: 0 | BA85: 0 | BB85: 0 | BC85: 0 | BD85: 0 | BE85: 0 | BG85: 0 | BH85: =IF($L85=0,0, IF($L85<=0.5,BS85, IF(AND($J85="straight line",$L85<1.51),(BR85-((BR85/$L85)*0.5))+BS85/$L85*0.5, IF($J85="straight line", IF((LEFT(BH$39,4)*1)-INT($L85)<LEFT($BG$39,4)*1,0,((OFFSET(BS85,0,-INT($L85+0.5),1,1))/$L85)*(IF($L85-INT($L85)>0.5,$L85-0.5-INT($L85),IF($L85-INT($L85)<=0.5,$L85-0.5-INT($L85)+1,0)))) +BS85/$L85*0.5 +SUM(OFFSET(BS85,0,MAX(-INT($L85+(0.5-(10^-12))),-BH$40)+1,1,MIN(INT($L85+(0.5-(10^-12))),BH$40)-1))*1/$L85, IF($J85="Declining Balance",-$BG$38,0))))) -> 0 | BI85: 0 | BJ85: 0 | BK85: 0 | BL85: 0 | BM85: 0 | BN85: 0 | BO85: 0 | BP85: 0 | BR85: =+IF($K85="Ongoing",AV85,IF(RIGHT($K85,2)=RIGHT(BR$39,2),SUM($AV85:AV85),0)+IF(RIGHT(BR$39,2)>RIGHT($K85,2),AV85,0)) -> 0 | BS85: =+IF($K85="Ongoing",AW85,IF(RIGHT($K85,2)=RIGHT(BS$39,2),SUM($AV85:AW85),0)+IF(RIGHT(BS$39,2)>RIGHT($K85,2),AW85,0)) -> 0 | BT85: =+IF($K85="Ongoing",AX85,IF(RIGHT($K85,2)=RIGHT(BT$39,2),SUM($AV85:AX85),0)+IF(RIGHT(BT$39,2)>RIGHT($K85,2),AX85,0)) -> 0 | BU85: =+IF($K85="Ongoing",AY85,IF(RIGHT($K85,2)=RIGHT(BU$39,2),SUM($AV85:AY85),0)+IF(RIGHT(BU$39,2)>RIGHT($K85,2),AY85,0)) -> 0 | BV85: =+IF($K85="Ongoing",AZ85,IF(RIGHT($K85,2)=RIGHT(BV$39,2),SUM($AV85:AZ85),0)+IF(RIGHT(BV$39,2)>RIGHT($K85,2),AZ85,0)) -> 0 | BW85: =+IF($K85="Ongoing",BA85,IF(RIGHT($K85,2)=RIGHT(BW$39,2),SUM($AV85:BA85),0)+IF(RIGHT(BW$39,2)>RIGHT($K85,2),BA85,0)) -> 0 | BX85: =+IF($K85="Ongoing",BB85,IF(RIGHT($K85,2)=RIGHT(BX$39,2),SUM($AV85:BB85),0)+IF(RIGHT(BX$39,2)>RIGHT($K85,2),BB85,0)) -> 0 | BY85: =+IF($K85="Ongoing",BC85,IF(RIGHT($K85,2)=RIGHT(BY$39,2),SUM($AV85:BC85),0)+IF(RIGHT(BY$39,2)>RIGHT($K85,2),BC85,0)) -> 0 | BZ85: =+IF($K85="Ongoing",BD85,IF(RIGHT($K85,2)=RIGHT(BZ$39,2),SUM($AV85:BD85),0)+IF(RIGHT(BZ$39,2)>RIGHT($K85,2),BD85,0)) -> 0 | CA85: =+IF($K85="Ongoing",BE85,IF(RIGHT($K85,2)=RIGHT(CA$39,2),SUM($AV85:BE85),0)+IF(RIGHT(CA$39,2)>RIGHT($K85,2),BE85,0)) -> 0 | CC85: =+O85*KeyAssumptionsPriceControl_FO!X$15 -> 0 | CD85: =+P85*KeyAssumptionsPriceControl_FO!Y$15 -> 0 | CE85: =+Q85*KeyAssumptionsPriceControl_FO!Z$15 -> 0 | CF85: =+R85*KeyAssumptionsPriceControl_FO!AA$15 -> 0 | CG85: =+S85*KeyAssumptionsPriceControl_FO!AB$15 -> 0 | CH85: =+T85*KeyAssumptionsPriceControl_FO!AC$15 -> 0 | CI85: =+U85*KeyAssumptionsPriceControl_FO!AD$15 -> 0 | CJ85: =+V85*KeyAssumptionsPriceControl_FO!AE$15 -> 0 | CK85: =+W85*KeyAssumptionsPriceControl_FO!AF$15 -> 0 | CL85: =+X85*KeyAssumptionsPriceControl_FO!AG$15 -> 0 | CN85: 0 | CO85: =IF($M85=0,0, IF($M85<=0.5,CD85, IF(AND($J85="straight line",$M85<1.51),(CC85-((CC85/$M85)*0.5))+CD85/$M85*0.5, IF($J85="straight line", IF((LEFT(CO$39,4)*1)-INT($M85)<LEFT($CN$39,4)*1,0,((OFFSET(CD85,0,-INT($M85+0.5),1,1))/$M85)*(IF($M85-INT($M85)>0.5,$M85-0.5-INT($M85),IF($M85-INT($M85)<=0.5,$M85-0.5-INT($M85)+1,0)))) +CD85/$M85*0.5 +SUM(OFFSET(CD85,0,MAX(-INT($M85+(0.5-(10^-12))),-CO$40)+1,1,MIN(INT($M85+(0.5-(10^-12))),CO$40)-1))*1/$M85, IF($J85="Declining Balance",-$CN$38,0))))) -> 0 | CP85: 0 | CQ85: 0 | CR85: 0 | CS85: 0 | CT85: 0 | CU85: 0 | CV85: 0 | CW85: 0
C86: [Capex Item - Significant Project / Capital Program / Other Capex] | E86: [Service] | F86: [Major Cost Driver] | G86: [Asset category] | H86: [Capital type] | J86: Straight line | K86: [Year finalised?] | AV86: 0 | AW86: 0 | AX86: 0 | AY86: 0 | AZ86: 0 | BA86: 0 | BB86: 0 | BC86: 0 | BD86: 0 | BE86: 0 | BG86: 0 | BH86: 0 | BI86: 0 | BJ86: 0 | BK86: 0 | BL86: 0 | BM86: 0 | BN86: 0 | BO86: 0 | BP86: 0 | BR86: =+IF($K86="Ongoing",AV86,IF(RIGHT($K86,2)=RIGHT(BR$39,2),SUM($AV86:AV86),0)+IF(RIGHT(BR$39,2)>RIGHT($K86,2),AV86,0)) -> 0 | BS86: =+IF($K86="Ongoing",AW86,IF(RIGHT($K86,2)=RIGHT(BS$39,2),SUM($AV86:AW86),0)+IF(RIGHT(BS$39,2)>RIGHT($K86,2),AW86,0)) -> 0 | BT86: =+IF($K86="Ongoing",AX86,IF(RIGHT($K86,2)=RIGHT(BT$39,2),SUM($AV86:AX86),0)+IF(RIGHT(BT$39,2)>RIGHT($K86,2),AX86,0)) -> 0 | BU86: =+IF($K86="Ongoing",AY86,IF(RIGHT($K86,2)=RIGHT(BU$39,2),SUM($AV86:AY86),0)+IF(RIGHT(BU$39,2)>RIGHT($K86,2),AY86,0)) -> 0 | BV86: =+IF($K86="Ongoing",AZ86,IF(RIGHT($K86,2)=RIGHT(BV$39,2),SUM($AV86:AZ86),0)+IF(RIGHT(BV$39,2)>RIGHT($K86,2),AZ86,0)) -> 0 | BW86: =+IF($K86="Ongoing",BA86,IF(RIGHT($K86,2)=RIGHT(BW$39,2),SUM($AV86:BA86),0)+IF(RIGHT(BW$39,2)>RIGHT($K86,2),BA86,0)) -> 0 | BX86: =+IF($K86="Ongoing",BB86,IF(RIGHT($K86,2)=RIGHT(BX$39,2),SUM($AV86:BB86),0)+IF(RIGHT(BX$39,2)>RIGHT($K86,2),BB86,0)) -> 0 | BY86: =+IF($K86="Ongoing",BC86,IF(RIGHT($K86,2)=RIGHT(BY$39,2),SUM($AV86:BC86),0)+IF(RIGHT(BY$39,2)>RIGHT($K86,2),BC86,0)) -> 0 | BZ86: =+IF($K86="Ongoing",BD86,IF(RIGHT($K86,2)=RIGHT(BZ$39,2),SUM($AV86:BD86),0)+IF(RIGHT(BZ$39,2)>RIGHT($K86,2),BD86,0)) -> 0 | CA86: =+IF($K86="Ongoing",BE86,IF(RIGHT($K86,2)=RIGHT(CA$39,2),SUM($AV86:BE86),0)+IF(RIGHT(CA$39,2)>RIGHT($K86,2),BE86,0)) -> 0 | CC86: =+O86*KeyAssumptionsPriceControl_FO!X$15 -> 0 | CD86: =+P86*KeyAssumptionsPriceControl_FO!Y$15 -> 0 | CE86: =+Q86*KeyAssumptionsPriceControl_FO!Z$15 -> 0 | CF86: =+R86*KeyAssumptionsPriceControl_FO!AA$15 -> 0 | CG86: =+S86*KeyAssumptionsPriceControl_FO!AB$15 -> 0 | CH86: =+T86*KeyAssumptionsPriceControl_FO!AC$15 -> 0 | CI86: =+U86*KeyAssumptionsPriceControl_FO!AD$15 -> 0 | CJ86: =+V86*KeyAssumptionsPriceControl_FO!AE$15 -> 0 | CK86: =+W86*KeyAssumptionsPriceControl_FO!AF$15 -> 0 | CL86: =+X86*KeyAssumptionsPriceControl_FO!AG$15 -> 0 | CN86: 0 | CO86: 0 | CP86: 0 | CQ86: 0 | CR86: 0 | CS86: 0 | CT86: 0 | CU86: 0 | CV86: 0 | CW86: 0
C87: [Capex Item - Significant Project / Capital Program / Other Capex] | E87: [Service] | F87: [Major Cost Driver] | G87: [Asset category] | H87: [Capital type] | J87: Straight line | K87: [Year finalised?] | AV87: 0 | AW87: 0 | AX87: 0 | AY87: 0 | AZ87: 0 | BA87: 0 | BB87: 0 | BC87: 0 | BD87: 0 | BE87: 0 | BG87: 0 | BH87: 0 | BI87: 0 | BJ87: 0 | BK87: 0 | BL87: 0 | BM87: 0 | BN87: 0 | BO87: 0 | BP87: 0 | BR87: =+IF($K87="Ongoing",AV87,IF(RIGHT($K87,2)=RIGHT(BR$39,2),SUM($AV87:AV87),0)+IF(RIGHT(BR$39,2)>RIGHT($K87,2),AV87,0)) -> 0 | BS87: =+IF($K87="Ongoing",AW87,IF(RIGHT($K87,2)=RIGHT(BS$39,2),SUM($AV87:AW87),0)+IF(RIGHT(BS$39,2)>RIGHT($K87,2),AW87,0)) -> 0 | BT87: =+IF($K87="Ongoing",AX87,IF(RIGHT($K87,2)=RIGHT(BT$39,2),SUM($AV87:AX87),0)+IF(RIGHT(BT$39,2)>RIGHT($K87,2),AX87,0)) -> 0 | BU87: =+IF($K87="Ongoing",AY87,IF(RIGHT($K87,2)=RIGHT(BU$39,2),SUM($AV87:AY87),0)+IF(RIGHT(BU$39,2)>RIGHT($K87,2),AY87,0)) -> 0 | BV87: =+IF($K87="Ongoing",AZ87,IF(RIGHT($K87,2)=RIGHT(BV$39,2),SUM($AV87:AZ87),0)+IF(RIGHT(BV$39,2)>RIGHT($K87,2),AZ87,0)) -> 0 | BW87: =+IF($K87="Ongoing",BA87,IF(RIGHT($K87,2)=RIGHT(BW$39,2),SUM($AV87:BA87),0)+IF(RIGHT(BW$39,2)>RIGHT($K87,2),BA87,0)) -> 0 | BX87: =+IF($K87="Ongoing",BB87,IF(RIGHT($K87,2)=RIGHT(BX$39,2),SUM($AV87:BB87),0)+IF(RIGHT(BX$39,2)>RIGHT($K87,2),BB87,0)) -> 0 | BY87: =+IF($K87="Ongoing",BC87,IF(RIGHT($K87,2)=RIGHT(BY$39,2),SUM($AV87:BC87),0)+IF(RIGHT(BY$39,2)>RIGHT($K87,2),BC87,0)) -> 0 | BZ87: =+IF($K87="Ongoing",BD87,IF(RIGHT($K87,2)=RIGHT(BZ$39,2),SUM($AV87:BD87),0)+IF(RIGHT(BZ$39,2)>RIGHT($K87,2),BD87,0)) -> 0 | CA87: =+IF($K87="Ongoing",BE87,IF(RIGHT($K87,2)=RIGHT(CA$39,2),SUM($AV87:BE87),0)+IF(RIGHT(CA$39,2)>RIGHT($K87,2),BE87,0)) -> 0 | CC87: =+O87*KeyAssumptionsPriceControl_FO!X$15 -> 0 | CD87: =+P87*KeyAssumptionsPriceControl_FO!Y$15 -> 0 | CE87: =+Q87*KeyAssumptionsPriceControl_FO!Z$15 -> 0 | CF87: =+R87*KeyAssumptionsPriceControl_FO!AA$15 -> 0 | CG87: =+S87*KeyAssumptionsPriceControl_FO!AB$15 -> 0 | CH87: =+T87*KeyAssumptionsPriceControl_FO!AC$15 -> 0 | CI87: =+U87*KeyAssumptionsPriceControl_FO!AD$15 -> 0 | CJ87: =+V87*KeyAssumptionsPriceControl_FO!AE$15 -> 0 | CK87: =+W87*KeyAssumptionsPriceControl_FO!AF$15 -> 0 | CL87: =+X87*KeyAssumptionsPriceControl_FO!AG$15 -> 0 | CN87: 0 | CO87: 0 | CP87: 0 | CQ87: 0 | CR87: 0 | CS87: 0 | CT87: 0 | CU87: 0 | CV87: 0 | CW87: 0
C88: [Capex Item - Significant Project / Capital Program / Other Capex] | E88: [Service] | F88: [Major Cost Driver] | G88: [Asset category] | H88: [Capital type] | J88: Straight line | K88: [Year finalised?] | AV88: 0 | AW88: 0 | AX88: 0 | AY88: 0 | AZ88: 0 | BA88: 0 | BB88: 0 | BC88: 0 | BD88: 0 | BE88: 0 | BG88: 0 | BH88: 0 | BI88: 0 | BJ88: 0 | BK88: 0 | BL88: 0 | BM88: 0 | BN88: 0 | BO88: 0 | BP88: 0 | BR88: =+IF($K88="Ongoing",AV88,IF(RIGHT($K88,2)=RIGHT(BR$39,2),SUM($AV88:AV88),0)+IF(RIGHT(BR$39,2)>RIGHT($K88,2),AV88,0)) -> 0 | BS88: =+IF($K88="Ongoing",AW88,IF(RIGHT($K88,2)=RIGHT(BS$39,2),SUM($AV88:AW88),0)+IF(RIGHT(BS$39,2)>RIGHT($K88,2),AW88,0)) -> 0 | BT88: =+IF($K88="Ongoing",AX88,IF(RIGHT($K88,2)=RIGHT(BT$39,2),SUM($AV88:AX88),0)+IF(RIGHT(BT$39,2)>RIGHT($K88,2),AX88,0)) -> 0 | BU88: =+IF($K88="Ongoing",AY88,IF(RIGHT($K88,2)=RIGHT(BU$39,2),SUM($AV88:AY88),0)+IF(RIGHT(BU$39,2)>RIGHT($K88,2),AY88,0)) -> 0 | BV88: =+IF($K88="Ongoing",AZ88,IF(RIGHT($K88,2)=RIGHT(BV$39,2),SUM($AV88:AZ88),0)+IF(RIGHT(BV$39,2)>RIGHT($K88,2),AZ88,0)) -> 0 | BW88: =+IF($K88="Ongoing",BA88,IF(RIGHT($K88,2)=RIGHT(BW$39,2),SUM($AV88:BA88),0)+IF(RIGHT(BW$39,2)>RIGHT($K88,2),BA88,0)) -> 0 | BX88: =+IF($K88="Ongoing",BB88,IF(RIGHT($K88,2)=RIGHT(BX$39,2),SUM($AV88:BB88),0)+IF(RIGHT(BX$39,2)>RIGHT($K88,2),BB88,0)) -> 0 | BY88: =+IF($K88="Ongoing",BC88,IF(RIGHT($K88,2)=RIGHT(BY$39,2),SUM($AV88:BC88),0)+IF(RIGHT(BY$39,2)>RIGHT($K88,2),BC88,0)) -> 0 | BZ88: =+IF($K88="Ongoing",BD88,IF(RIGHT($K88,2)=RIGHT(BZ$39,2),SUM($AV88:BD88),0)+IF(RIGHT(BZ$39,2)>RIGHT($K88,2),BD88,0)) -> 0 | CA88: =+IF($K88="Ongoing",BE88,IF(RIGHT($K88,2)=RIGHT(CA$39,2),SUM($AV88:BE88),0)+IF(RIGHT(CA$39,2)>RIGHT($K88,2),BE88,0)) -> 0 | CC88: =+O88*KeyAssumptionsPriceControl_FO!X$15 -> 0 | CD88: =+P88*KeyAssumptionsPriceControl_FO!Y$15 -> 0 | CE88: =+Q88*KeyAssumptionsPriceControl_FO!Z$15 -> 0 | CF88: =+R88*KeyAssumptionsPriceControl_FO!AA$15 -> 0 | CG88: =+S88*KeyAssumptionsPriceControl_FO!AB$15 -> 0 | CH88: =+T88*KeyAssumptionsPriceControl_FO!AC$15 -> 0 | CI88: =+U88*KeyAssumptionsPriceControl_FO!AD$15 -> 0 | CJ88: =+V88*KeyAssumptionsPriceControl_FO!AE$15 -> 0 | CK88: =+W88*KeyAssumptionsPriceControl_FO!AF$15 -> 0 | CL88: =+X88*KeyAssumptionsPriceControl_FO!AG$15 -> 0 | CN88: 0 | CO88: 0 | CP88: 0 | CQ88: 0 | CR88: 0 | CS88: 0 | CT88: 0 | CU88: 0 | CV88: 0 | CW88: 0
C89: [Capex Item - Significant Project / Capital Program / Other Capex] | E89: [Service] | F89: [Major Cost Driver] | G89: [Asset category] | H89: [Capital type] | J89: Straight line | K89: [Year finalised?] | AV89: 0 | AW89: 0 | AX89: 0 | AY89: 0 | AZ89: 0 | BA89: 0 | BB89: 0 | BC89: 0 | BD89: 0 | BE89: 0 | BG89: 0 | BH89: 0 | BI89: 0 | BJ89: 0 | BK89: 0 | BL89: 0 | BM89: 0 | BN89: 0 | BO89: 0 | BP89: 0 | BR89: =+IF($K89="Ongoing",AV89,IF(RIGHT($K89,2)=RIGHT(BR$39,2),SUM($AV89:AV89),0)+IF(RIGHT(BR$39,2)>RIGHT($K89,2),AV89,0)) -> 0 | BS89: =+IF($K89="Ongoing",AW89,IF(RIGHT($K89,2)=RIGHT(BS$39,2),SUM($AV89:AW89),0)+IF(RIGHT(BS$39,2)>RIGHT($K89,2),AW89,0)) -> 0 | BT89: =+IF($K89="Ongoing",AX89,IF(RIGHT($K89,2)=RIGHT(BT$39,2),SUM($AV89:AX89),0)+IF(RIGHT(BT$39,2)>RIGHT($K89,2),AX89,0)) -> 0 | BU89: =+IF($K89="Ongoing",AY89,IF(RIGHT($K89,2)=RIGHT(BU$39,2),SUM($AV89:AY89),0)+IF(RIGHT(BU$39,2)>RIGHT($K89,2),AY89,0)) -> 0 | BV89: =+IF($K89="Ongoing",AZ89,IF(RIGHT($K89,2)=RIGHT(BV$39,2),SUM($AV89:AZ89),0)+IF(RIGHT(BV$39,2)>RIGHT($K89,2),AZ89,0)) -> 0 | BW89: =+IF($K89="Ongoing",BA89,IF(RIGHT($K89,2)=RIGHT(BW$39,2),SUM($AV89:BA89),0)+IF(RIGHT(BW$39,2)>RIGHT($K89,2),BA89,0)) -> 0 | BX89: =+IF($K89="Ongoing",BB89,IF(RIGHT($K89,2)=RIGHT(BX$39,2),SUM($AV89:BB89),0)+IF(RIGHT(BX$39,2)>RIGHT($K89,2),BB89,0)) -> 0 | BY89: =+IF($K89="Ongoing",BC89,IF(RIGHT($K89,2)=RIGHT(BY$39,2),SUM($AV89:BC89),0)+IF(RIGHT(BY$39,2)>RIGHT($K89,2),BC89,0)) -> 0 | BZ89: =+IF($K89="Ongoing",BD89,IF(RIGHT($K89,2)=RIGHT(BZ$39,2),SUM($AV89:BD89),0)+IF(RIGHT(BZ$39,2)>RIGHT($K89,2),BD89,0)) -> 0 | CA89: =+IF($K89="Ongoing",BE89,IF(RIGHT($K89,2)=RIGHT(CA$39,2),SUM($AV89:BE89),0)+IF(RIGHT(CA$39,2)>RIGHT($K89,2),BE89,0)) -> 0 | CC89: =+O89*KeyAssumptionsPriceControl_FO!X$15 -> 0 | CD89: =+P89*KeyAssumptionsPriceControl_FO!Y$15 -> 0 | CE89: =+Q89*KeyAssumptionsPriceControl_FO!Z$15 -> 0 | CF89: =+R89*KeyAssumptionsPriceControl_FO!AA$15 -> 0 | CG89: =+S89*KeyAssumptionsPriceControl_FO!AB$15 -> 0 | CH89: =+T89*KeyAssumptionsPriceControl_FO!AC$15 -> 0 | CI89: =+U89*KeyAssumptionsPriceControl_FO!AD$15 -> 0 | CJ89: =+V89*KeyAssumptionsPriceControl_FO!AE$15 -> 0 | CK89: =+W89*KeyAssumptionsPriceControl_FO!AF$15 -> 0 | CL89: =+X89*KeyAssumptionsPriceControl_FO!AG$15 -> 0 | CN89: 0 | CO89: 0 | CP89: 0 | CQ89: 0 | CR89: 0 | CS89: 0 | CT89: 0 | CU89: 0 | CV89: 0 | CW89: 0
C90: [Capex Item - Significant Project / Capital Program / Other Capex] | E90: [Service] | F90: [Major Cost Driver] | G90: [Asset category] | H90: [Capital type] | J90: Straight line | K90: [Year finalised?] | AV90: 0 | AW90: 0 | AX90: 0 | AY90: 0 | AZ90: 0 | BA90: 0 | BB90: 0 | BC90: 0 | BD90: 0 | BE90: 0 | BG90: 0 | BH90: 0 | BI90: 0 | BJ90: 0 | BK90: 0 | BL90: 0 | BM90: 0 | BN90: 0 | BO90: 0 | BP90: 0 | BR90: =+IF($K90="Ongoing",AV90,IF(RIGHT($K90,2)=RIGHT(BR$39,2),SUM($AV90:AV90),0)+IF(RIGHT(BR$39,2)>RIGHT($K90,2),AV90,0)) -> 0 | BS90: =+IF($K90="Ongoing",AW90,IF(RIGHT($K90,2)=RIGHT(BS$39,2),SUM($AV90:AW90),0)+IF(RIGHT(BS$39,2)>RIGHT($K90,2),AW90,0)) -> 0 | BT90: =+IF($K90="Ongoing",AX90,IF(RIGHT($K90,2)=RIGHT(BT$39,2),SUM($AV90:AX90),0)+IF(RIGHT(BT$39,2)>RIGHT($K90,2),AX90,0)) -> 0 | BU90: =+IF($K90="Ongoing",AY90,IF(RIGHT($K90,2)=RIGHT(BU$39,2),SUM($AV90:AY90),0)+IF(RIGHT(BU$39,2)>RIGHT($K90,2),AY90,0)) -> 0 | BV90: =+IF($K90="Ongoing",AZ90,IF(RIGHT($K90,2)=RIGHT(BV$39,2),SUM($AV90:AZ90),0)+IF(RIGHT(BV$39,2)>RIGHT($K90,2),AZ90,0)) -> 0 | BW90: =+IF($K90="Ongoing",BA90,IF(RIGHT($K90,2)=RIGHT(BW$39,2),SUM($AV90:BA90),0)+IF(RIGHT(BW$39,2)>RIGHT($K90,2),BA90,0)) -> 0 | BX90: =+IF($K90="Ongoing",BB90,IF(RIGHT($K90,2)=RIGHT(BX$39,2),SUM($AV90:BB90),0)+IF(RIGHT(BX$39,2)>RIGHT($K90,2),BB90,0)) -> 0 | BY90: =+IF($K90="Ongoing",BC90,IF(RIGHT($K90,2)=RIGHT(BY$39,2),SUM($AV90:BC90),0)+IF(RIGHT(BY$39,2)>RIGHT($K90,2),BC90,0)) -> 0 | BZ90: =+IF($K90="Ongoing",BD90,IF(RIGHT($K90,2)=RIGHT(BZ$39,2),SUM($AV90:BD90),0)+IF(RIGHT(BZ$39,2)>RIGHT($K90,2),BD90,0)) -> 0 | CA90: =+IF($K90="Ongoing",BE90,IF(RIGHT($K90,2)=RIGHT(CA$39,2),SUM($AV90:BE90),0)+IF(RIGHT(CA$39,2)>RIGHT($K90,2),BE90,0)) -> 0 | CC90: =+O90*KeyAssumptionsPriceControl_FO!X$15 -> 0 | CD90: =+P90*KeyAssumptionsPriceControl_FO!Y$15 -> 0 | CE90: =+Q90*KeyAssumptionsPriceControl_FO!Z$15 -> 0 | CF90: =+R90*KeyAssumptionsPriceControl_FO!AA$15 -> 0 | CG90: =+S90*KeyAssumptionsPriceControl_FO!AB$15 -> 0 | CH90: =+T90*KeyAssumptionsPriceControl_FO!AC$15 -> 0 | CI90: =+U90*KeyAssumptionsPriceControl_FO!AD$15 -> 0 | CJ90: =+V90*KeyAssumptionsPriceControl_FO!AE$15 -> 0 | CK90: =+W90*KeyAssumptionsPriceControl_FO!AF$15 -> 0 | CL90: =+X90*KeyAssumptionsPriceControl_FO!AG$15 -> 0 | CN90: 0 | CO90: 0 | CP90: 0 | CQ90: 0 | CR90: 0 | CS90: 0 | CT90: 0 | CU90: 0 | CV90: 0 | CW90: 0
C91: [Capex Item - Significant Project / Capital Program / Other Capex] | E91: [Service] | F91: [Major Cost Driver] | G91: [Asset category] | H91: [Capital type] | J91: Straight line | K91: [Year finalised?] | AV91: 0 | AW91: 0 | AX91: 0 | AY91: 0 | AZ91: 0 | BA91: 0 | BB91: 0 | BC91: 0 | BD91: 0 | BE91: 0 | BG91: 0 | BH91: 0 | BI91: 0 | BJ91: 0 | BK91: 0 | BL91: 0 | BM91: 0 | BN91: 0 | BO91: 0 | BP91: 0 | BR91: =+IF($K91="Ongoing",AV91,IF(RIGHT($K91,2)=RIGHT(BR$39,2),SUM($AV91:AV91),0)+IF(RIGHT(BR$39,2)>RIGHT($K91,2),AV91,0)) -> 0 | BS91: =+IF($K91="Ongoing",AW91,IF(RIGHT($K91,2)=RIGHT(BS$39,2),SUM($AV91:AW91),0)+IF(RIGHT(BS$39,2)>RIGHT($K91,2),AW91,0)) -> 0 | BT91: =+IF($K91="Ongoing",AX91,IF(RIGHT($K91,2)=RIGHT(BT$39,2),SUM($AV91:AX91),0)+IF(RIGHT(BT$39,2)>RIGHT($K91,2),AX91,0)) -> 0 | BU91: =+IF($K91="Ongoing",AY91,IF(RIGHT($K91,2)=RIGHT(BU$39,2),SUM($AV91:AY91),0)+IF(RIGHT(BU$39,2)>RIGHT($K91,2),AY91,0)) -> 0 | BV91: =+IF($K91="Ongoing",AZ91,IF(RIGHT($K91,2)=RIGHT(BV$39,2),SUM($AV91:AZ91),0)+IF(RIGHT(BV$39,2)>RIGHT($K91,2),AZ91,0)) -> 0 | BW91: =+IF($K91="Ongoing",BA91,IF(RIGHT($K91,2)=RIGHT(BW$39,2),SUM($AV91:BA91),0)+IF(RIGHT(BW$39,2)>RIGHT($K91,2),BA91,0)) -> 0 | BX91: =+IF($K91="Ongoing",BB91,IF(RIGHT($K91,2)=RIGHT(BX$39,2),SUM($AV91:BB91),0)+IF(RIGHT(BX$39,2)>RIGHT($K91,2),BB91,0)) -> 0 | BY91: =+IF($K91="Ongoing",BC91,IF(RIGHT($K91,2)=RIGHT(BY$39,2),SUM($AV91:BC91),0)+IF(RIGHT(BY$39,2)>RIGHT($K91,2),BC91,0)) -> 0 | BZ91: =+IF($K91="Ongoing",BD91,IF(RIGHT($K91,2)=RIGHT(BZ$39,2),SUM($AV91:BD91),0)+IF(RIGHT(BZ$39,2)>RIGHT($K91,2),BD91,0)) -> 0 | CA91: =+IF($K91="Ongoing",BE91,IF(RIGHT($K91,2)=RIGHT(CA$39,2),SUM($AV91:BE91),0)+IF(RIGHT(CA$39,2)>RIGHT($K91,2),BE91,0)) -> 0 | CC91: =+O91*KeyAssumptionsPriceControl_FO!X$15 -> 0 | CD91: =+P91*KeyAssumptionsPriceControl_FO!Y$15 -> 0 | CE91: =+Q91*KeyAssumptionsPriceControl_FO!Z$15 -> 0 | CF91: =+R91*KeyAssumptionsPriceControl_FO!AA$15 -> 0 | CG91: =+S91*KeyAssumptionsPriceControl_FO!AB$15 -> 0 | CH91: =+T91*KeyAssumptionsPriceControl_FO!AC$15 -> 0 | CI91: =+U91*KeyAssumptionsPriceControl_FO!AD$15 -> 0 | CJ91: =+V91*KeyAssumptionsPriceControl_FO!AE$15 -> 0 | CK91: =+W91*KeyAssumptionsPriceControl_FO!AF$15 -> 0 | CL91: =+X91*KeyAssumptionsPriceControl_FO!AG$15 -> 0 | CN91: 0 | CO91: 0 | CP91: 0 | CQ91: 0 | CR91: 0 | CS91: 0 | CT91: 0 | CU91: 0 | CV91: 0 | CW91: 0
C92: [Capex Item - Significant Project / Capital Program / Other Capex] | E92: [Service] | F92: [Major Cost Driver] | G92: [Asset category] | H92: [Capital type] | J92: Straight line | K92: [Year finalised?] | AV92: 0 | AW92: 0 | AX92: 0 | AY92: 0 | AZ92: 0 | BA92: 0 | BB92: 0 | BC92: 0 | BD92: 0 | BE92: 0 | BG92: 0 | BH92: 0 | BI92: 0 | BJ92: 0 | BK92: 0 | BL92: 0 | BM92: 0 | BN92: 0 | BO92: 0 | BP92: 0 | BR92: =+IF($K92="Ongoing",AV92,IF(RIGHT($K92,2)=RIGHT(BR$39,2),SUM($AV92:AV92),0)+IF(RIGHT(BR$39,2)>RIGHT($K92,2),AV92,0)) -> 0 | BS92: =+IF($K92="Ongoing",AW92,IF(RIGHT($K92,2)=RIGHT(BS$39,2),SUM($AV92:AW92),0)+IF(RIGHT(BS$39,2)>RIGHT($K92,2),AW92,0)) -> 0 | BT92: =+IF($K92="Ongoing",AX92,IF(RIGHT($K92,2)=RIGHT(BT$39,2),SUM($AV92:AX92),0)+IF(RIGHT(BT$39,2)>RIGHT($K92,2),AX92,0)) -> 0 | BU92: =+IF($K92="Ongoing",AY92,IF(RIGHT($K92,2)=RIGHT(BU$39,2),SUM($AV92:AY92),0)+IF(RIGHT(BU$39,2)>RIGHT($K92,2),AY92,0)) -> 0 | BV92: =+IF($K92="Ongoing",AZ92,IF(RIGHT($K92,2)=RIGHT(BV$39,2),SUM($AV92:AZ92),0)+IF(RIGHT(BV$39,2)>RIGHT($K92,2),AZ92,0)) -> 0 | BW92: =+IF($K92="Ongoing",BA92,IF(RIGHT($K92,2)=RIGHT(BW$39,2),SUM($AV92:BA92),0)+IF(RIGHT(BW$39,2)>RIGHT($K92,2),BA92,0)) -> 0 | BX92: =+IF($K92="Ongoing",BB92,IF(RIGHT($K92,2)=RIGHT(BX$39,2),SUM($AV92:BB92),0)+IF(RIGHT(BX$39,2)>RIGHT($K92,2),BB92,0)) -> 0 | BY92: =+IF($K92="Ongoing",BC92,IF(RIGHT($K92,2)=RIGHT(BY$39,2),SUM($AV92:BC92),0)+IF(RIGHT(BY$39,2)>RIGHT($K92,2),BC92,0)) -> 0 | BZ92: =+IF($K92="Ongoing",BD92,IF(RIGHT($K92,2)=RIGHT(BZ$39,2),SUM($AV92:BD92),0)+IF(RIGHT(BZ$39,2)>RIGHT($K92,2),BD92,0)) -> 0 | CA92: =+IF($K92="Ongoing",BE92,IF(RIGHT($K92,2)=RIGHT(CA$39,2),SUM($AV92:BE92),0)+IF(RIGHT(CA$39,2)>RIGHT($K92,2),BE92,0)) -> 0 | CC92: =+O92*KeyAssumptionsPriceControl_FO!X$15 -> 0 | CD92: =+P92*KeyAssumptionsPriceControl_FO!Y$15 -> 0 | CE92: =+Q92*KeyAssumptionsPriceControl_FO!Z$15 -> 0 | CF92: =+R92*KeyAssumptionsPriceControl_FO!AA$15 -> 0 | CG92: =+S92*KeyAssumptionsPriceControl_FO!AB$15 -> 0 | CH92: =+T92*KeyAssumptionsPriceControl_FO!AC$15 -> 0 | CI92: =+U92*KeyAssumptionsPriceControl_FO!AD$15 -> 0 | CJ92: =+V92*KeyAssumptionsPriceControl_FO!AE$15 -> 0 | CK92: =+W92*KeyAssumptionsPriceControl_FO!AF$15 -> 0 | CL92: =+X92*KeyAssumptionsPriceControl_FO!AG$15 -> 0 | CN92: 0 | CO92: 0 | CP92: 0 | CQ92: 0 | CR92: 0 | CS92: 0 | CT92: 0 | CU92: 0 | CV92: 0 | CW92: 0
C93: [Capex Item - Significant Project / Capital Program / Other Capex] | E93: [Service] | F93: [Major Cost Driver] | G93: [Asset category] | H93: [Capital type] | J93: Straight line | K93: [Year finalised?] | AV93: 0 | AW93: 0 | AX93: 0 | AY93: 0 | AZ93: 0 | BA93: 0 | BB93: 0 | BC93: 0 | BD93: 0 | BE93: 0 | BG93: 0 | BH93: 0 | BI93: 0 | BJ93: 0 | BK93: 0 | BL93: 0 | BM93: 0 | BN93: 0 | BO93: 0 | BP93: 0 | BR93: =+IF($K93="Ongoing",AV93,IF(RIGHT($K93,2)=RIGHT(BR$39,2),SUM($AV93:AV93),0)+IF(RIGHT(BR$39,2)>RIGHT($K93,2),AV93,0)) -> 0 | BS93: =+IF($K93="Ongoing",AW93,IF(RIGHT($K93,2)=RIGHT(BS$39,2),SUM($AV93:AW93),0)+IF(RIGHT(BS$39,2)>RIGHT($K93,2),AW93,0)) -> 0 | BT93: =+IF($K93="Ongoing",AX93,IF(RIGHT($K93,2)=RIGHT(BT$39,2),SUM($AV93:AX93),0)+IF(RIGHT(BT$39,2)>RIGHT($K93,2),AX93,0)) -> 0 | BU93: =+IF($K93="Ongoing",AY93,IF(RIGHT($K93,2)=RIGHT(BU$39,2),SUM($AV93:AY93),0)+IF(RIGHT(BU$39,2)>RIGHT($K93,2),AY93,0)) -> 0 | BV93: =+IF($K93="Ongoing",AZ93,IF(RIGHT($K93,2)=RIGHT(BV$39,2),SUM($AV93:AZ93),0)+IF(RIGHT(BV$39,2)>RIGHT($K93,2),AZ93,0)) -> 0 | BW93: =+IF($K93="Ongoing",BA93,IF(RIGHT($K93,2)=RIGHT(BW$39,2),SUM($AV93:BA93),0)+IF(RIGHT(BW$39,2)>RIGHT($K93,2),BA93,0)) -> 0 | BX93: =+IF($K93="Ongoing",BB93,IF(RIGHT($K93,2)=RIGHT(BX$39,2),SUM($AV93:BB93),0)+IF(RIGHT(BX$39,2)>RIGHT($K93,2),BB93,0)) -> 0 | BY93: =+IF($K93="Ongoing",BC93,IF(RIGHT($K93,2)=RIGHT(BY$39,2),SUM($AV93:BC93),0)+IF(RIGHT(BY$39,2)>RIGHT($K93,2),BC93,0)) -> 0 | BZ93: =+IF($K93="Ongoing",BD93,IF(RIGHT($K93,2)=RIGHT(BZ$39,2),SUM($AV93:BD93),0)+IF(RIGHT(BZ$39,2)>RIGHT($K93,2),BD93,0)) -> 0 | CA93: =+IF($K93="Ongoing",BE93,IF(RIGHT($K93,2)=RIGHT(CA$39,2),SUM($AV93:BE93),0)+IF(RIGHT(CA$39,2)>RIGHT($K93,2),BE93,0)) -> 0 | CC93: =+O93*KeyAssumptionsPriceControl_FO!X$15 -> 0 | CD93: =+P93*KeyAssumptionsPriceControl_FO!Y$15 -> 0 | CE93: =+Q93*KeyAssumptionsPriceControl_FO!Z$15 -> 0 | CF93: =+R93*KeyAssumptionsPriceControl_FO!AA$15 -> 0 | CG93: =+S93*KeyAssumptionsPriceControl_FO!AB$15 -> 0 | CH93: =+T93*KeyAssumptionsPriceControl_FO!AC$15 -> 0 | CI93: =+U93*KeyAssumptionsPriceControl_FO!AD$15 -> 0 | CJ93: =+V93*KeyAssumptionsPriceControl_FO!AE$15 -> 0 | CK93: =+W93*KeyAssumptionsPriceControl_FO!AF$15 -> 0 | CL93: =+X93*KeyAssumptionsPriceControl_FO!AG$15 -> 0 | CN93: 0 | CO93: 0 | CP93: 0 | CQ93: 0 | CR93: 0 | CS93: 0 | CT93: 0 | CU93: 0 | CV93: 0 | CW93: 0
C94: [Capex Item - Significant Project / Capital Program / Other Capex] | E94: [Service] | F94: [Major Cost Driver] | G94: [Asset category] | H94: [Capital type] | J94: Straight line | K94: [Year finalised?] | AV94: 0 | AW94: 0 | AX94: 0 | AY94: 0 | AZ94: 0 | BA94: 0 | BB94: 0 | BC94: 0 | BD94: 0 | BE94: 0 | BG94: 0 | BH94: 0 | BI94: 0 | BJ94: 0 | BK94: 0 | BL94: 0 | BM94: 0 | BN94: 0 | BO94: 0 | BP94: 0 | BR94: =+IF($K94="Ongoing",AV94,IF(RIGHT($K94,2)=RIGHT(BR$39,2),SUM($AV94:AV94),0)+IF(RIGHT(BR$39,2)>RIGHT($K94,2),AV94,0)) -> 0 | BS94: =+IF($K94="Ongoing",AW94,IF(RIGHT($K94,2)=RIGHT(BS$39,2),SUM($AV94:AW94),0)+IF(RIGHT(BS$39,2)>RIGHT($K94,2),AW94,0)) -> 0 | BT94: =+IF($K94="Ongoing",AX94,IF(RIGHT($K94,2)=RIGHT(BT$39,2),SUM($AV94:AX94),0)+IF(RIGHT(BT$39,2)>RIGHT($K94,2),AX94,0)) -> 0 | BU94: =+IF($K94="Ongoing",AY94,IF(RIGHT($K94,2)=RIGHT(BU$39,2),SUM($AV94:AY94),0)+IF(RIGHT(BU$39,2)>RIGHT($K94,2),AY94,0)) -> 0 | BV94: =+IF($K94="Ongoing",AZ94,IF(RIGHT($K94,2)=RIGHT(BV$39,2),SUM($AV94:AZ94),0)+IF(RIGHT(BV$39,2)>RIGHT($K94,2),AZ94,0)) -> 0 | BW94: =+IF($K94="Ongoing",BA94,IF(RIGHT($K94,2)=RIGHT(BW$39,2),SUM($AV94:BA94),0)+IF(RIGHT(BW$39,2)>RIGHT($K94,2),BA94,0)) -> 0 | BX94: =+IF($K94="Ongoing",BB94,IF(RIGHT($K94,2)=RIGHT(BX$39,2),SUM($AV94:BB94),0)+IF(RIGHT(BX$39,2)>RIGHT($K94,2),BB94,0)) -> 0 | BY94: =+IF($K94="Ongoing",BC94,IF(RIGHT($K94,2)=RIGHT(BY$39,2),SUM($AV94:BC94),0)+IF(RIGHT(BY$39,2)>RIGHT($K94,2),BC94,0)) -> 0 | BZ94: =+IF($K94="Ongoing",BD94,IF(RIGHT($K94,2)=RIGHT(BZ$39,2),SUM($AV94:BD94),0)+IF(RIGHT(BZ$39,2)>RIGHT($K94,2),BD94,0)) -> 0 | CA94: =+IF($K94="Ongoing",BE94,IF(RIGHT($K94,2)=RIGHT(CA$39,2),SUM($AV94:BE94),0)+IF(RIGHT(CA$39,2)>RIGHT($K94,2),BE94,0)) -> 0 | CC94: =+O94*KeyAssumptionsPriceControl_FO!X$15 -> 0 | CD94: =+P94*KeyAssumptionsPriceControl_FO!Y$15 -> 0 | CE94: =+Q94*KeyAssumptionsPriceControl_FO!Z$15 -> 0 | CF94: =+R94*KeyAssumptionsPriceControl_FO!AA$15 -> 0 | CG94: =+S94*KeyAssumptionsPriceControl_FO!AB$15 -> 0 | CH94: =+T94*KeyAssumptionsPriceControl_FO!AC$15 -> 0 | CI94: =+U94*KeyAssumptionsPriceControl_FO!AD$15 -> 0 | CJ94: =+V94*KeyAssumptionsPriceControl_FO!AE$15 -> 0 | CK94: =+W94*KeyAssumptionsPriceControl_FO!AF$15 -> 0 | CL94: =+X94*KeyAssumptionsPriceControl_FO!AG$15 -> 0 | CN94: 0 | CO94: 0 | CP94: 0 | CQ94: 0 | CR94: 0 | CS94: 0 | CT94: 0 | CU94: 0 | CV94: 0 | CW94: 0
C95: [Capex Item - Significant Project / Capital Program / Other Capex] | E95: [Service] | F95: [Major Cost Driver] | G95: [Asset category] | H95: [Capital type] | J95: Straight line | K95: [Year finalised?] | AV95: 0 | AW95: 0 | AX95: 0 | AY95: 0 | AZ95: 0 | BA95: 0 | BB95: 0 | BC95: 0 | BD95: 0 | BE95: 0 | BG95: 0 | BH95: 0 | BI95: 0 | BJ95: 0 | BK95: 0 | BL95: 0 | BM95: 0 | BN95: 0 | BO95: 0 | BP95: 0 | BR95: =+IF($K95="Ongoing",AV95,IF(RIGHT($K95,2)=RIGHT(BR$39,2),SUM($AV95:AV95),0)+IF(RIGHT(BR$39,2)>RIGHT($K95,2),AV95,0)) -> 0 | BS95: =+IF($K95="Ongoing",AW95,IF(RIGHT($K95,2)=RIGHT(BS$39,2),SUM($AV95:AW95),0)+IF(RIGHT(BS$39,2)>RIGHT($K95,2),AW95,0)) -> 0 | BT95: =+IF($K95="Ongoing",AX95,IF(RIGHT($K95,2)=RIGHT(BT$39,2),SUM($AV95:AX95),0)+IF(RIGHT(BT$39,2)>RIGHT($K95,2),AX95,0)) -> 0 | BU95: =+IF($K95="Ongoing",AY95,IF(RIGHT($K95,2)=RIGHT(BU$39,2),SUM($AV95:AY95),0)+IF(RIGHT(BU$39,2)>RIGHT($K95,2),AY95,0)) -> 0 | BV95: =+IF($K95="Ongoing",AZ95,IF(RIGHT($K95,2)=RIGHT(BV$39,2),SUM($AV95:AZ95),0)+IF(RIGHT(BV$39,2)>RIGHT($K95,2),AZ95,0)) -> 0 | BW95: =+IF($K95="Ongoing",BA95,IF(RIGHT($K95,2)=RIGHT(BW$39,2),SUM($AV95:BA95),0)+IF(RIGHT(BW$39,2)>RIGHT($K95,2),BA95,0)) -> 0 | BX95: =+IF($K95="Ongoing",BB95,IF(RIGHT($K95,2)=RIGHT(BX$39,2),SUM($AV95:BB95),0)+IF(RIGHT(BX$39,2)>RIGHT($K95,2),BB95,0)) -> 0 | BY95: =+IF($K95="Ongoing",BC95,IF(RIGHT($K95,2)=RIGHT(BY$39,2),SUM($AV95:BC95),0)+IF(RIGHT(BY$39,2)>RIGHT($K95,2),BC95,0)) -> 0 | BZ95: =+IF($K95="Ongoing",BD95,IF(RIGHT($K95,2)=RIGHT(BZ$39,2),SUM($AV95:BD95),0)+IF(RIGHT(BZ$39,2)>RIGHT($K95,2),BD95,0)) -> 0 | CA95: =+IF($K95="Ongoing",BE95,IF(RIGHT($K95,2)=RIGHT(CA$39,2),SUM($AV95:BE95),0)+IF(RIGHT(CA$39,2)>RIGHT($K95,2),BE95,0)) -> 0 | CC95: =+O95*KeyAssumptionsPriceControl_FO!X$15 -> 0 | CD95: =+P95*KeyAssumptionsPriceControl_FO!Y$15 -> 0 | CE95: =+Q95*KeyAssumptionsPriceControl_FO!Z$15 -> 0 | CF95: =+R95*KeyAssumptionsPriceControl_FO!AA$15 -> 0 | CG95: =+S95*KeyAssumptionsPriceControl_FO!AB$15 -> 0 | CH95: =+T95*KeyAssumptionsPriceControl_FO!AC$15 -> 0 | CI95: =+U95*KeyAssumptionsPriceControl_FO!AD$15 -> 0 | CJ95: =+V95*KeyAssumptionsPriceControl_FO!AE$15 -> 0 | CK95: =+W95*KeyAssumptionsPriceControl_FO!AF$15 -> 0 | CL95: =+X95*KeyAssumptionsPriceControl_FO!AG$15 -> 0 | CN95: 0 | CO95: 0 | CP95: 0 | CQ95: 0 | CR95: 0 | CS95: 0 | CT95: 0 | CU95: 0 | CV95: 0 | CW95: 0
C96: [Capex Item - Significant Project / Capital Program / Other Capex] | E96: [Service] | F96: [Major Cost Driver] | G96: [Asset category] | H96: [Capital type] | J96: Straight line | K96: [Year finalised?] | AV96: 0 | AW96: 0 | AX96: 0 | AY96: 0 | AZ96: 0 | BA96: 0 | BB96: 0 | BC96: 0 | BD96: 0 | BE96: 0 | BG96: 0 | BH96: 0 | BI96: 0 | BJ96: 0 | BK96: 0 | BL96: 0 | BM96: 0 | BN96: 0 | BO96: 0 | BP96: 0 | BR96: =+IF($K96="Ongoing",AV96,IF(RIGHT($K96,2)=RIGHT(BR$39,2),SUM($AV96:AV96),0)+IF(RIGHT(BR$39,2)>RIGHT($K96,2),AV96,0)) -> 0 | BS96: =+IF($K96="Ongoing",AW96,IF(RIGHT($K96,2)=RIGHT(BS$39,2),SUM($AV96:AW96),0)+IF(RIGHT(BS$39,2)>RIGHT($K96,2),AW96,0)) -> 0 | BT96: =+IF($K96="Ongoing",AX96,IF(RIGHT($K96,2)=RIGHT(BT$39,2),SUM($AV96:AX96),0)+IF(RIGHT(BT$39,2)>RIGHT($K96,2),AX96,0)) -> 0 | BU96: =+IF($K96="Ongoing",AY96,IF(RIGHT($K96,2)=RIGHT(BU$39,2),SUM($AV96:AY96),0)+IF(RIGHT(BU$39,2)>RIGHT($K96,2),AY96,0)) -> 0 | BV96: =+IF($K96="Ongoing",AZ96,IF(RIGHT($K96,2)=RIGHT(BV$39,2),SUM($AV96:AZ96),0)+IF(RIGHT(BV$39,2)>RIGHT($K96,2),AZ96,0)) -> 0 | BW96: =+IF($K96="Ongoing",BA96,IF(RIGHT($K96,2)=RIGHT(BW$39,2),SUM($AV96:BA96),0)+IF(RIGHT(BW$39,2)>RIGHT($K96,2),BA96,0)) -> 0 | BX96: =+IF($K96="Ongoing",BB96,IF(RIGHT($K96,2)=RIGHT(BX$39,2),SUM($AV96:BB96),0)+IF(RIGHT(BX$39,2)>RIGHT($K96,2),BB96,0)) -> 0 | BY96: =+IF($K96="Ongoing",BC96,IF(RIGHT($K96,2)=RIGHT(BY$39,2),SUM($AV96:BC96),0)+IF(RIGHT(BY$39,2)>RIGHT($K96,2),BC96,0)) -> 0 | BZ96: =+IF($K96="Ongoing",BD96,IF(RIGHT($K96,2)=RIGHT(BZ$39,2),SUM($AV96:BD96),0)+IF(RIGHT(BZ$39,2)>RIGHT($K96,2),BD96,0)) -> 0 | CA96: =+IF($K96="Ongoing",BE96,IF(RIGHT($K96,2)=RIGHT(CA$39,2),SUM($AV96:BE96),0)+IF(RIGHT(CA$39,2)>RIGHT($K96,2),BE96,0)) -> 0 | CC96: =+O96*KeyAssumptionsPriceControl_FO!X$15 -> 0 | CD96: =+P96*KeyAssumptionsPriceControl_FO!Y$15 -> 0 | CE96: =+Q96*KeyAssumptionsPriceControl_FO!Z$15 -> 0 | CF96: =+R96*KeyAssumptionsPriceControl_FO!AA$15 -> 0 | CG96: =+S96*KeyAssumptionsPriceControl_FO!AB$15 -> 0 | CH96: =+T96*KeyAssumptionsPriceControl_FO!AC$15 -> 0 | CI96: =+U96*KeyAssumptionsPriceControl_FO!AD$15 -> 0 | CJ96: =+V96*KeyAssumptionsPriceControl_FO!AE$15 -> 0 | CK96: =+W96*KeyAssumptionsPriceControl_FO!AF$15 -> 0 | CL96: =+X96*KeyAssumptionsPriceControl_FO!AG$15 -> 0 | CN96: 0 | CO96: 0 | CP96: 0 | CQ96: 0 | CR96: 0 | CS96: 0 | CT96: 0 | CU96: 0 | CV96: 0 | CW96: 0
C97: [Capex Item - Significant Project / Capital Program / Other Capex] | E97: [Service] | F97: [Major Cost Driver] | G97: [Asset category] | H97: [Capital type] | J97: Straight line | K97: [Year finalised?] | AV97: 0 | AW97: 0 | AX97: 0 | AY97: 0 | AZ97: 0 | BA97: 0 | BB97: 0 | BC97: 0 | BD97: 0 | BE97: 0 | BG97: 0 | BH97: 0 | BI97: 0 | BJ97: 0 | BK97: 0 | BL97: 0 | BM97: 0 | BN97: 0 | BO97: 0 | BP97: 0 | BR97: =+IF($K97="Ongoing",AV97,IF(RIGHT($K97,2)=RIGHT(BR$39,2),SUM($AV97:AV97),0)+IF(RIGHT(BR$39,2)>RIGHT($K97,2),AV97,0)) -> 0 | BS97: =+IF($K97="Ongoing",AW97,IF(RIGHT($K97,2)=RIGHT(BS$39,2),SUM($AV97:AW97),0)+IF(RIGHT(BS$39,2)>RIGHT($K97,2),AW97,0)) -> 0 | BT97: =+IF($K97="Ongoing",AX97,IF(RIGHT($K97,2)=RIGHT(BT$39,2),SUM($AV97:AX97),0)+IF(RIGHT(BT$39,2)>RIGHT($K97,2),AX97,0)) -> 0 | BU97: =+IF($K97="Ongoing",AY97,IF(RIGHT($K97,2)=RIGHT(BU$39,2),SUM($AV97:AY97),0)+IF(RIGHT(BU$39,2)>RIGHT($K97,2),AY97,0)) -> 0 | BV97: =+IF($K97="Ongoing",AZ97,IF(RIGHT($K97,2)=RIGHT(BV$39,2),SUM($AV97:AZ97),0)+IF(RIGHT(BV$39,2)>RIGHT($K97,2),AZ97,0)) -> 0 | BW97: =+IF($K97="Ongoing",BA97,IF(RIGHT($K97,2)=RIGHT(BW$39,2),SUM($AV97:BA97),0)+IF(RIGHT(BW$39,2)>RIGHT($K97,2),BA97,0)) -> 0 | BX97: =+IF($K97="Ongoing",BB97,IF(RIGHT($K97,2)=RIGHT(BX$39,2),SUM($AV97:BB97),0)+IF(RIGHT(BX$39,2)>RIGHT($K97,2),BB97,0)) -> 0 | BY97: =+IF($K97="Ongoing",BC97,IF(RIGHT($K97,2)=RIGHT(BY$39,2),SUM($AV97:BC97),0)+IF(RIGHT(BY$39,2)>RIGHT($K97,2),BC97,0)) -> 0 | BZ97: =+IF($K97="Ongoing",BD97,IF(RIGHT($K97,2)=RIGHT(BZ$39,2),SUM($AV97:BD97),0)+IF(RIGHT(BZ$39,2)>RIGHT($K97,2),BD97,0)) -> 0 | CA97: =+IF($K97="Ongoing",BE97,IF(RIGHT($K97,2)=RIGHT(CA$39,2),SUM($AV97:BE97),0)+IF(RIGHT(CA$39,2)>RIGHT($K97,2),BE97,0)) -> 0 | CC97: =+O97*KeyAssumptionsPriceControl_FO!X$15 -> 0 | CD97: =+P97*KeyAssumptionsPriceControl_FO!Y$15 -> 0 | CE97: =+Q97*KeyAssumptionsPriceControl_FO!Z$15 -> 0 | CF97: =+R97*KeyAssumptionsPriceControl_FO!AA$15 -> 0 | CG97: =+S97*KeyAssumptionsPriceControl_FO!AB$15 -> 0 | CH97: =+T97*KeyAssumptionsPriceControl_FO!AC$15 -> 0 | CI97: =+U97*KeyAssumptionsPriceControl_FO!AD$15 -> 0 | CJ97: =+V97*KeyAssumptionsPriceControl_FO!AE$15 -> 0 | CK97: =+W97*KeyAssumptionsPriceControl_FO!AF$15 -> 0 | CL97: =+X97*KeyAssumptionsPriceControl_FO!AG$15 -> 0 | CN97: 0 | CO97: 0 | CP97: 0 | CQ97: 0 | CR97: 0 | CS97: 0 | CT97: 0 | CU97: 0 | CV97: 0 | CW97: 0
C98: [Capex Item - Significant Project / Capital Program / Other Capex] | E98: [Service] | F98: [Major Cost Driver] | G98: [Asset category] | H98: [Capital type] | J98: Straight line | K98: [Year finalised?] | AV98: 0 | AW98: 0 | AX98: 0 | AY98: 0 | AZ98: 0 | BA98: 0 | BB98: 0 | BC98: 0 | BD98: 0 | BE98: 0 | BG98: 0 | BH98: 0 | BI98: 0 | BJ98: 0 | BK98: 0 | BL98: 0 | BM98: 0 | BN98: 0 | BO98: 0 | BP98: 0 | BR98: =+IF($K98="Ongoing",AV98,IF(RIGHT($K98,2)=RIGHT(BR$39,2),SUM($AV98:AV98),0)+IF(RIGHT(BR$39,2)>RIGHT($K98,2),AV98,0)) -> 0 | BS98: =+IF($K98="Ongoing",AW98,IF(RIGHT($K98,2)=RIGHT(BS$39,2),SUM($AV98:AW98),0)+IF(RIGHT(BS$39,2)>RIGHT($K98,2),AW98,0)) -> 0 | BT98: =+IF($K98="Ongoing",AX98,IF(RIGHT($K98,2)=RIGHT(BT$39,2),SUM($AV98:AX98),0)+IF(RIGHT(BT$39,2)>RIGHT($K98,2),AX98,0)) -> 0 | BU98: =+IF($K98="Ongoing",AY98,IF(RIGHT($K98,2)=RIGHT(BU$39,2),SUM($AV98:AY98),0)+IF(RIGHT(BU$39,2)>RIGHT($K98,2),AY98,0)) -> 0 | BV98: =+IF($K98="Ongoing",AZ98,IF(RIGHT($K98,2)=RIGHT(BV$39,2),SUM($AV98:AZ98),0)+IF(RIGHT(BV$39,2)>RIGHT($K98,2),AZ98,0)) -> 0 | BW98: =+IF($K98="Ongoing",BA98,IF(RIGHT($K98,2)=RIGHT(BW$39,2),SUM($AV98:BA98),0)+IF(RIGHT(BW$39,2)>RIGHT($K98,2),BA98,0)) -> 0 | BX98: =+IF($K98="Ongoing",BB98,IF(RIGHT($K98,2)=RIGHT(BX$39,2),SUM($AV98:BB98),0)+IF(RIGHT(BX$39,2)>RIGHT($K98,2),BB98,0)) -> 0 | BY98: =+IF($K98="Ongoing",BC98,IF(RIGHT($K98,2)=RIGHT(BY$39,2),SUM($AV98:BC98),0)+IF(RIGHT(BY$39,2)>RIGHT($K98,2),BC98,0)) -> 0 | BZ98: =+IF($K98="Ongoing",BD98,IF(RIGHT($K98,2)=RIGHT(BZ$39,2),SUM($AV98:BD98),0)+IF(RIGHT(BZ$39,2)>RIGHT($K98,2),BD98,0)) -> 0 | CA98: =+IF($K98="Ongoing",BE98,IF(RIGHT($K98,2)=RIGHT(CA$39,2),SUM($AV98:BE98),0)+IF(RIGHT(CA$39,2)>RIGHT($K98,2),BE98,0)) -> 0 | CC98: =+O98*KeyAssumptionsPriceControl_FO!X$15 -> 0 | CD98: =+P98*KeyAssumptionsPriceControl_FO!Y$15 -> 0 | CE98: =+Q98*KeyAssumptionsPriceControl_FO!Z$15 -> 0 | CF98: =+R98*KeyAssumptionsPriceControl_FO!AA$15 -> 0 | CG98: =+S98*KeyAssumptionsPriceControl_FO!AB$15 -> 0 | CH98: =+T98*KeyAssumptionsPriceControl_FO!AC$15 -> 0 | CI98: =+U98*KeyAssumptionsPriceControl_FO!AD$15 -> 0 | CJ98: =+V98*KeyAssumptionsPriceControl_FO!AE$15 -> 0 | CK98: =+W98*KeyAssumptionsPriceControl_FO!AF$15 -> 0 | CL98: =+X98*KeyAssumptionsPriceControl_FO!AG$15 -> 0 | CN98: 0 | CO98: 0 | CP98: 0 | CQ98: 0 | CR98: 0 | CS98: 0 | CT98: 0 | CU98: 0 | CV98: 0 | CW98: 0
C99: [Capex Item - Significant Project / Capital Program / Other Capex] | E99: [Service] | F99: [Major Cost Driver] | G99: [Asset category] | H99: [Capital type] | J99: Straight line | K99: [Year finalised?] | AV99: 0 | AW99: 0 | AX99: 0 | AY99: 0 | AZ99: 0 | BA99: 0 | BB99: 0 | BC99: 0 | BD99: 0 | BE99: 0 | BG99: 0 | BH99: 0 | BI99: 0 | BJ99: 0 | BK99: 0 | BL99: 0 | BM99: 0 | BN99: 0 | BO99: 0 | BP99: 0 | BR99: =+IF($K99="Ongoing",AV99,IF(RIGHT($K99,2)=RIGHT(BR$39,2),SUM($AV99:AV99),0)+IF(RIGHT(BR$39,2)>RIGHT($K99,2),AV99,0)) -> 0 | BS99: =+IF($K99="Ongoing",AW99,IF(RIGHT($K99,2)=RIGHT(BS$39,2),SUM($AV99:AW99),0)+IF(RIGHT(BS$39,2)>RIGHT($K99,2),AW99,0)) -> 0 | BT99: =+IF($K99="Ongoing",AX99,IF(RIGHT($K99,2)=RIGHT(BT$39,2),SUM($AV99:AX99),0)+IF(RIGHT(BT$39,2)>RIGHT($K99,2),AX99,0)) -> 0 | BU99: =+IF($K99="Ongoing",AY99,IF(RIGHT($K99,2)=RIGHT(BU$39,2),SUM($AV99:AY99),0)+IF(RIGHT(BU$39,2)>RIGHT($K99,2),AY99,0)) -> 0 | BV99: =+IF($K99="Ongoing",AZ99,IF(RIGHT($K99,2)=RIGHT(BV$39,2),SUM($AV99:AZ99),0)+IF(RIGHT(BV$39,2)>RIGHT($K99,2),AZ99,0)) -> 0 | BW99: =+IF($K99="Ongoing",BA99,IF(RIGHT($K99,2)=RIGHT(BW$39,2),SUM($AV99:BA99),0)+IF(RIGHT(BW$39,2)>RIGHT($K99,2),BA99,0)) -> 0 | BX99: =+IF($K99="Ongoing",BB99,IF(RIGHT($K99,2)=RIGHT(BX$39,2),SUM($AV99:BB99),0)+IF(RIGHT(BX$39,2)>RIGHT($K99,2),BB99,0)) -> 0 | BY99: =+IF($K99="Ongoing",BC99,IF(RIGHT($K99,2)=RIGHT(BY$39,2),SUM($AV99:BC99),0)+IF(RIGHT(BY$39,2)>RIGHT($K99,2),BC99,0)) -> 0 | BZ99: =+IF($K99="Ongoing",BD99,IF(RIGHT($K99,2)=RIGHT(BZ$39,2),SUM($AV99:BD99),0)+IF(RIGHT(BZ$39,2)>RIGHT($K99,2),BD99,0)) -> 0 | CA99: =+IF($K99="Ongoing",BE99,IF(RIGHT($K99,2)=RIGHT(CA$39,2),SUM($AV99:BE99),0)+IF(RIGHT(CA$39,2)>RIGHT($K99,2),BE99,0)) -> 0 | CC99: =+O99*KeyAssumptionsPriceControl_FO!X$15 -> 0 | CD99: =+P99*KeyAssumptionsPriceControl_FO!Y$15 -> 0 | CE99: =+Q99*KeyAssumptionsPriceControl_FO!Z$15 -> 0 | CF99: =+R99*KeyAssumptionsPriceControl_FO!AA$15 -> 0 | CG99: =+S99*KeyAssumptionsPriceControl_FO!AB$15 -> 0 | CH99: =+T99*KeyAssumptionsPriceControl_FO!AC$15 -> 0 | CI99: =+U99*KeyAssumptionsPriceControl_FO!AD$15 -> 0 | CJ99: =+V99*KeyAssumptionsPriceControl_FO!AE$15 -> 0 | CK99: =+W99*KeyAssumptionsPriceControl_FO!AF$15 -> 0 | CL99: =+X99*KeyAssumptionsPriceControl_FO!AG$15 -> 0 | CN99: 0 | CO99: 0 | CP99: 0 | CQ99: 0 | CR99: 0 | CS99: 0 | CT99: 0 | CU99: 0 | CV99: 0 | CW99: 0
C100: [Capex Item - Significant Project / Capital Program / Other Capex] | E100: [Service] | F100: [Major Cost Driver] | G100: [Asset category] | H100: [Capital type] | J100: Straight line | K100: [Year finalised?] | AV100: 0 | AW100: 0 | AX100: 0 | AY100: 0 | AZ100: 0 | BA100: 0 | BB100: 0 | BC100: 0 | BD100: 0 | BE100: 0 | BG100: 0 | BH100: 0 | BI100: 0 | BJ100: 0 | BK100: 0 | BL100: 0 | BM100: 0 | BN100: 0 | BO100: 0 | BP100: 0 | BR100: =+IF($K100="Ongoing",AV100,IF(RIGHT($K100,2)=RIGHT(BR$39,2),SUM($AV100:AV100),0)+IF(RIGHT(BR$39,2)>RIGHT($K100,2),AV100,0)) -> 0 | BS100: =+IF($K100="Ongoing",AW100,IF(RIGHT($K100,2)=RIGHT(BS$39,2),SUM($AV100:AW100),0)+IF(RIGHT(BS$39,2)>RIGHT($K100,2),AW100,0)) -> 0 | BT100: =+IF($K100="Ongoing",AX100,IF(RIGHT($K100,2)=RIGHT(BT$39,2),SUM($AV100:AX100),0)+IF(RIGHT(BT$39,2)>RIGHT($K100,2),AX100,0)) -> 0 | BU100: =+IF($K100="Ongoing",AY100,IF(RIGHT($K100,2)=RIGHT(BU$39,2),SUM($AV100:AY100),0)+IF(RIGHT(BU$39,2)>RIGHT($K100,2),AY100,0)) -> 0 | BV100: =+IF($K100="Ongoing",AZ100,IF(RIGHT($K100,2)=RIGHT(BV$39,2),SUM($AV100:AZ100),0)+IF(RIGHT(BV$39,2)>RIGHT($K100,2),AZ100,0)) -> 0 | BW100: =+IF($K100="Ongoing",BA100,IF(RIGHT($K100,2)=RIGHT(BW$39,2),SUM($AV100:BA100),0)+IF(RIGHT(BW$39,2)>RIGHT($K100,2),BA100,0)) -> 0 | BX100: =+IF($K100="Ongoing",BB100,IF(RIGHT($K100,2)=RIGHT(BX$39,2),SUM($AV100:BB100),0)+IF(RIGHT(BX$39,2)>RIGHT($K100,2),BB100,0)) -> 0 | BY100: =+IF($K100="Ongoing",BC100,IF(RIGHT($K100,2)=RIGHT(BY$39,2),SUM($AV100:BC100),0)+IF(RIGHT(BY$39,2)>RIGHT($K100,2),BC100,0)) -> 0 | BZ100: =+IF($K100="Ongoing",BD100,IF(RIGHT($K100,2)=RIGHT(BZ$39,2),SUM($AV100:BD100),0)+IF(RIGHT(BZ$39,2)>RIGHT($K100,2),BD100,0)) -> 0 | CA100: =+IF($K100="Ongoing",BE100,IF(RIGHT($K100,2)=RIGHT(CA$39,2),SUM($AV100:BE100),0)+IF(RIGHT(CA$39,2)>RIGHT($K100,2),BE100,0)) -> 0 | CC100: =+O100*KeyAssumptionsPriceControl_FO!X$15 -> 0 | CD100: =+P100*KeyAssumptionsPriceControl_FO!Y$15 -> 0 | CE100: =+Q100*KeyAssumptionsPriceControl_FO!Z$15 -> 0 | CF100: =+R100*KeyAssumptionsPriceControl_FO!AA$15 -> 0 | CG100: =+S100*KeyAssumptionsPriceControl_FO!AB$15 -> 0 | CH100: =+T100*KeyAssumptionsPriceControl_FO!AC$15 -> 0 | CI100: =+U100*KeyAssumptionsPriceControl_FO!AD$15 -> 0 | CJ100: =+V100*KeyAssumptionsPriceControl_FO!AE$15 -> 0 | CK100: =+W100*KeyAssumptionsPriceControl_FO!AF$15 -> 0 | CL100: =+X100*KeyAssumptionsPriceControl_FO!AG$15 -> 0 | CN100: 0 | CO100: 0 | CP100: 0 | CQ100: 0 | CR100: 0 | CS100: 0 | CT100: 0 | CU100: 0 | CV100: 0 | CW100: 0
C101: [Capex Item - Significant Project / Capital Program / Other Capex] | E101: [Service] | F101: [Major Cost Driver] | G101: [Asset category] | H101: [Capital type] | J101: Straight line | K101: [Year finalised?] | AV101: 0 | AW101: 0 | AX101: 0 | AY101: 0 | AZ101: 0 | BA101: 0 | BB101: 0 | BC101: 0 | BD101: 0 | BE101: 0 | BG101: 0 | BH101: 0 | BI101: 0 | BJ101: 0 | BK101: 0 | BL101: 0 | BM101: 0 | BN101: 0 | BO101: 0 | BP101: 0 | BR101: =+IF($K101="Ongoing",AV101,IF(RIGHT($K101,2)=RIGHT(BR$39,2),SUM($AV101:AV101),0)+IF(RIGHT(BR$39,2)>RIGHT($K101,2),AV101,0)) -> 0 | BS101: =+IF($K101="Ongoing",AW101,IF(RIGHT($K101,2)=RIGHT(BS$39,2),SUM($AV101:AW101),0)+IF(RIGHT(BS$39,2)>RIGHT($K101,2),AW101,0)) -> 0 | BT101: =+IF($K101="Ongoing",AX101,IF(RIGHT($K101,2)=RIGHT(BT$39,2),SUM($AV101:AX101),0)+IF(RIGHT(BT$39,2)>RIGHT($K101,2),AX101,0)) -> 0 | BU101: =+IF($K101="Ongoing",AY101,IF(RIGHT($K101,2)=RIGHT(BU$39,2),SUM($AV101:AY101),0)+IF(RIGHT(BU$39,2)>RIGHT($K101,2),AY101,0)) -> 0 | BV101: =+IF($K101="Ongoing",AZ101,IF(RIGHT($K101,2)=RIGHT(BV$39,2),SUM($AV101:AZ101),0)+IF(RIGHT(BV$39,2)>RIGHT($K101,2),AZ101,0)) -> 0 | BW101: =+IF($K101="Ongoing",BA101,IF(RIGHT($K101,2)=RIGHT(BW$39,2),SUM($AV101:BA101),0)+IF(RIGHT(BW$39,2)>RIGHT($K101,2),BA101,0)) -> 0 | BX101: =+IF($K101="Ongoing",BB101,IF(RIGHT($K101,2)=RIGHT(BX$39,2),SUM($AV101:BB101),0)+IF(RIGHT(BX$39,2)>RIGHT($K101,2),BB101,0)) -> 0 | BY101: =+IF($K101="Ongoing",BC101,IF(RIGHT($K101,2)=RIGHT(BY$39,2),SUM($AV101:BC101),0)+IF(RIGHT(BY$39,2)>RIGHT($K101,2),BC101,0)) -> 0 | BZ101: =+IF($K101="Ongoing",BD101,IF(RIGHT($K101,2)=RIGHT(BZ$39,2),SUM($AV101:BD101),0)+IF(RIGHT(BZ$39,2)>RIGHT($K101,2),BD101,0)) -> 0 | CA101: =+IF($K101="Ongoing",BE101,IF(RIGHT($K101,2)=RIGHT(CA$39,2),SUM($AV101:BE101),0)+IF(RIGHT(CA$39,2)>RIGHT($K101,2),BE101,0)) -> 0 | CC101: =+O101*KeyAssumptionsPriceControl_FO!X$15 -> 0 | CD101: =+P101*KeyAssumptionsPriceControl_FO!Y$15 -> 0 | CE101: =+Q101*KeyAssumptionsPriceControl_FO!Z$15 -> 0 | CF101: =+R101*KeyAssumptionsPriceControl_FO!AA$15 -> 0 | CG101: =+S101*KeyAssumptionsPriceControl_FO!AB$15 -> 0 | CH101: =+T101*KeyAssumptionsPriceControl_FO!AC$15 -> 0 | CI101: =+U101*KeyAssumptionsPriceControl_FO!AD$15 -> 0 | CJ101: =+V101*KeyAssumptionsPriceControl_FO!AE$15 -> 0 | CK101: =+W101*KeyAssumptionsPriceControl_FO!AF$15 -> 0 | CL101: =+X101*KeyAssumptionsPriceControl_FO!AG$15 -> 0 | CN101: 0 | CO101: 0 | CP101: 0 | CQ101: 0 | CR101: 0 | CS101: 0 | CT101: 0 | CU101: 0 | CV101: 0 | CW101: 0
C102: [Capex Item - Significant Project / Capital Program / Other Capex] | E102: [Service] | F102: [Major Cost Driver] | G102: [Asset category] | H102: [Capital type] | J102: Straight line | K102: [Year finalised?] | AV102: 0 | AW102: 0 | AX102: 0 | AY102: 0 | AZ102: 0 | BA102: 0 | BB102: 0 | BC102: 0 | BD102: 0 | BE102: 0 | BG102: 0 | BH102: 0 | BI102: 0 | BJ102: 0 | BK102: 0 | BL102: 0 | BM102: 0 | BN102: 0 | BO102: 0 | BP102: 0 | BR102: =+IF($K102="Ongoing",AV102,IF(RIGHT($K102,2)=RIGHT(BR$39,2),SUM($AV102:AV102),0)+IF(RIGHT(BR$39,2)>RIGHT($K102,2),AV102,0)) -> 0 | BS102: =+IF($K102="Ongoing",AW102,IF(RIGHT($K102,2)=RIGHT(BS$39,2),SUM($AV102:AW102),0)+IF(RIGHT(BS$39,2)>RIGHT($K102,2),AW102,0)) -> 0 | BT102: =+IF($K102="Ongoing",AX102,IF(RIGHT($K102,2)=RIGHT(BT$39,2),SUM($AV102:AX102),0)+IF(RIGHT(BT$39,2)>RIGHT($K102,2),AX102,0)) -> 0 | BU102: =+IF($K102="Ongoing",AY102,IF(RIGHT($K102,2)=RIGHT(BU$39,2),SUM($AV102:AY102),0)+IF(RIGHT(BU$39,2)>RIGHT($K102,2),AY102,0)) -> 0 | BV102: =+IF($K102="Ongoing",AZ102,IF(RIGHT($K102,2)=RIGHT(BV$39,2),SUM($AV102:AZ102),0)+IF(RIGHT(BV$39,2)>RIGHT($K102,2),AZ102,0)) -> 0 | BW102: =+IF($K102="Ongoing",BA102,IF(RIGHT($K102,2)=RIGHT(BW$39,2),SUM($AV102:BA102),0)+IF(RIGHT(BW$39,2)>RIGHT($K102,2),BA102,0)) -> 0 | BX102: =+IF($K102="Ongoing",BB102,IF(RIGHT($K102,2)=RIGHT(BX$39,2),SUM($AV102:BB102),0)+IF(RIGHT(BX$39,2)>RIGHT($K102,2),BB102,0)) -> 0 | BY102: =+IF($K102="Ongoing",BC102,IF(RIGHT($K102,2)=RIGHT(BY$39,2),SUM($AV102:BC102),0)+IF(RIGHT(BY$39,2)>RIGHT($K102,2),BC102,0)) -> 0 | BZ102: =+IF($K102="Ongoing",BD102,IF(RIGHT($K102,2)=RIGHT(BZ$39,2),SUM($AV102:BD102),0)+IF(RIGHT(BZ$39,2)>RIGHT($K102,2),BD102,0)) -> 0 | CA102: =+IF($K102="Ongoing",BE102,IF(RIGHT($K102,2)=RIGHT(CA$39,2),SUM($AV102:BE102),0)+IF(RIGHT(CA$39,2)>RIGHT($K102,2),BE102,0)) -> 0 | CC102: =+O102*KeyAssumptionsPriceControl_FO!X$15 -> 0 | CD102: =+P102*KeyAssumptionsPriceControl_FO!Y$15 -> 0 | CE102: =+Q102*KeyAssumptionsPriceControl_FO!Z$15 -> 0 | CF102: =+R102*KeyAssumptionsPriceControl_FO!AA$15 -> 0 | CG102: =+S102*KeyAssumptionsPriceControl_FO!AB$15 -> 0 | CH102: =+T102*KeyAssumptionsPriceControl_FO!AC$15 -> 0 | CI102: =+U102*KeyAssumptionsPriceControl_FO!AD$15 -> 0 | CJ102: =+V102*KeyAssumptionsPriceControl_FO!AE$15 -> 0 | CK102: =+W102*KeyAssumptionsPriceControl_FO!AF$15 -> 0 | CL102: =+X102*KeyAssumptionsPriceControl_FO!AG$15 -> 0 | CN102: 0 | CO102: 0 | CP102: 0 | CQ102: 0 | CR102: 0 | CS102: 0 | CT102: 0 | CU102: 0 | CV102: 0 | CW102: 0
C103: [Capex Item - Significant Project / Capital Program / Other Capex] | E103: [Service] | F103: [Major Cost Driver] | G103: [Asset category] | H103: [Capital type] | J103: Straight line | K103: [Year finalised?] | AV103: 0 | AW103: 0 | AX103: 0 | AY103: 0 | AZ103: 0 | BA103: 0 | BB103: 0 | BC103: 0 | BD103: 0 | BE103: 0 | BG103: 0 | BH103: 0 | BI103: 0 | BJ103: 0 | BK103: 0 | BL103: 0 | BM103: 0 | BN103: 0 | BO103: 0 | BP103: 0 | BR103: =+IF($K103="Ongoing",AV103,IF(RIGHT($K103,2)=RIGHT(BR$39,2),SUM($AV103:AV103),0)+IF(RIGHT(BR$39,2)>RIGHT($K103,2),AV103,0)) -> 0 | BS103: =+IF($K103="Ongoing",AW103,IF(RIGHT($K103,2)=RIGHT(BS$39,2),SUM($AV103:AW103),0)+IF(RIGHT(BS$39,2)>RIGHT($K103,2),AW103,0)) -> 0 | BT103: =+IF($K103="Ongoing",AX103,IF(RIGHT($K103,2)=RIGHT(BT$39,2),SUM($AV103:AX103),0)+IF(RIGHT(BT$39,2)>RIGHT($K103,2),AX103,0)) -> 0 | BU103: =+IF($K103="Ongoing",AY103,IF(RIGHT($K103,2)=RIGHT(BU$39,2),SUM($AV103:AY103),0)+IF(RIGHT(BU$39,2)>RIGHT($K103,2),AY103,0)) -> 0 | BV103: =+IF($K103="Ongoing",AZ103,IF(RIGHT($K103,2)=RIGHT(BV$39,2),SUM($AV103:AZ103),0)+IF(RIGHT(BV$39,2)>RIGHT($K103,2),AZ103,0)) -> 0 | BW103: =+IF($K103="Ongoing",BA103,IF(RIGHT($K103,2)=RIGHT(BW$39,2),SUM($AV103:BA103),0)+IF(RIGHT(BW$39,2)>RIGHT($K103,2),BA103,0)) -> 0 | BX103: =+IF($K103="Ongoing",BB103,IF(RIGHT($K103,2)=RIGHT(BX$39,2),SUM($AV103:BB103),0)+IF(RIGHT(BX$39,2)>RIGHT($K103,2),BB103,0)) -> 0 | BY103: =+IF($K103="Ongoing",BC103,IF(RIGHT($K103,2)=RIGHT(BY$39,2),SUM($AV103:BC103),0)+IF(RIGHT(BY$39,2)>RIGHT($K103,2),BC103,0)) -> 0 | BZ103: =+IF($K103="Ongoing",BD103,IF(RIGHT($K103,2)=RIGHT(BZ$39,2),SUM($AV103:BD103),0)+IF(RIGHT(BZ$39,2)>RIGHT($K103,2),BD103,0)) -> 0 | CA103: =+IF($K103="Ongoing",BE103,IF(RIGHT($K103,2)=RIGHT(CA$39,2),SUM($AV103:BE103),0)+IF(RIGHT(CA$39,2)>RIGHT($K103,2),BE103,0)) -> 0 | CC103: =+O103*KeyAssumptionsPriceControl_FO!X$15 -> 0 | CD103: =+P103*KeyAssumptionsPriceControl_FO!Y$15 -> 0 | CE103: =+Q103*KeyAssumptionsPriceControl_FO!Z$15 -> 0 | CF103: =+R103*KeyAssumptionsPriceControl_FO!AA$15 -> 0 | CG103: =+S103*KeyAssumptionsPriceControl_FO!AB$15 -> 0 | CH103: =+T103*KeyAssumptionsPriceControl_FO!AC$15 -> 0 | CI103: =+U103*KeyAssumptionsPriceControl_FO!AD$15 -> 0 | CJ103: =+V103*KeyAssumptionsPriceControl_FO!AE$15 -> 0 | CK103: =+W103*KeyAssumptionsPriceControl_FO!AF$15 -> 0 | CL103: =+X103*KeyAssumptionsPriceControl_FO!AG$15 -> 0 | CN103: 0 | CO103: 0 | CP103: 0 | CQ103: 0 | CR103: 0 | CS103: 0 | CT103: 0 | CU103: 0 | CV103: 0 | CW103: 0
C104: [Capex Item - Significant Project / Capital Program / Other Capex] | E104: [Service] | F104: [Major Cost Driver] | G104: [Asset category] | H104: [Capital type] | J104: Straight line | K104: [Year finalised?] | AV104: 0 | AW104: 0 | AX104: 0 | AY104: 0 | AZ104: 0 | BA104: 0 | BB104: 0 | BC104: 0 | BD104: 0 | BE104: 0 | BG104: 0 | BH104: 0 | BI104: 0 | BJ104: 0 | BK104: 0 | BL104: 0 | BM104: 0 | BN104: 0 | BO104: 0 | BP104: 0 | BR104: =+IF($K104="Ongoing",AV104,IF(RIGHT($K104,2)=RIGHT(BR$39,2),SUM($AV104:AV104),0)+IF(RIGHT(BR$39,2)>RIGHT($K104,2),AV104,0)) -> 0 | BS104: =+IF($K104="Ongoing",AW104,IF(RIGHT($K104,2)=RIGHT(BS$39,2),SUM($AV104:AW104),0)+IF(RIGHT(BS$39,2)>RIGHT($K104,2),AW104,0)) -> 0 | BT104: =+IF($K104="Ongoing",AX104,IF(RIGHT($K104,2)=RIGHT(BT$39,2),SUM($AV104:AX104),0)+IF(RIGHT(BT$39,2)>RIGHT($K104,2),AX104,0)) -> 0 | BU104: =+IF($K104="Ongoing",AY104,IF(RIGHT($K104,2)=RIGHT(BU$39,2),SUM($AV104:AY104),0)+IF(RIGHT(BU$39,2)>RIGHT($K104,2),AY104,0)) -> 0 | BV104: =+IF($K104="Ongoing",AZ104,IF(RIGHT($K104,2)=RIGHT(BV$39,2),SUM($AV104:AZ104),0)+IF(RIGHT(BV$39,2)>RIGHT($K104,2),AZ104,0)) -> 0 | BW104: =+IF($K104="Ongoing",BA104,IF(RIGHT($K104,2)=RIGHT(BW$39,2),SUM($AV104:BA104),0)+IF(RIGHT(BW$39,2)>RIGHT($K104,2),BA104,0)) -> 0 | BX104: =+IF($K104="Ongoing",BB104,IF(RIGHT($K104,2)=RIGHT(BX$39,2),SUM($AV104:BB104),0)+IF(RIGHT(BX$39,2)>RIGHT($K104,2),BB104,0)) -> 0 | BY104: =+IF($K104="Ongoing",BC104,IF(RIGHT($K104,2)=RIGHT(BY$39,2),SUM($AV104:BC104),0)+IF(RIGHT(BY$39,2)>RIGHT($K104,2),BC104,0)) -> 0 | BZ104: =+IF($K104="Ongoing",BD104,IF(RIGHT($K104,2)=RIGHT(BZ$39,2),SUM($AV104:BD104),0)+IF(RIGHT(BZ$39,2)>RIGHT($K104,2),BD104,0)) -> 0 | CA104: =+IF($K104="Ongoing",BE104,IF(RIGHT($K104,2)=RIGHT(CA$39,2),SUM($AV104:BE104),0)+IF(RIGHT(CA$39,2)>RIGHT($K104,2),BE104,0)) -> 0 | CC104: =+O104*KeyAssumptionsPriceControl_FO!X$15 -> 0 | CD104: =+P104*KeyAssumptionsPriceControl_FO!Y$15 -> 0 | CE104: =+Q104*KeyAssumptionsPriceControl_FO!Z$15 -> 0 | CF104: =+R104*KeyAssumptionsPriceControl_FO!AA$15 -> 0 | CG104: =+S104*KeyAssumptionsPriceControl_FO!AB$15 -> 0 | CH104: =+T104*KeyAssumptionsPriceControl_FO!AC$15 -> 0 | CI104: =+U104*KeyAssumptionsPriceControl_FO!AD$15 -> 0 | CJ104: =+V104*KeyAssumptionsPriceControl_FO!AE$15 -> 0 | CK104: =+W104*KeyAssumptionsPriceControl_FO!AF$15 -> 0 | CL104: =+X104*KeyAssumptionsPriceControl_FO!AG$15 -> 0 | CN104: 0 | CO104: 0 | CP104: 0 | CQ104: 0 | CR104: 0 | CS104: 0 | CT104: 0 | CU104: 0 | CV104: 0 | CW104: 0
C105: [Capex Item - Significant Project / Capital Program / Other Capex] | E105: [Service] | F105: [Major Cost Driver] | G105: [Asset category] | H105: [Capital type] | J105: Straight line | K105: [Year finalised?] | AV105: 0 | AW105: 0 | AX105: 0 | AY105: 0 | AZ105: 0 | BA105: 0 | BB105: 0 | BC105: 0 | BD105: 0 | BE105: 0 | BG105: 0 | BH105: 0 | BI105: 0 | BJ105: 0 | BK105: 0 | BL105: 0 | BM105: 0 | BN105: 0 | BO105: 0 | BP105: 0 | BR105: =+IF($K105="Ongoing",AV105,IF(RIGHT($K105,2)=RIGHT(BR$39,2),SUM($AV105:AV105),0)+IF(RIGHT(BR$39,2)>RIGHT($K105,2),AV105,0)) -> 0 | BS105: =+IF($K105="Ongoing",AW105,IF(RIGHT($K105,2)=RIGHT(BS$39,2),SUM($AV105:AW105),0)+IF(RIGHT(BS$39,2)>RIGHT($K105,2),AW105,0)) -> 0 | BT105: =+IF($K105="Ongoing",AX105,IF(RIGHT($K105,2)=RIGHT(BT$39,2),SUM($AV105:AX105),0)+IF(RIGHT(BT$39,2)>RIGHT($K105,2),AX105,0)) -> 0 | BU105: =+IF($K105="Ongoing",AY105,IF(RIGHT($K105,2)=RIGHT(BU$39,2),SUM($AV105:AY105),0)+IF(RIGHT(BU$39,2)>RIGHT($K105,2),AY105,0)) -> 0 | BV105: =+IF($K105="Ongoing",AZ105,IF(RIGHT($K105,2)=RIGHT(BV$39,2),SUM($AV105:AZ105),0)+IF(RIGHT(BV$39,2)>RIGHT($K105,2),AZ105,0)) -> 0 | BW105: =+IF($K105="Ongoing",BA105,IF(RIGHT($K105,2)=RIGHT(BW$39,2),SUM($AV105:BA105),0)+IF(RIGHT(BW$39,2)>RIGHT($K105,2),BA105,0)) -> 0 | BX105: =+IF($K105="Ongoing",BB105,IF(RIGHT($K105,2)=RIGHT(BX$39,2),SUM($AV105:BB105),0)+IF(RIGHT(BX$39,2)>RIGHT($K105,2),BB105,0)) -> 0 | BY105: =+IF($K105="Ongoing",BC105,IF(RIGHT($K105,2)=RIGHT(BY$39,2),SUM($AV105:BC105),0)+IF(RIGHT(BY$39,2)>RIGHT($K105,2),BC105,0)) -> 0 | BZ105: =+IF($K105="Ongoing",BD105,IF(RIGHT($K105,2)=RIGHT(BZ$39,2),SUM($AV105:BD105),0)+IF(RIGHT(BZ$39,2)>RIGHT($K105,2),BD105,0)) -> 0 | CA105: =+IF($K105="Ongoing",BE105,IF(RIGHT($K105,2)=RIGHT(CA$39,2),SUM($AV105:BE105),0)+IF(RIGHT(CA$39,2)>RIGHT($K105,2),BE105,0)) -> 0 | CC105: =+O105*KeyAssumptionsPriceControl_FO!X$15 -> 0 | CD105: =+P105*KeyAssumptionsPriceControl_FO!Y$15 -> 0 | CE105: =+Q105*KeyAssumptionsPriceControl_FO!Z$15 -> 0 | CF105: =+R105*KeyAssumptionsPriceControl_FO!AA$15 -> 0 | CG105: =+S105*KeyAssumptionsPriceControl_FO!AB$15 -> 0 | CH105: =+T105*KeyAssumptionsPriceControl_FO!AC$15 -> 0 | CI105: =+U105*KeyAssumptionsPriceControl_FO!AD$15 -> 0 | CJ105: =+V105*KeyAssumptionsPriceControl_FO!AE$15 -> 0 | CK105: =+W105*KeyAssumptionsPriceControl_FO!AF$15 -> 0 | CL105: =+X105*KeyAssumptionsPriceControl_FO!AG$15 -> 0 | CN105: 0 | CO105: 0 | CP105: 0 | CQ105: 0 | CR105: 0 | CS105: 0 | CT105: 0 | CU105: 0 | CV105: 0 | CW105: 0
C106: [Capex Item - Significant Project / Capital Program / Other Capex] | E106: [Service] | F106: [Major Cost Driver] | G106: [Asset category] | H106: [Capital type] | J106: Straight line | K106: [Year finalised?] | AV106: 0 | AW106: 0 | AX106: 0 | AY106: 0 | AZ106: 0 | BA106: 0 | BB106: 0 | BC106: 0 | BD106: 0 | BE106: 0 | BG106: 0 | BH106: 0 | BI106: 0 | BJ106: 0 | BK106: 0 | BL106: 0 | BM106: 0 | BN106: 0 | BO106: 0 | BP106: 0 | BR106: =+IF($K106="Ongoing",AV106,IF(RIGHT($K106,2)=RIGHT(BR$39,2),SUM($AV106:AV106),0)+IF(RIGHT(BR$39,2)>RIGHT($K106,2),AV106,0)) -> 0 | BS106: =+IF($K106="Ongoing",AW106,IF(RIGHT($K106,2)=RIGHT(BS$39,2),SUM($AV106:AW106),0)+IF(RIGHT(BS$39,2)>RIGHT($K106,2),AW106,0)) -> 0 | BT106: =+IF($K106="Ongoing",AX106,IF(RIGHT($K106,2)=RIGHT(BT$39,2),SUM($AV106:AX106),0)+IF(RIGHT(BT$39,2)>RIGHT($K106,2),AX106,0)) -> 0 | BU106: =+IF($K106="Ongoing",AY106,IF(RIGHT($K106,2)=RIGHT(BU$39,2),SUM($AV106:AY106),0)+IF(RIGHT(BU$39,2)>RIGHT($K106,2),AY106,0)) -> 0 | BV106: =+IF($K106="Ongoing",AZ106,IF(RIGHT($K106,2)=RIGHT(BV$39,2),SUM($AV106:AZ106),0)+IF(RIGHT(BV$39,2)>RIGHT($K106,2),AZ106,0)) -> 0 | BW106: =+IF($K106="Ongoing",BA106,IF(RIGHT($K106,2)=RIGHT(BW$39,2),SUM($AV106:BA106),0)+IF(RIGHT(BW$39,2)>RIGHT($K106,2),BA106,0)) -> 0 | BX106: =+IF($K106="Ongoing",BB106,IF(RIGHT($K106,2)=RIGHT(BX$39,2),SUM($AV106:BB106),0)+IF(RIGHT(BX$39,2)>RIGHT($K106,2),BB106,0)) -> 0 | BY106: =+IF($K106="Ongoing",BC106,IF(RIGHT($K106,2)=RIGHT(BY$39,2),SUM($AV106:BC106),0)+IF(RIGHT(BY$39,2)>RIGHT($K106,2),BC106,0)) -> 0 | BZ106: =+IF($K106="Ongoing",BD106,IF(RIGHT($K106,2)=RIGHT(BZ$39,2),SUM($AV106:BD106),0)+IF(RIGHT(BZ$39,2)>RIGHT($K106,2),BD106,0)) -> 0 | CA106: =+IF($K106="Ongoing",BE106,IF(RIGHT($K106,2)=RIGHT(CA$39,2),SUM($AV106:BE106),0)+IF(RIGHT(CA$39,2)>RIGHT($K106,2),BE106,0)) -> 0 | CC106: =+O106*KeyAssumptionsPriceControl_FO!X$15 -> 0 | CD106: =+P106*KeyAssumptionsPriceControl_FO!Y$15 -> 0 | CE106: =+Q106*KeyAssumptionsPriceControl_FO!Z$15 -> 0 | CF106: =+R106*KeyAssumptionsPriceControl_FO!AA$15 -> 0 | CG106: =+S106*KeyAssumptionsPriceControl_FO!AB$15 -> 0 | CH106: =+T106*KeyAssumptionsPriceControl_FO!AC$15 -> 0 | CI106: =+U106*KeyAssumptionsPriceControl_FO!AD$15 -> 0 | CJ106: =+V106*KeyAssumptionsPriceControl_FO!AE$15 -> 0 | CK106: =+W106*KeyAssumptionsPriceControl_FO!AF$15 -> 0 | CL106: =+X106*KeyAssumptionsPriceControl_FO!AG$15 -> 0 | CN106: 0 | CO106: 0 | CP106: 0 | CQ106: 0 | CR106: 0 | CS106: 0 | CT106: 0 | CU106: 0 | CV106: 0 | CW106: 0
C107: [Capex Item - Significant Project / Capital Program / Other Capex] | E107: [Service] | F107: [Major Cost Driver] | G107: [Asset category] | H107: [Capital type] | J107: Straight line | K107: [Year finalised?] | AV107: 0 | AW107: 0 | AX107: 0 | AY107: 0 | AZ107: 0 | BA107: 0 | BB107: 0 | BC107: 0 | BD107: 0 | BE107: 0 | BG107: =IF($L107=0,0, IF($L107<=0.5,BR107, IF($J107="straight line", IF((LEFT(BG$39,4)*1)-INT($L107)<LEFT($BG$39,4)*1,0,((OFFSET(BR107,0,-INT($L107+0.5),1,1))/$L107)*(IF($L107-INT($L107)>0.5,$L107-0.5-INT($L107),IF($L107-INT($L107)<=0.5,$L107-0.5-INT($L107)+1,0)))) +BR107/$L107*0.5, IF($J107="Declining Balance",-$BG$38,0)))) -> 0 | BH107: 0 | BI107: 0 | BJ107: 0 | BK107: 0 | BL107: 0 | BM107: 0 | BN107: 0 | BO107: 0 | BP107: 0 | BR107: =+IF($K107="Ongoing",AV107,IF(RIGHT($K107,2)=RIGHT(BR$39,2),SUM($AV107:AV107),0)+IF(RIGHT(BR$39,2)>RIGHT($K107,2),AV107,0)) -> 0 | BS107: =+IF($K107="Ongoing",AW107,IF(RIGHT($K107,2)=RIGHT(BS$39,2),SUM($AV107:AW107),0)+IF(RIGHT(BS$39,2)>RIGHT($K107,2),AW107,0)) -> 0 | BT107: =+IF($K107="Ongoing",AX107,IF(RIGHT($K107,2)=RIGHT(BT$39,2),SUM($AV107:AX107),0)+IF(RIGHT(BT$39,2)>RIGHT($K107,2),AX107,0)) -> 0 | BU107: =+IF($K107="Ongoing",AY107,IF(RIGHT($K107,2)=RIGHT(BU$39,2),SUM($AV107:AY107),0)+IF(RIGHT(BU$39,2)>RIGHT($K107,2),AY107,0)) -> 0 | BV107: =+IF($K107="Ongoing",AZ107,IF(RIGHT($K107,2)=RIGHT(BV$39,2),SUM($AV107:AZ107),0)+IF(RIGHT(BV$39,2)>RIGHT($K107,2),AZ107,0)) -> 0 | BW107: =+IF($K107="Ongoing",BA107,IF(RIGHT($K107,2)=RIGHT(BW$39,2),SUM($AV107:BA107),0)+IF(RIGHT(BW$39,2)>RIGHT($K107,2),BA107,0)) -> 0 | BX107: =+IF($K107="Ongoing",BB107,IF(RIGHT($K107,2)=RIGHT(BX$39,2),SUM($AV107:BB107),0)+IF(RIGHT(BX$39,2)>RIGHT($K107,2),BB107,0)) -> 0 | BY107: =+IF($K107="Ongoing",BC107,IF(RIGHT($K107,2)=RIGHT(BY$39,2),SUM($AV107:BC107),0)+IF(RIGHT(BY$39,2)>RIGHT($K107,2),BC107,0)) -> 0 | BZ107: =+IF($K107="Ongoing",BD107,IF(RIGHT($K107,2)=RIGHT(BZ$39,2),SUM($AV107:BD107),0)+IF(RIGHT(BZ$39,2)>RIGHT($K107,2),BD107,0)) -> 0 | CA107: =+IF($K107="Ongoing",BE107,IF(RIGHT($K107,2)=RIGHT(CA$39,2),SUM($AV107:BE107),0)+IF(RIGHT(CA$39,2)>RIGHT($K107,2),BE107,0)) -> 0 | CC107: =+O107*KeyAssumptionsPriceControl_FO!X$15 -> 0 | CD107: =+P107*KeyAssumptionsPriceControl_FO!Y$15 -> 0 | CE107: =+Q107*KeyAssumptionsPriceControl_FO!Z$15 -> 0 | CF107: =+R107*KeyAssumptionsPriceControl_FO!AA$15 -> 0 | CG107: =+S107*KeyAssumptionsPriceControl_FO!AB$15 -> 0 | CH107: =+T107*KeyAssumptionsPriceControl_FO!AC$15 -> 0 | CI107: =+U107*KeyAssumptionsPriceControl_FO!AD$15 -> 0 | CJ107: =+V107*KeyAssumptionsPriceControl_FO!AE$15 -> 0 | CK107: =+W107*KeyAssumptionsPriceControl_FO!AF$15 -> 0 | CL107: =+X107*KeyAssumptionsPriceControl_FO!AG$15 -> 0 | CN107: =IF($M107=0,0, IF($M107<=0.5,CC107, IF($J107="straight line", IF((LEFT(CN$39,4)*1)-INT($M107)<LEFT($CN$39,4)*1,0,((OFFSET(CC107,0,-INT($M107+0.5),1,1))/$M107)*(IF($M107-INT($M107)>0.5,$M107-0.5-INT($M107),IF($M107-INT($M107)<=0.5,$M107-0.5-INT($M107)+1,0)))) +CC107/$M107*0.5, IF($J107="Declining Balance",-$CN$38,0)))) -> 0 | CO107: 0 | CP107: 0 | CQ107: 0 | CR107: 0 | CS107: 0 | CT107: 0 | CU107: 0 | CV107: 0 | CW107: 0
C108: [Capex Item - Significant Project / Capital Program / Other Capex] | E108: [Service] | F108: [Major Cost Driver] | G108: [Asset category] | H108: [Capital type] | J108: Straight line | K108: [Year finalised?] | AV108: 0 | AW108: 0 | AX108: 0 | AY108: 0 | AZ108: 0 | BA108: 0 | BB108: 0 | BC108: 0 | BD108: 0 | BE108: 0 | BG108: 0 | BH108: 0 | BI108: 0 | BJ108: 0 | BK108: 0 | BL108: 0 | BM108: 0 | BN108: 0 | BO108: 0 | BP108: 0 | BR108: =+IF($K108="Ongoing",AV108,IF(RIGHT($K108,2)=RIGHT(BR$39,2),SUM($AV108:AV108),0)+IF(RIGHT(BR$39,2)>RIGHT($K108,2),AV108,0)) -> 0 | BS108: =+IF($K108="Ongoing",AW108,IF(RIGHT($K108,2)=RIGHT(BS$39,2),SUM($AV108:AW108),0)+IF(RIGHT(BS$39,2)>RIGHT($K108,2),AW108,0)) -> 0 | BT108: =+IF($K108="Ongoing",AX108,IF(RIGHT($K108,2)=RIGHT(BT$39,2),SUM($AV108:AX108),0)+IF(RIGHT(BT$39,2)>RIGHT($K108,2),AX108,0)) -> 0 | BU108: =+IF($K108="Ongoing",AY108,IF(RIGHT($K108,2)=RIGHT(BU$39,2),SUM($AV108:AY108),0)+IF(RIGHT(BU$39,2)>RIGHT($K108,2),AY108,0)) -> 0 | BV108: =+IF($K108="Ongoing",AZ108,IF(RIGHT($K108,2)=RIGHT(BV$39,2),SUM($AV108:AZ108),0)+IF(RIGHT(BV$39,2)>RIGHT($K108,2),AZ108,0)) -> 0 | BW108: =+IF($K108="Ongoing",BA108,IF(RIGHT($K108,2)=RIGHT(BW$39,2),SUM($AV108:BA108),0)+IF(RIGHT(BW$39,2)>RIGHT($K108,2),BA108,0)) -> 0 | BX108: =+IF($K108="Ongoing",BB108,IF(RIGHT($K108,2)=RIGHT(BX$39,2),SUM($AV108:BB108),0)+IF(RIGHT(BX$39,2)>RIGHT($K108,2),BB108,0)) -> 0 | BY108: =+IF($K108="Ongoing",BC108,IF(RIGHT($K108,2)=RIGHT(BY$39,2),SUM($AV108:BC108),0)+IF(RIGHT(BY$39,2)>RIGHT($K108,2),BC108,0)) -> 0 | BZ108: =+IF($K108="Ongoing",BD108,IF(RIGHT($K108,2)=RIGHT(BZ$39,2),SUM($AV108:BD108),0)+IF(RIGHT(BZ$39,2)>RIGHT($K108,2),BD108,0)) -> 0 | CA108: =+IF($K108="Ongoing",BE108,IF(RIGHT($K108,2)=RIGHT(CA$39,2),SUM($AV108:BE108),0)+IF(RIGHT(CA$39,2)>RIGHT($K108,2),BE108,0)) -> 0 | CC108: =+O108*KeyAssumptionsPriceControl_FO!X$15 -> 0 | CD108: =+P108*KeyAssumptionsPriceControl_FO!Y$15 -> 0 | CE108: =+Q108*KeyAssumptionsPriceControl_FO!Z$15 -> 0 | CF108: =+R108*KeyAssumptionsPriceControl_FO!AA$15 -> 0 | CG108: =+S108*KeyAssumptionsPriceControl_FO!AB$15 -> 0 | CH108: =+T108*KeyAssumptionsPriceControl_FO!AC$15 -> 0 | CI108: =+U108*KeyAssumptionsPriceControl_FO!AD$15 -> 0 | CJ108: =+V108*KeyAssumptionsPriceControl_FO!AE$15 -> 0 | CK108: =+W108*KeyAssumptionsPriceControl_FO!AF$15 -> 0 | CL108: =+X108*KeyAssumptionsPriceControl_FO!AG$15 -> 0 | CN108: 0 | CO108: 0 | CP108: 0 | CQ108: 0 | CR108: 0 | CS108: 0 | CT108: 0 | CU108: 0 | CV108: 0 | CW108: 0
C109: [Capex Item - Significant Project / Capital Program / Other Capex] | E109: [Service] | F109: [Major Cost Driver] | G109: [Asset category] | H109: [Capital type] | J109: Straight line | K109: [Year finalised?] | AV109: 0 | AW109: 0 | AX109: 0 | AY109: 0 | AZ109: 0 | BA109: 0 | BB109: 0 | BC109: 0 | BD109: 0 | BE109: 0 | BG109: 0 | BH109: 0 | BI109: 0 | BJ109: 0 | BK109: 0 | BL109: 0 | BM109: 0 | BN109: 0 | BO109: 0 | BP109: 0 | BR109: =+IF($K109="Ongoing",AV109,IF(RIGHT($K109,2)=RIGHT(BR$39,2),SUM($AV109:AV109),0)+IF(RIGHT(BR$39,2)>RIGHT($K109,2),AV109,0)) -> 0 | BS109: =+IF($K109="Ongoing",AW109,IF(RIGHT($K109,2)=RIGHT(BS$39,2),SUM($AV109:AW109),0)+IF(RIGHT(BS$39,2)>RIGHT($K109,2),AW109,0)) -> 0 | BT109: =+IF($K109="Ongoing",AX109,IF(RIGHT($K109,2)=RIGHT(BT$39,2),SUM($AV109:AX109),0)+IF(RIGHT(BT$39,2)>RIGHT($K109,2),AX109,0)) -> 0 | BU109: =+IF($K109="Ongoing",AY109,IF(RIGHT($K109,2)=RIGHT(BU$39,2),SUM($AV109:AY109),0)+IF(RIGHT(BU$39,2)>RIGHT($K109,2),AY109,0)) -> 0 | BV109: =+IF($K109="Ongoing",AZ109,IF(RIGHT($K109,2)=RIGHT(BV$39,2),SUM($AV109:AZ109),0)+IF(RIGHT(BV$39,2)>RIGHT($K109,2),AZ109,0)) -> 0 | BW109: =+IF($K109="Ongoing",BA109,IF(RIGHT($K109,2)=RIGHT(BW$39,2),SUM($AV109:BA109),0)+IF(RIGHT(BW$39,2)>RIGHT($K109,2),BA109,0)) -> 0 | BX109: =+IF($K109="Ongoing",BB109,IF(RIGHT($K109,2)=RIGHT(BX$39,2),SUM($AV109:BB109),0)+IF(RIGHT(BX$39,2)>RIGHT($K109,2),BB109,0)) -> 0 | BY109: =+IF($K109="Ongoing",BC109,IF(RIGHT($K109,2)=RIGHT(BY$39,2),SUM($AV109:BC109),0)+IF(RIGHT(BY$39,2)>RIGHT($K109,2),BC109,0)) -> 0 | BZ109: =+IF($K109="Ongoing",BD109,IF(RIGHT($K109,2)=RIGHT(BZ$39,2),SUM($AV109:BD109),0)+IF(RIGHT(BZ$39,2)>RIGHT($K109,2),BD109,0)) -> 0 | CA109: =+IF($K109="Ongoing",BE109,IF(RIGHT($K109,2)=RIGHT(CA$39,2),SUM($AV109:BE109),0)+IF(RIGHT(CA$39,2)>RIGHT($K109,2),BE109,0)) -> 0 | CC109: =+O109*KeyAssumptionsPriceControl_FO!X$15 -> 0 | CD109: =+P109*KeyAssumptionsPriceControl_FO!Y$15 -> 0 | CE109: =+Q109*KeyAssumptionsPriceControl_FO!Z$15 -> 0 | CF109: =+R109*KeyAssumptionsPriceControl_FO!AA$15 -> 0 | CG109: =+S109*KeyAssumptionsPriceControl_FO!AB$15 -> 0 | CH109: =+T109*KeyAssumptionsPriceControl_FO!AC$15 -> 0 | CI109: =+U109*KeyAssumptionsPriceControl_FO!AD$15 -> 0 | CJ109: =+V109*KeyAssumptionsPriceControl_FO!AE$15 -> 0 | CK109: =+W109*KeyAssumptionsPriceControl_FO!AF$15 -> 0 | CL109: =+X109*KeyAssumptionsPriceControl_FO!AG$15 -> 0 | CN109: 0 | CO109: 0 | CP109: 0 | CQ109: 0 | CR109: 0 | CS109: 0 | CT109: 0 | CU109: 0 | CV109: 0 | CW109: 0
C110: [Capex Item - Significant Project / Capital Program / Other Capex] | E110: [Service] | F110: [Major Cost Driver] | G110: [Asset category] | H110: [Capital type] | J110: Straight line | K110: [Year finalised?] | AV110: 0 | AW110: 0 | AX110: 0 | AY110: 0 | AZ110: =+S110-AD110-AO110 -> 0 | BA110: 0 | BB110: 0 | BC110: 0 | BD110: 0 | BE110: 0 | BG110: 0 | BH110: 0 | BI110: 0 | BJ110: 0 | BK110: 0 | BL110: 0 | BM110: 0 | BN110: 0 | BO110: 0 | BP110: 0 | BR110: =+IF($K110="Ongoing",AV110,IF(RIGHT($K110,2)=RIGHT(BR$39,2),SUM($AV110:AV110),0)+IF(RIGHT(BR$39,2)>RIGHT($K110,2),AV110,0)) -> 0 | BS110: =+IF($K110="Ongoing",AW110,IF(RIGHT($K110,2)=RIGHT(BS$39,2),SUM($AV110:AW110),0)+IF(RIGHT(BS$39,2)>RIGHT($K110,2),AW110,0)) -> 0 | BT110: =+IF($K110="Ongoing",AX110,IF(RIGHT($K110,2)=RIGHT(BT$39,2),SUM($AV110:AX110),0)+IF(RIGHT(BT$39,2)>RIGHT($K110,2),AX110,0)) -> 0 | BU110: =+IF($K110="Ongoing",AY110,IF(RIGHT($K110,2)=RIGHT(BU$39,2),SUM($AV110:AY110),0)+IF(RIGHT(BU$39,2)>RIGHT($K110,2),AY110,0)) -> 0 | BV110: =+IF($K110="Ongoing",AZ110,IF(RIGHT($K110,2)=RIGHT(BV$39,2),SUM($AV110:AZ110),0)+IF(RIGHT(BV$39,2)>RIGHT($K110,2),AZ110,0)) -> 0 | BW110: =+IF($K110="Ongoing",BA110,IF(RIGHT($K110,2)=RIGHT(BW$39,2),SUM($AV110:BA110),0)+IF(RIGHT(BW$39,2)>RIGHT($K110,2),BA110,0)) -> 0 | BX110: =+IF($K110="Ongoing",BB110,IF(RIGHT($K110,2)=RIGHT(BX$39,2),SUM($AV110:BB110),0)+IF(RIGHT(BX$39,2)>RIGHT($K110,2),BB110,0)) -> 0 | BY110: =+IF($K110="Ongoing",BC110,IF(RIGHT($K110,2)=RIGHT(BY$39,2),SUM($AV110:BC110),0)+IF(RIGHT(BY$39,2)>RIGHT($K110,2),BC110,0)) -> 0 | BZ110: =+IF($K110="Ongoing",BD110,IF(RIGHT($K110,2)=RIGHT(BZ$39,2),SUM($AV110:BD110),0)+IF(RIGHT(BZ$39,2)>RIGHT($K110,2),BD110,0)) -> 0 | CA110: =+IF($K110="Ongoing",BE110,IF(RIGHT($K110,2)=RIGHT(CA$39,2),SUM($AV110:BE110),0)+IF(RIGHT(CA$39,2)>RIGHT($K110,2),BE110,0)) -> 0 | CC110: =+O110*KeyAssumptionsPriceControl_FO!X$15 -> 0 | CD110: =+P110*KeyAssumptionsPriceControl_FO!Y$15 -> 0 | CE110: =+Q110*KeyAssumptionsPriceControl_FO!Z$15 -> 0 | CF110: =+R110*KeyAssumptionsPriceControl_FO!AA$15 -> 0 | CG110: =+S110*KeyAssumptionsPriceControl_FO!AB$15 -> 0 | CH110: =+T110*KeyAssumptionsPriceControl_FO!AC$15 -> 0 | CI110: =+U110*KeyAssumptionsPriceControl_FO!AD$15 -> 0 | CJ110: =+V110*KeyAssumptionsPriceControl_FO!AE$15 -> 0 | CK110: =+W110*KeyAssumptionsPriceControl_FO!AF$15 -> 0 | CL110: =+X110*KeyAssumptionsPriceControl_FO!AG$15 -> 0 | CN110: 0 | CO110: 0 | CP110: 0 | CQ110: 0 | CR110: 0 | CS110: 0 | CT110: 0 | CU110: 0 | CV110: 0 | CW110: 0
C111: [Capex Item - Significant Project / Capital Program / Other Capex] | E111: [Service] | F111: [Major Cost Driver] | G111: [Asset category] | H111: [Capital type] | J111: Straight line | K111: [Year finalised?] | AV111: 0 | AW111: 0 | AX111: 0 | AY111: 0 | AZ111: 0 | BA111: 0 | BB111: 0 | BC111: 0 | BD111: 0 | BE111: 0 | BG111: 0 | BH111: 0 | BI111: 0 | BJ111: 0 | BK111: 0 | BL111: 0 | BM111: 0 | BN111: 0 | BO111: 0 | BP111: 0 | BR111: =+IF($K111="Ongoing",AV111,IF(RIGHT($K111,2)=RIGHT(BR$39,2),SUM($AV111:AV111),0)+IF(RIGHT(BR$39,2)>RIGHT($K111,2),AV111,0)) -> 0 | BS111: =+IF($K111="Ongoing",AW111,IF(RIGHT($K111,2)=RIGHT(BS$39,2),SUM($AV111:AW111),0)+IF(RIGHT(BS$39,2)>RIGHT($K111,2),AW111,0)) -> 0 | BT111: =+IF($K111="Ongoing",AX111,IF(RIGHT($K111,2)=RIGHT(BT$39,2),SUM($AV111:AX111),0)+IF(RIGHT(BT$39,2)>RIGHT($K111,2),AX111,0)) -> 0 | BU111: =+IF($K111="Ongoing",AY111,IF(RIGHT($K111,2)=RIGHT(BU$39,2),SUM($AV111:AY111),0)+IF(RIGHT(BU$39,2)>RIGHT($K111,2),AY111,0)) -> 0 | BV111: =+IF($K111="Ongoing",AZ111,IF(RIGHT($K111,2)=RIGHT(BV$39,2),SUM($AV111:AZ111),0)+IF(RIGHT(BV$39,2)>RIGHT($K111,2),AZ111,0)) -> 0 | BW111: =+IF($K111="Ongoing",BA111,IF(RIGHT($K111,2)=RIGHT(BW$39,2),SUM($AV111:BA111),0)+IF(RIGHT(BW$39,2)>RIGHT($K111,2),BA111,0)) -> 0 | BX111: =+IF($K111="Ongoing",BB111,IF(RIGHT($K111,2)=RIGHT(BX$39,2),SUM($AV111:BB111),0)+IF(RIGHT(BX$39,2)>RIGHT($K111,2),BB111,0)) -> 0 | BY111: =+IF($K111="Ongoing",BC111,IF(RIGHT($K111,2)=RIGHT(BY$39,2),SUM($AV111:BC111),0)+IF(RIGHT(BY$39,2)>RIGHT($K111,2),BC111,0)) -> 0 | BZ111: =+IF($K111="Ongoing",BD111,IF(RIGHT($K111,2)=RIGHT(BZ$39,2),SUM($AV111:BD111),0)+IF(RIGHT(BZ$39,2)>RIGHT($K111,2),BD111,0)) -> 0 | CA111: =+IF($K111="Ongoing",BE111,IF(RIGHT($K111,2)=RIGHT(CA$39,2),SUM($AV111:BE111),0)+IF(RIGHT(CA$39,2)>RIGHT($K111,2),BE111,0)) -> 0 | CC111: =+O111*KeyAssumptionsPriceControl_FO!X$15 -> 0 | CD111: =+P111*KeyAssumptionsPriceControl_FO!Y$15 -> 0 | CE111: =+Q111*KeyAssumptionsPriceControl_FO!Z$15 -> 0 | CF111: =+R111*KeyAssumptionsPriceControl_FO!AA$15 -> 0 | CG111: =+S111*KeyAssumptionsPriceControl_FO!AB$15 -> 0 | CH111: =+T111*KeyAssumptionsPriceControl_FO!AC$15 -> 0 | CI111: =+U111*KeyAssumptionsPriceControl_FO!AD$15 -> 0 | CJ111: =+V111*KeyAssumptionsPriceControl_FO!AE$15 -> 0 | CK111: =+W111*KeyAssumptionsPriceControl_FO!AF$15 -> 0 | CL111: =+X111*KeyAssumptionsPriceControl_FO!AG$15 -> 0 | CN111: 0 | CO111: 0 | CP111: 0 | CQ111: 0 | CR111: 0 | CS111: 0 | CT111: 0 | CU111: 0 | CV111: 0 | CW111: 0
C112: [Capex Item - Significant Project / Capital Program / Other Capex] | E112: [Service] | F112: [Major Cost Driver] | G112: [Asset category] | H112: [Capital type] | J112: Straight line | K112: [Year finalised?] | AV112: 0 | AW112: 0 | AX112: 0 | AY112: 0 | AZ112: 0 | BA112: 0 | BB112: 0 | BC112: 0 | BD112: 0 | BE112: 0 | BG112: 0 | BH112: 0 | BI112: 0 | BJ112: 0 | BK112: 0 | BL112: 0 | BM112: 0 | BN112: 0 | BO112: 0 | BP112: 0 | BR112: =+IF($K112="Ongoing",AV112,IF(RIGHT($K112,2)=RIGHT(BR$39,2),SUM($AV112:AV112),0)+IF(RIGHT(BR$39,2)>RIGHT($K112,2),AV112,0)) -> 0 | BS112: =+IF($K112="Ongoing",AW112,IF(RIGHT($K112,2)=RIGHT(BS$39,2),SUM($AV112:AW112),0)+IF(RIGHT(BS$39,2)>RIGHT($K112,2),AW112,0)) -> 0 | BT112: =+IF($K112="Ongoing",AX112,IF(RIGHT($K112,2)=RIGHT(BT$39,2),SUM($AV112:AX112),0)+IF(RIGHT(BT$39,2)>RIGHT($K112,2),AX112,0)) -> 0 | BU112: =+IF($K112="Ongoing",AY112,IF(RIGHT($K112,2)=RIGHT(BU$39,2),SUM($AV112:AY112),0)+IF(RIGHT(BU$39,2)>RIGHT($K112,2),AY112,0)) -> 0 | BV112: =+IF($K112="Ongoing",AZ112,IF(RIGHT($K112,2)=RIGHT(BV$39,2),SUM($AV112:AZ112),0)+IF(RIGHT(BV$39,2)>RIGHT($K112,2),AZ112,0)) -> 0 | BW112: =+IF($K112="Ongoing",BA112,IF(RIGHT($K112,2)=RIGHT(BW$39,2),SUM($AV112:BA112),0)+IF(RIGHT(BW$39,2)>RIGHT($K112,2),BA112,0)) -> 0 | BX112: =+IF($K112="Ongoing",BB112,IF(RIGHT($K112,2)=RIGHT(BX$39,2),SUM($AV112:BB112),0)+IF(RIGHT(BX$39,2)>RIGHT($K112,2),BB112,0)) -> 0 | BY112: =+IF($K112="Ongoing",BC112,IF(RIGHT($K112,2)=RIGHT(BY$39,2),SUM($AV112:BC112),0)+IF(RIGHT(BY$39,2)>RIGHT($K112,2),BC112,0)) -> 0 | BZ112: =+IF($K112="Ongoing",BD112,IF(RIGHT($K112,2)=RIGHT(BZ$39,2),SUM($AV112:BD112),0)+IF(RIGHT(BZ$39,2)>RIGHT($K112,2),BD112,0)) -> 0 | CA112: =+IF($K112="Ongoing",BE112,IF(RIGHT($K112,2)=RIGHT(CA$39,2),SUM($AV112:BE112),0)+IF(RIGHT(CA$39,2)>RIGHT($K112,2),BE112,0)) -> 0 | CC112: =+O112*KeyAssumptionsPriceControl_FO!X$15 -> 0 | CD112: =+P112*KeyAssumptionsPriceControl_FO!Y$15 -> 0 | CE112: =+Q112*KeyAssumptionsPriceControl_FO!Z$15 -> 0 | CF112: =+R112*KeyAssumptionsPriceControl_FO!AA$15 -> 0 | CG112: =+S112*KeyAssumptionsPriceControl_FO!AB$15 -> 0 | CH112: =+T112*KeyAssumptionsPriceControl_FO!AC$15 -> 0 | CI112: =+U112*KeyAssumptionsPriceControl_FO!AD$15 -> 0 | CJ112: =+V112*KeyAssumptionsPriceControl_FO!AE$15 -> 0 | CK112: =+W112*KeyAssumptionsPriceControl_FO!AF$15 -> 0 | CL112: =+X112*KeyAssumptionsPriceControl_FO!AG$15 -> 0 | CN112: 0 | CO112: 0 | CP112: 0 | CQ112: 0 | CR112: 0 | CS112: 0 | CT112: 0 | CU112: 0 | CV112: 0 | CW112: 0
C113: [Capex Item - Significant Project / Capital Program / Other Capex] | E113: [Service] | F113: [Major Cost Driver] | G113: [Asset category] | H113: [Capital type] | J113: Straight line | K113: [Year finalised?] | AV113: 0 | AW113: 0 | AX113: 0 | AY113: 0 | AZ113: 0 | BA113: 0 | BB113: 0 | BC113: 0 | BD113: 0 | BE113: 0 | BG113: 0 | BH113: 0 | BI113: 0 | BJ113: 0 | BK113: 0 | BL113: 0 | BM113: 0 | BN113: 0 | BO113: 0 | BP113: 0 | BR113: =+IF($K113="Ongoing",AV113,IF(RIGHT($K113,2)=RIGHT(BR$39,2),SUM($AV113:AV113),0)+IF(RIGHT(BR$39,2)>RIGHT($K113,2),AV113,0)) -> 0 | BS113: =+IF($K113="Ongoing",AW113,IF(RIGHT($K113,2)=RIGHT(BS$39,2),SUM($AV113:AW113),0)+IF(RIGHT(BS$39,2)>RIGHT($K113,2),AW113,0)) -> 0 | BT113: =+IF($K113="Ongoing",AX113,IF(RIGHT($K113,2)=RIGHT(BT$39,2),SUM($AV113:AX113),0)+IF(RIGHT(BT$39,2)>RIGHT($K113,2),AX113,0)) -> 0 | BU113: =+IF($K113="Ongoing",AY113,IF(RIGHT($K113,2)=RIGHT(BU$39,2),SUM($AV113:AY113),0)+IF(RIGHT(BU$39,2)>RIGHT($K113,2),AY113,0)) -> 0 | BV113: =+IF($K113="Ongoing",AZ113,IF(RIGHT($K113,2)=RIGHT(BV$39,2),SUM($AV113:AZ113),0)+IF(RIGHT(BV$39,2)>RIGHT($K113,2),AZ113,0)) -> 0 | BW113: =+IF($K113="Ongoing",BA113,IF(RIGHT($K113,2)=RIGHT(BW$39,2),SUM($AV113:BA113),0)+IF(RIGHT(BW$39,2)>RIGHT($K113,2),BA113,0)) -> 0 | BX113: =+IF($K113="Ongoing",BB113,IF(RIGHT($K113,2)=RIGHT(BX$39,2),SUM($AV113:BB113),0)+IF(RIGHT(BX$39,2)>RIGHT($K113,2),BB113,0)) -> 0 | BY113: =+IF($K113="Ongoing",BC113,IF(RIGHT($K113,2)=RIGHT(BY$39,2),SUM($AV113:BC113),0)+IF(RIGHT(BY$39,2)>RIGHT($K113,2),BC113,0)) -> 0 | BZ113: =+IF($K113="Ongoing",BD113,IF(RIGHT($K113,2)=RIGHT(BZ$39,2),SUM($AV113:BD113),0)+IF(RIGHT(BZ$39,2)>RIGHT($K113,2),BD113,0)) -> 0 | CA113: =+IF($K113="Ongoing",BE113,IF(RIGHT($K113,2)=RIGHT(CA$39,2),SUM($AV113:BE113),0)+IF(RIGHT(CA$39,2)>RIGHT($K113,2),BE113,0)) -> 0 | CC113: =+O113*KeyAssumptionsPriceControl_FO!X$15 -> 0 | CD113: =+P113*KeyAssumptionsPriceControl_FO!Y$15 -> 0 | CE113: =+Q113*KeyAssumptionsPriceControl_FO!Z$15 -> 0 | CF113: =+R113*KeyAssumptionsPriceControl_FO!AA$15 -> 0 | CG113: =+S113*KeyAssumptionsPriceControl_FO!AB$15 -> 0 | CH113: =+T113*KeyAssumptionsPriceControl_FO!AC$15 -> 0 | CI113: =+U113*KeyAssumptionsPriceControl_FO!AD$15 -> 0 | CJ113: =+V113*KeyAssumptionsPriceControl_FO!AE$15 -> 0 | CK113: =+W113*KeyAssumptionsPriceControl_FO!AF$15 -> 0 | CL113: =+X113*KeyAssumptionsPriceControl_FO!AG$15 -> 0 | CN113: 0 | CO113: 0 | CP113: 0 | CQ113: 0 | CR113: 0 | CS113: 0 | CT113: 0 | CU113: 0 | CV113: 0 | CW113: 0
C114: [Capex Item - Significant Project / Capital Program / Other Capex] | E114: [Service] | F114: [Major Cost Driver] | G114: [Asset category] | H114: [Capital type] | J114: Straight line | K114: [Year finalised?] | AV114: 0 | AW114: 0 | AX114: 0 | AY114: 0 | AZ114: 0 | BA114: 0 | BB114: 0 | BC114: 0 | BD114: 0 | BE114: 0 | BG114: 0 | BH114: 0 | BI114: 0 | BJ114: 0 | BK114: 0 | BL114: 0 | BM114: 0 | BN114: 0 | BO114: 0 | BP114: 0 | BR114: =+IF($K114="Ongoing",AV114,IF(RIGHT($K114,2)=RIGHT(BR$39,2),SUM($AV114:AV114),0)+IF(RIGHT(BR$39,2)>RIGHT($K114,2),AV114,0)) -> 0 | BS114: =+IF($K114="Ongoing",AW114,IF(RIGHT($K114,2)=RIGHT(BS$39,2),SUM($AV114:AW114),0)+IF(RIGHT(BS$39,2)>RIGHT($K114,2),AW114,0)) -> 0 | BT114: =+IF($K114="Ongoing",AX114,IF(RIGHT($K114,2)=RIGHT(BT$39,2),SUM($AV114:AX114),0)+IF(RIGHT(BT$39,2)>RIGHT($K114,2),AX114,0)) -> 0 | BU114: =+IF($K114="Ongoing",AY114,IF(RIGHT($K114,2)=RIGHT(BU$39,2),SUM($AV114:AY114),0)+IF(RIGHT(BU$39,2)>RIGHT($K114,2),AY114,0)) -> 0 | BV114: =+IF($K114="Ongoing",AZ114,IF(RIGHT($K114,2)=RIGHT(BV$39,2),SUM($AV114:AZ114),0)+IF(RIGHT(BV$39,2)>RIGHT($K114,2),AZ114,0)) -> 0 | BW114: =+IF($K114="Ongoing",BA114,IF(RIGHT($K114,2)=RIGHT(BW$39,2),SUM($AV114:BA114),0)+IF(RIGHT(BW$39,2)>RIGHT($K114,2),BA114,0)) -> 0 | BX114: =+IF($K114="Ongoing",BB114,IF(RIGHT($K114,2)=RIGHT(BX$39,2),SUM($AV114:BB114),0)+IF(RIGHT(BX$39,2)>RIGHT($K114,2),BB114,0)) -> 0 | BY114: =+IF($K114="Ongoing",BC114,IF(RIGHT($K114,2)=RIGHT(BY$39,2),SUM($AV114:BC114),0)+IF(RIGHT(BY$39,2)>RIGHT($K114,2),BC114,0)) -> 0 | BZ114: =+IF($K114="Ongoing",BD114,IF(RIGHT($K114,2)=RIGHT(BZ$39,2),SUM($AV114:BD114),0)+IF(RIGHT(BZ$39,2)>RIGHT($K114,2),BD114,0)) -> 0 | CA114: =+IF($K114="Ongoing",BE114,IF(RIGHT($K114,2)=RIGHT(CA$39,2),SUM($AV114:BE114),0)+IF(RIGHT(CA$39,2)>RIGHT($K114,2),BE114,0)) -> 0 | CC114: =+O114*KeyAssumptionsPriceControl_FO!X$15 -> 0 | CD114: =+P114*KeyAssumptionsPriceControl_FO!Y$15 -> 0 | CE114: =+Q114*KeyAssumptionsPriceControl_FO!Z$15 -> 0 | CF114: =+R114*KeyAssumptionsPriceControl_FO!AA$15 -> 0 | CG114: =+S114*KeyAssumptionsPriceControl_FO!AB$15 -> 0 | CH114: =+T114*KeyAssumptionsPriceControl_FO!AC$15 -> 0 | CI114: =+U114*KeyAssumptionsPriceControl_FO!AD$15 -> 0 | CJ114: =+V114*KeyAssumptionsPriceControl_FO!AE$15 -> 0 | CK114: =+W114*KeyAssumptionsPriceControl_FO!AF$15 -> 0 | CL114: =+X114*KeyAssumptionsPriceControl_FO!AG$15 -> 0 | CN114: 0 | CO114: 0 | CP114: 0 | CQ114: 0 | CR114: 0 | CS114: 0 | CT114: 0 | CU114: 0 | CV114: 0 | CW114: 0
C115: [Capex Item - Significant Project / Capital Program / Other Capex] | E115: [Service] | F115: [Major Cost Driver] | G115: [Asset category] | H115: [Capital type] | J115: Straight line | K115: [Year finalised?] | AV115: 0 | AW115: 0 | AX115: 0 | AY115: 0 | AZ115: 0 | BA115: 0 | BB115: 0 | BC115: 0 | BD115: 0 | BE115: 0 | BG115: 0 | BH115: 0 | BI115: 0 | BJ115: 0 | BK115: 0 | BL115: 0 | BM115: 0 | BN115: 0 | BO115: 0 | BP115: 0 | BR115: =+IF($K115="Ongoing",AV115,IF(RIGHT($K115,2)=RIGHT(BR$39,2),SUM($AV115:AV115),0)+IF(RIGHT(BR$39,2)>RIGHT($K115,2),AV115,0)) -> 0 | BS115: =+IF($K115="Ongoing",AW115,IF(RIGHT($K115,2)=RIGHT(BS$39,2),SUM($AV115:AW115),0)+IF(RIGHT(BS$39,2)>RIGHT($K115,2),AW115,0)) -> 0 | BT115: =+IF($K115="Ongoing",AX115,IF(RIGHT($K115,2)=RIGHT(BT$39,2),SUM($AV115:AX115),0)+IF(RIGHT(BT$39,2)>RIGHT($K115,2),AX115,0)) -> 0 | BU115: =+IF($K115="Ongoing",AY115,IF(RIGHT($K115,2)=RIGHT(BU$39,2),SUM($AV115:AY115),0)+IF(RIGHT(BU$39,2)>RIGHT($K115,2),AY115,0)) -> 0 | BV115: =+IF($K115="Ongoing",AZ115,IF(RIGHT($K115,2)=RIGHT(BV$39,2),SUM($AV115:AZ115),0)+IF(RIGHT(BV$39,2)>RIGHT($K115,2),AZ115,0)) -> 0 | BW115: =+IF($K115="Ongoing",BA115,IF(RIGHT($K115,2)=RIGHT(BW$39,2),SUM($AV115:BA115),0)+IF(RIGHT(BW$39,2)>RIGHT($K115,2),BA115,0)) -> 0 | BX115: =+IF($K115="Ongoing",BB115,IF(RIGHT($K115,2)=RIGHT(BX$39,2),SUM($AV115:BB115),0)+IF(RIGHT(BX$39,2)>RIGHT($K115,2),BB115,0)) -> 0 | BY115: =+IF($K115="Ongoing",BC115,IF(RIGHT($K115,2)=RIGHT(BY$39,2),SUM($AV115:BC115),0)+IF(RIGHT(BY$39,2)>RIGHT($K115,2),BC115,0)) -> 0 | BZ115: =+IF($K115="Ongoing",BD115,IF(RIGHT($K115,2)=RIGHT(BZ$39,2),SUM($AV115:BD115),0)+IF(RIGHT(BZ$39,2)>RIGHT($K115,2),BD115,0)) -> 0 | CA115: =+IF($K115="Ongoing",BE115,IF(RIGHT($K115,2)=RIGHT(CA$39,2),SUM($AV115:BE115),0)+IF(RIGHT(CA$39,2)>RIGHT($K115,2),BE115,0)) -> 0 | CC115: =+O115*KeyAssumptionsPriceControl_FO!X$15 -> 0 | CD115: =+P115*KeyAssumptionsPriceControl_FO!Y$15 -> 0 | CE115: =+Q115*KeyAssumptionsPriceControl_FO!Z$15 -> 0 | CF115: =+R115*KeyAssumptionsPriceControl_FO!AA$15 -> 0 | CG115: =+S115*KeyAssumptionsPriceControl_FO!AB$15 -> 0 | CH115: =+T115*KeyAssumptionsPriceControl_FO!AC$15 -> 0 | CI115: =+U115*KeyAssumptionsPriceControl_FO!AD$15 -> 0 | CJ115: =+V115*KeyAssumptionsPriceControl_FO!AE$15 -> 0 | CK115: =+W115*KeyAssumptionsPriceControl_FO!AF$15 -> 0 | CL115: =+X115*KeyAssumptionsPriceControl_FO!AG$15 -> 0 | CN115: 0 | CO115: 0 | CP115: 0 | CQ115: 0 | CR115: 0 | CS115: 0 | CT115: 0 | CU115: 0 | CV115: 0 | CW115: 0
C116: [Capex Item - Significant Project / Capital Program / Other Capex] | E116: [Service] | F116: [Major Cost Driver] | G116: [Asset category] | H116: [Capital type] | J116: Straight line | K116: [Year finalised?] | AV116: 0 | AW116: 0 | AX116: 0 | AY116: 0 | AZ116: 0 | BA116: 0 | BB116: 0 | BC116: 0 | BD116: 0 | BE116: 0 | BG116: 0 | BH116: 0 | BI116: 0 | BJ116: 0 | BK116: 0 | BL116: 0 | BM116: 0 | BN116: 0 | BO116: 0 | BP116: 0 | BR116: =+IF($K116="Ongoing",AV116,IF(RIGHT($K116,2)=RIGHT(BR$39,2),SUM($AV116:AV116),0)+IF(RIGHT(BR$39,2)>RIGHT($K116,2),AV116,0)) -> 0 | BS116: =+IF($K116="Ongoing",AW116,IF(RIGHT($K116,2)=RIGHT(BS$39,2),SUM($AV116:AW116),0)+IF(RIGHT(BS$39,2)>RIGHT($K116,2),AW116,0)) -> 0 | BT116: =+IF($K116="Ongoing",AX116,IF(RIGHT($K116,2)=RIGHT(BT$39,2),SUM($AV116:AX116),0)+IF(RIGHT(BT$39,2)>RIGHT($K116,2),AX116,0)) -> 0 | BU116: =+IF($K116="Ongoing",AY116,IF(RIGHT($K116,2)=RIGHT(BU$39,2),SUM($AV116:AY116),0)+IF(RIGHT(BU$39,2)>RIGHT($K116,2),AY116,0)) -> 0 | BV116: =+IF($K116="Ongoing",AZ116,IF(RIGHT($K116,2)=RIGHT(BV$39,2),SUM($AV116:AZ116),0)+IF(RIGHT(BV$39,2)>RIGHT($K116,2),AZ116,0)) -> 0 | BW116: =+IF($K116="Ongoing",BA116,IF(RIGHT($K116,2)=RIGHT(BW$39,2),SUM($AV116:BA116),0)+IF(RIGHT(BW$39,2)>RIGHT($K116,2),BA116,0)) -> 0 | BX116: =+IF($K116="Ongoing",BB116,IF(RIGHT($K116,2)=RIGHT(BX$39,2),SUM($AV116:BB116),0)+IF(RIGHT(BX$39,2)>RIGHT($K116,2),BB116,0)) -> 0 | BY116: =+IF($K116="Ongoing",BC116,IF(RIGHT($K116,2)=RIGHT(BY$39,2),SUM($AV116:BC116),0)+IF(RIGHT(BY$39,2)>RIGHT($K116,2),BC116,0)) -> 0 | BZ116: =+IF($K116="Ongoing",BD116,IF(RIGHT($K116,2)=RIGHT(BZ$39,2),SUM($AV116:BD116),0)+IF(RIGHT(BZ$39,2)>RIGHT($K116,2),BD116,0)) -> 0 | CA116: =+IF($K116="Ongoing",BE116,IF(RIGHT($K116,2)=RIGHT(CA$39,2),SUM($AV116:BE116),0)+IF(RIGHT(CA$39,2)>RIGHT($K116,2),BE116,0)) -> 0 | CC116: =+O116*KeyAssumptionsPriceControl_FO!X$15 -> 0 | CD116: =+P116*KeyAssumptionsPriceControl_FO!Y$15 -> 0 | CE116: =+Q116*KeyAssumptionsPriceControl_FO!Z$15 -> 0 | CF116: =+R116*KeyAssumptionsPriceControl_FO!AA$15 -> 0 | CG116: =+S116*KeyAssumptionsPriceControl_FO!AB$15 -> 0 | CH116: =+T116*KeyAssumptionsPriceControl_FO!AC$15 -> 0 | CI116: =+U116*KeyAssumptionsPriceControl_FO!AD$15 -> 0 | CJ116: =+V116*KeyAssumptionsPriceControl_FO!AE$15 -> 0 | CK116: =+W116*KeyAssumptionsPriceControl_FO!AF$15 -> 0 | CL116: =+X116*KeyAssumptionsPriceControl_FO!AG$15 -> 0 | CN116: 0 | CO116: 0 | CP116: 0 | CQ116: 0 | CR116: 0 | CS116: 0 | CT116: 0 | CU116: 0 | CV116: 0 | CW116: 0
C117: [Capex Item - Significant Project / Capital Program / Other Capex] | E117: [Service] | F117: [Major Cost Driver] | G117: [Asset category] | H117: [Capital type] | J117: Straight line | K117: [Year finalised?] | AV117: 0 | AW117: 0 | AX117: 0 | AY117: 0 | AZ117: 0 | BA117: 0 | BB117: 0 | BC117: 0 | BD117: 0 | BE117: 0 | BG117: 0 | BH117: 0 | BI117: 0 | BJ117: 0 | BK117: 0 | BL117: 0 | BM117: 0 | BN117: 0 | BO117: 0 | BP117: 0 | BR117: =+IF($K117="Ongoing",AV117,IF(RIGHT($K117,2)=RIGHT(BR$39,2),SUM($AV117:AV117),0)+IF(RIGHT(BR$39,2)>RIGHT($K117,2),AV117,0)) -> 0 | BS117: =+IF($K117="Ongoing",AW117,IF(RIGHT($K117,2)=RIGHT(BS$39,2),SUM($AV117:AW117),0)+IF(RIGHT(BS$39,2)>RIGHT($K117,2),AW117,0)) -> 0 | BT117: =+IF($K117="Ongoing",AX117,IF(RIGHT($K117,2)=RIGHT(BT$39,2),SUM($AV117:AX117),0)+IF(RIGHT(BT$39,2)>RIGHT($K117,2),AX117,0)) -> 0 | BU117: =+IF($K117="Ongoing",AY117,IF(RIGHT($K117,2)=RIGHT(BU$39,2),SUM($AV117:AY117),0)+IF(RIGHT(BU$39,2)>RIGHT($K117,2),AY117,0)) -> 0 | BV117: =+IF($K117="Ongoing",AZ117,IF(RIGHT($K117,2)=RIGHT(BV$39,2),SUM($AV117:AZ117),0)+IF(RIGHT(BV$39,2)>RIGHT($K117,2),AZ117,0)) -> 0 | BW117: =+IF($K117="Ongoing",BA117,IF(RIGHT($K117,2)=RIGHT(BW$39,2),SUM($AV117:BA117),0)+IF(RIGHT(BW$39,2)>RIGHT($K117,2),BA117,0)) -> 0 | BX117: =+IF($K117="Ongoing",BB117,IF(RIGHT($K117,2)=RIGHT(BX$39,2),SUM($AV117:BB117),0)+IF(RIGHT(BX$39,2)>RIGHT($K117,2),BB117,0)) -> 0 | BY117: =+IF($K117="Ongoing",BC117,IF(RIGHT($K117,2)=RIGHT(BY$39,2),SUM($AV117:BC117),0)+IF(RIGHT(BY$39,2)>RIGHT($K117,2),BC117,0)) -> 0 | BZ117: =+IF($K117="Ongoing",BD117,IF(RIGHT($K117,2)=RIGHT(BZ$39,2),SUM($AV117:BD117),0)+IF(RIGHT(BZ$39,2)>RIGHT($K117,2),BD117,0)) -> 0 | CA117: =+IF($K117="Ongoing",BE117,IF(RIGHT($K117,2)=RIGHT(CA$39,2),SUM($AV117:BE117),0)+IF(RIGHT(CA$39,2)>RIGHT($K117,2),BE117,0)) -> 0 | CC117: =+O117*KeyAssumptionsPriceControl_FO!X$15 -> 0 | CD117: =+P117*KeyAssumptionsPriceControl_FO!Y$15 -> 0 | CE117: =+Q117*KeyAssumptionsPriceControl_FO!Z$15 -> 0 | CF117: =+R117*KeyAssumptionsPriceControl_FO!AA$15 -> 0 | CG117: =+S117*KeyAssumptionsPriceControl_FO!AB$15 -> 0 | CH117: =+T117*KeyAssumptionsPriceControl_FO!AC$15 -> 0 | CI117: =+U117*KeyAssumptionsPriceControl_FO!AD$15 -> 0 | CJ117: =+V117*KeyAssumptionsPriceControl_FO!AE$15 -> 0 | CK117: =+W117*KeyAssumptionsPriceControl_FO!AF$15 -> 0 | CL117: =+X117*KeyAssumptionsPriceControl_FO!AG$15 -> 0 | CN117: 0 | CO117: 0 | CP117: 0 | CQ117: 0 | CR117: 0 | CS117: 0 | CT117: 0 | CU117: 0 | CV117: 0 | CW117: 0
C118: [Capex Item - Significant Project / Capital Program / Other Capex] | E118: [Service] | F118: [Major Cost Driver] | G118: [Asset category] | H118: [Capital type] | J118: Straight line | K118: [Year finalised?] | AV118: 0 | AW118: 0 | AX118: 0 | AY118: 0 | AZ118: 0 | BA118: 0 | BB118: 0 | BC118: 0 | BD118: 0 | BE118: 0 | BG118: 0 | BH118: 0 | BI118: 0 | BJ118: 0 | BK118: 0 | BL118: 0 | BM118: 0 | BN118: 0 | BO118: 0 | BP118: 0 | BR118: =+IF($K118="Ongoing",AV118,IF(RIGHT($K118,2)=RIGHT(BR$39,2),SUM($AV118:AV118),0)+IF(RIGHT(BR$39,2)>RIGHT($K118,2),AV118,0)) -> 0 | BS118: =+IF($K118="Ongoing",AW118,IF(RIGHT($K118,2)=RIGHT(BS$39,2),SUM($AV118:AW118),0)+IF(RIGHT(BS$39,2)>RIGHT($K118,2),AW118,0)) -> 0 | BT118: =+IF($K118="Ongoing",AX118,IF(RIGHT($K118,2)=RIGHT(BT$39,2),SUM($AV118:AX118),0)+IF(RIGHT(BT$39,2)>RIGHT($K118,2),AX118,0)) -> 0 | BU118: =+IF($K118="Ongoing",AY118,IF(RIGHT($K118,2)=RIGHT(BU$39,2),SUM($AV118:AY118),0)+IF(RIGHT(BU$39,2)>RIGHT($K118,2),AY118,0)) -> 0 | BV118: =+IF($K118="Ongoing",AZ118,IF(RIGHT($K118,2)=RIGHT(BV$39,2),SUM($AV118:AZ118),0)+IF(RIGHT(BV$39,2)>RIGHT($K118,2),AZ118,0)) -> 0 | BW118: =+IF($K118="Ongoing",BA118,IF(RIGHT($K118,2)=RIGHT(BW$39,2),SUM($AV118:BA118),0)+IF(RIGHT(BW$39,2)>RIGHT($K118,2),BA118,0)) -> 0 | BX118: =+IF($K118="Ongoing",BB118,IF(RIGHT($K118,2)=RIGHT(BX$39,2),SUM($AV118:BB118),0)+IF(RIGHT(BX$39,2)>RIGHT($K118,2),BB118,0)) -> 0 | BY118: =+IF($K118="Ongoing",BC118,IF(RIGHT($K118,2)=RIGHT(BY$39,2),SUM($AV118:BC118),0)+IF(RIGHT(BY$39,2)>RIGHT($K118,2),BC118,0)) -> 0 | BZ118: =+IF($K118="Ongoing",BD118,IF(RIGHT($K118,2)=RIGHT(BZ$39,2),SUM($AV118:BD118),0)+IF(RIGHT(BZ$39,2)>RIGHT($K118,2),BD118,0)) -> 0 | CA118: =+IF($K118="Ongoing",BE118,IF(RIGHT($K118,2)=RIGHT(CA$39,2),SUM($AV118:BE118),0)+IF(RIGHT(CA$39,2)>RIGHT($K118,2),BE118,0)) -> 0 | CC118: =+O118*KeyAssumptionsPriceControl_FO!X$15 -> 0 | CD118: =+P118*KeyAssumptionsPriceControl_FO!Y$15 -> 0 | CE118: =+Q118*KeyAssumptionsPriceControl_FO!Z$15 -> 0 | CF118: =+R118*KeyAssumptionsPriceControl_FO!AA$15 -> 0 | CG118: =+S118*KeyAssumptionsPriceControl_FO!AB$15 -> 0 | CH118: =+T118*KeyAssumptionsPriceControl_FO!AC$15 -> 0 | CI118: =+U118*KeyAssumptionsPriceControl_FO!AD$15 -> 0 | CJ118: =+V118*KeyAssumptionsPriceControl_FO!AE$15 -> 0 | CK118: =+W118*KeyAssumptionsPriceControl_FO!AF$15 -> 0 | CL118: =+X118*KeyAssumptionsPriceControl_FO!AG$15 -> 0 | CN118: 0 | CO118: 0 | CP118: 0 | CQ118: 0 | CR118: 0 | CS118: 0 | CT118: 0 | CU118: 0 | CV118: 0 | CW118: 0
C119: [Capex Item - Significant Project / Capital Program / Other Capex] | E119: [Service] | F119: [Major Cost Driver] | G119: [Asset category] | H119: [Capital type] | J119: Straight line | K119: [Year finalised?] | AV119: 0 | AW119: 0 | AX119: 0 | AY119: 0 | AZ119: 0 | BA119: 0 | BB119: 0 | BC119: 0 | BD119: 0 | BE119: 0 | BG119: 0 | BH119: 0 | BI119: 0 | BJ119: 0 | BK119: 0 | BL119: 0 | BM119: 0 | BN119: 0 | BO119: 0 | BP119: 0 | BR119: =+IF($K119="Ongoing",AV119,IF(RIGHT($K119,2)=RIGHT(BR$39,2),SUM($AV119:AV119),0)+IF(RIGHT(BR$39,2)>RIGHT($K119,2),AV119,0)) -> 0 | BS119: =+IF($K119="Ongoing",AW119,IF(RIGHT($K119,2)=RIGHT(BS$39,2),SUM($AV119:AW119),0)+IF(RIGHT(BS$39,2)>RIGHT($K119,2),AW119,0)) -> 0 | BT119: =+IF($K119="Ongoing",AX119,IF(RIGHT($K119,2)=RIGHT(BT$39,2),SUM($AV119:AX119),0)+IF(RIGHT(BT$39,2)>RIGHT($K119,2),AX119,0)) -> 0 | BU119: =+IF($K119="Ongoing",AY119,IF(RIGHT($K119,2)=RIGHT(BU$39,2),SUM($AV119:AY119),0)+IF(RIGHT(BU$39,2)>RIGHT($K119,2),AY119,0)) -> 0 | BV119: =+IF($K119="Ongoing",AZ119,IF(RIGHT($K119,2)=RIGHT(BV$39,2),SUM($AV119:AZ119),0)+IF(RIGHT(BV$39,2)>RIGHT($K119,2),AZ119,0)) -> 0 | BW119: =+IF($K119="Ongoing",BA119,IF(RIGHT($K119,2)=RIGHT(BW$39,2),SUM($AV119:BA119),0)+IF(RIGHT(BW$39,2)>RIGHT($K119,2),BA119,0)) -> 0 | BX119: =+IF($K119="Ongoing",BB119,IF(RIGHT($K119,2)=RIGHT(BX$39,2),SUM($AV119:BB119),0)+IF(RIGHT(BX$39,2)>RIGHT($K119,2),BB119,0)) -> 0 | BY119: =+IF($K119="Ongoing",BC119,IF(RIGHT($K119,2)=RIGHT(BY$39,2),SUM($AV119:BC119),0)+IF(RIGHT(BY$39,2)>RIGHT($K119,2),BC119,0)) -> 0 | BZ119: =+IF($K119="Ongoing",BD119,IF(RIGHT($K119,2)=RIGHT(BZ$39,2),SUM($AV119:BD119),0)+IF(RIGHT(BZ$39,2)>RIGHT($K119,2),BD119,0)) -> 0 | CA119: =+IF($K119="Ongoing",BE119,IF(RIGHT($K119,2)=RIGHT(CA$39,2),SUM($AV119:BE119),0)+IF(RIGHT(CA$39,2)>RIGHT($K119,2),BE119,0)) -> 0 | CC119: =+O119*KeyAssumptionsPriceControl_FO!X$15 -> 0 | CD119: =+P119*KeyAssumptionsPriceControl_FO!Y$15 -> 0 | CE119: =+Q119*KeyAssumptionsPriceControl_FO!Z$15 -> 0 | CF119: =+R119*KeyAssumptionsPriceControl_FO!AA$15 -> 0 | CG119: =+S119*KeyAssumptionsPriceControl_FO!AB$15 -> 0 | CH119: =+T119*KeyAssumptionsPriceControl_FO!AC$15 -> 0 | CI119: =+U119*KeyAssumptionsPriceControl_FO!AD$15 -> 0 | CJ119: =+V119*KeyAssumptionsPriceControl_FO!AE$15 -> 0 | CK119: =+W119*KeyAssumptionsPriceControl_FO!AF$15 -> 0 | CL119: =+X119*KeyAssumptionsPriceControl_FO!AG$15 -> 0 | CN119: 0 | CO119: 0 | CP119: 0 | CQ119: 0 | CR119: 0 | CS119: 0 | CT119: 0 | CU119: 0 | CV119: 0 | CW119: 0
C120: [Capex Item - Significant Project / Capital Program / Other Capex] | E120: [Service] | F120: [Major Cost Driver] | G120: [Asset category] | H120: [Capital type] | J120: Straight line | K120: [Year finalised?] | AV120: 0 | AW120: 0 | AX120: 0 | AY120: 0 | AZ120: 0 | BA120: 0 | BB120: 0 | BC120: 0 | BD120: 0 | BE120: 0 | BG120: 0 | BH120: 0 | BI120: 0 | BJ120: 0 | BK120: 0 | BL120: 0 | BM120: 0 | BN120: 0 | BO120: 0 | BP120: 0 | BR120: =+IF($K120="Ongoing",AV120,IF(RIGHT($K120,2)=RIGHT(BR$39,2),SUM($AV120:AV120),0)+IF(RIGHT(BR$39,2)>RIGHT($K120,2),AV120,0)) -> 0 | BS120: =+IF($K120="Ongoing",AW120,IF(RIGHT($K120,2)=RIGHT(BS$39,2),SUM($AV120:AW120),0)+IF(RIGHT(BS$39,2)>RIGHT($K120,2),AW120,0)) -> 0 | BT120: =+IF($K120="Ongoing",AX120,IF(RIGHT($K120,2)=RIGHT(BT$39,2),SUM($AV120:AX120),0)+IF(RIGHT(BT$39,2)>RIGHT($K120,2),AX120,0)) -> 0 | BU120: =+IF($K120="Ongoing",AY120,IF(RIGHT($K120,2)=RIGHT(BU$39,2),SUM($AV120:AY120),0)+IF(RIGHT(BU$39,2)>RIGHT($K120,2),AY120,0)) -> 0 | BV120: =+IF($K120="Ongoing",AZ120,IF(RIGHT($K120,2)=RIGHT(BV$39,2),SUM($AV120:AZ120),0)+IF(RIGHT(BV$39,2)>RIGHT($K120,2),AZ120,0)) -> 0 | BW120: =+IF($K120="Ongoing",BA120,IF(RIGHT($K120,2)=RIGHT(BW$39,2),SUM($AV120:BA120),0)+IF(RIGHT(BW$39,2)>RIGHT($K120,2),BA120,0)) -> 0 | BX120: =+IF($K120="Ongoing",BB120,IF(RIGHT($K120,2)=RIGHT(BX$39,2),SUM($AV120:BB120),0)+IF(RIGHT(BX$39,2)>RIGHT($K120,2),BB120,0)) -> 0 | BY120: =+IF($K120="Ongoing",BC120,IF(RIGHT($K120,2)=RIGHT(BY$39,2),SUM($AV120:BC120),0)+IF(RIGHT(BY$39,2)>RIGHT($K120,2),BC120,0)) -> 0 | BZ120: =+IF($K120="Ongoing",BD120,IF(RIGHT($K120,2)=RIGHT(BZ$39,2),SUM($AV120:BD120),0)+IF(RIGHT(BZ$39,2)>RIGHT($K120,2),BD120,0)) -> 0 | CA120: =+IF($K120="Ongoing",BE120,IF(RIGHT($K120,2)=RIGHT(CA$39,2),SUM($AV120:BE120),0)+IF(RIGHT(CA$39,2)>RIGHT($K120,2),BE120,0)) -> 0 | CC120: =+O120*KeyAssumptionsPriceControl_FO!X$15 -> 0 | CD120: =+P120*KeyAssumptionsPriceControl_FO!Y$15 -> 0 | CE120: =+Q120*KeyAssumptionsPriceControl_FO!Z$15 -> 0 | CF120: =+R120*KeyAssumptionsPriceControl_FO!AA$15 -> 0 | CG120: =+S120*KeyAssumptionsPriceControl_FO!AB$15 -> 0 | CH120: =+T120*KeyAssumptionsPriceControl_FO!AC$15 -> 0 | CI120: =+U120*KeyAssumptionsPriceControl_FO!AD$15 -> 0 | CJ120: =+V120*KeyAssumptionsPriceControl_FO!AE$15 -> 0 | CK120: =+W120*KeyAssumptionsPriceControl_FO!AF$15 -> 0 | CL120: =+X120*KeyAssumptionsPriceControl_FO!AG$15 -> 0 | CN120: 0 | CO120: 0 | CP120: 0 | CQ120: 0 | CR120: 0 | CS120: 0 | CT120: 0 | CU120: 0 | CV120: 0 | CW120: 0
C121: [Capex Item - Significant Project / Capital Program / Other Capex] | E121: [Service] | F121: [Major Cost Driver] | G121: [Asset category] | H121: [Capital type] | J121: Straight line | K121: [Year finalised?] | AV121: 0 | AW121: 0 | AX121: 0 | AY121: 0 | AZ121: 0 | BA121: 0 | BB121: 0 | BC121: 0 | BD121: 0 | BE121: 0 | BG121: 0 | BH121: 0 | BI121: 0 | BJ121: 0 | BK121: =IF($L121=0,0, IF($L121<=0.5,BV121, IF(AND($J121="straight line",$L121<1.51),(BU121-((BU121/$L121)*0.5))+BV121/$L121*0.5, IF($J121="straight line", IF((LEFT(BK$39,4)*1)-INT($L121)<LEFT($BG$39,4)*1,0,((OFFSET(BV121,0,-INT($L121+0.5),1,1))/$L121)*(IF($L121-INT($L121)>0.5,$L121-0.5-INT($L121),IF($L121-INT($L121)<=0.5,$L121-0.5-INT($L121)+1,0)))) +BV121/$L121*0.5 +SUM(OFFSET(BV121,0,MAX(-INT($L121+(0.5-(10^-12))),-BK$40)+1,1,MIN(INT($L121+(0.5-(10^-12))),BK$40)-1))*1/$L121, IF($J121="Declining Balance",-$BG$38,0))))) -> 0 | BL121: 0 | BM121: 0 | BN121: 0 | BO121: 0 | BP121: 0 | BR121: =+IF($K121="Ongoing",AV121,IF(RIGHT($K121,2)=RIGHT(BR$39,2),SUM($AV121:AV121),0)+IF(RIGHT(BR$39,2)>RIGHT($K121,2),AV121,0)) -> 0 | BS121: =+IF($K121="Ongoing",AW121,IF(RIGHT($K121,2)=RIGHT(BS$39,2),SUM($AV121:AW121),0)+IF(RIGHT(BS$39,2)>RIGHT($K121,2),AW121,0)) -> 0 | BT121: =+IF($K121="Ongoing",AX121,IF(RIGHT($K121,2)=RIGHT(BT$39,2),SUM($AV121:AX121),0)+IF(RIGHT(BT$39,2)>RIGHT($K121,2),AX121,0)) -> 0 | BU121: =+IF($K121="Ongoing",AY121,IF(RIGHT($K121,2)=RIGHT(BU$39,2),SUM($AV121:AY121),0)+IF(RIGHT(BU$39,2)>RIGHT($K121,2),AY121,0)) -> 0 | BV121: =+IF($K121="Ongoing",AZ121,IF(RIGHT($K121,2)=RIGHT(BV$39,2),SUM($AV121:AZ121),0)+IF(RIGHT(BV$39,2)>RIGHT($K121,2),AZ121,0)) -> 0 | BW121: =+IF($K121="Ongoing",BA121,IF(RIGHT($K121,2)=RIGHT(BW$39,2),SUM($AV121:BA121),0)+IF(RIGHT(BW$39,2)>RIGHT($K121,2),BA121,0)) -> 0 | BX121: =+IF($K121="Ongoing",BB121,IF(RIGHT($K121,2)=RIGHT(BX$39,2),SUM($AV121:BB121),0)+IF(RIGHT(BX$39,2)>RIGHT($K121,2),BB121,0)) -> 0 | BY121: =+IF($K121="Ongoing",BC121,IF(RIGHT($K121,2)=RIGHT(BY$39,2),SUM($AV121:BC121),0)+IF(RIGHT(BY$39,2)>RIGHT($K121,2),BC121,0)) -> 0 | BZ121: =+IF($K121="Ongoing",BD121,IF(RIGHT($K121,2)=RIGHT(BZ$39,2),SUM($AV121:BD121),0)+IF(RIGHT(BZ$39,2)>RIGHT($K121,2),BD121,0)) -> 0 | CA121: =+IF($K121="Ongoing",BE121,IF(RIGHT($K121,2)=RIGHT(CA$39,2),SUM($AV121:BE121),0)+IF(RIGHT(CA$39,2)>RIGHT($K121,2),BE121,0)) -> 0 | CC121: =+O121*KeyAssumptionsPriceControl_FO!X$15 -> 0 | CD121: =+P121*KeyAssumptionsPriceControl_FO!Y$15 -> 0 | CE121: =+Q121*KeyAssumptionsPriceControl_FO!Z$15 -> 0 | CF121: =+R121*KeyAssumptionsPriceControl_FO!AA$15 -> 0 | CG121: =+S121*KeyAssumptionsPriceControl_FO!AB$15 -> 0 | CH121: =+T121*KeyAssumptionsPriceControl_FO!AC$15 -> 0 | CI121: =+U121*KeyAssumptionsPriceControl_FO!AD$15 -> 0 | CJ121: =+V121*KeyAssumptionsPriceControl_FO!AE$15 -> 0 | CK121: =+W121*KeyAssumptionsPriceControl_FO!AF$15 -> 0 | CL121: =+X121*KeyAssumptionsPriceControl_FO!AG$15 -> 0 | CN121: 0 | CO121: 0 | CP121: 0 | CQ121: 0 | CR121: =IF($M121=0,0, IF($M121<=0.5,CG121, IF(AND($J121="straight line",$M121<1.51),(CF121-((CF121/$M121)*0.5))+CG121/$M121*0.5, IF($J121="straight line", IF((LEFT(CR$39,4)*1)-INT($M121)<LEFT($CN$39,4)*1,0,((OFFSET(CG121,0,-INT($M121+0.5),1,1))/$M121)*(IF($M121-INT($M121)>0.5,$M121-0.5-INT($M121),IF($M121-INT($M121)<=0.5,$M121-0.5-INT($M121)+1,0)))) +CG121/$M121*0.5 +SUM(OFFSET(CG121,0,MAX(-INT($M121+(0.5-(10^-12))),-CR$40)+1,1,MIN(INT($M121+(0.5-(10^-12))),CR$40)-1))*1/$M121, IF($J121="Declining Balance",-$CN$38,0))))) -> 0 | CS121: 0 | CT121: 0 | CU121: 0 | CV121: 0 | CW121: 0
C122: [Capex Item - Significant Project / Capital Program / Other Capex] | E122: [Service] | F122: [Major Cost Driver] | G122: [Asset category] | H122: [Capital type] | J122: Straight line | K122: [Year finalised?] | AV122: 0 | AW122: 0 | AX122: 0 | AY122: 0 | AZ122: 0 | BA122: 0 | BB122: 0 | BC122: 0 | BD122: 0 | BE122: 0 | BG122: 0 | BH122: =IF($L122=0,0, IF($L122<=0.5,BS122, IF(AND($J122="straight line",$L122<1.51),(BR122-((BR122/$L122)*0.5))+BS122/$L122*0.5, IF($J122="straight line", IF((LEFT(BH$39,4)*1)-INT($L122)<LEFT($BG$39,4)*1,0,((OFFSET(BS122,0,-INT($L122+0.5),1,1))/$L122)*(IF($L122-INT($L122)>0.5,$L122-0.5-INT($L122),IF($L122-INT($L122)<=0.5,$L122-0.5-INT($L122)+1,0)))) +BS122/$L122*0.5 +SUM(OFFSET(BS122,0,MAX(-INT($L122+(0.5-(10^-12))),-BH$40)+1,1,MIN(INT($L122+(0.5-(10^-12))),BH$40)-1))*1/$L122, IF($J122="Declining Balance",-$BG$38,0))))) -> 0 | BI122: 0 | BJ122: 0 | BK122: 0 | BL122: 0 | BM122: 0 | BN122: 0 | BO122: 0 | BP122: 0 | BR122: =+IF($K122="Ongoing",AV122,IF(RIGHT($K122,2)=RIGHT(BR$39,2),SUM($AV122:AV122),0)+IF(RIGHT(BR$39,2)>RIGHT($K122,2),AV122,0)) -> 0 | BS122: =+IF($K122="Ongoing",AW122,IF(RIGHT($K122,2)=RIGHT(BS$39,2),SUM($AV122:AW122),0)+IF(RIGHT(BS$39,2)>RIGHT($K122,2),AW122,0)) -> 0 | BT122: =+IF($K122="Ongoing",AX122,IF(RIGHT($K122,2)=RIGHT(BT$39,2),SUM($AV122:AX122),0)+IF(RIGHT(BT$39,2)>RIGHT($K122,2),AX122,0)) -> 0 | BU122: =+IF($K122="Ongoing",AY122,IF(RIGHT($K122,2)=RIGHT(BU$39,2),SUM($AV122:AY122),0)+IF(RIGHT(BU$39,2)>RIGHT($K122,2),AY122,0)) -> 0 | BV122: =+IF($K122="Ongoing",AZ122,IF(RIGHT($K122,2)=RIGHT(BV$39,2),SUM($AV122:AZ122),0)+IF(RIGHT(BV$39,2)>RIGHT($K122,2),AZ122,0)) -> 0 | BW122: =+IF($K122="Ongoing",BA122,IF(RIGHT($K122,2)=RIGHT(BW$39,2),SUM($AV122:BA122),0)+IF(RIGHT(BW$39,2)>RIGHT($K122,2),BA122,0)) -> 0 | BX122: =+IF($K122="Ongoing",BB122,IF(RIGHT($K122,2)=RIGHT(BX$39,2),SUM($AV122:BB122),0)+IF(RIGHT(BX$39,2)>RIGHT($K122,2),BB122,0)) -> 0 | BY122: =+IF($K122="Ongoing",BC122,IF(RIGHT($K122,2)=RIGHT(BY$39,2),SUM($AV122:BC122),0)+IF(RIGHT(BY$39,2)>RIGHT($K122,2),BC122,0)) -> 0 | BZ122: =+IF($K122="Ongoing",BD122,IF(RIGHT($K122,2)=RIGHT(BZ$39,2),SUM($AV122:BD122),0)+IF(RIGHT(BZ$39,2)>RIGHT($K122,2),BD122,0)) -> 0 | CA122: =+IF($K122="Ongoing",BE122,IF(RIGHT($K122,2)=RIGHT(CA$39,2),SUM($AV122:BE122),0)+IF(RIGHT(CA$39,2)>RIGHT($K122,2),BE122,0)) -> 0 | CC122: =+O122*KeyAssumptionsPriceControl_FO!X$15 -> 0 | CD122: =+P122*KeyAssumptionsPriceControl_FO!Y$15 -> 0 | CE122: =+Q122*KeyAssumptionsPriceControl_FO!Z$15 -> 0 | CF122: =+R122*KeyAssumptionsPriceControl_FO!AA$15 -> 0 | CG122: =+S122*KeyAssumptionsPriceControl_FO!AB$15 -> 0 | CH122: =+T122*KeyAssumptionsPriceControl_FO!AC$15 -> 0 | CI122: =+U122*KeyAssumptionsPriceControl_FO!AD$15 -> 0 | CJ122: =+V122*KeyAssumptionsPriceControl_FO!AE$15 -> 0 | CK122: =+W122*KeyAssumptionsPriceControl_FO!AF$15 -> 0 | CL122: =+X122*KeyAssumptionsPriceControl_FO!AG$15 -> 0 | CN122: 0 | CO122: =IF($M122=0,0, IF($M122<=0.5,CD122, IF(AND($J122="straight line",$M122<1.51),(CC122-((CC122/$M122)*0.5))+CD122/$M122*0.5, IF($J122="straight line", IF((LEFT(CO$39,4)*1)-INT($M122)<LEFT($CN$39,4)*1,0,((OFFSET(CD122,0,-INT($M122+0.5),1,1))/$M122)*(IF($M122-INT($M122)>0.5,$M122-0.5-INT($M122),IF($M122-INT($M122)<=0.5,$M122-0.5-INT($M122)+1,0)))) +CD122/$M122*0.5 +SUM(OFFSET(CD122,0,MAX(-INT($M122+(0.5-(10^-12))),-CO$40)+1,1,MIN(INT($M122+(0.5-(10^-12))),CO$40)-1))*1/$M122, IF($J122="Declining Balance",-$CN$38,0))))) -> 0 | CP122: 0 | CQ122: 0 | CR122: 0 | CS122: 0 | CT122: 0 | CU122: 0 | CV122: 0 | CW122: 0
C123: [Capex Item - Significant Project / Capital Program / Other Capex] | E123: [Service] | F123: [Major Cost Driver] | G123: [Asset category] | H123: [Capital type] | J123: Straight line | K123: [Year finalised?] | AV123: 0 | AW123: 0 | AX123: 0 | AY123: 0 | AZ123: 0 | BA123: 0 | BB123: 0 | BC123: 0 | BD123: 0 | BE123: 0 | BG123: 0 | BH123: 0 | BI123: 0 | BJ123: 0 | BK123: 0 | BL123: 0 | BM123: 0 | BN123: 0 | BO123: 0 | BP123: 0 | BR123: =+IF($K123="Ongoing",AV123,IF(RIGHT($K123,2)=RIGHT(BR$39,2),SUM($AV123:AV123),0)+IF(RIGHT(BR$39,2)>RIGHT($K123,2),AV123,0)) -> 0 | BS123: =+IF($K123="Ongoing",AW123,IF(RIGHT($K123,2)=RIGHT(BS$39,2),SUM($AV123:AW123),0)+IF(RIGHT(BS$39,2)>RIGHT($K123,2),AW123,0)) -> 0 | BT123: =+IF($K123="Ongoing",AX123,IF(RIGHT($K123,2)=RIGHT(BT$39,2),SUM($AV123:AX123),0)+IF(RIGHT(BT$39,2)>RIGHT($K123,2),AX123,0)) -> 0 | BU123: =+IF($K123="Ongoing",AY123,IF(RIGHT($K123,2)=RIGHT(BU$39,2),SUM($AV123:AY123),0)+IF(RIGHT(BU$39,2)>RIGHT($K123,2),AY123,0)) -> 0 | BV123: =+IF($K123="Ongoing",AZ123,IF(RIGHT($K123,2)=RIGHT(BV$39,2),SUM($AV123:AZ123),0)+IF(RIGHT(BV$39,2)>RIGHT($K123,2),AZ123,0)) -> 0 | BW123: =+IF($K123="Ongoing",BA123,IF(RIGHT($K123,2)=RIGHT(BW$39,2),SUM($AV123:BA123),0)+IF(RIGHT(BW$39,2)>RIGHT($K123,2),BA123,0)) -> 0 | BX123: =+IF($K123="Ongoing",BB123,IF(RIGHT($K123,2)=RIGHT(BX$39,2),SUM($AV123:BB123),0)+IF(RIGHT(BX$39,2)>RIGHT($K123,2),BB123,0)) -> 0 | BY123: =+IF($K123="Ongoing",BC123,IF(RIGHT($K123,2)=RIGHT(BY$39,2),SUM($AV123:BC123),0)+IF(RIGHT(BY$39,2)>RIGHT($K123,2),BC123,0)) -> 0 | BZ123: =+IF($K123="Ongoing",BD123,IF(RIGHT($K123,2)=RIGHT(BZ$39,2),SUM($AV123:BD123),0)+IF(RIGHT(BZ$39,2)>RIGHT($K123,2),BD123,0)) -> 0 | CA123: =+IF($K123="Ongoing",BE123,IF(RIGHT($K123,2)=RIGHT(CA$39,2),SUM($AV123:BE123),0)+IF(RIGHT(CA$39,2)>RIGHT($K123,2),BE123,0)) -> 0 | CC123: =+O123*KeyAssumptionsPriceControl_FO!X$15 -> 0 | CD123: =+P123*KeyAssumptionsPriceControl_FO!Y$15 -> 0 | CE123: =+Q123*KeyAssumptionsPriceControl_FO!Z$15 -> 0 | CF123: =+R123*KeyAssumptionsPriceControl_FO!AA$15 -> 0 | CG123: =+S123*KeyAssumptionsPriceControl_FO!AB$15 -> 0 | CH123: =+T123*KeyAssumptionsPriceControl_FO!AC$15 -> 0 | CI123: =+U123*KeyAssumptionsPriceControl_FO!AD$15 -> 0 | CJ123: =+V123*KeyAssumptionsPriceControl_FO!AE$15 -> 0 | CK123: =+W123*KeyAssumptionsPriceControl_FO!AF$15 -> 0 | CL123: =+X123*KeyAssumptionsPriceControl_FO!AG$15 -> 0 | CN123: 0 | CO123: 0 | CP123: 0 | CQ123: 0 | CR123: 0 | CS123: 0 | CT123: 0 | CU123: 0 | CV123: 0 | CW123: 0
C124: [Capex Item - Significant Project / Capital Program / Other Capex] | E124: [Service] | F124: [Major Cost Driver] | G124: [Asset category] | H124: [Capital type] | J124: Straight line | K124: [Year finalised?] | AV124: 0 | AW124: 0 | AX124: 0 | AY124: 0 | AZ124: 0 | BA124: 0 | BB124: 0 | BC124: 0 | BD124: 0 | BE124: 0 | BG124: 0 | BH124: 0 | BI124: 0 | BJ124: 0 | BK124: 0 | BL124: 0 | BM124: 0 | BN124: 0 | BO124: 0 | BP124: 0 | BR124: =+IF($K124="Ongoing",AV124,IF(RIGHT($K124,2)=RIGHT(BR$39,2),SUM($AV124:AV124),0)+IF(RIGHT(BR$39,2)>RIGHT($K124,2),AV124,0)) -> 0 | BS124: =+IF($K124="Ongoing",AW124,IF(RIGHT($K124,2)=RIGHT(BS$39,2),SUM($AV124:AW124),0)+IF(RIGHT(BS$39,2)>RIGHT($K124,2),AW124,0)) -> 0 | BT124: =+IF($K124="Ongoing",AX124,IF(RIGHT($K124,2)=RIGHT(BT$39,2),SUM($AV124:AX124),0)+IF(RIGHT(BT$39,2)>RIGHT($K124,2),AX124,0)) -> 0 | BU124: =+IF($K124="Ongoing",AY124,IF(RIGHT($K124,2)=RIGHT(BU$39,2),SUM($AV124:AY124),0)+IF(RIGHT(BU$39,2)>RIGHT($K124,2),AY124,0)) -> 0 | BV124: =+IF($K124="Ongoing",AZ124,IF(RIGHT($K124,2)=RIGHT(BV$39,2),SUM($AV124:AZ124),0)+IF(RIGHT(BV$39,2)>RIGHT($K124,2),AZ124,0)) -> 0 | BW124: =+IF($K124="Ongoing",BA124,IF(RIGHT($K124,2)=RIGHT(BW$39,2),SUM($AV124:BA124),0)+IF(RIGHT(BW$39,2)>RIGHT($K124,2),BA124,0)) -> 0 | BX124: =+IF($K124="Ongoing",BB124,IF(RIGHT($K124,2)=RIGHT(BX$39,2),SUM($AV124:BB124),0)+IF(RIGHT(BX$39,2)>RIGHT($K124,2),BB124,0)) -> 0 | BY124: =+IF($K124="Ongoing",BC124,IF(RIGHT($K124,2)=RIGHT(BY$39,2),SUM($AV124:BC124),0)+IF(RIGHT(BY$39,2)>RIGHT($K124,2),BC124,0)) -> 0 | BZ124: =+IF($K124="Ongoing",BD124,IF(RIGHT($K124,2)=RIGHT(BZ$39,2),SUM($AV124:BD124),0)+IF(RIGHT(BZ$39,2)>RIGHT($K124,2),BD124,0)) -> 0 | CA124: =+IF($K124="Ongoing",BE124,IF(RIGHT($K124,2)=RIGHT(CA$39,2),SUM($AV124:BE124),0)+IF(RIGHT(CA$39,2)>RIGHT($K124,2),BE124,0)) -> 0 | CC124: =+O124*KeyAssumptionsPriceControl_FO!X$15 -> 0 | CD124: =+P124*KeyAssumptionsPriceControl_FO!Y$15 -> 0 | CE124: =+Q124*KeyAssumptionsPriceControl_FO!Z$15 -> 0 | CF124: =+R124*KeyAssumptionsPriceControl_FO!AA$15 -> 0 | CG124: =+S124*KeyAssumptionsPriceControl_FO!AB$15 -> 0 | CH124: =+T124*KeyAssumptionsPriceControl_FO!AC$15 -> 0 | CI124: =+U124*KeyAssumptionsPriceControl_FO!AD$15 -> 0 | CJ124: =+V124*KeyAssumptionsPriceControl_FO!AE$15 -> 0 | CK124: =+W124*KeyAssumptionsPriceControl_FO!AF$15 -> 0 | CL124: =+X124*KeyAssumptionsPriceControl_FO!AG$15 -> 0 | CN124: 0 | CO124: 0 | CP124: 0 | CQ124: 0 | CR124: 0 | CS124: 0 | CT124: 0 | CU124: 0 | CV124: 0 | CW124: 0
